Workbook

Sheet ACS_Notes (hidden)
A1: NOTES:
A4: Data are based on a sample and are subject to sampling variability. The degree of uncertainty for an estimate arising from sampling variability is represented through the use of a margin of error. The value shown here is the 90 percent margin of error. The margin of error can be interpreted roughly as providing a 90 percent probability that the interval defined by the estimate minus the margin of error and the estimate plus the margin of error (the lower and upper confidence bounds) contains the true value. In addition to sampling variability, the ACS estimates are subject to non-sampling error (for a discussion of nonsampling variability, see Accuracy of the Data). The effect of nonsampling error is not represented in these tables.
A8: In addition to sampling variability, the ACS estimates are subject to nonsampling error (for a discussion of nonsampling variability, see Accuracy of the Data. The link is located at the end of this worksheet.). The effect of nonsampling error is not represented in these tables.
A11: While the 2005-2009 American Community Survey (ACS) data generally reflect the November 2008 Office of Management and Budget (OMB) definitions of metropolitan and micropolitan statistical areas; in certain instances the names, codes, and boundaries of the principal cities shown in ACS tables may differ from the OMB definitions due to differences in the effective dates of the geographic entities.
A15: Estimates of urban and rural population, housing units, and characteristics reflect boundaries of urban areas defined based on Census 2000 data. Boundaries for urban areas have not been updated since Census 2000. As a result, data for urban and rural areas from the ACS do not necessarily reflect the results of ongoing urbanization.
A17: Explanation of Symbols:
A19: 1. An '**' entry in the margin of error column indicates that either no sample observations or too few sample observations were available to compute a standard error and thus the margin of error. A statistical test is not appropriate.
A21: 2. An '-' entry in the estimate column indicates that either no sample observations or too few sample observations were available to compute an estimate, or a ratio of medians cannot be calculated because one or both of the median estimates falls in the lowest interval or upper interval of an open-ended distribution.
A23: 3. An '-' following a median estimate means the median falls in the lowest interval of an open-ended distribution.
A24: 4. An '+' following a median estimate means the median falls in the upper interval of an open-ended distribution.
A25: 5. An '***' entry in the margin of error column indicates that the median falls in the lowest interval or upper interval of an open-ended distribution. A statistical test is not appropriate.
A26: 6. An '*****' entry in the margin of error column indicates that the estimate is controlled. A statistical test for sampling variability is not appropriate.
A28: Accuracy of Data

Sheet StartInstruction
A1: Demographic Profiles for Municipalities in Sullivan County
A3: To view or print a Demographic Profile follow the steps below
A6: Step 1. | C6: Select the municipality you wish to
C7: Profile from the drop down box below.
A12: Step 2. | C12: Click one of the profile topic buttons below to review or print
C13: the information for the selected geography.
C14: Don't forget to adjust the axis on charts as necessary.
O29: Updated: | Q29: 2021-03-23
O31: Next Update: | Q31: Fall 2021 - Annual Employment and Wage Data

Sheet ACS_Table_B08303 (hidden)
B1: B08303: TRAVEL TIME TO WORK
B2: Universe: Workers 16 years and over who did not work at home
B3: Data Set: 2006-2010 American Community Survey 3-Year Estimates
C5: Acworth | E5: Charlestown | G5: Claremont | I5: Cornish | K5: Croydon | M5: Goshen | O5: Grantham | Q5: Langdon | S5: Lempster | U5: Newport | W5: Plainfield | Y5: Springfield | AA5: Sunapee | AC5: Unity | AE5: Washington
C6: Estimate | D6: Margin of Error | E6: Estimate | F6: Margin of Error | G6: Estimate | H6: Margin of Error | I6: Estimate | J6: Margin of Error | K6: Estimate | L6: Margin of Error | M6: Estimate | N6: Margin of Error | O6: Estimate | P6: Margin of Error | Q6: Estimate | R6: Margin of Error | S6: Estimate | T6: Margin of Error | U6: Estimate | V6: Margin of Error | W6: Estimate | X6: Margin of Error | Y6: Estimate | Z6: Margin of Error | AA6: Estimate | AB6: Margin of Error | AC6: Estimate | AD6: Margin of Error | AE6: Estimate | AF6: Margin of Error
B7: Population Older than 16 not working at home | C7: 421 | D7: 82 | E7: 1956 | F7: 313 | G7: 5718 | H7: 354 | I7: 784 | J7: 105 | K7: 470 | L7: 165 | M7: 287 | N7: 62 | O7: 1624 | P7: 181 | Q7: 344 | R7: 85 | S7: 330 | T7: 69 | U7: 2875 | V7: 340 | W7: 1107 | X7: 151 | Y7: 479 | Z7: 113 | AA7: 1687 | AB7: 193 | AC7: 736 | AD7: 110 | AE7: 614 | AF7: 119
B8: Less than 5 minutes | C8: 23 | D8: 19 | E8: 92 | F8: 77 | G8: 370 | H8: 155 | I8: 34 | J8: 33 | K8: 12 | L8: 14 | M8: 2 | N8: 6 | O8: 40 | P8: 40 | Q8: 11 | R8: 8 | S8: 4 | T8: 7 | U8: 160 | V8: 89 | W8: 61 | X8: 30 | Y8: 62 | Z8: 57 | AA8: 76 | AB8: 58 | AC8: 26 | AD8: 37 | AE8: 10 | AF8: 8
B9: 5 to 9 minutes | C9: 19 | D9: 17 | E9: 349 | F9: 148 | G9: 1060 | H9: 215 | I9: 23 | J9: 14 | K9: 58 | L9: 36 | M9: 11 | N9: 10 | O9: 73 | P9: 51 | Q9: 28 | R9: 20 | S9: 2 | T9: 5 | U9: 481 | V9: 188 | W9: 53 | X9: 35 | Y9: 3 | Z9: 5 | AA9: 207 | AB9: 98 | AC9: 40 | AD9: 26 | AE9: 30 | AF9: 20
B10: 10 to 14 minutes | C10: 13 | D10: 11 | E10: 139 | F10: 75 | G10: 999 | H10: 219 | I10: 63 | J10: 35 | K10: 54 | L10: 50 | M10: 40 | N10: 25 | O10: 31 | P10: 34 | Q10: 16 | R10: 15 | S10: 29 | T10: 16 | U10: 160 | V10: 87 | W10: 88 | X10: 50 | Y10: 40 | Z10: 26 | AA10: 183 | AB10: 74 | AC10: 39 | AD10: 20 | AE10: 52 | AF10: 33
B11: 15 to 19 minutes | C11: 35 | D11: 22 | E11: 393 | F11: 145 | G11: 565 | H11: 185 | I11: 90 | J11: 33 | K11: 70 | L11: 71 | M11: 60 | N11: 24 | O11: 309 | P11: 249 | Q11: 69 | R11: 29 | S11: 39 | T11: 26 | U11: 445 | V11: 196 | W11: 150 | X11: 50 | Y11: 36 | Z11: 30 | AA11: 269 | AB11: 105 | AC11: 190 | AD11: 66 | AE11: 72 | AF11: 64
B12: 20 to 24 minutes | C12: 48 | D12: 29 | E12: 334 | F12: 169 | G12: 596 | H12: 139 | I12: 106 | J12: 51 | K12: 76 | L12: 51 | M12: 31 | N12: 15 | O12: 498 | P12: 198 | Q12: 24 | R12: 13 | S12: 66 | T12: 25 | U12: 378 | V12: 141 | W12: 193 | X12: 76 | Y12: 49 | Z12: 27 | AA12: 115 | AB12: 60 | AC12: 143 | AD12: 48 | AE12: 28 | AF12: 20
B13: 25 to 29 minutes | C13: 23 | D13: 15 | E13: 98 | F13: 66 | G13: 211 | H13: 102 | I13: 71 | J13: 27 | K13: 60 | L13: 24 | M13: 49 | N13: 29 | O13: 181 | P13: 115 | Q13: 20 | R13: 11 | S13: 24 | T13: 20 | U13: 112 | V13: 85 | W13: 204 | X13: 50 | Y13: 100 | Z13: 52 | AA13: 157 | AB13: 82 | AC13: 32 | AD13: 15 | AE13: 43 | AF13: 20
B14: 30 to 34 minutes | C14: 98 | D14: 37 | E14: 128 | F14: 71 | G14: 668 | H14: 189 | I14: 187 | J14: 44 | K14: 68 | L14: 39 | M14: 22 | N14: 13 | O14: 208 | P14: 113 | Q14: 47 | R14: 26 | S14: 35 | T14: 20 | U14: 438 | V14: 176 | W14: 184 | X14: 66 | Y14: 71 | Z14: 40 | AA14: 221 | AB14: 85 | AC14: 97 | AD14: 47 | AE14: 109 | AF14: 51
B15: 35 to 39 minutes | C15: 18 | D15: 15 | E15: 64 | F15: 66 | G15: 341 | H15: 121 | I15: 75 | J15: 26 | K15: 25 | L15: 24 | M15: 3 | N15: 4 | O15: 46 | P15: 62 | Q15: 27 | R15: 20 | S15: 28 | T15: 23 | U15: 151 | V15: 93 | W15: 69 | X15: 34 | Y15: 32 | Z15: 24 | AA15: 134 | AB15: 64 | AC15: 16 | AD15: 12 | AE15: 21 | AF15: 30
B16: 40 to 44 minutes | C16: 23 | D16: 14 | E16: 115 | F16: 125 | G16: 279 | H16: 109 | I16: 44 | J16: 31 | K16: 3 | L16: 4 | M16: 10 | N16: 8 | O16: 75 | P16: 72 | Q16: 29 | R16: 24 | S16: 41 | T16: 25 | U16: 130 | V16: 88 | W16: 33 | X16: 32 | Y16: 11 | Z16: 10 | AA16: 71 | AB16: 59 | AC16: 28 | AD16: 19 | AE16: 39 | AF16: 38
B17: 45 to 59 minutes | C17: 59 | D17: 32 | E17: 171 | F17: 119 | G17: 426 | H17: 167 | I17: 62 | J17: 25 | K17: 23 | L17: 16 | M17: 32 | N17: 23 | O17: 148 | P17: 138 | Q17: 32 | R17: 19 | S17: 27 | T17: 12 | U17: 308 | V17: 125 | W17: 23 | X17: 26 | Y17: 60 | Z17: 32 | AA17: 190 | AB17: 92 | AC17: 83 | AD17: 27 | AE17: 117 | AF17: 55
B18: 60 to 89 minutes | C18: 36 | D18: 20 | E18: 18 | F18: 29 | G18: 125 | H18: 59 | I18: 4 | J18: 6 | K18: 16 | L18: 13 | M18: 18 | N18: 13 | O18: 15 | P18: 22 | Q18: 22 | R18: 16 | S18: 29 | T18: 15 | U18: 41 | V18: 37 | W18: 12 | X18: 14 | Y18: 15 | Z18: 16 | AA18: 64 | AB18: 44 | AC18: 28 | AD18: 14 | AE18: 62 | AF18: 29
B19: 90 or more minutes | C19: 26 | D19: 16 | E19: 55 | F19: 58 | G19: 78 | H19: 62 | I19: 25 | J19: 17 | K19: 5 | L19: 7 | M19: 9 | N19: 7 | O19: 0 | P19: 11 | Q19: 19 | R19: 15 | S19: 6 | T19: 9 | U19: 71 | V19: 78 | W19: 37 | X19: 30 | Y19: 0 | Z19: 11 | AA19: 0 | AB19: 11 | AC19: 14 | AD19: 11 | AE19: 31 | AF19: 25

Sheet PopulationCharacteristics (hidden)
B2: =CntyDataLink!A35 -> Acworth
G3: Land Area: | I3: =((CntyDataLink!F35*10.764)/43560)/640 -> 38.8899045 | N3: Water Area: | O3: =((CntyDataLink!G35*10.764)/43560)/640 -> 0.2449884917
B4: POPULATION CHARACTERISTICS
B19: Population | C19: ="Source: US Census; New Hampshire Office of Strategic Initiatives; "& L20&", "&P20&", and "&S20&" American Community Survey Table B01001" -> Source: US Census; New Hampshire Office of Strategic Initiatives; 2005-2009, 2010-2014, and 2015-2019 American Community Survey Table B01001 | N19: Population by Age | P19: ="Source: "& L20&", "&P20&", and "&S20&" American Community Survey Tables B01001 and B01002" -> Source: 2005-2009, 2010-2014, and 2015-2019 American Community Survey Tables B01001 and B01002
L20: 2005-2009 | P20: 2010-2014 | S20: 2015-2019
C21: 1980 | D21: 1990 | E21: 2000 | F21: 2015-2019 | G21: 2025 | H21: 2030 | L21: Estimate | N21: Margin of Error | O21: Percent Change | P21: Estimate | Q21: Margin of Error | R21: Percent Change | S21: Estimate | T21: Margin of Error | V21: Percent Change | W21: Statistically Significant Change
C22: =CntyDataLink!$E$20 -> 590 | D22: =CntyDataLink!$F$20 -> 776 | E22: =CntyDataLink!$G$20 -> 836 | F22: =CntyDataLink!$B$132 -> 906 | G22: =CntyDataLink!$I$20 -> 937 | H22: =CntyDataLink!$K$20 -> 989 | K22: Under 15 yrs. | L22: =CntyDataLinkPrior10YearEstimate!$D$132 -> 63 | N22: =CntyDataLinkPrior10YearEstimate!$E$132 -> 117.2689217 | O22: =L22/SUM($L$22:$L$29) -> 0.07664233577 | P22: =CntyDataLinkPrior5YearEstimates!$D$132 -> 170 | Q22: =CntyDataLinkPrior5YearEstimates!$E$132 -> 56.48893697 | R22: =P22/SUM($P$22:$P$29) -> 0.1841820152 | S22: =CntyDataLink!$D$132 -> 84 | T22: =CntyDataLink!$E$132 -> 27.89265136 | U22: =S22/SUM($S$22:$S$29) -> 0.09271523179 | V22: =(S22-P22)/P22 -> -0.5058823529 | W22: =StatisticallySignificantCalcs!$A3 -> Y
K23: 15 to 24 yrs. | L23: =CntyDataLinkPrior10YearEstimate!$F$132 -> 80 | N23: =CntyDataLinkPrior10YearEstimate!$G$132 -> 201.3156725 | O23: =L23/SUM($L$22:$L$29) -> 0.09732360097 | P23: =CntyDataLinkPrior5YearEstimates!$F$132 -> 107 | Q23: =CntyDataLinkPrior5YearEstimates!$G$132 -> 38.11823711 | R23: 0.1159263272 | S23: =CntyDataLink!$F$132 -> 42 | T23: =CntyDataLink!$G$132 -> 30.65941943 | U23: 0.04635761589 | V23: -0.6074766355 | W23: =StatisticallySignificantCalcs!$A4 -> N
B24: Percent Change | K24: 25 to 34 yrs. | L24: =CntyDataLinkPrior10YearEstimate!$H$132 -> 81 | N24: =CntyDataLinkPrior10YearEstimate!$I$132 -> 60.456596 | O24: =L24/SUM($L$22:$L$29) -> 0.09854014599 | P24: =CntyDataLinkPrior5YearEstimates!$H$132 -> 114 | Q24: =CntyDataLinkPrior5YearEstimates!$I$132 -> 40.91454509 | R24: 0.1235102925 | S24: =CntyDataLink!$H$132 -> 95 | T24: =CntyDataLink!$I$132 -> 34.89985673 | U24: 0.1048565121 | V24: -0.1666666667 | W24: =StatisticallySignificantCalcs!$A5 -> Y
D25: =C21&"-"&(D21-1900) -> 1980-90 | E25: 1990-2000 | F25: =E21&"-19" -> 2000-19 | G25: =2019&"-"&(G21) -> 2019-2025 | H25: =G21&"-"&(H21) -> 2025-2030 | K25: 35 to 44 yrs. | L25: =CntyDataLinkPrior10YearEstimate!$J$132 -> 97 | N25: =CntyDataLinkPrior10YearEstimate!$K$132 -> 38.54867053 | O25: 0.1180048662 | P25: =CntyDataLinkPrior5YearEstimates!$J$132 -> 99 | Q25: =CntyDataLinkPrior5YearEstimates!$K$132 -> 30.95157508 | R25: 0.1072589382 | S25: =CntyDataLink!$J$132 -> 76 | T25: =CntyDataLink!$K$132 -> 30.3644529 | U25: 0.08388520971 | V25: -0.2323232323 | W25: =StatisticallySignificantCalcs!$A6 -> Y
D26: =(D22-C22)/C22 -> 0.3152542373 | E26: =(E22-D22)/D22 -> 0.07731958763 | F26: =(F22-E22)/E22 -> 0.08373205742 | G26: =(G22-F22)/F22 -> 0.03421633554 | H26: =(H22-G22)/G22 -> 0.05549626467 | K26: 45 to 54 yrs. | L26: =CntyDataLinkPrior10YearEstimate!$L$132 -> 172 | N26: =CntyDataLinkPrior10YearEstimate!$M$132 -> 51.11751168 | O26: 0.2092457421 | P26: =CntyDataLinkPrior5YearEstimates!$L$132 -> 139 | Q26: =CntyDataLinkPrior5YearEstimates!$M$132 -> 36.30426972 | R26: 0.150595883 | S26: =CntyDataLink!$L$132 -> 118 | T26: =CntyDataLink!$M$132 -> 41.71330723 | U26: 0.1302428256 | V26: -0.1510791367 | W26: =StatisticallySignificantCalcs!$A7 -> Y
K27: 55 to 64 yrs. | L27: =CntyDataLinkPrior10YearEstimate!$N$132 -> 116 | N27: =CntyDataLinkPrior10YearEstimate!$O$132 -> 119.9041284 | O27: 0.1411192214 | P27: =CntyDataLinkPrior5YearEstimates!$N$132 -> 142 | Q27: =CntyDataLinkPrior5YearEstimates!$O$132 -> 34.72751071 | R27: 0.1538461538 | S27: =CntyDataLink!$N$132 -> 209 | T27: =CntyDataLink!$O$132 -> 48.55924217 | U27: 0.2306843267 | V27: 0.4718309859 | W27: =StatisticallySignificantCalcs!$A8 -> Y
K28: 65 to 74 yrs. | L28: =CntyDataLinkPrior10YearEstimate!$P$132 -> 153 | N28: =CntyDataLinkPrior10YearEstimate!$Q$132 -> 65.23802572 | O28: 0.1861313869 | P28: =CntyDataLinkPrior5YearEstimates!$P$132 -> 105 | Q28: =CntyDataLinkPrior5YearEstimates!$Q$132 -> 33.36165464 | R28: 0.11375948 | S28: =CntyDataLink!$P$132 -> 205 | T28: =CntyDataLink!$Q$132 -> 47.47630988 | U28: 0.2262693157 | V28: 0.9523809524 | W28: =StatisticallySignificantCalcs!$A9 -> Y
K29: Over 74 yrs. | L29: =CntyDataLinkPrior10YearEstimate!$R$132 -> 60 | N29: =CntyDataLinkPrior10YearEstimate!$S$132 -> 123.259888 | O29: 0.07299270073 | P29: =CntyDataLinkPrior5YearEstimates!$R$132 -> 47 | Q29: =CntyDataLinkPrior5YearEstimates!$S$132 -> 19.94993734 | R29: 0.05092091008 | S29: =CntyDataLink!$R$132 -> 77 | T29: =CntyDataLink!$S$132 -> 26.19160171 | U29: 0.08498896247 | V29: 0.6382978723 | W29: =StatisticallySignificantCalcs!$A10 -> Y
K30: Median Age (years) | L30: =CntyDataLinkPrior10YearEstimate!$AX132 -> 51 | N30: =CntyDataLinkPrior10YearEstimate!$AY$132 -> 4.6 | P30: =CntyDataLinkPrior5YearEstimates!$AX132 -> 42.9 | Q30: =CntyDataLinkPrior5YearEstimates!$AY$132 -> 9.3 | S30: =CntyDataLink!$AX$132 -> 57.1 | T30: =CntyDataLink!$AY$132 -> 2.8
B32: Population By Race | M32: Statistically Significant Change
M33: =IF(L36="","-",StatisticallySignificantCalcs!A20) -> N
C34: 2005-2009 | F34: 2010-2014 | I34: 2015-2019 | L34: Statistically Significant Change
C35: Estimate | D35: Margin of Error | F35: Estimate | G35: Margin of Error | I35: Estimate | J35: Margin of Error | L35: 2009-2019 | M35: 2014-2019
B36: White | C36: =CntyDataLinkPrior10YearEstimate!$AL$132 -> 814 | D36: =CntyDataLinkPrior10YearEstimate!$AM$132 -> 165 | E36: =IF(C$36="-","-",VALUE(C36/$C$41)) -> 0.9902676399 | F36: =CntyDataLinkPrior5YearEstimates!$AL$132 -> 897 | G36: =CntyDataLinkPrior5YearEstimates!$AM$132 -> 166 | H36: =IF(F$36="-","-",VALUE(F36/$F$41)) -> 0.9718309859 | I36: =CntyDataLink!$AL$132 -> 861 | J36: =CntyDataLink!$AM$132 -> 131 | K36: =IF(I$36="-","-",VALUE(I36/$I$41)) -> 0.9503311258 | L36: =StatisticallySignificantCalcs!A20 -> N | M36: =StatisticallySignificantCalcs!J20 -> N
B37: Black | C37: =CntyDataLinkPrior10YearEstimate!$AN132 -> 0 | D37: =CntyDataLinkPrior10YearEstimate!$AO$132 -> 114 | E37: =IF(C$37="-","-",VALUE(C37/$C$41)) -> 0 | F37: =CntyDataLinkPrior5YearEstimates!$AN132 -> 0 | G37: =CntyDataLinkPrior5YearEstimates!$AO$132 -> 11 | H37: =IF(F$37="-","-",VALUE(F37/$F$41)) -> 0 | I37: =CntyDataLink!$AN$132 -> 0 | J37: =CntyDataLink!$AO$132 -> 11 | K37: =IF(I$37="-","-",VALUE(I37/$I$41)) -> 0 | L37: =StatisticallySignificantCalcs!A21 -> N | M37: =StatisticallySignificantCalcs!J21 -> N
B38: American Indian | C38: =CntyDataLinkPrior10YearEstimate!$AP$132 -> 0 | D38: =CntyDataLinkPrior10YearEstimate!$AQ$132 -> 114 | E38: =IF(C$38="-","-",VALUE(C38/$C$41)) -> 0 | F38: =CntyDataLinkPrior5YearEstimates!$AP$132 -> 0 | G38: =CntyDataLinkPrior5YearEstimates!$AQ$132 -> 11 | H38: =IF(F$38="-","-",VALUE(F38/$F$41)) -> 0 | I38: =CntyDataLink!$AP$132 -> 0 | J38: =CntyDataLink!$AQ$132 -> 11 | K38: =IF(I$38="-","-",VALUE(I38/$I$41)) -> 0 | L38: =StatisticallySignificantCalcs!A22 -> N | M38: =StatisticallySignificantCalcs!J22 -> N
B39: Asian &Pacific Is. | C39: =CntyDataLinkPrior10YearEstimate!$AR$132 -> 0 | D39: =CntyDataLinkPrior10YearEstimate!$AS$132 -> 161.2203461 | E39: =IF(C$39="-","-",VALUE(C39/$C$41)) -> 0 | F39: =CntyDataLinkPrior5YearEstimates!$AR$132 -> 16 | G39: =CntyDataLinkPrior5YearEstimates!$AS$132 -> 21.9544984 | H39: =IF(F$39="-","-",VALUE(F39/$F$41)) -> 0.0173347779 | I39: =CntyDataLink!$AR$132 -> 8 | J39: =CntyDataLink!$AS$132 -> 16.2788206 | K39: =IF(I$39="-","-",VALUE(I39/$I$41)) -> 0.008830022075 | L39: =StatisticallySignificantCalcs!A23 -> N | M39: =StatisticallySignificantCalcs!J23 -> N
B40: Other* | C40: =CntyDataLinkPrior10YearEstimate!$AT$132 -> 8 | D40: =CntyDataLinkPrior10YearEstimate!$AU$132 -> 114.5294722 | E40: =IF(C$40="-","-",VALUE(C40/$C$41)) -> 0.009732360097 | F40: =CntyDataLinkPrior5YearEstimates!$AT$132 -> 10 | G40: =CntyDataLinkPrior5YearEstimates!$AU$132 -> 14.2126704 | H40: =IF(F$40="-","-",VALUE(F40/$F$41)) -> 0.01083423619 | I40: =CntyDataLink!$AT$132 -> 23 | J40: =CntyDataLink!$AU$132 -> 27.31300057 | K40: =IF(I$40="-","-",VALUE(I40/$I$41)) -> 0.02538631347 | L40: =StatisticallySignificantCalcs!A24 -> N | M40: =StatisticallySignificantCalcs!J24 -> N
B41: Total Population | C41: =CntyDataLinkPrior10YearEstimate!$B$132 -> 822 | D41: =CntyDataLinkPrior10YearEstimate!$C$132 -> 164 | F41: =CntyDataLinkPrior5YearEstimates!$B$132 -> 923 | G41: =CntyDataLinkPrior5YearEstimates!$C$132 -> 163 | I41: =CntyDataLink!$B$132 -> 906 | J41: =CntyDataLink!$C$132 -> 134
B42: Hispanic | C42: =CntyDataLinkPrior10YearEstimate!$AV$132 -> 0 | D42: =CntyDataLinkPrior10YearEstimate!$AW$132 -> 114 | E42: =IF(C$42="-","-",VALUE(C42/$C$41)) -> 0 | F42: =CntyDataLinkPrior5YearEstimates!$AV132 -> 0 | G42: =CntyDataLinkPrior5YearEstimates!$AW$132 -> 11 | H42: =IF(F$42="-","-",VALUE(F42/$F$41)) -> 0 | I42: =CntyDataLink!$AV$132 -> 14 | J42: =CntyDataLink!$AW$132 -> 14 | K42: =IF(I$42="-","-",VALUE(I42/$I$41)) -> 0.01545253863 | L42: =StatisticallySignificantCalcs!A26 -> Y | M42: =StatisticallySignificantCalcs!J26 -> Y
B44: * | C44: Other includes population of 2 or more races
B46: ="Source: "& L20&", "&P20&", and "&S20&" American Community Survey Table B03002" -> Source: 2005-2009, 2010-2014, and 2015-2019 American Community Survey Table B03002
C48: Households and Families
D49: 2005-2009 | G49: 2010-2014 | J49: 2015-2019 | N49: Percent Change 2009-2019 | P49: Percent Change 2010-2019
D50: Estimate | E50: Margin of Error | G50: Estimate | H50: Margin of Error | J50: Estimate | K50: Margin of Error
C51: Total Households | D51: =CntyDataLinkPrior10YearEstimate!$T$132 -> 343 | E51: =CntyDataLinkPrior10YearEstimate!$U$132 -> 60 | G51: =CntyDataLinkPrior5YearEstimates!$T$132 -> 347 | H51: =CntyDataLinkPrior5YearEstimates!$U$132 -> 44 | J51: =CntyDataLink!$T$132 -> 370 | K51: =CntyDataLink!$U$132 -> 51 | N51: =(J51-D51)/D51 -> 0.07871720117 | P51: =(J51-G51)/G51 -> 0.06628242075
C52: Persons per Household | D52: =CntyDataLinkPrior10YearEstimate!$BD$132 -> 9.772594752 | E52: =CntyDataLinkPrior10YearEstimate!$BE$132 -> 0.28 | G52: =CntyDataLinkPrior5YearEstimates!$BD$132 -> 0 | H52: =CntyDataLinkPrior5YearEstimates!$BE$132 -> 0 | J52: =CntyDataLink!$BD$132 -> 2.448648649 | K52: =CntyDataLink!$BE$132 -> 0.21 | N52: =(J52-D52)/D52 -> -0.7494372057 | P52: =(J52-G52)/G52 -> 
C53: Family Households | D53: =CntyDataLinkPrior10YearEstimate!$V$132 -> 249 | E53: =CntyDataLinkPrior10YearEstimate!$U$132 -> 60 | G53: =CntyDataLinkPrior5YearEstimates!$V$132 -> 254 | H53: =CntyDataLinkPrior5YearEstimates!$U$132 -> 44 | J53: =CntyDataLink!$V$132 -> 255 | K53: =CntyDataLink!$U$132 -> 51 | N53: 0.02409638554 | P53: 0.003937007874
C54: Persons per Family Household | D54: =CntyDataLinkPrior10YearEstimate!$BF$132 -> 11.08433735 | E54: =CntyDataLinkPrior10YearEstimate!$BG$132 -> 0.6870393895 | G54: =CntyDataLinkPrior5YearEstimates!$BF$132 -> 2.659942363 | H54: =CntyDataLinkPrior5YearEstimates!$BG$132 -> 0.34 | J54: =CntyDataLink!$BF$132 -> 2.91372549 | K54: =CntyDataLink!$BG$132 -> 0.6968223943 | N54: -0.7371312873 | P54: 0.09540925796
C55: Married-Couple Family Hh | D55: =CntyDataLinkPrior10YearEstimate!$X$132 -> 236 | E55: =CntyDataLinkPrior10YearEstimate!$Y$132 -> 56 | G55: =CntyDataLinkPrior5YearEstimates!$X$132 -> 197 | H55: =CntyDataLinkPrior5YearEstimates!$Y$132 -> 37 | J55: =CntyDataLink!$X$132 -> 218 | K55: =CntyDataLink!$Y$132 -> 40 | N55: -0.07627118644 | P55: 0.1065989848
C56: Single-Parent Family Hh | D56: =CntyDataLinkPrior10YearEstimate!$Z$132 -> 13 | E56: =CntyDataLinkPrior10YearEstimate!$AA$132 -> 13 | G56: =CntyDataLinkPrior5YearEstimates!$Z$132 -> 57 | H56: =CntyDataLinkPrior5YearEstimates!$AA$132 -> 25 | J56: =CntyDataLink!$Z$132 -> 37 | K56: =CntyDataLink!$AA$132 -> 19 | N56: 1.846153846 | P56: -0.350877193
C57: Non-Family Households | D57: =CntyDataLinkPrior10YearEstimate!$AF$132 -> 94 | E57: =CntyDataLinkPrior10YearEstimate!$AG$132 -> 42 | G57: =CntyDataLinkPrior5YearEstimates!$AF$132 -> 93 | H57: =CntyDataLinkPrior5YearEstimates!$AG$132 -> 35 | J57: =CntyDataLink!$AF$132 -> 115 | K57: =CntyDataLink!$AG$132 -> 28 | N57: 0.2234042553 | P57: 0.2365591398
C58: Persons per Non-Family Hh | D58: =CntyDataLinkPrior10YearEstimate!$BH$132 -> 6.29787234 | E58: =CntyDataLinkPrior10YearEstimate!$BI$132 -> 0.6426273986 | G58: =CntyDataLinkPrior5YearEstimates!$BH$132 -> 3.224409449 | H58: =CntyDataLinkPrior5YearEstimates!$BI$132 -> 0.8747712237 | J58: =CntyDataLink!$BH$132 -> 1.417391304 | K58: =CntyDataLink!$BI$132 -> 0.5897713195 | N58: -0.7749412456 | P58: -0.5604183256
B61: As a result of changes in the American Community Survey, direct comparisons between the data should be made with caution.
B63: Source: 2005-2009, 2010-2014, and 2015-2019 American Community Survey Table B11001
B64: POPULATION CHARACTERISTICS

Sheet SchoolEnrolEduAttain (hidden)
C2: =CntyDataLink!A50 -> Acworth
C3: SOCIAL CHARACTERISTICS
C21: School Enrollment | F21: 2005-2009 | I21: 2010-2014 | L21: 2015-2019 | P21: Statistically Significant Change
F22: Estimate | G22: Margin of Error | H22: Percent of Population | I22: Estimate | J22: Margin of Error | K22: Percent of Population | L22: Estimate | M22: Margin of Error | N22: Percent of Population | P22: 2009-2019 | Q22: 2014-2019
C23: Population 3 years and over | F23: =CntyDataLinkPrior10YearEstimate!$B$140 -> 12550 | G23: =CntyDataLinkPrior10YearEstimate!$C$140 -> 133 | I23: =CntyDataLinkPrior5YearEstimates!$B$140 -> 12660 | J23: =CntyDataLinkPrior5YearEstimates!$C$140 -> 130 | L23: =CntyDataLink!$B$140 -> 4916 | M23: =CntyDataLink!$C$140 -> 91 | P23: =StatisticallySignificantCalcs!$A$45 -> Y | Q23: =StatisticallySignificantCalcs!$J$45 -> Y
C24: Population 3 years & over enrolled in school | F24: =CntyDataLinkPrior10YearEstimate!$D$140 -> 2637 | G24: =CntyDataLinkPrior10YearEstimate!$E$140 -> 285 | H24: =F24/$F$23 -> 0.2101195219 | I24: =CntyDataLinkPrior5YearEstimates!$D$140 -> 2620 | J24: =CntyDataLinkPrior5YearEstimates!$E$140 -> 267 | K24: =I24/$I$23 -> 0.2069510269 | L24: =CntyDataLink!$D$140 -> 742 | M24: =CntyDataLink!$E$140 -> 212 | N24: =L24/$L$23 -> 0.1509357201 | P24: =StatisticallySignificantCalcs!$A$46 -> Y | Q24: =StatisticallySignificantCalcs!$J$46 -> Y
C25: Preprimary (Nursery, Preschool, Kindergarten) | F25: =CntyDataLinkPrior10YearEstimate!$F$140 -> 275 | G25: =CntyDataLinkPrior10YearEstimate!$G$140 -> 118.2581921 | H25: 0.0219123506 | I25: =CntyDataLinkPrior5YearEstimates!$F$140 -> 325 | J25: =CntyDataLinkPrior5YearEstimates!$G$140 -> 119.4738465 | K25: =I25/$I$23 -> 0.025671406 | L25: =CntyDataLink!$F$140 -> 113 | M25: =CntyDataLink!$G$140 -> 99.12618221 | N25: 0.02298616762 | P25: =StatisticallySignificantCalcs!$A$47 -> Y | Q25: =StatisticallySignificantCalcs!$J$47 -> Y
C26: Nursery school and Preschool | F26: =CntyDataLinkPrior10YearEstimate!$H$140 -> 137 | G26: =CntyDataLinkPrior10YearEstimate!$I$140 -> 79 | H26: 0.01091633466 | I26: =CntyDataLinkPrior5YearEstimates!$H$140 -> 141 | J26: =CntyDataLinkPrior5YearEstimates!$I$140 -> 75 | K26: 0.01113744076 | L26: =CntyDataLink!$H$140 -> 33 | M26: =CntyDataLink!$I$140 -> 51 | N26: 0.006712774614 | P26: =StatisticallySignificantCalcs!$A$48 -> Y | Q26: =StatisticallySignificantCalcs!$J$48 -> Y
C27: Kindergarten | F27: =CntyDataLinkPrior10YearEstimate!$J$140 -> 138 | G27: =CntyDataLinkPrior10YearEstimate!$K$140 -> 88 | H27: 0.01099601594 | I27: =CntyDataLinkPrior5YearEstimates!$J$140 -> 184 | J27: =CntyDataLinkPrior5YearEstimates!$K$140 -> 93 | K27: 0.01453396524 | L27: =CntyDataLink!$J$140 -> 80 | M27: =CntyDataLink!$K$140 -> 85 | N27: 0.016273393 | P27: =StatisticallySignificantCalcs!$A$49 -> N | Q27: =StatisticallySignificantCalcs!$J$49 -> N
C28: Elementary through High school | F28: =CntyDataLinkPrior10YearEstimate!$P$140 -> 1883 | G28: =CntyDataLinkPrior10YearEstimate!$Q$140 -> 297.8523124 | H28: 0.1500398406 | I28: =CntyDataLinkPrior5YearEstimates!$P$140 -> 1927 | J28: =CntyDataLinkPrior5YearEstimates!$Q$140 -> 309.0323608 | K28: 0.1522116904 | L28: =CntyDataLink!$P$140 -> 604 | M28: =CntyDataLink!$Q$140 -> 176.3774362 | N28: 0.1228641172 | P28: =StatisticallySignificantCalcs!$A$50 -> Y | Q28: =StatisticallySignificantCalcs!$J$50 -> Y
C29: Elementary school (grades 1-8) | F29: =CntyDataLinkPrior10YearEstimate!$L$140 -> 1371 | G29: =CntyDataLinkPrior10YearEstimate!$M$140 -> 254.9509757 | H29: 0.1092430279 | I29: =CntyDataLinkPrior5YearEstimates!$L$140 -> 1191 | J29: =CntyDataLinkPrior5YearEstimates!$M$140 -> 246.7893839 | K29: 0.09407582938 | L29: =CntyDataLink!$L$140 -> 443 | M29: =CntyDataLink!$M$140 -> 143.1782106 | N29: 0.09011391375 | P29: =StatisticallySignificantCalcs!$A$51 -> Y | Q29: =StatisticallySignificantCalcs!$J$51 -> Y
C30: High school (grades 9-12) | F30: =CntyDataLinkPrior10YearEstimate!$N$140 -> 512 | G30: =CntyDataLinkPrior10YearEstimate!$O$140 -> 154 | H30: 0.04079681275 | I30: =CntyDataLinkPrior5YearEstimates!$N$140 -> 736 | J30: =CntyDataLinkPrior5YearEstimates!$O$140 -> 186 | K30: 0.05813586098 | L30: =CntyDataLink!$N$140 -> 161 | M30: =CntyDataLink!$O$140 -> 103 | N30: 0.03275020342 | P30: =StatisticallySignificantCalcs!$A$52 -> Y | Q30: =StatisticallySignificantCalcs!$J$52 -> Y
C31: College or Graduate School | F31: =CntyDataLinkPrior10YearEstimate!$R$140 -> 479 | G31: =CntyDataLinkPrior10YearEstimate!$S$140 -> 179.4240787 | H31: 0.03816733068 | I31: =CntyDataLinkPrior5YearEstimates!$R$140 -> 368 | J31: =CntyDataLinkPrior5YearEstimates!$S$140 -> 132.438665 | K31: 0.02906793049 | L31: =CntyDataLink!$R$140 -> 25 | M31: =CntyDataLink!$S$140 -> 28.8444102 | N31: 0.005085435313 | P31: =StatisticallySignificantCalcs!$A$53 -> Y | Q31: =StatisticallySignificantCalcs!$J$53 -> Y
C33: ="Source: "&F21&", "& I21&" and "&L21&" American Community Survey Table B14001" -> Source: 2005-2009, 2010-2014 and 2015-2019 American Community Survey Table B14001
C50: Educational Attainment | F50: 2005-2009 | I50: 2010-2014 | L50: 2015.-2019 | P50: Statistically Significant Change
F51: Estimate | G51: Margin of Error | H51: Percent of Population | I51: Estimate | J51: Margin of Error | K51: Percent of Population | L51: Estimate | M51: Margin of Error | N51: Percent of Population | P51: 2009-2019 | Q51: 2014-2019
C52: Population 25 years and over | F52: =CntyDataLinkPrior10YearEstimate!$V$140 -> 9356 | G52: =CntyDataLinkPrior10YearEstimate!$W$140 -> 246 | I52: =CntyDataLinkPrior5YearEstimates!$V$140 -> 9019 | J52: =CntyDataLinkPrior5YearEstimates!$W$140 -> 251 | L52: =CntyDataLink!$V$140 -> 3856 | M52: =CntyDataLink!$W$140 -> 202 | P52: =StatisticallySignificantCalcs!A54 -> Y | Q52: =StatisticallySignificantCalcs!$J$54 -> Y
C53: Less than 9th Grade | F53: =CntyDataLinkPrior10YearEstimate!$X$140 -> 532 | G53: =CntyDataLinkPrior10YearEstimate!$Y$140 -> 134.9666626 | H53: =F53/$F$52 -> 0.0568619068 | I53: =CntyDataLinkPrior5YearEstimates!$X$140 -> 259 | J53: =CntyDataLinkPrior5YearEstimates!$Y$140 -> 88.44772467 | K53: =I53/$I$52 -> 0.02871715268 | L53: =CntyDataLink!$X$140 -> 0 | M53: =CntyDataLink!$Y$140 -> 39.19183588 | N53: =L53/$L$52 -> 0 | P53: =StatisticallySignificantCalcs!A55 -> Y | Q53: =StatisticallySignificantCalcs!$J$55 -> Y
C54: 9th to 12th Grade, no Diploma | F54: =CntyDataLinkPrior10YearEstimate!$Z$140 -> 579 | G54: =CntyDataLinkPrior10YearEstimate!$AA$140 -> 164.8726781 | H54: =F54/$F$52 -> 0.06188542112 | I54: =CntyDataLinkPrior5YearEstimates!$Z$140 -> 860 | J54: =CntyDataLinkPrior5YearEstimates!$AA$140 -> 182.5705343 | K54: =I54/$I$52 -> 0.09535425213 | L54: =CntyDataLink!$Z$140 -> 332 | M54: =CntyDataLink!$AA$140 -> 168.3894296 | N54: =L54/$L$52 -> 0.08609958506 | P54: =StatisticallySignificantCalcs!A56 -> Y | Q54: =StatisticallySignificantCalcs!$J$56 -> Y
C55: High School Graduate | F55: =CntyDataLinkPrior10YearEstimate!$AB$140 -> 4478 | G55: =CntyDataLinkPrior10YearEstimate!$AC$140 -> 341.0131962 | H55: 0.4786233433 | I55: =CntyDataLinkPrior5YearEstimates!$AB$140 -> 3960 | J55: =CntyDataLinkPrior5YearEstimates!$AC$140 -> 336.6303611 | K55: 0.439073068 | L55: =CntyDataLink!$AB$140 -> 1885 | M55: =CntyDataLink!$AC$140 -> 308.058436 | N55: 0.4888485477 | P55: =StatisticallySignificantCalcs!A57 -> Y | Q55: =StatisticallySignificantCalcs!$J$57 -> Y
C56: Some College, No Degree | F56: =CntyDataLinkPrior10YearEstimate!$AD$140 -> 1543 | G56: =CntyDataLinkPrior10YearEstimate!$AE$140 -> 252.956518 | H56: 0.1649209064 | I56: =CntyDataLinkPrior5YearEstimates!$AD$140 -> 1675 | J56: =CntyDataLinkPrior5YearEstimates!$AE$140 -> 248.5115691 | K56: 0.1857190376 | L56: =CntyDataLink!$AD$140 -> 610 | M56: =CntyDataLink!$AE$140 -> 183.7634349 | N56: 0.1581950207 | P56: =StatisticallySignificantCalcs!A58 -> Y | Q56: =StatisticallySignificantCalcs!$J$58 -> Y
C57: Associate Degree | F57: =CntyDataLinkPrior10YearEstimate!$AF$140 -> 739 | G57: =CntyDataLinkPrior10YearEstimate!$AG$140 -> 214.6625258 | H57: 0.07898674647 | I57: =CntyDataLinkPrior5YearEstimates!$AF$140 -> 550 | J57: =CntyDataLinkPrior5YearEstimates!$AG$140 -> 157.2005089 | K57: 0.06098237055 | L57: =CntyDataLink!$AF$140 -> 392 | M57: =CntyDataLink!$AG$140 -> 132.1362933 | N57: 0.101659751 | P57: =StatisticallySignificantCalcs!A59 -> N | Q57: =StatisticallySignificantCalcs!$J$59 -> N
C58: Bachelor's Degree | F58: =CntyDataLinkPrior10YearEstimate!$AH$140 -> 1055 | G58: =CntyDataLinkPrior10YearEstimate!$AI$140 -> 240.5659993 | H58: 0.112761864 | I58: =CntyDataLinkPrior5YearEstimates!$AH$140 -> 1293 | J58: =CntyDataLinkPrior5YearEstimates!$AI$140 -> 234.0875904 | K58: 0.1433640093 | L58: =CntyDataLink!$AH$140 -> 447 | M58: =CntyDataLink!$AI$140 -> 143.1223253 | N58: 0.1159232365 | P58: =StatisticallySignificantCalcs!A60 -> Y | Q58: =StatisticallySignificantCalcs!$J$60 -> Y
C59: Graduate or Professional Degree | F59: =CntyDataLinkPrior10YearEstimate!$AJ$140 -> 205 | G59: =CntyDataLinkPrior10YearEstimate!$AK$140 -> 145.2101925 | H59: 0.02191107311 | I59: =CntyDataLinkPrior5YearEstimates!$AJ$140 -> 387 | J59: =CntyDataLinkPrior5YearEstimates!$AK$140 -> 112.316517 | K59: 0.04290941346 | L59: =CntyDataLink!$AJ$140 -> 190 | M59: =CntyDataLink!$AK$140 -> 118.046601 | N59: 0.04927385892 | P59: =StatisticallySignificantCalcs!A61 -> Y | Q59: =StatisticallySignificantCalcs!$J$61 -> Y
C61: Percent of High School Graduate or Higher | H61: =SUM(F55:F59)/F52 -> 0.8572039333 | K61: =SUM(I55:I59)/I52 -> 0.8720478989 | N61: =SUM(L55:L59)/L52 -> 0.9139004149
C62: Percent of Bachelor's Degree or Higher | H62: =SUM(F58:F59)/F52 -> 0.1346729372 | K62: =SUM(I58:I59)/I52 -> 0.1862734228 | N62: =SUM(L58:L59)/L52 -> 0.1651970954
C64: ="Source: "&F21&", "&I21&" and "&L21&" American Community Survey Table B15002" -> Source: 2005-2009, 2010-2014 and 2015-2019 American Community Survey Table B15002 | H64: Data from the American Community Survey are estimates
C66: As a result of changes in the American Community Survey, direct comparisons between the data should be made with caution.
C67: be made with caution.

Sheet HousingCharacteristics (hidden)
B2: =CntyDataLink!$A35 -> Acworth
B4: HOUSING CHARACTERISTICS
D27: ="Source: "& " "&D69&", "&G69&" and "&J69& " American Community Survey Table B25024; B25032" -> Source: 2005-2009, 2010-2014 and 2015-2019 American Community Survey Table B25024; B25032
C28: 2005-2009 | F28: 2010-2014 | I28: 2015-2019 | L28: Percent Change | O28: Statistically Significant Change
C29: Estimate | D29: Margin of Error | E29: % | F29: Estimate | G29: Margin of Error | H29: % | I29: Estimate | J29: Margin of Error | K29: % | L29: 2009-2019 | M29: 2014-2019 | O29: 2009-2019 | P29: 2014-2019
B30: Total Units | C30: =CntyDataLinkPrior10YearEstimate!$B$108 -> 511 | D30: =CntyDataLinkPrior5YearEstimates!$C$108 -> 51 | F30: =CntyDataLinkPrior5YearEstimates!$B$108 -> 556 | G30: =CntyDataLinkPrior5YearEstimates!$C$108 -> 51 | I30: =CntyDataLink!$B$108 -> 587 | J30: =CntyDataLink!$C$108 -> 53 | L30: =IF(I30="-","-",(I30-C30)/C30) -> 0.1487279843 | M30: =IF(I30="-","-",(I30-F30)/F30) -> 0.05575539568 | O30: =StatisticallySignificantCalcs!$A60 -> Y | P30: =StatisticallySignificantCalcs!$J60 -> Y
B31: Occupied Units | C31: =CntyDataLinkPrior10YearEstimate!$D$108 -> 343 | D31: =CntyDataLinkPrior5YearEstimates!$E$108 -> 44 | E31: =ROUND(C31/C30,2)*100&"% of Total" -> 67% of Total | F31: =CntyDataLinkPrior5YearEstimates!$D$108 -> 347 | G31: =CntyDataLinkPrior5YearEstimates!$E$108 -> 44 | H31: =ROUND(F31/F30,2)*100&"% of Total" -> 62% of Total | I31: =CntyDataLink!$D$108 -> 370 | J31: =CntyDataLink!$E$108 -> 51 | K31: =ROUND(I31/I30,2)*100&"% of Total" -> 63% of Total | L31: =IF(I31="-","-",(I31-C31)/C31) -> 0.07871720117 | M31: 0.06628242075 | O31: =StatisticallySignificantCalcs!$A61 -> Y | P31: =StatisticallySignificantCalcs!$J61 -> Y
B32: Owner Occupied | C32: =CntyDataLinkPrior10YearEstimate!$F$108 -> 300 | D32: =CntyDataLinkPrior5YearEstimates!$G$108 -> 40 | E32: =ROUND(C32/C31,2)*100&"% of Occ." -> 87% of Occ. | F32: =CntyDataLinkPrior5YearEstimates!$F$108 -> 274 | G32: =CntyDataLinkPrior5YearEstimates!$G$108 -> 40 | H32: =ROUND(F32/F31,2)*100&"% of Occ." -> 79% of Occ. | I32: =CntyDataLink!$F$108 -> 340 | J32: =CntyDataLink!$G$108 -> 50 | K32: =ROUND(I32/I31,2)*100&"% of Occ." -> 92% of Occ. | L32: =IF(I32="-","-",(I32-C32)/C32) -> 0.1333333333 | M32: 0.2408759124 | O32: =StatisticallySignificantCalcs!$A62 -> N | P32: =StatisticallySignificantCalcs!$J62 -> Y
B33: Renter Occupied | C33: =CntyDataLinkPrior10YearEstimate!$H$108 -> 43 | D33: =CntyDataLinkPrior5YearEstimates!$I$108 -> 32 | E33: =ROUND(C33/C31,2)*100&"% of Occ." -> 13% of Occ. | F33: =CntyDataLinkPrior5YearEstimates!$H$108 -> 73 | G33: =CntyDataLinkPrior5YearEstimates!$I$108 -> 32 | H33: =ROUND(F33/F31,2)*100&"% of Occ." -> 21% of Occ. | I33: =CntyDataLink!$H$108 -> 30 | J33: =CntyDataLink!$I$108 -> 16 | K33: =ROUND(I33/I31,2)*100&"% of Occ." -> 8% of Occ. | L33: =IF(I33="-","-",(I33-C33)/C33) -> -0.3023255814 | M33: -0.5890410959 | O33: =StatisticallySignificantCalcs!$A63 -> N | P33: =StatisticallySignificantCalcs!$J63 -> Y
B34: Vacant Units | C34: =CntyDataLinkPrior10YearEstimate!$J$108 -> 168 | D34: =CntyDataLinkPrior5YearEstimates!$K$108 -> 47 | E34: =ROUND(C34/C30,2)*100&"% of Total" -> 33% of Total | F34: =CntyDataLinkPrior5YearEstimates!$J$108 -> 209 | G34: =CntyDataLinkPrior5YearEstimates!$K$108 -> 47 | H34: =ROUND(F34/F30,2)*100&"% of Total" -> 38% of Total | I34: =CntyDataLink!$J$108 -> 217 | J34: =CntyDataLink!$K$108 -> 39 | K34: =ROUND(I34/I30,2)*100&"% of Total" -> 37% of Total | L34: =IF(I34="-",I34,VALUE((I34-C34)/C34)) -> 0.2916666667 | M34: 0.03827751196 | O34: =StatisticallySignificantCalcs!$A64 -> N | P34: =StatisticallySignificantCalcs!$J64 -> N
B35: Vacant For Sale | C35: =CntyDataLinkPrior10YearEstimate!$P$108 -> 5 | D35: =CntyDataLinkPrior5YearEstimates!$Q$108 -> 14 | E35: =ROUND(C35/(C32+C35),3)*100&"% Vac." -> 1.6% Vac. | F35: =CntyDataLinkPrior5YearEstimates!$P$108 -> 17 | G35: =CntyDataLinkPrior5YearEstimates!$Q$108 -> 14 | H35: =ROUND(F35/(F32+F35),3)*100&"% Vac." -> 5.8% Vac. | I35: =CntyDataLink!$P$108 -> 0 | J35: =CntyDataLink!$Q$108 -> 11 | K35: =ROUND(I35/(I32+I35),3)*100&"% Vac." -> 0% Vac. | L35: =IF(I35="-",I35,VALUE((I35-C35)/C35)) -> -1 | M35: -1 | O35: =StatisticallySignificantCalcs!$A65 -> N | P35: =StatisticallySignificantCalcs!$J65 -> N
B36: Vacant For Rent | C36: =CntyDataLinkPrior10YearEstimate!$L$108 -> 10 | D36: =CntyDataLinkPrior5YearEstimates!$M$108 -> 11 | E36: =ROUND(C36/(C33+C36),3)*100&"% Vac." -> 18.9% Vac. | F36: =CntyDataLinkPrior5YearEstimates!$L$108 -> 0 | G36: =CntyDataLinkPrior5YearEstimates!$M$108 -> 11 | H36: =ROUND(F36/(F33+F36),3)*100&"% Vac." -> 0% Vac. | I36: =CntyDataLink!$L$108 -> 4 | J36: =CntyDataLink!$M$108 -> 6 | K36: =ROUND(I36/(I33+I36),3)*100&"% Vac." -> 11.8% Vac. | L36: =IF(I36="-",I36,VALUE((I36-C36)/C36)) -> -0.6 | O36: =StatisticallySignificantCalcs!$A66 -> N | P36: =StatisticallySignificantCalcs!$J66 -> N
B37: Vacant Seasonal | C37: =CntyDataLinkPrior10YearEstimate!$T$108 -> 142 | D37: =CntyDataLinkPrior5YearEstimates!$U$108 -> 41 | E37: =ROUND(C37/C30,2)*100&"% of Total" -> 28% of Total | F37: =CntyDataLinkPrior5YearEstimates!$T$108 -> 179 | G37: =CntyDataLinkPrior5YearEstimates!$U$108 -> 41 | H37: =ROUND(F37/F30,2)*100&"% of Total" -> 32% of Total | I37: =CntyDataLink!$T$108 -> 192 | J37: =CntyDataLink!$U$108 -> 36 | K37: =ROUND(I37/I30,2)*100&"% of Total" -> 33% of Total | L37: =IF(I37="-",I37,VALUE((I37-C37)/C37)) -> 0.3521126761 | M37: 0.07262569832 | O37: =StatisticallySignificantCalcs!$A67 -> N | P37: =StatisticallySignificantCalcs!$J67 -> N
B39: Data from the American Community Survey are estimates
B41: Data from the American Community Survey are estimates
B44: HOUSING CHARACTERISTICS
D65: ="Source: "& " "&D69&", "&G69&" and "&J69& " American Community Survey Table B25024; B25032" -> Source: 2005-2009, 2010-2014 and 2015-2019 American Community Survey Table B25024; B25032
C67: Units by Type
D69: 2005-2009 | G69: 2010-2014 | J69: 2015-2019 | M69: Percent Change | O69: Statistically Significant Change
D70: Estimate | E70: Margin of Error | F70: % of Total | G70: Estimate | H70: Margin of Error | I70: % of Total | J70: Estimate | K70: Margin of Error | L70: % of Total | M70: 2009-2019 | N70: 2014-2019 | O70: 2009-2019 | P70: 2014-2019
C71: Total Units | D71: =CntyDataLinkPrior10YearEstimate!$B$108 -> 511 | E71: =CntyDataLinkPrior10YearEstimate!$C$108 -> 73 | G71: =CntyDataLinkPrior5YearEstimates!$B$108 -> 556 | H71: =CntyDataLinkPrior5YearEstimates!$C$108 -> 51 | J71: =CntyDataLink!$B$108 -> 587 | K71: =CntyDataLink!$C$108 -> 53 | O71: =StatisticallySignificantCalcs!$A70 -> N | P71: =StatisticallySignificantCalcs!$J70 -> N
C72: Single Family Units | D72: =CntyDataLinkPrior10YearEstimate!$AT$108 -> 439 | E72: =CntyDataLinkPrior10YearEstimate!$AU$108 -> 73 | F72: =IF(D72="-","-",($D$72/$D$71)) -> 0.8590998043 | G72: =CntyDataLinkPrior5YearEstimates!$AT$108 -> 507 | H72: =CntyDataLinkPrior5YearEstimates!$AU$108 -> 51 | I72: =IF(G72="-","-",($G$72/$G$71)) -> 0.9118705036 | J72: =CntyDataLink!$AT$108 -> 560 | K72: =CntyDataLink!$AU$108 -> 51 | L72: =IF(J72="-","-",($J$72/$J$71)) -> 0.9540034072 | M72: =IF(J72="-","-",($J72-$D72)/$D72) -> 0.2756264237 | N72: =IF(J72="-","-",($J72-$G72)/$G72) -> 0.1045364892 | O72: =StatisticallySignificantCalcs!$A71 -> Y | P72: =StatisticallySignificantCalcs!$J71 -> N
C73: SF Owner Occ. | D73: =CntyDataLinkPrior10YearEstimate!$AF$108 -> 261 | E73: =CntyDataLinkPrior10YearEstimate!$AG$108 -> 58 | G73: =CntyDataLinkPrior5YearEstimates!$AF$108 -> 245 | H73: =CntyDataLinkPrior5YearEstimates!$AG$108 -> 37 | J73: =CntyDataLink!$AF$108 -> 324 | K73: =CntyDataLink!$AG$108 -> 48 | O73: =StatisticallySignificantCalcs!$A72 -> N | P73: =StatisticallySignificantCalcs!$J72 -> Y
C74: SF Renter Occ. | D74: =CntyDataLinkPrior10YearEstimate!$AN$108 -> 26 | E74: =CntyDataLinkPrior10YearEstimate!$AO$108 -> 25 | G74: =CntyDataLinkPrior5YearEstimates!$AN$108 -> 68 | H74: =CntyDataLinkPrior5YearEstimates!$AO$108 -> 32 | J74: =CntyDataLink!$AN$108 -> 28 | K74: =CntyDataLink!$AO$108 -> 16 | O74: =StatisticallySignificantCalcs!$A73 -> N | P74: =StatisticallySignificantCalcs!$J73 -> Y
C75: Multi-family Units | D75: =CntyDataLinkPrior10YearEstimate!$AV$108 -> 15 | E75: =CntyDataLinkPrior10YearEstimate!$AW$108 -> 255.5953834 | F75: =IF(D75="-","-",$D$75/$D$71) -> 0.02935420744 | G75: =CntyDataLinkPrior5YearEstimates!$AV$108 -> 8 | H75: =CntyDataLinkPrior5YearEstimates!$AW$108 -> 25.63201124 | I75: =IF(G75="-","-",$G$75/$G$71) -> 0.01438848921 | J75: =CntyDataLink!$AV$108 -> 4 | K75: =CntyDataLink!$AW$108 -> 25.0998008 | L75: =IF(J75="-","-",$J$75/$J$71) -> 0.006814310051 | M75: =IF(J75="-","-",($J75-$D75)/$D75) -> -0.7333333333 | N75: =IF(J75="-","-",($J75-$G75)/$G75) -> -0.5 | O75: =StatisticallySignificantCalcs!$A74 -> N | P75: =StatisticallySignificantCalcs!$J74 -> N
C76: MF Owner Occ. | D76: =CntyDataLinkPrior10YearEstimate!$AH$108 -> 3 | E76: =CntyDataLinkPrior10YearEstimate!$AI$108 -> 279.2865912 | G76: =CntyDataLinkPrior5YearEstimates!$AH$108 -> 3 | H76: =CntyDataLinkPrior5YearEstimates!$AI$108 -> 27.23967694 | J76: =CntyDataLink!$AH$108 -> 2 | K76: =CntyDataLink!$AI$108 -> 27.23967694 | O76: =StatisticallySignificantCalcs!$A75 -> N | P76: =StatisticallySignificantCalcs!$J75 -> N
C77: MF Renter Occ. | D77: =CntyDataLinkPrior10YearEstimate!$AP$108 -> 12 | E77: =CntyDataLinkPrior10YearEstimate!$AQ$108 -> 279.8213716 | G77: =CntyDataLinkPrior5YearEstimates!$AP$108 -> 5 | H77: =CntyDataLinkPrior5YearEstimates!$AQ$108 -> 27.60434748 | J77: =CntyDataLink!$AP$108 -> 2 | K77: =CntyDataLink!$AQ$108 -> 27.11088342 | O77: =StatisticallySignificantCalcs!$A76 -> N | P77: =StatisticallySignificantCalcs!$J76 -> N
C78: Mobile Home & Other | D78: =CntyDataLinkPrior10YearEstimate!$AX$108 -> 57 | E78: =CntyDataLinkPrior10YearEstimate!$AY$108 -> 117.3882447 | F78: =IF(D78="-","-",($D$78/$D$71)) -> 0.1115459883 | G78: =CntyDataLinkPrior5YearEstimates!$AX$108 -> 41 | H78: =CntyDataLinkPrior5YearEstimates!$AY$108 -> 20.39607805 | I78: =IF(G78="-","-",($G$78/$G$71)) -> 0.07374100719 | J78: =CntyDataLink!$AX$108 -> 23 | K78: =CntyDataLink!$AY$108 -> 19.41648784 | L78: =IF(J78="-","-",($J$78/$J$71)) -> 0.03918228279 | M78: =IF(J78="-","-",($J78-$D78)/$D78) -> -0.5964912281 | N78: =IF(J78="-","-",($J78-$G78)/$G78) -> -0.4390243902 | O78: =StatisticallySignificantCalcs!$A77 -> N | P78: =StatisticallySignificantCalcs!$J77 -> N
B80: Data from the American Community Survey are estimates
B83: Units by Number of Bedrooms
D84: ="Source: "& " "&D69&", "&G69&" and "&J69& " American Community Survey Table B25041" -> Source: 2005-2009, 2010-2014 and 2015-2019 American Community Survey Table B25041
C86: 2005-2009 | G86: 2010-2014 | K86: 2015-2019 | O86: Statistically Significant Change
B87: Bedrooms | C87: Estimate | D87: Margin of Error | E87: % of Total | G87: Estimate | H87: Margin of Error | I87: % of Total | K87: Estimate | L87: Margin of Error | M87: % of Total | O87: 2009-2019 | P87: 2014-2019
B88: No Bedrooms | C88: =CntyDataLinkPrior10YearEstimate!$BR$108 -> 14 | D88: =CntyDataLinkPrior10YearEstimate!$BS$108 -> 11 | E88: =C88/SUM($C$88:$C$92) -> 0.02739726027 | G88: =CntyDataLinkPrior5YearEstimates!$BR$108 -> 21 | H88: =CntyDataLinkPrior5YearEstimates!$BS$108 -> 18 | I88: =G88/SUM($G$88:$G$92) -> 0.03776978417 | K88: =CntyDataLink!$BT$108 -> 24 | L88: =CntyDataLink!$BU$108 -> 16 | M88: =K88/SUM($K$88:$K$92) -> 0.04088586031 | O88: =StatisticallySignificantCalcs!$A78 -> N | P88: =StatisticallySignificantCalcs!$J78 -> N
B89: 1 Bedroom | C89: =CntyDataLinkPrior10YearEstimate!$BT$108 -> 50 | D89: =CntyDataLinkPrior10YearEstimate!$BU$108 -> 27 | E89: =C89/SUM($C$88:$C$92) -> 0.09784735812 | G89: =CntyDataLinkPrior5YearEstimates!$BT$108 -> 48 | H89: =CntyDataLinkPrior5YearEstimates!$BU$108 -> 24 | I89: =G89/SUM($G$88:$G$92) -> 0.08633093525 | K89: =CntyDataLink!$BV$108 -> 64 | L89: =CntyDataLink!$BW$108 -> 23 | M89: =K89/SUM($K$88:$K$92) -> 0.1090289608 | O89: =StatisticallySignificantCalcs!$A79 -> Y | P89: =StatisticallySignificantCalcs!$J79 -> N
B90: 2 Bedrooms | C90: =CntyDataLinkPrior10YearEstimate!$BV$108 -> 179 | D90: =CntyDataLinkPrior10YearEstimate!$BW$108 -> 57 | E90: =C90/SUM($C$88:$C$92) -> 0.3502935421 | G90: =CntyDataLinkPrior5YearEstimates!$BV$108 -> 180 | H90: =CntyDataLinkPrior5YearEstimates!$BW$108 -> 37 | I90: =G90/SUM($G$88:$G$92) -> 0.3237410072 | K90: =CntyDataLink!$BX$108 -> 160 | L90: =CntyDataLink!$BY$108 -> 37 | M90: =K90/SUM($K$88:$K$92) -> 0.272572402 | O90: =StatisticallySignificantCalcs!$A80 -> Y | P90: =StatisticallySignificantCalcs!$J80 -> N
B91: 3 Bedrooms | C91: =CntyDataLinkPrior10YearEstimate!$BX$108 -> 179 | D91: =CntyDataLinkPrior10YearEstimate!$BY$108 -> 48 | E91: =C91/SUM($C$88:$C$92) -> 0.3502935421 | G91: =CntyDataLinkPrior5YearEstimates!$BX$108 -> 216 | H91: =CntyDataLinkPrior5YearEstimates!$BY$108 -> 46 | I91: =G91/SUM($G$88:$G$92) -> 0.3884892086 | K91: =CntyDataLink!$BZ$108 -> 235 | L91: =CntyDataLink!$CA$108 -> 46 | M91: =K91/SUM($K$88:$K$92) -> 0.4003407155 | O91: =StatisticallySignificantCalcs!$A81 -> Y | P91: =StatisticallySignificantCalcs!$J81 -> N
B92: 4+ Bedrooms | C92: =CntyDataLinkPrior10YearEstimate!$BZ$108 -> 89 | D92: =CntyDataLinkPrior10YearEstimate!$CA$108 -> 50.11985634 | E92: =C92/SUM($C$88:$C$92) -> 0.1741682975 | G92: =CntyDataLinkPrior5YearEstimates!$BZ$108 -> 91 | H92: =CntyDataLinkPrior5YearEstimates!$CA$108 -> 30.41381265 | I92: =G92/SUM($G$88:$G$92) -> 0.1636690647 | K92: =CntyDataLink!$CB$108 -> 104 | L92: =CntyDataLink!$CC$108 -> 30.41381265 | M92: =K92/SUM($K$88:$K$92) -> 0.1771720613 | O92: =StatisticallySignificantCalcs!$A82 -> N | P92: =StatisticallySignificantCalcs!$J82 -> N
B94: As a result of changes in the American Community Survey, direct comparisons between the 2009-2013 and 2015-2019 data should be made with caution.
B95: Data from the American Community Survey are estimates
B97: Units by Year Built
B98: ="Source: "&K86& " American Community Survey Table B25034" -> Source: 2015-2019 American Community Survey Table B25034
D100: Year Built | G100: Units | I100: % of Total | K100: Margin of Error
F101: 2014 or later | G101: =CntyDataLink!$AZ$108 -> 17 | I101: =G101/SUM($G$101:$G$110) -> 0.02896081772 | K101: =CntyDataLink!$BA$108 -> 12
F102: 2010 through 2013 | G102: =CntyDataLink!$BB$108 -> 21 | I102: 0.03577512777 | K102: =CntyDataLink!$BC$108 -> 16
F103: 2000 through 2009 | G103: =CntyDataLink!$BD$108 -> 51 | I103: 0.08688245315 | K103: =CntyDataLink!$BE$108 -> 23
F104: 1990 through 1999 | G104: =CntyDataLink!$BF$108 -> 54 | I104: 0.09199318569 | K104: =CntyDataLink!$BG$108 -> 19
F105: 1980 through 1989 | G105: =CntyDataLink!$BH$108 -> 86 | I105: 0.1465076661 | K105: =CntyDataLink!$BI$108 -> 30
F106: 1970 through 1979 | G106: =CntyDataLink!$BJ$108 -> 75 | I106: 0.1277683135 | K106: =CntyDataLink!$BK$108 -> 29
F107: 1960 through 1969 | G107: =CntyDataLink!$BL$108 -> 35 | I107: 0.05962521295 | K107: =CntyDataLink!$BM$108 -> 18
F108: 1950 through 1959 | G108: =CntyDataLink!$BN$108 -> 64 | I108: 0.1090289608 | K108: =CntyDataLink!$BO$108 -> 25
F109: 1940 through 1949 | G109: =CntyDataLink!$BP$108 -> 14 | I109: 0.02385008518 | K109: =CntyDataLink!$BQ$108 -> 15
F110: 1939 and earlier | G110: =CntyDataLink!$BR$108 -> 170 | I110: 0.2896081772 | K110: =CntyDataLink!$BS$108 -> 35
B112: Data from the American Community Survey are estimates

Sheet CntyDataLink (hidden)
A1: 1 | B1: =A1+1 -> 2 | C1: =B1+1 -> 3 | D1: 4 | E1: 5 | F1: 6 | G1: 7 | H1: 8 | I1: 9 | J1: 10 | K1: 11 | L1: 12 | M1: 13 | N1: 14 | O1: 15 | P1: =O1+1 -> 16 | Q1: 17 | R1: 18 | S1: 19 | T1: 20 | U1: 21 | V1: 22 | W1: 23 | X1: 24 | Y1: 25 | Z1: 26 | AA1: 27 | AB1: 28 | AC1: 29 | AD1: 30 | AE1: 31 | AF1: 32 | AG1: 33 | AH1: 34 | AI1: 35 | AJ1: 36 | AK1: 37 | AL1: 38 | AM1: 39 | AN1: 40 | AO1: 41 | AP1: 42 | AQ1: 43 | AR1: 44 | AS1: 45 | AT1: 46 | AU1: 47 | AV1: 48 | AW1: 49 | AX1: 50 | AY1: 51 | AZ1: 52 | BA1: 53 | BB1: 54 | BC1: 55 | BD1: 56 | BE1: 57 | BF1: 58 | BG1: 59 | BH1: 60 | BI1: 61 | BJ1: 62 | BK1: 63 | BL1: 64 | BM1: 65 | BN1: 66 | BO1: =BN1+1 -> 67 | BP1: 68 | BQ1: 69 | BR1: 70 | BS1: 71 | BT1: 72 | BU1: 73 | BV1: 74 | BW1: 75 | BX1: 76 | BY1: 77 | BZ1: 78 | CA1: 79 | CB1: 80 | CC1: 81 | CD1: 82 | CE1: 83 | CF1: 84 | CG1: 85 | CH1: 86 | CI1: 87 | CJ1: 88 | CK1: 89 | CL1: 90 | CM1: 91 | CN1: 92 | CO1: 93 | CP1: 94 | CQ1: 95 | CR1: 96 | CS1: 97 | CT1: 98 | CU1: 99 | CV1: 100 | CW1: 101 | CX1: 102 | CY1: 103 | CZ1: 104 | DA1: 105 | DB1: 106 | DC1: 107 | DD1: 108 | DE1: 109 | DF1: 110 | DG1: 111 | DH1: 112 | DI1: 113 | DJ1: 114 | DK1: 115 | DL1: 116 | DM1: 117 | DN1: 118 | DO1: 119 | DP1: 120 | DQ1: 121 | DR1: 122 | DS1: 123 | DT1: 124 | DU1: 125 | DV1: 126 | DW1: 127 | DX1: 128 | DY1: 129 | DZ1: 130 | EA1: =DZ1+1 -> 131 | EB1: 132 | EC1: 133 | ED1: 134 | EE1: 135 | EF1: 136 | EG1: 137 | EH1: 138 | EI1: 139 | EJ1: 140 | EK1: 141 | EL1: 142 | EM1: 143 | EN1: 144 | EO1: 145 | EP1: 146 | EQ1: 147 | ER1: 148 | ES1: 149 | ET1: 150 | EU1: 151 | EV1: 152 | EW1: 153 | EX1: 154 | EY1: 155 | EZ1: 156 | FA1: 157 | FB1: 158 | FC1: 159 | FD1: 160 | FE1: 161 | FF1: 162 | FG1: 163 | FH1: 164 | FI1: 165 | FJ1: 166 | FK1: 167 | FL1: 168 | FM1: 169 | FN1: 170 | FO1: 171 | FP1: 172 | FQ1: 173 | FR1: 174 | FS1: 175 | FT1: 176 | FU1: 177 | FV1: 178 | FW1: 179 | FX1: 180 | FY1: 181 | FZ1: 182 | GA1: 183 | GB1: 184 | GC1: 185 | GD1: 186 | GE1: 187 | GF1: 188 | GG1: 189 | GH1: 190 | GI1: 191 | GJ1: 192 | GK1: 193 | GL1: 194 | GM1: =GL1+1 -> 195 | GN1: 196 | GO1: 197 | GP1: 198 | GQ1: 199 | GR1: 200 | GS1: 201 | GT1: 202 | GU1: 203 | GV1: 204 | GW1: 205 | GX1: 206 | GY1: 207 | GZ1: 208 | HA1: 209 | HB1: 210 | HC1: 211 | HD1: 212 | HE1: 213 | HF1: 214 | HG1: 215 | HH1: 216 | HI1: 217 | HJ1: 218 | HK1: 219 | HL1: 220 | HM1: 221 | HN1: 222 | HO1: 223 | HP1: 224 | HQ1: 225 | HR1: 226 | HS1: 227 | HT1: 228 | HU1: 229 | HV1: 230 | HW1: 231 | HX1: 232 | HY1: 233 | HZ1: 234 | IA1: 235 | IB1: 236 | IC1: 237 | ID1: 238 | IE1: 239 | IF1: 240 | IG1: 241 | IH1: 242 | II1: 243 | IJ1: 244 | IK1: 245 | IL1: 246 | IM1: 247 | IN1: 248 | IO1: 249 | IP1: 250 | IQ1: 251 | IR1: 252 | IS1: 253 | IT1: 254 | IU1: 255
A3: Census 1990 Data - Query Name: DPCnty90Census
A4: TownName | B4: Cnty_Code | C4: Census_Cnty_Code | D4: LandAcres | E4: WaterAcres | F4: HousingUnits90Cen | G4: Persons90Cen | H4: Families90Cen | I4: Households90cen | J4: MalePop90cen | K4: FemalePop90cen | L4: WhitePop | M4: BlackPop | N4: AmerIndianPop | O4: AsianPIPop | P4: OtherRacePop | Q4: HispanicOrPop | R4: AgeUnder15_90cen | S4: Age15to24_90cen | T4: Age25to34_90cen | U4: Age35to44_90cen | V4: Age45to54_90cen | W4: Age55to64_90cen | X4: Age65to74_90cen | Y4: Age75andOver_90cen | Z4: PersonsInHH90cen | AA4: PersonsInFamHH90cen | AB4: PersonsInGC | AC4: PersonsPerHH90cen | AD4: PersonsPerFam90Cen | AE4: SinglePersonHH90cen | AF4: MarriedCoupleHH90cen | AG4: SingleParentHH90cen | AH4: NonFamilyHH90cen | AI4: TotalHousingUnits | AJ4: OccupiedHousingUnits | AK4: VacantHousingUnits | AL4: OwnerOccHU | AM4: RenterOccHU | AN4: VacantForRent90 | AO4: VacantForSale90 | AP4: VacantSeasonalRec | AQ4: SingFamHU90cen | AR4: MultiFamHU90cen | AS4: MobileHom90cen | AT4: SingFamOwnHU90cen | AU4: MultiFamOwnHU90cen | AV4: MobileHomOwnHU90cen | AW4: SingFamRntrHU90cen | AX4: MultiFamRntrHU90cen | AY4: MobileHomRntrHU90cen | AZ4: HU<5yrs90cen | BA4: HU5to20yrs90cen | BB4: HU20to50yrs90cen | BC4: HU>50yrs90cen | BD4: Units0Bedroom90cen | BE4: Units1Bedroom90cen | BF4: Units2Bedroom90cen | BG4: Units3Bedroom90cen | BH4: Units4+Bedroom90cen | BI4: HI<5K | BJ4: HI5Kto10K | BK4: HI10Kto15K | BL4: HI15Kto25K | BM4: HI25Kto35K | BN4: HI35Kto50K | BO4: HI50Kto75K | BP4: HI75Kto100K | BQ4: HI>100K | BR4: MedHI | BS4: HH<25HI<5K | BT4: HH<25HI5Kto10K | BU4: HH<25HI10Kto15K | BV4: HH<25HI15Kto25K | BW4: HH<25HI25Kto35K | BX4: HH<25HI35Kto50K | BY4: HH<25HI50Kto75K | BZ4: HH<25HI75Kto100K | CA4: HH<25HI>100K | CB4: HH25to34HI<5K | CC4: HH25to34HI5Kto10K | CD4: HH25to34HI10Kto15K | CE4: HH25to34HI15Kto25K | CF4: HH25to34HI25Kto35K | CG4: HH25to34HI35Kto50K | CH4: HH25to34HI50Kto75K | CI4: HH25to34HI75Kto100K | CJ4: HH25to34HI>100K | CK4: HH35to44HI<5K | CL4: HH35to44HI5Kto10K | CM4: HH35to44HI10Kto15K | CN4: HH35to44HI15Kto25K | CO4: HH35to44HI25Kto35K | CP4: HH35to44HI35Kto50K | CQ4: HH35to44HI50Kto75K | CR4: HH35to44HI75Kto100K | CS4: HH35to44HI>100K | CT4: HH45to54HI<5K | CU4: HH45to54HI5Kto10K | CV4: HH45to54HI10Kto15K | CW4: HH45to54HI15Kto25K | CX4: HH45to54HI25Kto35K | CY4: HH45to54HI35Kto50K | CZ4: HH45to54HI50Kto75K | DA4: HH45to54HI75Kto100K | DB4: HH45to54HI>100K | DC4: HH55to64HI<5K | DD4: HH55to64HI5Kto10K | DE4: HH55to64HI10Kto15K | DF4: HH55to64HI15Kto25K | DG4: HH55to64HI25Kto35K | DH4: HH55to64HI35Kto50K | DI4: HH55to64HI50Kto75K | DJ4: HH55to64HI75Kto100K | DK4: HH55to64HI>100K | DL4: HH65to74HI<5K | DM4: HH65to74HI5Kto10K | DN4: HH65to74HI10Kto15K | DO4: HH65to74HI15Kto25K | DP4: HH65to74HI25Kto35K | DQ4: HH65to74HI35Kto50K | DR4: HH65to74HI50Kto75K | DS4: HH65to74HI75Kto100K | DT4: HH65to74HI>100K | DU4: HH>75HI<5K | DV4: HH>75HI5Kto10K | DW4: HH>75HI10Kto15K | DX4: HH>75HI15Kto25K | DY4: HH>75HI25Kto35K | DZ4: HH>75HI35Kto50K | EA4: HH>75HI50Kto75K | EB4: HH>75HI75Kto100K | EC4: HH>75HI>100K | ED4: SchoolEnrollment1thru12 | EE4: Pop25andOver | EF4: HSGradorHigher | EG4: CollGradorHigher | EH4: NativePop | EI4: ForeignBornPop | EJ4: BornStateOfRes | EK4: NativePop2 | EL4: ForeignBornPop2 | EM4: DroveAlone | EN4: CarPooled | EO4: PublicTranspt | EP4: Walked | EQ4: OtherMeans | ER4: WorkedAtHome | ES4: HHInc<10K | ET4: HHInc10to15K | EU4: HHInc15to25K | EV4: HHInc25to35K | EW4: HHInc35to50K | EX4: HHInc50to75K | EY4: HHInc75to100K | EZ4: HHInc100to150K | FA4: HHInc>150K
A5: =VLOOKUP(DropDownList!$A$47,CntyQuery!$A$4:$FI$46,A1) -> Acworth | B5: =VLOOKUP(DropDownList!$A$47,CntyQuery!$A$4:$FA$46,B1) -> 19005 | C5: =VLOOKUP(DropDownList!$A$47,CntyQuery!$A$4:$FA$46,C1) -> 00260 | D5: =VLOOKUP(DropDownList!$A$47,CntyQuery!$A$4:$FA$46,D1) -> 24916.99 | E5: =VLOOKUP(DropDownList!$A$47,CntyQuery!$A$4:$FA$46,E1) -> 81.95 | F5: =VLOOKUP(DropDownList!$A$47,CntyQuery!$A$4:$FA$46,F1) -> 507 | G5: =VLOOKUP(DropDownList!$A$47,CntyQuery!$A$4:$FA$46,G1) -> 776 | H5: =VLOOKUP(DropDownList!$A$47,CntyQuery!$A$4:$FA$46,H1) -> 219 | I5: =VLOOKUP(DropDownList!$A$47,CntyQuery!$A$4:$FA$46,I1) -> 285 | J5: =VLOOKUP(DropDownList!$A$47,CntyQuery!$A$4:$FA$46,J1) -> 394 | K5: =VLOOKUP(DropDownList!$A$47,CntyQuery!$A$4:$FA$46,K1) -> 382 | L5: =VLOOKUP(DropDownList!$A$47,CntyQuery!$A$4:$FA$46,L1) -> 773 | M5: =VLOOKUP(DropDownList!$A$47,CntyQuery!$A$4:$FA$46,M1) -> 0 | N5: =VLOOKUP(DropDownList!$A$47,CntyQuery!$A$4:$FA$46,N1) -> 0 | O5: =VLOOKUP(DropDownList!$A$47,CntyQuery!$A$4:$FA$46,O1) -> 3 | P5: =VLOOKUP(DropDownList!$A$47,CntyQuery!$A$4:$FA$46,P1) -> 0 | Q5: =VLOOKUP(DropDownList!$A$47,CntyQuery!$A$4:$FA$46,Q1) -> 1 | R5: =VLOOKUP(DropDownList!$A$47,CntyQuery!$A$4:$FA$46,R1) -> 189 | S5: =VLOOKUP(DropDownList!$A$47,CntyQuery!$A$4:$FA$46,S1) -> 72 | T5: =VLOOKUP(DropDownList!$A$47,CntyQuery!$A$4:$FA$46,T1) -> 124 | U5: =VLOOKUP(DropDownList!$A$47,CntyQuery!$A$4:$FA$46,U1) -> 149 | V5: =VLOOKUP(DropDownList!$A$47,CntyQuery!$A$4:$FA$46,V1) -> 74 | W5: =VLOOKUP(DropDownList!$A$47,CntyQuery!$A$4:$FA$46,W1) -> 80 | X5: =VLOOKUP(DropDownList!$A$47,CntyQuery!$A$4:$FA$46,X1) -> 57 | Y5: =VLOOKUP(DropDownList!$A$47,CntyQuery!$A$4:$FA$46,Y1) -> 31 | Z5: =VLOOKUP(DropDownList!$A$47,CntyQuery!$A$4:$FA$46,Z1) -> 776 | AA5: =VLOOKUP(DropDownList!$A$47,CntyQuery!$A$4:$FA$46,AA1) -> 693 | AB5: =VLOOKUP(DropDownList!$A$47,CntyQuery!$A$4:$FA$46,AB1) -> 0 | AC5: =VLOOKUP(DropDownList!$A$47,CntyQuery!$A$4:$FA$46,AC1) -> 2.722807018 | AD5: =VLOOKUP(DropDownList!$A$47,CntyQuery!$A$4:$FA$46,AD1) -> 3.164383562 | AE5: =VLOOKUP(DropDownList!$A$47,CntyQuery!$A$4:$FA$46,AE1) -> 53 | AF5: =VLOOKUP(DropDownList!$A$47,CntyQuery!$A$4:$FA$46,AF1) -> 189 | AG5: =VLOOKUP(DropDownList!$A$47,CntyQuery!$A$4:$FA$46,AG1) -> 30 | AH5: =VLOOKUP(DropDownList!$A$47,CntyQuery!$A$4:$FA$46,AH1) -> 13 | AI5: =VLOOKUP(DropDownList!$A$47,CntyQuery!$A$4:$FA$46,AI1) -> 507 | AJ5: =VLOOKUP(DropDownList!$A$47,CntyQuery!$A$4:$FA$46,AJ1) -> 285 | AK5: =VLOOKUP(DropDownList!$A$47,CntyQuery!$A$4:$FA$46,AK1) -> 222 | AL5: =VLOOKUP(DropDownList!$A$47,CntyQuery!$A$4:$FA$46,AL1) -> 246 | AM5: =VLOOKUP(DropDownList!$A$47,CntyQuery!$A$4:$FA$46,AM1) -> 39 | AN5: =VLOOKUP(DropDownList!$A$47,CntyQuery!$A$4:$FA$46,AN1) -> 1 | AO5: =VLOOKUP(DropDownList!$A$47,CntyQuery!$A$4:$FA$46,AO1) -> 3 | AP5: =VLOOKUP(DropDownList!$A$47,CntyQuery!$A$4:$FA$46,AP1) -> 194 | AQ5: =VLOOKUP(DropDownList!$A$47,CntyQuery!$A$4:$FA$46,AQ1) -> 448 | AR5: =VLOOKUP(DropDownList!$A$47,CntyQuery!$A$4:$FA$46,AR1) -> 10 | AS5: =VLOOKUP(DropDownList!$A$47,CntyQuery!$A$4:$FA$46,AS1) -> 49 | AT5: =VLOOKUP(DropDownList!$A$47,CntyQuery!$A$4:$FA$46,AT1) -> 222 | AU5: =VLOOKUP(DropDownList!$A$47,CntyQuery!$A$4:$FA$46,AU1) -> 5 | AV5: =VLOOKUP(DropDownList!$A$47,CntyQuery!$A$4:$FA$46,AV1) -> 49 | AW5: =VLOOKUP(DropDownList!$A$47,CntyQuery!$A$4:$FA$46,AW1) -> 30 | AX5: =VLOOKUP(DropDownList!$A$47,CntyQuery!$A$4:$FA$46,AX1) -> 5 | AY5: =VLOOKUP(DropDownList!$A$47,CntyQuery!$A$4:$FA$46,AY1) -> 4 | AZ5: =VLOOKUP(DropDownList!$A$47,CntyQuery!$A$4:$FA$46,AZ1) -> 56 | BA5: =VLOOKUP(DropDownList!$A$47,CntyQuery!$A$4:$FA$46,BA1) -> 180 | BB5: =VLOOKUP(DropDownList!$A$47,CntyQuery!$A$4:$FA$46,BB1) -> 88 | BC5: =VLOOKUP(DropDownList!$A$47,CntyQuery!$A$4:$FA$46,BC1) -> 179 | BD5: =VLOOKUP(DropDownList!$A$47,CntyQuery!$A$4:$FA$46,BD1) -> 8 | BE5: =VLOOKUP(DropDownList!$A$47,CntyQuery!$A$4:$FA$46,BE1) -> 42 | BF5: =VLOOKUP(DropDownList!$A$47,CntyQuery!$A$4:$FA$46,BF1) -> 189 | BG5: =VLOOKUP(DropDownList!$A$47,CntyQuery!$A$4:$FA$46,BG1) -> 140 | BH5: =VLOOKUP(DropDownList!$A$47,CntyQuery!$A$4:$FA$46,BH1) -> 124 | BI5: =VLOOKUP(DropDownList!$A$47,CntyQuery!$A$4:$FA$46,BI1) -> 19 | BJ5: =VLOOKUP(DropDownList!$A$47,CntyQuery!$A$4:$FA$46,BJ1) -> 18 | BK5: =VLOOKUP(DropDownList!$A$47,CntyQuery!$A$4:$FA$46,BK1) -> 22 | BL5: =VLOOKUP(DropDownList!$A$47,CntyQuery!$A$4:$FA$46,BL1) -> 52 | BM5: =VLOOKUP(DropDownList!$A$47,CntyQuery!$A$4:$FA$46,BM1) -> 40 | BN5: =VLOOKUP(DropDownList!$A$47,CntyQuery!$A$4:$FA$46,BN1) -> 105 | BO5: =VLOOKUP(DropDownList!$A$47,CntyQuery!$A$4:$FA$46,BO1) -> 24 | BP5: =VLOOKUP(DropDownList!$A$47,CntyQuery!$A$4:$FA$46,BP1) -> 2 | BQ5: =VLOOKUP(DropDownList!$A$47,CntyQuery!$A$4:$FA$46,BQ1) -> 5 | BR5: =VLOOKUP(DropDownList!$A$47,CntyQuery!$A$4:$FA$46,BR1) -> 33661 | BS5: =VLOOKUP(DropDownList!$A$47,CntyQuery!$A$4:$FA$46,BS1) -> 0 | BT5: =VLOOKUP(DropDownList!$A$47,CntyQuery!$A$4:$FA$46,BT1) -> 0 | BU5: =VLOOKUP(DropDownList!$A$47,CntyQuery!$A$4:$FA$46,BU1) -> 2 | BV5: =VLOOKUP(DropDownList!$A$47,CntyQuery!$A$4:$FA$46,BV1) -> 0 | BW5: =VLOOKUP(DropDownList!$A$47,CntyQuery!$A$4:$FA$46,BW1) -> 0 | BX5: =VLOOKUP(DropDownList!$A$47,CntyQuery!$A$4:$FA$46,BX1) -> 6 | BY5: =VLOOKUP(DropDownList!$A$47,CntyQuery!$A$4:$FA$46,BY1) -> 0 | BZ5: =VLOOKUP(DropDownList!$A$47,CntyQuery!$A$4:$FA$46,BZ1) -> 0 | CA5: =VLOOKUP(DropDownList!$A$47,CntyQuery!$A$4:$FA$46,CA1) -> 0 | CB5: =VLOOKUP(DropDownList!$A$47,CntyQuery!$A$4:$FA$46,CB1) -> 0 | CC5: =VLOOKUP(DropDownList!$A$47,CntyQuery!$A$4:$FA$46,CC1) -> 0 | CD5: =VLOOKUP(DropDownList!$A$47,CntyQuery!$A$4:$FA$46,CD1) -> 6 | CE5: =VLOOKUP(DropDownList!$A$47,CntyQuery!$A$4:$FA$46,CE1) -> 8 | CF5: =VLOOKUP(DropDownList!$A$47,CntyQuery!$A$4:$FA$46,CF1) -> 9 | CG5: =VLOOKUP(DropDownList!$A$47,CntyQuery!$A$4:$FA$46,CG1) -> 29 | CH5: =VLOOKUP(DropDownList!$A$47,CntyQuery!$A$4:$FA$46,CH1) -> 3 | CI5: =VLOOKUP(DropDownList!$A$47,CntyQuery!$A$4:$FA$46,CI1) -> 0 | CJ5: =VLOOKUP(DropDownList!$A$47,CntyQuery!$A$4:$FA$46,CJ1) -> 0 | CK5: =VLOOKUP(DropDownList!$A$47,CntyQuery!$A$4:$FA$46,CK1) -> 6 | CL5: =VLOOKUP(DropDownList!$A$47,CntyQuery!$A$4:$FA$46,CL1) -> 5 | CM5: =VLOOKUP(DropDownList!$A$47,CntyQuery!$A$4:$FA$46,CM1) -> 2 | CN5: =VLOOKUP(DropDownList!$A$47,CntyQuery!$A$4:$FA$46,CN1) -> 17 | CO5: =VLOOKUP(DropDownList!$A$47,CntyQuery!$A$4:$FA$46,CO1) -> 14 | CP5: =VLOOKUP(DropDownList!$A$47,CntyQuery!$A$4:$FA$46,CP1) -> 27 | CQ5: =VLOOKUP(DropDownList!$A$47,CntyQuery!$A$4:$FA$46,CQ1) -> 5 | CR5: =VLOOKUP(DropDownList!$A$47,CntyQuery!$A$4:$FA$46,CR1) -> 0 | CS5: =VLOOKUP(DropDownList!$A$47,CntyQuery!$A$4:$FA$46,CS1) -> 0 | CT5: =VLOOKUP(DropDownList!$A$47,CntyQuery!$A$4:$FA$46,CT1) -> 2 | CU5: =VLOOKUP(DropDownList!$A$47,CntyQuery!$A$4:$FA$46,CU1) -> 4 | CV5: =VLOOKUP(DropDownList!$A$47,CntyQuery!$A$4:$FA$46,CV1) -> 2 | CW5: =VLOOKUP(DropDownList!$A$47,CntyQuery!$A$4:$FA$46,CW1) -> 2 | CX5: =VLOOKUP(DropDownList!$A$47,CntyQuery!$A$4:$FA$46,CX1) -> 8 | CY5: =VLOOKUP(DropDownList!$A$47,CntyQuery!$A$4:$FA$46,CY1) -> 25 | CZ5: =VLOOKUP(DropDownList!$A$47,CntyQuery!$A$4:$FA$46,CZ1) -> 0 | DA5: =VLOOKUP(DropDownList!$A$47,CntyQuery!$A$4:$FA$46,DA1) -> 2 | DB5: =VLOOKUP(DropDownList!$A$47,CntyQuery!$A$4:$FA$46,DB1) -> 5 | DC5: =VLOOKUP(DropDownList!$A$47,CntyQuery!$A$4:$FA$46,DC1) -> 3 | DD5: =VLOOKUP(DropDownList!$A$47,CntyQuery!$A$4:$FA$46,DD1) -> 7 | DE5: =VLOOKUP(DropDownList!$A$47,CntyQuery!$A$4:$FA$46,DE1) -> 2 | DF5: =VLOOKUP(DropDownList!$A$47,CntyQuery!$A$4:$FA$46,DF1) -> 6 | DG5: =VLOOKUP(DropDownList!$A$47,CntyQuery!$A$4:$FA$46,DG1) -> 5 | DH5: =VLOOKUP(DropDownList!$A$47,CntyQuery!$A$4:$FA$46,DH1) -> 5 | DI5: =VLOOKUP(DropDownList!$A$47,CntyQuery!$A$4:$FA$46,DI1) -> 14 | DJ5: =VLOOKUP(DropDownList!$A$47,CntyQuery!$A$4:$FA$46,DJ1) -> 0 | DK5: =VLOOKUP(DropDownList!$A$47,CntyQuery!$A$4:$FA$46,DK1) -> 0 | DL5: =VLOOKUP(DropDownList!$A$47,CntyQuery!$A$4:$FA$46,DL1) -> 0 | DM5: =VLOOKUP(DropDownList!$A$47,CntyQuery!$A$4:$FA$46,DM1) -> 0 | DN5: =VLOOKUP(DropDownList!$A$47,CntyQuery!$A$4:$FA$46,DN1) -> 3 | DO5: =VLOOKUP(DropDownList!$A$47,CntyQuery!$A$4:$FA$46,DO1) -> 15 | DP5: =VLOOKUP(DropDownList!$A$47,CntyQuery!$A$4:$FA$46,DP1) -> 4 | DQ5: =VLOOKUP(DropDownList!$A$47,CntyQuery!$A$4:$FA$46,DQ1) -> 9 | DR5: =VLOOKUP(DropDownList!$A$47,CntyQuery!$A$4:$FA$46,DR1) -> 2 | DS5: =VLOOKUP(DropDownList!$A$47,CntyQuery!$A$4:$FA$46,DS1) -> 0 | DT5: =VLOOKUP(DropDownList!$A$47,CntyQuery!$A$4:$FA$46,DT1) -> 0 | DU5: =VLOOKUP(DropDownList!$A$47,CntyQuery!$A$4:$FA$46,DU1) -> 8 | DV5: =VLOOKUP(DropDownList!$A$47,CntyQuery!$A$4:$FA$46,DV1) -> 2 | DW5: =VLOOKUP(DropDownList!$A$47,CntyQuery!$A$4:$FA$46,DW1) -> 5 | DX5: =VLOOKUP(DropDownList!$A$47,CntyQuery!$A$4:$FA$46,DX1) -> 4 | DY5: =VLOOKUP(DropDownList!$A$47,CntyQuery!$A$4:$FA$46,DY1) -> 0 | DZ5: =VLOOKUP(DropDownList!$A$47,CntyQuery!$A$4:$FA$46,DZ1) -> 4 | EA5: =VLOOKUP(DropDownList!$A$47,CntyQuery!$A$4:$FA$46,EA1) -> 0 | EB5: =VLOOKUP(DropDownList!$A$47,CntyQuery!$A$4:$FA$46,EB1) -> 0 | EC5: =VLOOKUP(DropDownList!$A$47,CntyQuery!$A$4:$FA$46,EC1) -> 0 | ED5: =VLOOKUP(DropDownList!$A$47,CntyQuery!$A$4:$FA$46,ED1) -> 147 | EE5: =VLOOKUP(DropDownList!$A$47,CntyQuery!$A$4:$FA$46,EE1) -> 499 | EF5: =VLOOKUP(DropDownList!$A$47,CntyQuery!$A$4:$FA$46,EF1) -> 409 | EG5: =VLOOKUP(DropDownList!$A$47,CntyQuery!$A$4:$FA$46,EG1) -> 134 | EH5: =VLOOKUP(DropDownList!$A$47,CntyQuery!$A$4:$FA$46,EH1) -> 758 | EI5: =VLOOKUP(DropDownList!$A$47,CntyQuery!$A$4:$FA$46,EI1) -> 18 | EJ5: =VLOOKUP(DropDownList!$A$47,CntyQuery!$A$4:$FA$46,EJ1) -> 272 | EK5: =VLOOKUP(DropDownList!$A$47,CntyQuery!$A$4:$FA$46,EK1) -> 758 | EL5: =VLOOKUP(DropDownList!$A$47,CntyQuery!$A$4:$FA$46,EL1) -> 18 | EM5: =VLOOKUP(DropDownList!$A$47,CntyQuery!$A$4:$FA$46,EM1) -> 272 | EN5: =VLOOKUP(DropDownList!$A$47,CntyQuery!$A$4:$FA$46,EN1) -> 34 | EO5: =VLOOKUP(DropDownList!$A$47,CntyQuery!$A$4:$FA$46,EO1) -> 0 | EP5: =VLOOKUP(DropDownList!$A$47,CntyQuery!$A$4:$FA$46,EP1) -> 17 | EQ5: =VLOOKUP(DropDownList!$A$47,CntyQuery!$A$4:$FA$46,EQ1) -> 10 | ER5: =VLOOKUP(DropDownList!$A$47,CntyQuery!$A$4:$FA$46,ER1) -> 25 | ES5: =VLOOKUP(DropDownList!$A$47,CntyQuery!$A$4:$FA$46,ES1) -> 37 | ET5: =VLOOKUP(DropDownList!$A$47,CntyQuery!$A$4:$FA$46,ET1) -> 22 | EU5: =VLOOKUP(DropDownList!$A$47,CntyQuery!$A$4:$FA$46,EU1) -> 52 | EV5: =VLOOKUP(DropDownList!$A$47,CntyQuery!$A$4:$FA$46,EV1) -> 40 | EW5: =VLOOKUP(DropDownList!$A$47,CntyQuery!$A$4:$FA$46,EW1) -> 105 | EX5: =VLOOKUP(DropDownList!$A$47,CntyQuery!$A$4:$FA$46,EX1) -> 24 | EY5: =VLOOKUP(DropDownList!$A$47,CntyQuery!$A$4:$FA$46,EY1) -> 2 | EZ5: =VLOOKUP(DropDownList!$A$47,CntyQuery!$A$4:$FA$46,EZ1) -> 5 | FA5: =VLOOKUP(DropDownList!$A$47,CntyQuery!$A$4:$FA$46,FA1) -> 0
A8: Census 1990 Data - Query Name: TownSTF1Qry1
A9: NAME | B9: COUSUBFP | C9: Census_Cnty_Code | D9: FIPS | E9: LandAcres | F9: WaterAcres | G9: HousingUnits90Cen | H9: P01Persons90Cen | I9: P02Families90Cen | J9: P03Households90cen | K9: P05MalePop90cen | L9: P05FemalePop90cen | M9: P06WhitePop | N9: P06BlackPop | O9: P06AmerIndianPop | P9: P06AsianPIPop | Q9: P06OtherRacePop | R9: P08HispanicOrPop | S9: P11AgeUnder15_90cen | T9: P11Age15to24_90cen | U9: P11Age25to34_90cen | V9: P11Age35to44_90cen | W9: P11Age45to54_90cen | X9: P11Age55to64_90cen | Y9: P11Age65to74_90cen | Z9: P11Age75andOver_90cen | AA9: P15PersonsInHH90cen | AB9: P15PersonsInFamHH90cen | AC9: P15PersonsInGC | AD9: PersonsPerHH90cen | AE9: PersonsPerFam90Cen | AF9: P16SinglePersonHH90cen | AG9: P16MarriedCoupleHH90cen | AH9: P16SingleParentHH90cen | AI9: P16NonFamilyHH90cen | AJ9: H01TotalHousingUnits | AK9: H02OccupiedHousingUnits | AL9: H02VacantHousingUnits | AM9: H03OwnerOccHU | AN9: H03RenterOccHU | AO9: H05VacantForRent90 | AP9: H05VacantForSale90 | AQ9: H05VacantSeasonalRec | AR9: H23OOHUVal<15k | AS9: H23OOHUVal15to19k | AT9: H23OOHUVal20to24k | AU9: H23OOHUVal25to29k | AV9: H23OOHUVal30to34k | AW9: H23OOHUVal35to39k | AX9: H23OOHUVal40to44k | AY9: H23OOHUVal45to49k | AZ9: H23OOHUVal50to59k | BA9: H23OOHUVal60to74k | BB9: H23OOHUVal75to99k | BC9: H23OOHUVal100to124k | BD9: H23OOHUVal125to149k | BE9: H23OOHUVal150to174k | BF9: H23OOHUVal175to199k | BG9: H23OOHUVal200to249k | BH9: H23OOHUVal250to299k | BI9: H23OOHUVal300to399k | BJ9: H23OOHUVal400to499k | BK9: H23OOHUVal500kOrMore | BL9: H23BOOHUMedVal | BM9: H41SingFamHU90cen | BN9: H41MultiFamHU90cen | BO9: H41MobileHom90cen | BP9: H43SingFamOwnHU90cen | BQ9: H43MultiFamOwnHU90cen | BR9: H43MobileHomOwnHU90cen | BS9: H43SingFamRntrHU90cen | BT9: H43MultiFamRntrHU90cen | BU9: H43MobileHomRntrHU90cen | BV9: H41HU1UnitDet | BW9: H41HU1UnitAtt | BX9: H41HU2Unit | BY9: H41HU3to4Unit | BZ9: H41HU5to9Unit | CA9: H41HU10to19Unit | CB9: H41HU20to49Unit | CC9: H41HU50PlusUnit | CD9: H41HUMobilH | CE9: H41HUOther
A10: =VLOOKUP(DropDownList!$B$47,CntyQuery!$A$51:$CE$93,A$1) -> Acworth | B10: =VLOOKUP(DropDownList!$B$47,CntyQuery!$A$51:$CE$93,B$1) -> 1001 | C10: =VLOOKUP(DropDownList!$B$47,CntyQuery!$A$51:$CE$93,C$1) -> 19005 | D10: =VLOOKUP(DropDownList!$B$47,CntyQuery!$A$51:$CE$93,D$1) -> 00260 | E10: =VLOOKUP(DropDownList!$B$47,CntyQuery!$A$51:$CE$93,E$1) -> 24916.99 | F10: =VLOOKUP(DropDownList!$B$47,CntyQuery!$A$51:$CE$93,F$1) -> 81.95 | G10: =VLOOKUP(DropDownList!$B$47,CntyQuery!$A$51:$CE$93,G$1) -> 507 | H10: =VLOOKUP(DropDownList!$B$47,CntyQuery!$A$51:$CE$93,H$1) -> 776 | I10: =VLOOKUP(DropDownList!$B$47,CntyQuery!$A$51:$CE$93,I$1) -> 219 | J10: =VLOOKUP(DropDownList!$B$47,CntyQuery!$A$51:$CE$93,J$1) -> 285 | K10: =VLOOKUP(DropDownList!$B$47,CntyQuery!$A$51:$CE$93,K$1) -> 394 | L10: =VLOOKUP(DropDownList!$B$47,CntyQuery!$A$51:$CE$93,L$1) -> 382 | M10: =VLOOKUP(DropDownList!$B$47,CntyQuery!$A$51:$CE$93,M$1) -> 773 | N10: =VLOOKUP(DropDownList!$B$47,CntyQuery!$A$51:$CE$93,N$1) -> 0 | O10: =VLOOKUP(DropDownList!$B$47,CntyQuery!$A$51:$CE$93,O$1) -> 0 | P10: =VLOOKUP(DropDownList!$B$47,CntyQuery!$A$51:$CE$93,P$1) -> 3 | Q10: =VLOOKUP(DropDownList!$B$47,CntyQuery!$A$51:$CE$93,Q$1) -> 0 | R10: =VLOOKUP(DropDownList!$B$47,CntyQuery!$A$51:$CE$93,R$1) -> 1 | S10: =VLOOKUP(DropDownList!$B$47,CntyQuery!$A$51:$CE$93,S$1) -> 189 | T10: =VLOOKUP(DropDownList!$B$47,CntyQuery!$A$51:$CE$93,T$1) -> 72 | U10: =VLOOKUP(DropDownList!$B$47,CntyQuery!$A$51:$CE$93,U$1) -> 124 | V10: =VLOOKUP(DropDownList!$B$47,CntyQuery!$A$51:$CE$93,V$1) -> 149 | W10: =VLOOKUP(DropDownList!$B$47,CntyQuery!$A$51:$CE$93,W$1) -> 74 | X10: =VLOOKUP(DropDownList!$B$47,CntyQuery!$A$51:$CE$93,X$1) -> 80 | Y10: =VLOOKUP(DropDownList!$B$47,CntyQuery!$A$51:$CE$93,Y$1) -> 57 | Z10: =VLOOKUP(DropDownList!$B$47,CntyQuery!$A$51:$CE$93,Z$1) -> 31 | AA10: =VLOOKUP(DropDownList!$B$47,CntyQuery!$A$51:$CE$93,AA$1) -> 776 | AB10: =VLOOKUP(DropDownList!$B$47,CntyQuery!$A$51:$CE$93,AB$1) -> 693 | AC10: =VLOOKUP(DropDownList!$B$47,CntyQuery!$A$51:$CE$93,AC$1) -> 0 | AD10: =VLOOKUP(DropDownList!$B$47,CntyQuery!$A$51:$CE$93,AD$1) -> 2.722807018 | AE10: =VLOOKUP(DropDownList!$B$47,CntyQuery!$A$51:$CE$93,AE$1) -> 3.164383562 | AF10: =VLOOKUP(DropDownList!$B$47,CntyQuery!$A$51:$CE$93,AF$1) -> 53 | AG10: =VLOOKUP(DropDownList!$B$47,CntyQuery!$A$51:$CE$93,AG$1) -> 189 | AH10: =VLOOKUP(DropDownList!$B$47,CntyQuery!$A$51:$CE$93,AH$1) -> 30 | AI10: =VLOOKUP(DropDownList!$B$47,CntyQuery!$A$51:$CE$93,AI$1) -> 13 | AJ10: =VLOOKUP(DropDownList!$B$47,CntyQuery!$A$51:$CE$93,AJ$1) -> 507 | AK10: =VLOOKUP(DropDownList!$B$47,CntyQuery!$A$51:$CE$93,AK$1) -> 285 | AL10: =VLOOKUP(DropDownList!$B$47,CntyQuery!$A$51:$CE$93,AL$1) -> 222 | AM10: =VLOOKUP(DropDownList!$B$47,CntyQuery!$A$51:$CE$93,AM$1) -> 246 | AN10: =VLOOKUP(DropDownList!$B$47,CntyQuery!$A$51:$CE$93,AN$1) -> 39 | AO10: =VLOOKUP(DropDownList!$B$47,CntyQuery!$A$51:$CE$93,AO$1) -> 1 | AP10: =VLOOKUP(DropDownList!$B$47,CntyQuery!$A$51:$CE$93,AP$1) -> 3 | AQ10: =VLOOKUP(DropDownList!$B$47,CntyQuery!$A$51:$CE$93,AQ$1) -> 194 | AR10: =VLOOKUP(DropDownList!$B$47,CntyQuery!$A$51:$CE$93,AR$1) -> 4 | AS10: =VLOOKUP(DropDownList!$B$47,CntyQuery!$A$51:$CE$93,AS$1) -> 2 | AT10: =VLOOKUP(DropDownList!$B$47,CntyQuery!$A$51:$CE$93,AT$1) -> 2 | AU10: =VLOOKUP(DropDownList!$B$47,CntyQuery!$A$51:$CE$93,AU$1) -> 1 | AV10: =VLOOKUP(DropDownList!$B$47,CntyQuery!$A$51:$CE$93,AV$1) -> 1 | AW10: =VLOOKUP(DropDownList!$B$47,CntyQuery!$A$51:$CE$93,AW$1) -> 1 | AX10: =VLOOKUP(DropDownList!$B$47,CntyQuery!$A$51:$CE$93,AX$1) -> 6 | AY10: =VLOOKUP(DropDownList!$B$47,CntyQuery!$A$51:$CE$93,AY$1) -> 0 | AZ10: =VLOOKUP(DropDownList!$B$47,CntyQuery!$A$51:$CE$93,AZ$1) -> 7 | BA10: =VLOOKUP(DropDownList!$B$47,CntyQuery!$A$51:$CE$93,BA$1) -> 20 | BB10: =VLOOKUP(DropDownList!$B$47,CntyQuery!$A$51:$CE$93,BB$1) -> 36 | BC10: =VLOOKUP(DropDownList!$B$47,CntyQuery!$A$51:$CE$93,BC$1) -> 19 | BD10: =VLOOKUP(DropDownList!$B$47,CntyQuery!$A$51:$CE$93,BD$1) -> 7 | BE10: =VLOOKUP(DropDownList!$B$47,CntyQuery!$A$51:$CE$93,BE$1) -> 6 | BF10: =VLOOKUP(DropDownList!$B$47,CntyQuery!$A$51:$CE$93,BF$1) -> 1 | BG10: =VLOOKUP(DropDownList!$B$47,CntyQuery!$A$51:$CE$93,BG$1) -> 1 | BH10: =VLOOKUP(DropDownList!$B$47,CntyQuery!$A$51:$CE$93,BH$1) -> 1 | BI10: =VLOOKUP(DropDownList!$B$47,CntyQuery!$A$51:$CE$93,BI$1) -> 0 | BJ10: =VLOOKUP(DropDownList!$B$47,CntyQuery!$A$51:$CE$93,BJ$1) -> 0 | BK10: =VLOOKUP(DropDownList!$B$47,CntyQuery!$A$51:$CE$93,BK$1) -> 1 | BL10: =VLOOKUP(DropDownList!$B$47,CntyQuery!$A$51:$CE$93,BL$1) -> 84700 | BM10: =VLOOKUP(DropDownList!$B$47,CntyQuery!$A$51:$CE$93,BM$1) -> 448 | BN10: =VLOOKUP(DropDownList!$B$47,CntyQuery!$A$51:$CE$93,BN$1) -> 10 | BO10: =VLOOKUP(DropDownList!$B$47,CntyQuery!$A$51:$CE$93,BO$1) -> 49 | BP10: =VLOOKUP(DropDownList!$B$47,CntyQuery!$A$51:$CE$93,BP$1) -> 222 | BQ10: =VLOOKUP(DropDownList!$B$47,CntyQuery!$A$51:$CE$93,BQ$1) -> 5 | BR10: =VLOOKUP(DropDownList!$B$47,CntyQuery!$A$51:$CE$93,BR$1) -> 19 | BS10: =VLOOKUP(DropDownList!$B$47,CntyQuery!$A$51:$CE$93,BS$1) -> 30 | BT10: =VLOOKUP(DropDownList!$B$47,CntyQuery!$A$51:$CE$93,BT$1) -> 5 | BU10: =VLOOKUP(DropDownList!$B$47,CntyQuery!$A$51:$CE$93,BU$1) -> 4 | BV10: =VLOOKUP(DropDownList!$B$47,CntyQuery!$A$51:$CE$93,BV$1) -> 448 | BW10: =VLOOKUP(DropDownList!$B$47,CntyQuery!$A$51:$CE$93,BW$1) -> 3 | BX10: =VLOOKUP(DropDownList!$B$47,CntyQuery!$A$51:$CE$93,BX$1) -> 7 | BY10: =VLOOKUP(DropDownList!$B$47,CntyQuery!$A$51:$CE$93,BY$1) -> 0 | BZ10: =VLOOKUP(DropDownList!$B$47,CntyQuery!$A$51:$CE$93,BZ$1) -> 0 | CA10: =VLOOKUP(DropDownList!$B$47,CntyQuery!$A$51:$CE$93,CA$1) -> 0 | CB10: =VLOOKUP(DropDownList!$B$47,CntyQuery!$A$51:$CE$93,CB$1) -> 0 | CC10: =VLOOKUP(DropDownList!$B$47,CntyQuery!$A$51:$CE$93,CC$1) -> 0 | CD10: =VLOOKUP(DropDownList!$B$47,CntyQuery!$A$51:$CE$93,CD$1) -> 38 | CE10: =VLOOKUP(DropDownList!$B$47,CntyQuery!$A$51:$CE$93,CE$1) -> 11
A13: Census 1990 Data - Query Name: TownSTF3Qry1
A14: NAME | B14: FIPS | C14: COUSUBFP | D14: LandAcres | E14: WaterAcres | F14: HousingUnits90Cen | G14: P01Persons90Cen | H14: P02Families90Cen | I14: P03Households90cen | J14: H25HU<5yrs90cen | K14: H25HU5to20yrs90cen | L14: H25HU20to50yrs90cen | M14: H25HU>50yrs90cen | N14: H31Units0Bedroom90cen | O14: H31Units1Bedroom90cen | P14: H31Units2Bedroom90cen | Q14: H31Units3Bedroom90cen | R14: H31Units4Bedroom90cen | S14: H31Units5+Bedroom90cen | T14: P80HI<5K | U14: P80HI5Kto10K | V14: P80HI10Kto15K | W14: P80HI15Kto25K | X14: P80HI25Kto35K | Y14: P80HI35Kto50K | Z14: P80HI50Kto75K | AA14: P80HI75Kto100K | AB14: P80HI>100K | AC14: P80AMedHI | AD14: P86HH<25HI<5K | AE14: P86HH<25HI5Kto10K | AF14: P86HH<25HI10Kto15K | AG14: P86HH<25HI15Kto25K | AH14: P86HH<25HI25Kto35K | AI14: P86HH<25HI35Kto50K | AJ14: P86HH<25HI50Kto75K | AK14: P86HH<25HI75Kto100K | AL14: P86HH<25HI>100K | AM14: P86HH25to34HI<5K | AN14: P86HH25to34HI5Kto10K | AO14: P86HH25to34HI10Kto15K | AP14: P86HH25to34HI15Kto25K | AQ14: P86HH25to34HI25Kto35K | AR14: P86HH25to34HI35Kto50K | AS14: P86HH25to34HI50Kto75K | AT14: P86HH25to34HI75Kto100K | AU14: P86HH25to34HI>100K | AV14: P86HH35to44HI<5K | AW14: P86HH35to44HI5Kto10K | AX14: P86HH35to44HI10Kto15K | AY14: P86HH35to44HI15Kto25K | AZ14: P86HH35to44HI25Kto35K | BA14: P86HH35to44HI35Kto50K | BB14: P86HH35to44HI50Kto75K | BC14: P86HH35to44HI75Kto100K | BD14: P86HH35to44HI>100K | BE14: P86HH45to54HI<5K | BF14: P86HH45to54HI5Kto10K | BG14: P86HH45to54HI10Kto15K | BH14: P86HH45to54HI15Kto25K | BI14: P86HH45to54HI25Kto35K | BJ14: P86HH45to54HI35Kto50K | BK14: P86HH45to54HI50Kto75K | BL14: P86HH45to54HI75Kto100K | BM14: P86HH45to54HI>100K | BN14: P86HH55to64HI<5K | BO14: P86HH55to64HI5Kto10K | BP14: P86HH55to64HI10Kto15K | BQ14: P86HH55to64HI15Kto25K | BR14: P86HH55to64HI25Kto35K | BS14: P86HH55to64HI35Kto50K | BT14: P86HH55to64HI50Kto75K | BU14: P86HH55to64HI75Kto100K | BV14: P86HH55to64HI>100K | BW14: P86HH65to74HI<5K | BX14: P86HH65to74HI5Kto10K | BY14: P86HH65to74HI10Kto15K | BZ14: P86HH65to74HI15Kto25K | CA14: P86HH65to74HI25Kto35K | CB14: P86HH65to74HI35Kto50K | CC14: P86HH65to74HI50Kto75K | CD14: P86HH65to74HI75Kto100K | CE14: P86HH65to74HI>100K | CF14: P86HH>75HI<5K | CG14: P86HH>75HI5Kto10K | CH14: P86HH>75HI10Kto15K | CI14: P86HH>75HI15Kto25K | CJ14: P86HH>75HI25Kto35K | CK14: P86HH>75HI35Kto50K | CL14: P86HH>75HI50Kto75K | CM14: P86HH>75HI75Kto100K | CN14: P86HH>75HI>100K | CO14: P54SchlEnrlPrePrim | CP14: P54SchlEnrlElemThrHS | CQ14: P54SchlEnrlCollege | CR14: P54NotEnrlInSch | CS14: P57Pop25andOver | CT14: P57LessThan9thGrade | CU14: P579thto12thNoDip | CV14: P57HSGrad | CW14: P57SomeCollege | CX14: P57AssocDeg | CY14: P57BachelDeg | CZ14: P57GradorProfDeg | DA14: P57HSGradorHigher | DB14: P57CollGradorHigher | DC14: P42NativePop | DD14: P42ForeignBornPop | DE14: P42BornStateOfRes | DF14: P37NativePop2 | DG14: P37ForeignBornPop2 | DH14: P49DroveAlone | DI14: P49CarPooled | DJ14: P49PublicTranspt | DK14: P49Walked | DL14: P49OtherMeans | DM14: P49WorkedAtHome | DN14: P80HHInc<10K | DO14: P80HHInc10to15K | DP14: P80HHInc15to25K | DQ14: P80HHInc25to35K | DR14: P80HHInc35to50K | DS14: P80HHInc50to75K | DT14: P80HHInc75to100K | DU14: P80HHInc100to150K | DV14: P80HHInc>150K | DW14: H25YearStBlt89to90 | DX14: H25YearStBlt85to88 | DY14: H25YearStBlt80to84 | DZ14: H25YearStBlt70to79 | EA14: H25YearStBlt60to69 | EB14: H25YearStBlt50to59 | EC14: H25YearStBlt40to49 | ED14: H25YearStBlt39earlier | EE14: P107FamInc<10K | EF14: P107FamInc10to15K | EG14: P107FamInc15to25K | EH14: P107FamInc25to35K | EI14: P107FamInc35to50K | EJ14: P107FamInc50to75K | EK14: P107FamInc75to100K | EL14: P107FamInc100to150K | EM14: P107FamInc>150K | EN14: P107AMedFamInc | EO14: P110NonFamInc<10K | EP14: P110NonFamInc10to15K | EQ14: P110NonFamInc15to25K | ER14: P110NonFamInc25to35K | ES14: P110NonFamInc35to50K | ET14: P110NonFamInc50to75K | EU14: P110NonFamInc75to100K | EV14: P110NonFamInc100to150K | EW14: P110NonFamInc>150K | EX14: P110AMedNonFamInc | EY14: H16HU1Room | EZ14: H16HU2Room | FA14: H16HU3Room | FB14: H16HU4Room | FC14: H16HU5Room | FD14: H16HU6Room | FE14: H16HU7Room | FF14: H16HU8Room | FG14: H16HU9+Room | FH14: H43GrossRnt<100 | FI14: H43GrossRnt100to149 | FJ14: H43GrossRnt150to199 | FK14: H43GrossRnt200to249 | FL14: H43GrossRnt250to299 | FM14: H43GrossRnt300to349 | FN14: H43GrossRnt350to399 | FO14: H43GrossRnt400to449 | FP14: H43GrossRnt450to499 | FQ14: H43GrossRnt500to549 | FR14: H43GrossRnt550to599 | FS14: H43GrossRnt600to649 | FT14: H43GrossRnt650to699 | FU14: H43GrossRnt700to749 | FV14: H43GrossRnt750to999 | FW14: H43GrossRnt1000Plus | FX14: H43NoCashRent | FY14: H43MedGrossRent | FZ14: H51GrossRnt<20PctHHInc | GA14: H51GrossRnt20to24PctHHInc | GB14: H51GrossRnt25to29PctHHInc | GC14: H51GrossRnt30to34PctHHInc | GD14: H51GrossRnt35PctOrMoreHHInc | GE14: H51GrossRntAsPctHHIncNotComp | GF14: H52HUwMtgMoOwnCst<200 | GG14: H52HUwMtgMoOwnCst200to299 | GH14: H52HUwMtgMoOwnCst300to399 | GI14: H52HUwMtgMoOwnCst400to499 | GJ14: H52HUwMtgMoOwnCst500to599 | GK14: H52HUwMtgMoOwnCst600to699 | GL14: H52HUwMtgMoOwnCst700to799 | GM14: H52HUwMtgMoOwnCst800to899 | GN14: H52HUwMtgMoOwnCst900to999 | GO14: H52HUwMtgMoOwnCst1000to1249 | GP14: H52HUwMtgMoOwnCst1250to1499 | GQ14: H52HUwMtgMoOwnCst1500to1999 | GR14: H52HUwMtgMoOwnCst2000More | GS14: H52HUwNoMtgMoOwnCst<100 | GT14: H52HUwNoMtgMoOwnCst100to149 | GU14: H52HUwNoMtgMoOwnCst150to199 | GV14: H52HUwNoMtgMoOwnCst200to249 | GW14: H52HUwNoMtgMoOwnCst250to299 | GX14: H52HUwNoMtgMoOwnCst300to349 | GY14: H52HUwNoMtgMoOwnCst350to399 | GZ14: H52HUwNoMtgMoOwnCst400More | HA14: H52AMedMoOwnCstWMortg | HB14: H52AMedMoOwnCstWNoMortg | HC14: H58HUwMtgMOC<20pHHInc | HD14: H58HUwMtgMOC20to24pHHInc | HE14: H58HUwMtgMOC25to29pHHInc | HF14: H58HUwMtgMOC30to34pHHInc | HG14: H58wMtgMOC>35pHHInc | HH14: H58HUwMtgMOCNotComp | HI14: H58HUwNoMtgMOC<20pHHInc | HJ14: H58HUwNoMtgMOC20to24pHHInc | HK14: H58HUwNoMtgMOC25to29pHHInc | HL14: H58HUwNoMtgMOC30to34pHHInc | HM14: H58wNoMtgMOC>35pHHInc | HN14: H58HUwNoMtgMOCNotComp | HO14: H61OOHUVal<15k | HP14: H61OOHUVal15to19k | HQ14: H61OOHUVal20to24k | HR14: H61OOHUVal25to29k | HS14: H61OOHUVal30to34k | HT14: H61OOHUVal35to39k | HU14: H61OOHUVal40to44k | HV14: H61OOHUVal45to49k | HW14: H61OOHUVal50to59k | HX14: H61OOHUVal60to74k | HY14: H61OOHUVal75to99k | HZ14: H61OOHUVal100to124k | IA14: H61OOHUVal125to149k | IB14: H61OOHUVal150to174k | IC14: H61OOHUVal175to199k | ID14: H61OOHUVal200to249k | IE14: H61OOHUVal250to299k | IF14: H61OOHUVal300to399k | IG14: H61OOHUVal400to499k | IH14: H61OOHUVal500kOrMore | II14: H61aOOHUMedVal
A18: Other Demo Data - Query Name: QryAllTowns-ACSDemographicSheet
A19: TOWN_NAME | B19: FIPS | C19: TOWNCNTY | D19: COUSUB | E19: POP80 | F19: POP90CDCEN | G19: POP2000CEN | H19: POP2010CEN | I19: POP2020-Proj | J19: POP2025-Proj | K19: POP2030-Proj | L19: SF80 | M19: MF80 | N19: MH80 | O19: SF81 | P19: MF81 | Q19: MH81 | R19: SF82 | S19: MF82 | T19: MH82 | U19: SF83 | V19: MF83 | W19: MH83 | X19: SF84_OSP | Y19: MF84_OSP | Z19: MH84_OSP | AA19: SF85_OSP | AB19: MF85_OSP | AC19: MH85_OSP | AD19: SF86_OSP | AE19: MF86_OSP | AF19: MH86_OSP | AG19: SF87_OSP | AH19: MF87_OSP | AI19: MH87_OSP | AJ19: SF88_OSP | AK19: MF88_OSP | AL19: MH88_OSP | AM19: SF89_OSP | AN19: MF89_OSP | AO19: MH89_OSP | AP19: SF90_OSP | AQ19: MF90_OSP | AR19: MH90_OSP | AS19: SF91_OSP | AT19: MF91_OSP | AU19: MH91_OSP | AV19: SF92_OSP | AW19: MF92_OSP | AX19: MH92_OSP | AY19: SF93_OSP | AZ19: MF93_OSP | BA19: MH93_OSP | BB19: SF94_OSP | BC19: MF94_OSP | BD19: MH94_OSP | BE19: SF95_OSP | BF19: MF95_OSP | BG19: MH95_OSP | BH19: SF96_OSP | BI19: MF96_OSP | BJ19: MH96_OSP | BK19: SF97_OSP | BL19: MF97_OSP | BM19: MH97_OSP | BN19: SF98_OSP | BO19: MF98_OSP | BP19: MH98_OSP | BQ19: SF99_OSP | BR19: MF99_OSP | BS19: MH99_OSP | BT19: SF00_OSP | BU19: MF00_OSP | BV19: MH00_OSP | BW19: SF01_OSP | BX19: MF01_OSP | BY19: MH01_OSP | BZ19: SF02_OSP | CA19: MF02_OSP | CB19: MH02_OSP | CC19: SF03_OSP | CD19: MF03_OSP | CE19: MH03_OSP | CF19: SF04_OSP | CG19: MF04_OSP | CH19: MH04_OSP | CI19: SF05_OSP | CJ19: MF05_OSP | CK19: MH05_OSP | CL19: SF06_OSP | CM19: MF06_OSP | CN19: MH06_OSP | CO19: SF07_OSP | CP19: MF07_OSP | CQ19: MH07_OSP | CR19: SF08_OSP | CS19: MF08_OSP | CT19: MH08_OSP | CU19: SF09_OSP | CV19: MF09_OSP | CW19: MH09_OSP | CX19: SF10_OSP | CY19: MF10_OSP | CZ19: MH10_OSP | DA19: SF11_OSP | DB19: MF11_OSP | DC19: MH11_OSP | DD19: SF12_OSP | DE19: MF12_OSP | DF19: MH12_OSP | DG19: SF13_OSP | DH19: MF13_OSP | DI19: MH13_OSP | DJ19: SF14_OSP | DK19: MF14_OSP | DL19: MH14_OSP | DM19: SF15_OSP | DN19: MF15_OSP | DO19: MH15_OSP | DP19: SF16_OSP | DQ19: MF16_OSP | DR19: MH16_OSP | DS19: SF17_OSP | DT19: MF17_OSP | DU19: MH17_OSP | DV19: SF18_OSP | DW19: MF18_OSP | DX19: MH18_OSP | DY19: SF19_OSP | DZ19: MF19_OSP | EA19: MH19_OSP | EB19: COMMENTS
A20: =VLOOKUP(DropDownList!$B$47,CntyQuery!$A$117:$FZ$160,A$1) -> Acworth | B20: =VLOOKUP(DropDownList!$B$47,CntyQuery!$A$117:$FZ$160,B$1) -> 19005 | C20: =VLOOKUP(DropDownList!$B$47,CntyQuery!$A$117:$FZ$160,C$1) -> 1001 | D20: =VLOOKUP(DropDownList!$B$47,CntyQuery!$A$117:$FZ$160,D$1) -> 00260 | E20: =VLOOKUP(DropDownList!$B$47,CntyQuery!$A$117:$FZ$160,E$1) -> 590 | F20: =VLOOKUP(DropDownList!$B$47,CntyQuery!$A$117:$FZ$160,F$1) -> 776 | G20: =VLOOKUP(DropDownList!$B$47,CntyQuery!$A$117:$FZ$160,G$1) -> 836 | H20: =VLOOKUP(DropDownList!$B$47,CntyQuery!$A$117:$FZ$160,H$1) -> 891 | I20: =VLOOKUP(DropDownList!$B$47,CntyQuery!$A$117:$FZ$160,I$1) -> 937 | J20: =VLOOKUP(DropDownList!$B$47,CntyQuery!$A$117:$FZ$160,J$1) -> 960 | K20: =VLOOKUP(DropDownList!$B$47,CntyQuery!$A$117:$FZ$160,K$1) -> 989 | L20: =VLOOKUP(DropDownList!$B$47,CntyQuery!$A$117:$FZ$160,L$1) -> 6 | M20: =VLOOKUP(DropDownList!$B$47,CntyQuery!$A$117:$FZ$160,M$1) -> 0 | N20: =VLOOKUP(DropDownList!$B$47,CntyQuery!$A$117:$FZ$160,N$1) -> 0 | O20: =VLOOKUP(DropDownList!$B$47,CntyQuery!$A$117:$FZ$160,O$1) -> 4 | P20: =VLOOKUP(DropDownList!$B$47,CntyQuery!$A$117:$FZ$160,P$1) -> 0 | Q20: =VLOOKUP(DropDownList!$B$47,CntyQuery!$A$117:$FZ$160,Q$1) -> 0 | R20: =VLOOKUP(DropDownList!$B$47,CntyQuery!$A$117:$FZ$160,R$1) -> 3 | S20: =VLOOKUP(DropDownList!$B$47,CntyQuery!$A$117:$FZ$160,S$1) -> 0 | T20: =VLOOKUP(DropDownList!$B$47,CntyQuery!$A$117:$FZ$160,T$1) -> 0 | U20: =VLOOKUP(DropDownList!$B$47,CntyQuery!$A$117:$FZ$160,U$1) -> 6 | V20: =VLOOKUP(DropDownList!$B$47,CntyQuery!$A$117:$FZ$160,V$1) -> 0 | W20: =VLOOKUP(DropDownList!$B$47,CntyQuery!$A$117:$FZ$160,W$1) -> 1 | X20: =VLOOKUP(DropDownList!$B$47,CntyQuery!$A$117:$FZ$160,X$1) -> 3 | Y20: =VLOOKUP(DropDownList!$B$47,CntyQuery!$A$117:$FZ$160,Y$1) -> 0 | Z20: =VLOOKUP(DropDownList!$B$47,CntyQuery!$A$117:$FZ$160,Z$1) -> 0 | AA20: =VLOOKUP(DropDownList!$B$47,CntyQuery!$A$117:$FZ$160,AA$1) -> 3 | AB20: =VLOOKUP(DropDownList!$B$47,CntyQuery!$A$117:$FZ$160,AB$1) -> 0 | AC20: =VLOOKUP(DropDownList!$B$47,CntyQuery!$A$117:$FZ$160,AC$1) -> 1 | AD20: =VLOOKUP(DropDownList!$B$47,CntyQuery!$A$117:$FZ$160,AD$1) -> 2 | AE20: =VLOOKUP(DropDownList!$B$47,CntyQuery!$A$117:$FZ$160,AE$1) -> 0 | AF20: =VLOOKUP(DropDownList!$B$47,CntyQuery!$A$117:$FZ$160,AF$1) -> 1 | AG20: =VLOOKUP(DropDownList!$B$47,CntyQuery!$A$117:$FZ$160,AG$1) -> 4 | AH20: =VLOOKUP(DropDownList!$B$47,CntyQuery!$A$117:$FZ$160,AH$1) -> 0 | AI20: =VLOOKUP(DropDownList!$B$47,CntyQuery!$A$117:$FZ$160,AI$1) -> 1 | AJ20: =VLOOKUP(DropDownList!$B$47,CntyQuery!$A$117:$FZ$160,AJ$1) -> 1 | AK20: =VLOOKUP(DropDownList!$B$47,CntyQuery!$A$117:$FZ$160,AK$1) -> 0 | AL20: =VLOOKUP(DropDownList!$B$47,CntyQuery!$A$117:$FZ$160,AL$1) -> 1 | AM20: =VLOOKUP(DropDownList!$B$47,CntyQuery!$A$117:$FZ$160,AM$1) -> 3 | AN20: =VLOOKUP(DropDownList!$B$47,CntyQuery!$A$117:$FZ$160,AN$1) -> 0 | AO20: =VLOOKUP(DropDownList!$B$47,CntyQuery!$A$117:$FZ$160,AO$1) -> 5 | AP20: =VLOOKUP(DropDownList!$B$47,CntyQuery!$A$117:$FZ$160,AP$1) -> 0 | AQ20: =VLOOKUP(DropDownList!$B$47,CntyQuery!$A$117:$FZ$160,AQ$1) -> 0 | AR20: =VLOOKUP(DropDownList!$B$47,CntyQuery!$A$117:$FZ$160,AR$1) -> 1 | AS20: =VLOOKUP(DropDownList!$B$47,CntyQuery!$A$117:$FZ$160,AS$1) -> 1 | AT20: =VLOOKUP(DropDownList!$B$47,CntyQuery!$A$117:$FZ$160,AT$1) -> 0 | AU20: =VLOOKUP(DropDownList!$B$47,CntyQuery!$A$117:$FZ$160,AU$1) -> 1 | AV20: =VLOOKUP(DropDownList!$B$47,CntyQuery!$A$117:$FZ$160,AV$1) -> 0 | AW20: =VLOOKUP(DropDownList!$B$47,CntyQuery!$A$117:$FZ$160,AW$1) -> 0 | AX20: =VLOOKUP(DropDownList!$B$47,CntyQuery!$A$117:$FZ$160,AX$1) -> 1 | AY20: =VLOOKUP(DropDownList!$B$47,CntyQuery!$A$117:$FZ$160,AY$1) -> 1 | AZ20: =VLOOKUP(DropDownList!$B$47,CntyQuery!$A$117:$FZ$160,AZ$1) -> 0 | BA20: =VLOOKUP(DropDownList!$B$47,CntyQuery!$A$117:$FZ$160,BA$1) -> 0 | BB20: =VLOOKUP(DropDownList!$B$47,CntyQuery!$A$117:$FZ$160,BB$1) -> 2 | BC20: =VLOOKUP(DropDownList!$B$47,CntyQuery!$A$117:$FZ$160,BC$1) -> 1 | BD20: =VLOOKUP(DropDownList!$B$47,CntyQuery!$A$117:$FZ$160,BD$1) -> 1 | BE20: =VLOOKUP(DropDownList!$B$47,CntyQuery!$A$117:$FZ$160,BE$1) -> 2 | BF20: =VLOOKUP(DropDownList!$B$47,CntyQuery!$A$117:$FZ$160,BF$1) -> 0 | BG20: =VLOOKUP(DropDownList!$B$47,CntyQuery!$A$117:$FZ$160,BG$1) -> 0 | BH20: =VLOOKUP(DropDownList!$B$47,CntyQuery!$A$117:$FZ$160,BH$1) -> 2 | BI20: =VLOOKUP(DropDownList!$B$47,CntyQuery!$A$117:$FZ$160,BI$1) -> 0 | BJ20: =VLOOKUP(DropDownList!$B$47,CntyQuery!$A$117:$FZ$160,BJ$1) -> 2 | BK20: =VLOOKUP(DropDownList!$B$47,CntyQuery!$A$117:$FZ$160,BK$1) -> 3 | BL20: =VLOOKUP(DropDownList!$B$47,CntyQuery!$A$117:$FZ$160,BL$1) -> 0 | BM20: =VLOOKUP(DropDownList!$B$47,CntyQuery!$A$117:$FZ$160,BM$1) -> 0 | BN20: =VLOOKUP(DropDownList!$B$47,CntyQuery!$A$117:$FZ$160,BN$1) -> 4 | BO20: =VLOOKUP(DropDownList!$B$47,CntyQuery!$A$117:$FZ$160,BO$1) -> 0 | BP20: =VLOOKUP(DropDownList!$B$47,CntyQuery!$A$117:$FZ$160,BP$1) -> 2 | BQ20: =VLOOKUP(DropDownList!$B$47,CntyQuery!$A$117:$FZ$160,BQ$1) -> 0 | BR20: =VLOOKUP(DropDownList!$B$47,CntyQuery!$A$117:$FZ$160,BR$1) -> 0 | BS20: =VLOOKUP(DropDownList!$B$47,CntyQuery!$A$117:$FZ$160,BS$1) -> 1 | BT20: =VLOOKUP(DropDownList!$B$47,CntyQuery!$A$117:$FZ$160,BT$1) -> 0 | BU20: =VLOOKUP(DropDownList!$B$47,CntyQuery!$A$117:$FZ$160,BU$1) -> 0 | BV20: =VLOOKUP(DropDownList!$B$47,CntyQuery!$A$117:$FZ$160,BV$1) -> 1 | BW20: =VLOOKUP(DropDownList!$B$47,CntyQuery!$A$117:$FZ$160,BW$1) -> 2 | BX20: =VLOOKUP(DropDownList!$B$47,CntyQuery!$A$117:$FZ$160,BX$1) -> 0 | BY20: =VLOOKUP(DropDownList!$B$47,CntyQuery!$A$117:$FZ$160,BY$1) -> 2 | BZ20: =VLOOKUP(DropDownList!$B$47,CntyQuery!$A$117:$FZ$160,BZ$1) -> 6 | CA20: =VLOOKUP(DropDownList!$B$47,CntyQuery!$A$117:$FZ$160,CA$1) -> 0 | CB20: =VLOOKUP(DropDownList!$B$47,CntyQuery!$A$117:$FZ$160,CB$1) -> 0 | CC20: =VLOOKUP(DropDownList!$B$47,CntyQuery!$A$117:$FZ$160,CC$1) -> 11 | CD20: =VLOOKUP(DropDownList!$B$47,CntyQuery!$A$117:$FZ$160,CD$1) -> 0 | CE20: =VLOOKUP(DropDownList!$B$47,CntyQuery!$A$117:$FZ$160,CE$1) -> 2 | CF20: =VLOOKUP(DropDownList!$B$47,CntyQuery!$A$117:$FZ$160,CF$1) -> 11 | CG20: =VLOOKUP(DropDownList!$B$47,CntyQuery!$A$117:$FZ$160,CG$1) -> 0 | CH20: =VLOOKUP(DropDownList!$B$47,CntyQuery!$A$117:$FZ$160,CH$1) -> 1 | CI20: =VLOOKUP(DropDownList!$B$47,CntyQuery!$A$117:$FZ$160,CI$1) -> 10 | CJ20: =VLOOKUP(DropDownList!$B$47,CntyQuery!$A$117:$FZ$160,CJ$1) -> 0 | CK20: =VLOOKUP(DropDownList!$B$47,CntyQuery!$A$117:$FZ$160,CK$1) -> 0 | CL20: =VLOOKUP(DropDownList!$B$47,CntyQuery!$A$117:$FZ$160,CL$1) -> 10 | CM20: =VLOOKUP(DropDownList!$B$47,CntyQuery!$A$117:$FZ$160,CM$1) -> 0 | CN20: =VLOOKUP(DropDownList!$B$47,CntyQuery!$A$117:$FZ$160,CN$1) -> 0 | CO20: =VLOOKUP(DropDownList!$B$47,CntyQuery!$A$117:$FZ$160,CO$1) -> 9 | CP20: =VLOOKUP(DropDownList!$B$47,CntyQuery!$A$117:$FZ$160,CP$1) -> 0 | CQ20: =VLOOKUP(DropDownList!$B$47,CntyQuery!$A$117:$FZ$160,CQ$1) -> 0 | CR20: =VLOOKUP(DropDownList!$B$47,CntyQuery!$A$117:$FZ$160,CR$1) -> 3 | CS20: =VLOOKUP(DropDownList!$B$47,CntyQuery!$A$117:$FZ$160,CS$1) -> 0 | CT20: =VLOOKUP(DropDownList!$B$47,CntyQuery!$A$117:$FZ$160,CT$1) -> 2 | CU20: =VLOOKUP(DropDownList!$B$47,CntyQuery!$A$117:$FZ$160,CU$1) -> 4 | CV20: =VLOOKUP(DropDownList!$B$47,CntyQuery!$A$117:$FZ$160,CV$1) -> 0 | CW20: =VLOOKUP(DropDownList!$B$47,CntyQuery!$A$117:$FZ$160,CW$1) -> 0 | CX20: =VLOOKUP(DropDownList!$B$47,CntyQuery!$A$117:$FZ$160,CX$1) -> 5 | CY20: =VLOOKUP(DropDownList!$B$47,CntyQuery!$A$117:$FZ$160,CY$1) -> 0 | CZ20: =VLOOKUP(DropDownList!$B$47,CntyQuery!$A$117:$FZ$160,CZ$1) -> 0 | DA20: =VLOOKUP(DropDownList!$B$47,CntyQuery!$A$117:$FZ$160,DA$1) -> 4 | DB20: =VLOOKUP(DropDownList!$B$47,CntyQuery!$A$117:$FZ$160,DB$1) -> 0 | DC20: =VLOOKUP(DropDownList!$B$47,CntyQuery!$A$117:$FZ$160,DC$1) -> 0 | DD20: =VLOOKUP(DropDownList!$B$47,CntyQuery!$A$117:$FZ$160,DD$1) -> 0 | DE20: =VLOOKUP(DropDownList!$B$47,CntyQuery!$A$117:$FZ$160,DE$1) -> 0 | DF20: =VLOOKUP(DropDownList!$B$47,CntyQuery!$A$117:$FZ$160,DF$1) -> 0 | DG20: =VLOOKUP(DropDownList!$B$47,CntyQuery!$A$117:$FZ$160,DG$1) -> 1 | DH20: =VLOOKUP(DropDownList!$B$47,CntyQuery!$A$117:$FZ$160,DH$1) -> 0 | DI20: =VLOOKUP(DropDownList!$B$47,CntyQuery!$A$117:$FZ$160,DI$1) -> 2 | DJ20: =VLOOKUP(DropDownList!$B$47,CntyQuery!$A$117:$FZ$160,DJ$1) -> 0 | DK20: =VLOOKUP(DropDownList!$B$47,CntyQuery!$A$117:$FZ$160,DK$1) -> 0 | DL20: =VLOOKUP(DropDownList!$B$47,CntyQuery!$A$117:$FZ$160,DL$1) -> 0 | DM20: =VLOOKUP(DropDownList!$B$47,CntyQuery!$A$117:$FZ$160,DM$1) -> 1 | DN20: =VLOOKUP(DropDownList!$B$47,CntyQuery!$A$117:$FZ$160,DN$1) -> 0 | DO20: =VLOOKUP(DropDownList!$B$47,CntyQuery!$A$117:$FZ$160,DO$1) -> 0 | DP20: =VLOOKUP(DropDownList!$B$47,CntyQuery!$A$117:$FZ$160,DP$1) -> 0 | DQ20: =VLOOKUP(DropDownList!$B$47,CntyQuery!$A$117:$FZ$160,DQ$1) -> 0 | DR20: =VLOOKUP(DropDownList!$B$47,CntyQuery!$A$117:$FZ$160,DR$1) -> 0 | DS20: =VLOOKUP(DropDownList!$B$47,CntyQuery!$A$117:$FZ$160,DS$1) -> 0 | DT20: =VLOOKUP(DropDownList!$B$47,CntyQuery!$A$117:$FZ$160,DT$1) -> 0 | DU20: =VLOOKUP(DropDownList!$B$47,CntyQuery!$A$117:$FZ$160,DU$1) -> 0 | DV20: =VLOOKUP(DropDownList!$B$47,CntyQuery!$A$117:$FZ$160,DV$1) -> 3 | DW20: =VLOOKUP(DropDownList!$B$47,CntyQuery!$A$117:$FZ$160,DW$1) -> 0 | DX20: =VLOOKUP(DropDownList!$B$47,CntyQuery!$A$117:$FZ$160,DX$1) -> 2 | DY20: =VLOOKUP(DropDownList!$B$47,CntyQuery!$A$117:$FZ$160,DY$1) -> 1 | DZ20: =VLOOKUP(DropDownList!$B$47,CntyQuery!$A$117:$FZ$160,DZ$1) -> 0 | EA20: =VLOOKUP(DropDownList!$B$47,CntyQuery!$A$117:$FZ$160,EA$1) -> 0 | EB20: =VLOOKUP(DropDownList!$B$47,CntyQuery!$A$117:$FZ$160,EB$1) -> 
A23: NH Employment Data | B23: Query Name: DPQryEmploymentByCnty
A24: AreaName | B24: COUNTYCODE | C24: TOTP & G2001 | D24: TOT2001 | E24: GOODPRO2001 | F24: SERVICEPROMAN2001 | G24: WAGEP & G2001 | H24: WAGETOT2001 | I24: WAGEGOODPRO2001 | J24: WAGESERVICEPRO2001 | K24: TOTP & G2002 | L24: TOT2002 | M24: GOODPRO2002 | N24: SERVICEPROMAN2002 | O24: WAGEP & G2002 | P24: WAGETOT2002 | Q24: WAGEGOODPRO2002 | R24: WAGESERVICEPRO2002 | S24: TOTP & G2003 | T24: TOT2003 | U24: GOODPRO2003 | V24: SERVICEPROMAN2003 | W24: WAGEP & G2003 | X24: WAGETOT2003 | Y24: WAGEGOODPRO2003 | Z24: WAGESERVICEPRO2003 | AA24: TOTP & G2004 | AB24: TOT2004 | AC24: GOODPRO2004 | AD24: SERVICEPROMAN2004 | AE24: WAGEP & G2004 | AF24: WAGETOT2004 | AG24: WAGEGOODPRO2004 | AH24: WAGESERVICEPRO2004 | AI24: TOTP & G2005 | AJ24: TOT2005 | AK24: GOODPRO2005 | AL24: SERVICEPROMAN2005 | AM24: WAGEP & G2005 | AN24: WAGETOT2005 | AO24: WAGEGOODPRO2005 | AP24: WAGESERVICEPRO2005 | AQ24: TOTP & G2006 | AR24: TOT2006 | AS24: GOODPRO2006 | AT24: SERVICEPROMAN2006 | AU24: WAGEP & G2006 | AV24: WAGETOT2006 | AW24: WAGEGOODPRO2006 | AX24: WAGESERVICEPRO2006 | AY24: TOTP & G2007 | AZ24: TOT2007 | BA24: GOODPRO2007 | BB24: SERVICEPROMAN2007 | BC24: WAGEP & G2007 | BD24: WAGETOT2007 | BE24: WAGEGOODPRO2007 | BF24: WAGESERVICEPRO2007 | BG24: TOTP & G2008 | BH24: TOT2008 | BI24: GOODPRO2008 | BJ24: SERVICEPROMAN2008 | BK24: WAGEP & G2008 | BL24: WAGETOT2008 | BM24: WAGEGOODPRO2008 | BN24: WAGESERVICEPRO2008 | BO24: TOTP & G2009 | BP24: TOT2009 | BQ24: GOODPRO2009 | BR24: SERVICEPROMAN2009 | BS24: WAGEP & G2009 | BT24: WAGETOT2009 | BU24: WAGEGOODPRO2009 | BV24: WAGESERVICEPRO2009 | BW24: TOTP & G2010 | BX24: TOT2010 | BY24: GOODPRO2010 | BZ24: SERVICEPROMAN2010 | CA24: WAGEP & G2010 | CB24: WAGETOT2010 | CC24: WAGEGOODPRO2010 | CD24: WAGESERVICEPRO2010 | CE24: TOTP & G2011 | CF24: TOT2011 | CG24: GOODPRO2011 | CH24: SERVICEPROMAN2011 | CI24: WAGEP & G2011 | CJ24: WAGETOT2011 | CK24: WAGEGOODPRO2011 | CL24: WAGESERVICEPRO2011 | CM24: TOTP & G2012 | CN24: TOT2012 | CO24: GOODPRO2012 | CP24: SERVICEPROMAN2012 | CQ24: WAGEP & G2012 | CR24: WAGETOT2012 | CS24: WAGEGOODPRO2012 | CT24: WAGESERVICEPRO2012 | CU24: TOTP & G2013 | CV24: TOT2013 | CW24: GOODPRO2013 | CX24: SERVICEPROMAN2013 | CY24: WAGEP & G2013 | CZ24: WAGETOT2013 | DA24: WAGEGOODPRO2013 | DB24: WAGESERVICEPRO2013 | DC24: TOTP & G2014 | DD24: TOT2014 | DE24: GOODPRO2014 | DF24: SERVICEPROMAN2014 | DG24: WAGEP & G2014 | DH24: WAGETOT2014 | DI24: WAGEGOODPRO2014 | DJ24: WAGESERVICEPRO2014 | DK24: TOTP & G2015 | DL24: TOT2015 | DM24: GOODPRO2015 | DN24: SERVICEPROMAN2015 | DO24: WAGEP & G2015 | DP24: WAGETOT2015 | DQ24: WAGEGOODPRO2015 | DR24: WAGESERVICEPRO2015 | DS24: TOTP & G2016 | DT24: TOT2016 | DU24: GOODPRO2016 | DV24: SERVICEPROMAN2016 | DW24: WAGEP & G2016 | DX24: WAGETOT2016 | DY24: WAGEGOODPRO2016 | DZ24: WAGESERVICEPRO2016 | EA24: TOTP & G2017 | EB24: TOT2017 | EC24: GOODPRO2017 | ED24: SERVICEPROMAN2017 | EE24: WAGEP & G2017 | EF24: WAGETOT2017 | EG24: WAGEGOODPRO2017 | EH24: WAGESERVICEPRO2017 | EI24: TOTP & G2018 | EJ24: TOT2018 | EK24: GOODPRO2018 | EL24: SERVICEPROMAN2018 | EM24: WAGEP & G2018 | EN24: WAGETOT2018 | EO24: WAGEGOODPRO2018 | EP24: WAGESERVICEPRO2018 | EQ24: TOTP & G2019 | ER24: TOT2019 | ES24: TOTGov2019 | ET24: GOODPRO2019 | EU24: SERVICEPROMAN2019 | EV24: WAGEP & G2019 | EW24: WAGETOT2019 | EX24: WAGEGov2019 | EY24: WAGEGOODPRO2019 | EZ24: WAGESERVICEPRO2019 | FA24: SummaryLevel
A25: =VLOOKUP(DropDownList!$B$47,CntyQuery!$A$171:$FZ$185,A$1) -> Acworth | B25: =VLOOKUP(DropDownList!$B$47,CntyQuery!$A$171:$FZ$185,B$1) -> 10 | C25: =VLOOKUP(DropDownList!$B$47,CntyQuery!$A$171:$FZ$185,C$1) -> 89 | D25: =VLOOKUP(DropDownList!$B$47,CntyQuery!$A$171:$FZ$185,D$1) -> 72 | E25: =VLOOKUP(DropDownList!$B$47,CntyQuery!$A$171:$FZ$185,E$1) -> 64 | F25: =VLOOKUP(DropDownList!$B$47,CntyQuery!$A$171:$FZ$185,F$1) -> 7 | G25: =VLOOKUP(DropDownList!$B$47,CntyQuery!$A$171:$FZ$185,G$1) -> 578.72 | H25: =VLOOKUP(DropDownList!$B$47,CntyQuery!$A$171:$FZ$185,H$1) -> 624 | I25: =VLOOKUP(DropDownList!$B$47,CntyQuery!$A$171:$FZ$185,I$1) -> 551.35 | J25: =VLOOKUP(DropDownList!$B$47,CntyQuery!$A$171:$FZ$185,J$1) -> 1269.44 | K25: =VLOOKUP(DropDownList!$B$47,CntyQuery!$A$171:$FZ$185,K$1) -> 94 | L25: =VLOOKUP(DropDownList!$B$47,CntyQuery!$A$171:$FZ$185,L$1) -> 77 | M25: =VLOOKUP(DropDownList!$B$47,CntyQuery!$A$171:$FZ$185,M$1) -> 70 | N25: =VLOOKUP(DropDownList!$B$47,CntyQuery!$A$171:$FZ$185,N$1) -> 7 | O25: =VLOOKUP(DropDownList!$B$47,CntyQuery!$A$171:$FZ$185,O$1) -> 504.34 | P25: =VLOOKUP(DropDownList!$B$47,CntyQuery!$A$171:$FZ$185,P$1) -> 528.31 | Q25: =VLOOKUP(DropDownList!$B$47,CntyQuery!$A$171:$FZ$185,Q$1) -> 530.92 | R25: =VLOOKUP(DropDownList!$B$47,CntyQuery!$A$171:$FZ$185,R$1) -> 500.18 | S25: =VLOOKUP(DropDownList!$B$47,CntyQuery!$A$171:$FZ$185,S$1) -> 97 | T25: =VLOOKUP(DropDownList!$B$47,CntyQuery!$A$171:$FZ$185,T$1) -> 78 | U25: =VLOOKUP(DropDownList!$B$47,CntyQuery!$A$171:$FZ$185,U$1) -> 74 | V25: =VLOOKUP(DropDownList!$B$47,CntyQuery!$A$171:$FZ$185,V$1) -> 5 | W25: =VLOOKUP(DropDownList!$B$47,CntyQuery!$A$171:$FZ$185,W$1) -> 538.22 | X25: =VLOOKUP(DropDownList!$B$47,CntyQuery!$A$171:$FZ$185,X$1) -> 566.1 | Y25: =VLOOKUP(DropDownList!$B$47,CntyQuery!$A$171:$FZ$185,Y$1) -> 581.55 | Z25: =VLOOKUP(DropDownList!$B$47,CntyQuery!$A$171:$FZ$185,Z$1) -> 322.35 | AA25: =VLOOKUP(DropDownList!$B$47,CntyQuery!$A$171:$FZ$185,AA$1) -> 98 | AB25: =VLOOKUP(DropDownList!$B$47,CntyQuery!$A$171:$FZ$185,AB$1) -> 75 | AC25: =VLOOKUP(DropDownList!$B$47,CntyQuery!$A$171:$FZ$185,AC$1) -> n | AD25: =VLOOKUP(DropDownList!$B$47,CntyQuery!$A$171:$FZ$185,AD$1) -> n | AE25: =VLOOKUP(DropDownList!$B$47,CntyQuery!$A$171:$FZ$185,AE$1) -> 548.75 | AF25: =VLOOKUP(DropDownList!$B$47,CntyQuery!$A$171:$FZ$185,AF$1) -> 614.73 | AG25: =VLOOKUP(DropDownList!$B$47,CntyQuery!$A$171:$FZ$185,AG$1) -> n | AH25: =VLOOKUP(DropDownList!$B$47,CntyQuery!$A$171:$FZ$185,AH$1) -> n | AI25: =VLOOKUP(DropDownList!$B$47,CntyQuery!$A$171:$FZ$185,AI$1) -> 102 | AJ25: =VLOOKUP(DropDownList!$B$47,CntyQuery!$A$171:$FZ$185,AJ$1) -> 81 | AK25: =VLOOKUP(DropDownList!$B$47,CntyQuery!$A$171:$FZ$185,AK$1) -> 76 | AL25: =VLOOKUP(DropDownList!$B$47,CntyQuery!$A$171:$FZ$185,AL$1) -> 6 | AM25: =VLOOKUP(DropDownList!$B$47,CntyQuery!$A$171:$FZ$185,AM$1) -> 582.31 | AN25: =VLOOKUP(DropDownList!$B$47,CntyQuery!$A$171:$FZ$185,AN$1) -> 632.73 | AO25: =VLOOKUP(DropDownList!$B$47,CntyQuery!$A$171:$FZ$185,AO$1) -> 606.52 | AP25: =VLOOKUP(DropDownList!$B$47,CntyQuery!$A$171:$FZ$185,AP$1) -> 993.67 | AQ25: =VLOOKUP(DropDownList!$B$47,CntyQuery!$A$171:$FZ$185,AQ$1) -> 99 | AR25: =VLOOKUP(DropDownList!$B$47,CntyQuery!$A$171:$FZ$185,AR$1) -> 78 | AS25: =VLOOKUP(DropDownList!$B$47,CntyQuery!$A$171:$FZ$185,AS$1) -> 72 | AT25: =VLOOKUP(DropDownList!$B$47,CntyQuery!$A$171:$FZ$185,AT$1) -> 6 | AU25: =VLOOKUP(DropDownList!$B$47,CntyQuery!$A$171:$FZ$185,AU$1) -> 663.38 | AV25: =VLOOKUP(DropDownList!$B$47,CntyQuery!$A$171:$FZ$185,AV$1) -> 744.67 | AW25: =VLOOKUP(DropDownList!$B$47,CntyQuery!$A$171:$FZ$185,AW$1) -> 654.93 | AX25: =VLOOKUP(DropDownList!$B$47,CntyQuery!$A$171:$FZ$185,AX$1) -> 1788.76 | AY25: =VLOOKUP(DropDownList!$B$47,CntyQuery!$A$171:$FZ$185,AY$1) -> 97 | AZ25: =VLOOKUP(DropDownList!$B$47,CntyQuery!$A$171:$FZ$185,AZ$1) -> 74 | BA25: =VLOOKUP(DropDownList!$B$47,CntyQuery!$A$171:$FZ$185,BA$1) -> 68 | BB25: =VLOOKUP(DropDownList!$B$47,CntyQuery!$A$171:$FZ$185,BB$1) -> 7 | BC25: =VLOOKUP(DropDownList!$B$47,CntyQuery!$A$171:$FZ$185,BC$1) -> 653 | BD25: =VLOOKUP(DropDownList!$B$47,CntyQuery!$A$171:$FZ$185,BD$1) -> 733.26 | BE25: =VLOOKUP(DropDownList!$B$47,CntyQuery!$A$171:$FZ$185,BE$1) -> 658.76 | BF25: =VLOOKUP(DropDownList!$B$47,CntyQuery!$A$171:$FZ$185,BF$1) -> 1508.89 | BG25: =VLOOKUP(DropDownList!$B$47,CntyQuery!$A$171:$FZ$185,BG$1) -> 88 | BH25: =VLOOKUP(DropDownList!$B$47,CntyQuery!$A$171:$FZ$185,BH$1) -> 70 | BI25: =VLOOKUP(DropDownList!$B$47,CntyQuery!$A$171:$FZ$185,BI$1) -> 65 | BJ25: =VLOOKUP(DropDownList!$B$47,CntyQuery!$A$171:$FZ$185,BJ$1) -> 5 | BK25: =VLOOKUP(DropDownList!$B$47,CntyQuery!$A$171:$FZ$185,BK$1) -> 694.94 | BL25: =VLOOKUP(DropDownList!$B$47,CntyQuery!$A$171:$FZ$185,BL$1) -> 770.13 | BM25: =VLOOKUP(DropDownList!$B$47,CntyQuery!$A$171:$FZ$185,BM$1) -> 770.11 | BN25: =VLOOKUP(DropDownList!$B$47,CntyQuery!$A$171:$FZ$185,BN$1) -> 770.35 | BO25: =VLOOKUP(DropDownList!$B$47,CntyQuery!$A$171:$FZ$185,BO$1) -> 107 | BP25: =VLOOKUP(DropDownList!$B$47,CntyQuery!$A$171:$FZ$185,BP$1) -> 92 | BQ25: =VLOOKUP(DropDownList!$B$47,CntyQuery!$A$171:$FZ$185,BQ$1) -> n | BR25: =VLOOKUP(DropDownList!$B$47,CntyQuery!$A$171:$FZ$185,BR$1) -> n | BS25: =VLOOKUP(DropDownList!$B$47,CntyQuery!$A$171:$FZ$185,BS$1) -> 718.2 | BT25: =VLOOKUP(DropDownList!$B$47,CntyQuery!$A$171:$FZ$185,BT$1) -> 782.26 | BU25: =VLOOKUP(DropDownList!$B$47,CntyQuery!$A$171:$FZ$185,BU$1) -> n | BV25: =VLOOKUP(DropDownList!$B$47,CntyQuery!$A$171:$FZ$185,BV$1) -> n | BW25: =VLOOKUP(DropDownList!$B$47,CntyQuery!$A$171:$FZ$185,BW$1) -> 83 | BX25: =VLOOKUP(DropDownList!$B$47,CntyQuery!$A$171:$FZ$185,BX$1) -> 69 | BY25: =VLOOKUP(DropDownList!$B$47,CntyQuery!$A$171:$FZ$185,BY$1) -> 64 | BZ25: =VLOOKUP(DropDownList!$B$47,CntyQuery!$A$171:$FZ$185,BZ$1) -> 5 | CA25: =VLOOKUP(DropDownList!$B$47,CntyQuery!$A$171:$FZ$185,CA$1) -> 974.89 | CB25: =VLOOKUP(DropDownList!$B$47,CntyQuery!$A$171:$FZ$185,CB$1) -> 1111.91 | CC25: =VLOOKUP(DropDownList!$B$47,CntyQuery!$A$171:$FZ$185,CC$1) -> 1138.97 | CD25: =VLOOKUP(DropDownList!$B$47,CntyQuery!$A$171:$FZ$185,CD$1) -> 746.85 | CE25: =VLOOKUP(DropDownList!$B$47,CntyQuery!$A$171:$FZ$185,CE$1) -> 91 | CF25: =VLOOKUP(DropDownList!$B$47,CntyQuery!$A$171:$FZ$185,CF$1) -> 77 | CG25: =VLOOKUP(DropDownList!$B$47,CntyQuery!$A$171:$FZ$185,CG$1) -> 69 | CH25: =VLOOKUP(DropDownList!$B$47,CntyQuery!$A$171:$FZ$185,CH$1) -> 7 | CI25: =VLOOKUP(DropDownList!$B$47,CntyQuery!$A$171:$FZ$185,CI$1) -> 637.09 | CJ25: =VLOOKUP(DropDownList!$B$47,CntyQuery!$A$171:$FZ$185,CJ$1) -> 698.52 | CK25: =VLOOKUP(DropDownList!$B$47,CntyQuery!$A$171:$FZ$185,CK$1) -> 723.71 | CL25: =VLOOKUP(DropDownList!$B$47,CntyQuery!$A$171:$FZ$185,CL$1) -> 463.81 | CM25: =VLOOKUP(DropDownList!$B$47,CntyQuery!$A$171:$FZ$185,CM$1) -> 95 | CN25: =VLOOKUP(DropDownList!$B$47,CntyQuery!$A$171:$FZ$185,CN$1) -> 81 | CO25: =VLOOKUP(DropDownList!$B$47,CntyQuery!$A$171:$FZ$185,CO$1) -> 73 | CP25: =VLOOKUP(DropDownList!$B$47,CntyQuery!$A$171:$FZ$185,CP$1) -> 8 | CQ25: =VLOOKUP(DropDownList!$B$47,CntyQuery!$A$171:$FZ$185,CQ$1) -> 870.72 | CR25: =VLOOKUP(DropDownList!$B$47,CntyQuery!$A$171:$FZ$185,CR$1) -> 957.56 | CS25: =VLOOKUP(DropDownList!$B$47,CntyQuery!$A$171:$FZ$185,CS$1) -> 1035.69 | CT25: =VLOOKUP(DropDownList!$B$47,CntyQuery!$A$171:$FZ$185,CT$1) -> 253.57 | CU25: =VLOOKUP(DropDownList!$B$47,CntyQuery!$A$171:$FZ$185,CU$1) -> 103 | CV25: =VLOOKUP(DropDownList!$B$47,CntyQuery!$A$171:$FZ$185,CV$1) -> 84 | CW25: =VLOOKUP(DropDownList!$B$47,CntyQuery!$A$171:$FZ$185,CW$1) -> n | CX25: =VLOOKUP(DropDownList!$B$47,CntyQuery!$A$171:$FZ$185,CX$1) -> n | CY25: =VLOOKUP(DropDownList!$B$47,CntyQuery!$A$171:$FZ$185,CY$1) -> 836.51 | CZ25: =VLOOKUP(DropDownList!$B$47,CntyQuery!$A$171:$FZ$185,CZ$1) -> 923.65 | DA25: =VLOOKUP(DropDownList!$B$47,CntyQuery!$A$171:$FZ$185,DA$1) -> n | DB25: =VLOOKUP(DropDownList!$B$47,CntyQuery!$A$171:$FZ$185,DB$1) -> n | DC25: =VLOOKUP(DropDownList!$B$47,CntyQuery!$A$171:$FZ$185,DC$1) -> 104 | DD25: =VLOOKUP(DropDownList!$B$47,CntyQuery!$A$171:$FZ$185,DD$1) -> 86 | DE25: =VLOOKUP(DropDownList!$B$47,CntyQuery!$A$171:$FZ$185,DE$1) -> 73 | DF25: =VLOOKUP(DropDownList!$B$47,CntyQuery!$A$171:$FZ$185,DF$1) -> 13 | DG25: =VLOOKUP(DropDownList!$B$47,CntyQuery!$A$171:$FZ$185,DG$1) -> 935.72 | DH25: =VLOOKUP(DropDownList!$B$47,CntyQuery!$A$171:$FZ$185,DH$1) -> 1034.35 | DI25: =VLOOKUP(DropDownList!$B$47,CntyQuery!$A$171:$FZ$185,DI$1) -> 1150.56 | DJ25: =VLOOKUP(DropDownList!$B$47,CntyQuery!$A$171:$FZ$185,DJ$1) -> 369.51 | DK25: =VLOOKUP(DropDownList!$B$47,CntyQuery!$A$171:$FZ$185,DK$1) -> 106 | DL25: =VLOOKUP(DropDownList!$B$47,CntyQuery!$A$171:$FZ$185,DL$1) -> 89 | DM25: =VLOOKUP(DropDownList!$B$47,CntyQuery!$A$171:$FZ$185,DM$1) -> 73 | DN25: =VLOOKUP(DropDownList!$B$47,CntyQuery!$A$171:$FZ$185,DN$1) -> 16 | DO25: =VLOOKUP(DropDownList!$B$47,CntyQuery!$A$171:$FZ$185,DO$1) -> 916.47 | DP25: =VLOOKUP(DropDownList!$B$47,CntyQuery!$A$171:$FZ$185,DP$1) -> 992.96 | DQ25: =VLOOKUP(DropDownList!$B$47,CntyQuery!$A$171:$FZ$185,DQ$1) -> 1116.08 | DR25: =VLOOKUP(DropDownList!$B$47,CntyQuery!$A$171:$FZ$185,DR$1) -> 422.03 | DS25: =VLOOKUP(DropDownList!$B$47,CntyQuery!$A$171:$FZ$185,DS$1) -> 124 | DT25: =VLOOKUP(DropDownList!$B$47,CntyQuery!$A$171:$FZ$185,DT$1) -> 107 | DU25: =VLOOKUP(DropDownList!$B$47,CntyQuery!$A$171:$FZ$185,DU$1) -> 82 | DV25: =VLOOKUP(DropDownList!$B$47,CntyQuery!$A$171:$FZ$185,DV$1) -> 25 | DW25: =VLOOKUP(DropDownList!$B$47,CntyQuery!$A$171:$FZ$185,DW$1) -> 673.64 | DX25: =VLOOKUP(DropDownList!$B$47,CntyQuery!$A$171:$FZ$185,DX$1) -> 698.45 | DY25: =VLOOKUP(DropDownList!$B$47,CntyQuery!$A$171:$FZ$185,DY$1) -> 783.75 | DZ25: =VLOOKUP(DropDownList!$B$47,CntyQuery!$A$171:$FZ$185,DZ$1) -> 422.29 | EA25: =VLOOKUP(DropDownList!$B$47,CntyQuery!$A$171:$FZ$185,EA$1) -> 119 | EB25: =VLOOKUP(DropDownList!$B$47,CntyQuery!$A$171:$FZ$185,EB$1) -> 100 | EC25: =VLOOKUP(DropDownList!$B$47,CntyQuery!$A$171:$FZ$185,EC$1) -> 80 | ED25: =VLOOKUP(DropDownList!$B$47,CntyQuery!$A$171:$FZ$185,ED$1) -> 20 | EE25: =VLOOKUP(DropDownList!$B$47,CntyQuery!$A$171:$FZ$185,EE$1) -> 727.47 | EF25: =VLOOKUP(DropDownList!$B$47,CntyQuery!$A$171:$FZ$185,EF$1) -> 767.13 | EG25: =VLOOKUP(DropDownList!$B$47,CntyQuery!$A$171:$FZ$185,EG$1) -> 855.47 | EH25: =VLOOKUP(DropDownList!$B$47,CntyQuery!$A$171:$FZ$185,EH$1) -> 416.7 | EI25: =VLOOKUP(DropDownList!$B$47,CntyQuery!$A$171:$FZ$185,EI$1) -> 117 | EJ25: =VLOOKUP(DropDownList!$B$47,CntyQuery!$A$171:$FZ$185,EJ$1) -> 98 | EK25: =VLOOKUP(DropDownList!$B$47,CntyQuery!$A$171:$FZ$185,EK$1) -> 86 | EL25: =VLOOKUP(DropDownList!$B$47,CntyQuery!$A$171:$FZ$185,EL$1) -> 12 | EM25: =VLOOKUP(DropDownList!$B$47,CntyQuery!$A$171:$FZ$185,EM$1) -> 727.25 | EN25: =VLOOKUP(DropDownList!$B$47,CntyQuery!$A$171:$FZ$185,EN$1) -> 760.55 | EO25: =VLOOKUP(DropDownList!$B$47,CntyQuery!$A$171:$FZ$185,EO$1) -> 821 | EP25: =VLOOKUP(DropDownList!$B$47,CntyQuery!$A$171:$FZ$185,EP$1) -> 329.08 | EQ25: =VLOOKUP(DropDownList!$B$47,CntyQuery!$A$171:$FZ$185,EQ$1) -> 112 | ER25: =VLOOKUP(DropDownList!$B$47,CntyQuery!$A$171:$FZ$185,ER$1) -> 95 | ES25: =VLOOKUP(DropDownList!$B$47,CntyQuery!$A$171:$FZ$185,ES$1) -> 17 | ET25: =VLOOKUP(DropDownList!$B$47,CntyQuery!$A$171:$FZ$185,ET$1) -> 83 | EU25: =VLOOKUP(DropDownList!$B$47,CntyQuery!$A$171:$FZ$185,EU$1) -> 12 | EV25: =VLOOKUP(DropDownList!$B$47,CntyQuery!$A$171:$FZ$185,EV$1) -> 979.14 | EW25: =VLOOKUP(DropDownList!$B$47,CntyQuery!$A$171:$FZ$185,EW$1) -> 829.52 | EX25: =VLOOKUP(DropDownList!$B$47,CntyQuery!$A$171:$FZ$185,EX$1) -> 1814.8 | EY25: =VLOOKUP(DropDownList!$B$47,CntyQuery!$A$171:$FZ$185,EY$1) -> 896.99 | EZ25: =VLOOKUP(DropDownList!$B$47,CntyQuery!$A$171:$FZ$185,EZ$1) -> 367.87
A28: Labor Force and Unemployment Rate | B28: Query Name: DPQryUnempByCnty
A29: PlaceName | B29: LaborForce1990 | C29: LaborForce1991 | D29: LaborForce1992 | E29: LaborForce1993 | F29: LaborForce1994 | G29: LaborForce1995 | H29: LaborForce1996 | I29: LaborForce1997 | J29: LaborForce1998 | K29: LaborForce1999 | L29: LaborForce2000 | M29: LaborForce2001 | N29: LaborForce2002 | O29: LaborForce2003 | P29: NumberEmployed1990 | Q29: NumberEmployed1991 | R29: NumberEmployed1992 | S29: NumberEmployed1993 | T29: NumberEmployed1994 | U29: NumberEmployed1995 | V29: NumberEmployed1996 | W29: NumberEmployed1997 | X29: NumberEmployed1998 | Y29: NumberEmployed1999 | Z29: NumberEmployed2000 | AA29: NumberEmployed2001 | AB29: NumberEmployed2002 | AC29: NumberEmployed2003 | AD29: UnempRate1990 | AE29: UnempRate1991 | AF29: UnempRate1992 | AG29: UnempRate1993 | AH29: UnempRate1994 | AI29: UnempRate1995 | AJ29: UnempRate1996 | AK29: UnempRate1997 | AL29: UnempRate1998 | AM29: UnempRate1999 | AN29: UnempRate2000 | AO29: UnempRate2001 | AP29: UnempRate2002 | AQ29: UnempRate2003 | AR29: NumbUnEmployed1990 | AS29: NumbUnEmployed1991 | AT29: NumbUnEmployed1992 | AU29: NumbUnEmployed1993 | AV29: NumbUnEmployed1994 | AW29: NumbUnEmployed1995 | AX29: NumbUnEmployed1996 | AY29: NumbUnEmployed1997 | AZ29: NumbUnEmployed1998 | BA29: NumbUnEmployed1999 | BB29: NumbUnEmployed2000 | BC29: NumbUnEmployed2001 | BD29: NumbUnEmployed2002 | BE29: NumbUnEmployed2003 | BF29: LaborForce2004 | BG29: NumberEmployed2004 | BH29: UnempRate2004 | BI29: NumbUnEmployed2004 | BJ29: LaborForce2005 | BK29: NumberEmployed2005 | BL29: NumbUnEmp2005 | BM29: UnempRate2005 | BN29: LaborForce2006 | BO29: NumberEmployed2006 | BP29: NumbUnEmp2006 | BQ29: UnempRate2006 | BR29: LaborForce2007 | BS29: NumberEmployed2007 | BT29: NumbUnEmp2007 | BU29: UnempRate2007 | BV29: LaborForce2008 | BW29: NumberEmployed2008 | BX29: NumbUnEmp2008 | BY29: UnempRate2008 | BZ29: LaborForce2009 | CA29: NumberEmployed2009 | CB29: NumbUnEmp2009 | CC29: UnempRate2009
A30: =VLOOKUP(DropDownList!$B$47,CntyQuery!$A$220:$CC$229,A$1) ->  | B30: =VLOOKUP(DropDownList!$B$47,CntyQuery!$A$220:$CC$229,B$1) ->  | C30: =VLOOKUP(DropDownList!$B$47,CntyQuery!$A$220:$CC$229,C$1) ->  | D30: =VLOOKUP(DropDownList!$B$47,CntyQuery!$A$220:$CC$229,D$1) ->  | E30: =VLOOKUP(DropDownList!$B$47,CntyQuery!$A$220:$CC$229,E$1) ->  | F30: =VLOOKUP(DropDownList!$B$47,CntyQuery!$A$220:$CC$229,F$1) ->  | G30: =VLOOKUP(DropDownList!$B$47,CntyQuery!$A$220:$CC$229,G$1) ->  | H30: =VLOOKUP(DropDownList!$B$47,CntyQuery!$A$220:$CC$229,H$1) ->  | I30: =VLOOKUP(DropDownList!$B$47,CntyQuery!$A$220:$CC$229,I$1) ->  | J30: =VLOOKUP(DropDownList!$B$47,CntyQuery!$A$220:$CC$229,J$1) ->  | K30: =VLOOKUP(DropDownList!$B$47,CntyQuery!$A$220:$CC$229,K$1) ->  | L30: =VLOOKUP(DropDownList!$B$47,CntyQuery!$A$220:$CC$229,L$1) ->  | M30: =VLOOKUP(DropDownList!$B$47,CntyQuery!$A$220:$CC$229,M$1) ->  | N30: =VLOOKUP(DropDownList!$B$47,CntyQuery!$A$220:$CC$229,N$1) ->  | O30: =VLOOKUP(DropDownList!$B$47,CntyQuery!$A$220:$CC$229,O$1) ->  | P30: =VLOOKUP(DropDownList!$B$47,CntyQuery!$A$220:$CC$229,P$1) ->  | Q30: =VLOOKUP(DropDownList!$B$47,CntyQuery!$A$220:$CC$229,Q$1) ->  | R30: =VLOOKUP(DropDownList!$B$47,CntyQuery!$A$220:$CC$229,R$1) ->  | S30: =VLOOKUP(DropDownList!$B$47,CntyQuery!$A$220:$CC$229,S$1) ->  | T30: =VLOOKUP(DropDownList!$B$47,CntyQuery!$A$220:$CC$229,T$1) ->  | U30: =VLOOKUP(DropDownList!$B$47,CntyQuery!$A$220:$CC$229,U$1) ->  | V30: =VLOOKUP(DropDownList!$B$47,CntyQuery!$A$220:$CC$229,V$1) ->  | W30: =VLOOKUP(DropDownList!$B$47,CntyQuery!$A$220:$CC$229,W$1) ->  | X30: =VLOOKUP(DropDownList!$B$47,CntyQuery!$A$220:$CC$229,X$1) ->  | Y30: =VLOOKUP(DropDownList!$B$47,CntyQuery!$A$220:$CC$229,Y$1) ->  | Z30: =VLOOKUP(DropDownList!$B$47,CntyQuery!$A$220:$CC$229,Z$1) ->  | AA30: =VLOOKUP(DropDownList!$B$47,CntyQuery!$A$220:$CC$229,AA$1) ->  | AB30: =VLOOKUP(DropDownList!$B$47,CntyQuery!$A$220:$CC$229,AB$1) ->  | AC30: =VLOOKUP(DropDownList!$B$47,CntyQuery!$A$220:$CC$229,AC$1) ->  | AD30: =VLOOKUP(DropDownList!$B$47,CntyQuery!$A$220:$CC$229,AD$1) ->  | AE30: =VLOOKUP(DropDownList!$B$47,CntyQuery!$A$220:$CC$229,AE$1) ->  | AF30: =VLOOKUP(DropDownList!$B$47,CntyQuery!$A$220:$CC$229,AF$1) ->  | AG30: =VLOOKUP(DropDownList!$B$47,CntyQuery!$A$220:$CC$229,AG$1) ->  | AH30: =VLOOKUP(DropDownList!$B$47,CntyQuery!$A$220:$CC$229,AH$1) ->  | AI30: =VLOOKUP(DropDownList!$B$47,CntyQuery!$A$220:$CC$229,AI$1) ->  | AJ30: =VLOOKUP(DropDownList!$B$47,CntyQuery!$A$220:$CC$229,AJ$1) ->  | AK30: =VLOOKUP(DropDownList!$B$47,CntyQuery!$A$220:$CC$229,AK$1) ->  | AL30: =VLOOKUP(DropDownList!$B$47,CntyQuery!$A$220:$CC$229,AL$1) ->  | AM30: =VLOOKUP(DropDownList!$B$47,CntyQuery!$A$220:$CC$229,AM$1) ->  | AN30: =VLOOKUP(DropDownList!$B$47,CntyQuery!$A$220:$CC$229,AN$1) ->  | AO30: =VLOOKUP(DropDownList!$B$47,CntyQuery!$A$220:$CC$229,AO$1) ->  | AP30: =VLOOKUP(DropDownList!$B$47,CntyQuery!$A$220:$CC$229,AP$1) ->  | AQ30: =VLOOKUP(DropDownList!$B$47,CntyQuery!$A$220:$CC$229,AQ$1) ->  | AR30: =VLOOKUP(DropDownList!$B$47,CntyQuery!$A$220:$CC$229,AR$1) ->  | AS30: =VLOOKUP(DropDownList!$B$47,CntyQuery!$A$220:$CC$229,AS$1) ->  | AT30: =VLOOKUP(DropDownList!$B$47,CntyQuery!$A$220:$CC$229,AT$1) ->  | AU30: =VLOOKUP(DropDownList!$B$47,CntyQuery!$A$220:$CC$229,AU$1) ->  | AV30: =VLOOKUP(DropDownList!$B$47,CntyQuery!$A$220:$CC$229,AV$1) ->  | AW30: =VLOOKUP(DropDownList!$B$47,CntyQuery!$A$220:$CC$229,AW$1) ->  | AX30: =VLOOKUP(DropDownList!$B$47,CntyQuery!$A$220:$CC$229,AX$1) ->  | AY30: =VLOOKUP(DropDownList!$B$47,CntyQuery!$A$220:$CC$229,AY$1) ->  | AZ30: =VLOOKUP(DropDownList!$B$47,CntyQuery!$A$220:$CC$229,AZ$1) ->  | BA30: =VLOOKUP(DropDownList!$B$47,CntyQuery!$A$220:$CC$229,BA$1) ->  | BB30: =VLOOKUP(DropDownList!$B$47,CntyQuery!$A$220:$CC$229,BB$1) ->  | BC30: =VLOOKUP(DropDownList!$B$47,CntyQuery!$A$220:$CC$229,BC$1) ->  | BD30: =VLOOKUP(DropDownList!$B$47,CntyQuery!$A$220:$CC$229,BD$1) ->  | BE30: =VLOOKUP(DropDownList!$B$47,CntyQuery!$A$220:$CC$229,BE$1) ->  | BF30: =VLOOKUP(DropDownList!$B$47,CntyQuery!$A$220:$CC$229,BF$1) ->  | BG30: =VLOOKUP(DropDownList!$B$47,CntyQuery!$A$220:$CC$229,BG$1) ->  | BH30: =VLOOKUP(DropDownList!$B$47,CntyQuery!$A$220:$CC$229,BH$1) ->  | BI30: =VLOOKUP(DropDownList!$B$47,CntyQuery!$A$220:$CC$229,BI$1) ->  | BJ30: =VLOOKUP(DropDownList!$B$47,CntyQuery!$A$220:$CC$229,BJ$1) ->  | BK30: =VLOOKUP(DropDownList!$B$47,CntyQuery!$A$220:$CC$229,BK$1) ->  | BL30: =VLOOKUP(DropDownList!$B$47,CntyQuery!$A$220:$CC$229,BL$1) ->  | BM30: =VLOOKUP(DropDownList!$B$47,CntyQuery!$A$220:$CC$229,BM$1) ->  | BN30: =VLOOKUP(DropDownList!$B$47,CntyQuery!$A$220:$CC$229,BN$1) ->  | BO30: =VLOOKUP(DropDownList!$B$47,CntyQuery!$A$220:$CC$229,BO$1) ->  | BP30: =VLOOKUP(DropDownList!$B$47,CntyQuery!$A$220:$CC$229,BP$1) ->  | BQ30: =VLOOKUP(DropDownList!$B$47,CntyQuery!$A$220:$CC$229,BQ$1) ->  | BR30: =VLOOKUP(DropDownList!$B$47,CntyQuery!$A$220:$CC$229,BR$1) ->  | BS30: =VLOOKUP(DropDownList!$B$47,CntyQuery!$A$220:$CC$229,BS$1) ->  | BT30: =VLOOKUP(DropDownList!$B$47,CntyQuery!$A$220:$CC$229,BT$1) ->  | BU30: =VLOOKUP(DropDownList!$B$47,CntyQuery!$A$220:$CC$229,BU$1) ->  | BV30: =VLOOKUP(DropDownList!$B$47,CntyQuery!$A$220:$CC$229,BV$1) ->  | BW30: =VLOOKUP(DropDownList!$B$47,CntyQuery!$A$220:$CC$229,BW$1) ->  | BX30: =VLOOKUP(DropDownList!$B$47,CntyQuery!$A$220:$CC$229,BX$1) ->  | BY30: =VLOOKUP(DropDownList!$B$47,CntyQuery!$A$220:$CC$229,BY$1) ->  | BZ30: =VLOOKUP(DropDownList!$B$47,CntyQuery!$A$220:$CC$229,BZ$1) ->  | CA30: =VLOOKUP(DropDownList!$B$47,CntyQuery!$A$220:$CC$229,CA$1) ->  | CB30: =VLOOKUP(DropDownList!$B$47,CntyQuery!$A$220:$CC$229,CB$1) ->  | CC30: =VLOOKUP(DropDownList!$B$47,CntyQuery!$A$220:$CC$229,CC$1) -> 
M32: =IF((CntyDataLink!$BL$25)="n",NA(),IF(VALUE(CntyDataLink!$BL$25)="",NA(),VALUE(CntyDataLink!$BL$25))) -> 770.13
A33: Census 2000 - Query Name: TownAllQuery3 | B33: 2 | C33: =B33+1 -> 3 | D33: =C33+1 -> 4 | E33: 5 | F33: 6 | G33: 7 | H33: 8 | I33: 9 | J33: 10 | K33: 11 | L33: 12 | M33: 13 | N33: 14 | O33: 15 | P33: 16 | Q33: 17 | R33: 18 | S33: 19 | T33: 20 | U33: 21 | V33: 22 | W33: 23 | X33: 24 | Y33: 25 | Z33: 26 | AA33: 27 | AB33: 28 | AC33: 29 | AD33: 30 | AE33: 31 | AF33: 32 | AG33: 33 | AH33: 34 | AI33: 35 | AJ33: 36 | AK33: 37 | AL33: 38 | AM33: 39 | AN33: 40 | AO33: 41 | AP33: 42 | AQ33: 43 | AR33: 44 | AS33: 45 | AT33: 46 | AU33: 47 | AV33: 48 | AW33: 49 | AX33: 50 | AY33: 51 | AZ33: 52 | BA33: 53 | BB33: 54 | BC33: 55 | BD33: 56 | BE33: 57 | BF33: 58 | BG33: 59 | BH33: 60 | BI33: 61 | BJ33: 62 | BK33: 63 | BL33: 64 | BM33: 65 | BN33: 66 | BO33: 67 | BP33: =BO33+1 -> 68 | BQ33: 69 | BR33: 70 | BS33: 71 | BT33: 72 | BU33: 73 | BV33: 74 | BW33: 75 | BX33: 76 | BY33: 77 | BZ33: 78 | CA33: 79 | CB33: 80 | CC33: 81 | CD33: 82 | CE33: 83 | CF33: 84 | CG33: 85 | CH33: 86 | CI33: 87 | CJ33: 88 | CK33: 89 | CL33: 90 | CM33: 91 | CN33: 92 | CO33: 93 | CP33: 94 | CQ33: 95 | CR33: 96 | CS33: 97 | CT33: 98 | CU33: 99 | CV33: 100 | CW33: 101 | CX33: 102
A34: NAME | B34: COUNTY | C34: LOGRECNO | D34: COUSUB | E34: TRACT | F34: AREALAND | G34: AREAWATR | H34: POP100 | I34: HU100 | J34: 2000Population | K34: PopOfOneRace | L34: PopWhite | M34: PopBlack | N34: PopAmIndian | O34: PopAsian | P34: PopHawaiian | Q34: PopOtherRace | R34: Pop2orMoreRaces | S34: PopHispanicLatino | T34: PopNotHispanicLatino | U34: PopMale | V34: PopMale<15 | W34: PopMale15to24 | X34: PopMale25to34 | Y34: PopMale35to44 | Z34: PopMale45to54 | AA34: PopMale55to64 | AB34: PopMale65to74 | AC34: PopMale75to84 | AD34: PopMale85andOver | AE34: PopFemale | AF34: PopFemale<15 | AG34: PopFemale15to24 | AH34: PopFemale25to34 | AI34: PopFemale35t44 | AJ34: PopFemale45to54 | AK34: PopFemale55to64 | AL34: PopFemale65to74 | AM34: PopFemale75to84 | AN34: PopFemale85andOver | AO34: Households2000 | AP34: PopInHH | AQ34: AvgHHSize | AR34: HHs1Person | AS34: HHs2orMorePerson | AT34: HHsFamily | AU34: HHMarriedCoupleFam | AV34: HHSingleParentFam | AW34: HHsNonFamily | AX34: Families | AY34: PopInFam | AZ34: AvgFamSize | BA34: TotHsUnits | BB34: OccHsUnits | BC34: OwnerOccHU | BD34: RenterOccHU | BE34: VctHsUnits | BF34: VctHUForRent | BG34: VctHUForSale | BH34: VctHUSeasonal | BI34: PopInOccHU | BJ34: PopInOwnOccHU | BK34: PopInRntOccHU | BL34: AvgHHSize2 | BM34: AvgHHSizOwnOcc | BN34: AvgHHSizRntOcc | BO34: OwnOccWhtHsHldr | BP34: OwnOccBlkHsHldr | BQ34: OwnOccAmIHsHldr | BR34: OwnOccAsnHsHldr | BS34: OwnOccPIsHsHldr | BT34: OwnOccORHsHldr | BU34: OwnOcc2RcHsHldr | BV34: RntOccWhtHsHldr | BW34: RntOccBlkHsHldr | BX34: RntOccAmIHsHldr | BY34: RntOccAsnHsHldr | BZ34: RntOccPIsHsHldr | CA34: RntOccORHsHldr | CB34: RntOcc2RcHsHldr | CC34: OwnOccHH15to24 | CD34: OwnOccHH25to34 | CE34: OwnOccHH35to44 | CF34: OwnOccHH45to54 | CG34: OwnOccHH55to64 | CH34: OwnOccHH65to74 | CI34: OwnOccHH75to84 | CJ34: OwnOccHH85Over | CK34: RntOccHH15to24 | CL34: RntOccHH25to34 | CM34: RntOccHH35to44 | CN34: RntOccHH45to54 | CO34: RntOccHH55to64 | CP34: RntOccHH65to74 | CQ34: RntOccHH75to84 | CR34: RntOccHH85Over | CS34: P27TotalPop | CT34: P27PopInHseHlds | CU34: P27PopInGrpQtrs | CV34: Median Age Total | CW34: Median Age (Male) | CX34: Median Age (Female)
A35: =VLOOKUP(DropDownList!$B$47,CntyQryCensus!$A$4:$CW$46,A$1) -> Acworth | B35: =VLOOKUP(DropDownList!$B$47,CntyQryCensus!$A$4:$CW$46,B$1) -> 019 | C35: =VLOOKUP(DropDownList!$B$47,CntyQryCensus!$A$4:$CW$46,C$1) -> 0035914 | D35: =VLOOKUP(DropDownList!$B$47,CntyQryCensus!$A$4:$CW$46,D$1) -> 00260 | E35: =VLOOKUP(DropDownList!$B$47,CntyQryCensus!$A$4:$CW$46,E$1) ->  | F35: =VLOOKUP(DropDownList!$B$47,CntyQryCensus!$A$4:$CW$46,F$1) -> 100723552 | G35: =VLOOKUP(DropDownList!$B$47,CntyQryCensus!$A$4:$CW$46,G$1) -> 634512 | H35: =VLOOKUP(DropDownList!$B$47,CntyQryCensus!$A$4:$CW$46,H$1) -> 836 | I35: =VLOOKUP(DropDownList!$B$47,CntyQryCensus!$A$4:$CW$46,I$1) -> 512 | J35: =VLOOKUP(DropDownList!$B$47,CntyQryCensus!$A$4:$CW$46,J$1) -> 836 | K35: =VLOOKUP(DropDownList!$B$47,CntyQryCensus!$A$4:$CW$46,K$1) -> 825 | L35: =VLOOKUP(DropDownList!$B$47,CntyQryCensus!$A$4:$CW$46,L$1) -> 809 | M35: =VLOOKUP(DropDownList!$B$47,CntyQryCensus!$A$4:$CW$46,M$1) -> 7 | N35: =VLOOKUP(DropDownList!$B$47,CntyQryCensus!$A$4:$CW$46,N$1) -> 7 | O35: =VLOOKUP(DropDownList!$B$47,CntyQryCensus!$A$4:$CW$46,O$1) -> 2 | P35: =VLOOKUP(DropDownList!$B$47,CntyQryCensus!$A$4:$CW$46,P$1) -> 0 | Q35: =VLOOKUP(DropDownList!$B$47,CntyQryCensus!$A$4:$CW$46,Q$1) -> 0 | R35: =VLOOKUP(DropDownList!$B$47,CntyQryCensus!$A$4:$CW$46,R$1) -> 11 | S35: =VLOOKUP(DropDownList!$B$47,CntyQryCensus!$A$4:$CW$46,S$1) -> 9 | T35: =VLOOKUP(DropDownList!$B$47,CntyQryCensus!$A$4:$CW$46,T$1) -> 827 | U35: =VLOOKUP(DropDownList!$B$47,CntyQryCensus!$A$4:$CW$46,U$1) -> 421 | V35: =VLOOKUP(DropDownList!$B$47,CntyQryCensus!$A$4:$CW$46,V$1) -> 89 | W35: =VLOOKUP(DropDownList!$B$47,CntyQryCensus!$A$4:$CW$46,W$1) -> 42 | X35: =VLOOKUP(DropDownList!$B$47,CntyQryCensus!$A$4:$CW$46,X$1) -> 32 | Y35: =VLOOKUP(DropDownList!$B$47,CntyQryCensus!$A$4:$CW$46,Y$1) -> 67 | Z35: =VLOOKUP(DropDownList!$B$47,CntyQryCensus!$A$4:$CW$46,Z$1) -> 83 | AA35: =VLOOKUP(DropDownList!$B$47,CntyQryCensus!$A$4:$CW$46,AA$1) -> 50 | AB35: =VLOOKUP(DropDownList!$B$47,CntyQryCensus!$A$4:$CW$46,AB$1) -> 40 | AC35: =VLOOKUP(DropDownList!$B$47,CntyQryCensus!$A$4:$CW$46,AC$1) -> 13 | AD35: =VLOOKUP(DropDownList!$B$47,CntyQryCensus!$A$4:$CW$46,AD$1) -> 5 | AE35: =VLOOKUP(DropDownList!$B$47,CntyQryCensus!$A$4:$CW$46,AE$1) -> 415 | AF35: =VLOOKUP(DropDownList!$B$47,CntyQryCensus!$A$4:$CW$46,AF$1) -> 86 | AG35: =VLOOKUP(DropDownList!$B$47,CntyQryCensus!$A$4:$CW$46,AG$1) -> 37 | AH35: =VLOOKUP(DropDownList!$B$47,CntyQryCensus!$A$4:$CW$46,AH$1) -> 30 | AI35: =VLOOKUP(DropDownList!$B$47,CntyQryCensus!$A$4:$CW$46,AI$1) -> 72 | AJ35: =VLOOKUP(DropDownList!$B$47,CntyQryCensus!$A$4:$CW$46,AJ$1) -> 73 | AK35: =VLOOKUP(DropDownList!$B$47,CntyQryCensus!$A$4:$CW$46,AK$1) -> 48 | AL35: =VLOOKUP(DropDownList!$B$47,CntyQryCensus!$A$4:$CW$46,AL$1) -> 44 | AM35: =VLOOKUP(DropDownList!$B$47,CntyQryCensus!$A$4:$CW$46,AM$1) -> 19 | AN35: =VLOOKUP(DropDownList!$B$47,CntyQryCensus!$A$4:$CW$46,AN$1) -> 6 | AO35: =VLOOKUP(DropDownList!$B$47,CntyQryCensus!$A$4:$CW$46,AO$1) -> 318 | AP35: =VLOOKUP(DropDownList!$B$47,CntyQryCensus!$A$4:$CW$46,AP$1) -> 836 | AQ35: =VLOOKUP(DropDownList!$B$47,CntyQryCensus!$A$4:$CW$46,AQ$1) -> 2.63 | AR35: =VLOOKUP(DropDownList!$B$47,CntyQryCensus!$A$4:$CW$46,AR$1) -> 63 | AS35: =VLOOKUP(DropDownList!$B$47,CntyQryCensus!$A$4:$CW$46,AS$1) -> 255 | AT35: =VLOOKUP(DropDownList!$B$47,CntyQryCensus!$A$4:$CW$46,AT$1) -> 234 | AU35: =VLOOKUP(DropDownList!$B$47,CntyQryCensus!$A$4:$CW$46,AU$1) -> 193 | AV35: =VLOOKUP(DropDownList!$B$47,CntyQryCensus!$A$4:$CW$46,AV$1) -> 41 | AW35: =VLOOKUP(DropDownList!$B$47,CntyQryCensus!$A$4:$CW$46,AW$1) -> 21 | AX35: =VLOOKUP(DropDownList!$B$47,CntyQryCensus!$A$4:$CW$46,AX$1) -> 234 | AY35: =VLOOKUP(DropDownList!$B$47,CntyQryCensus!$A$4:$CW$46,AY$1) -> 716 | AZ35: =VLOOKUP(DropDownList!$B$47,CntyQryCensus!$A$4:$CW$46,AZ$1) -> 3.06 | BA35: =VLOOKUP(DropDownList!$B$47,CntyQryCensus!$A$4:$CW$46,BA$1) -> 512 | BB35: =VLOOKUP(DropDownList!$B$47,CntyQryCensus!$A$4:$CW$46,BB$1) -> 318 | BC35: =VLOOKUP(DropDownList!$B$47,CntyQryCensus!$A$4:$CW$46,BC$1) -> 267 | BD35: =VLOOKUP(DropDownList!$B$47,CntyQryCensus!$A$4:$CW$46,BD$1) -> 51 | BE35: =VLOOKUP(DropDownList!$B$47,CntyQryCensus!$A$4:$CW$46,BE$1) -> 194 | BF35: =VLOOKUP(DropDownList!$B$47,CntyQryCensus!$A$4:$CW$46,BF$1) -> 6 | BG35: =VLOOKUP(DropDownList!$B$47,CntyQryCensus!$A$4:$CW$46,BG$1) -> 1 | BH35: =VLOOKUP(DropDownList!$B$47,CntyQryCensus!$A$4:$CW$46,BH$1) -> 172 | BI35: =VLOOKUP(DropDownList!$B$47,CntyQryCensus!$A$4:$CW$46,BI$1) -> 836 | BJ35: =VLOOKUP(DropDownList!$B$47,CntyQryCensus!$A$4:$CW$46,BJ$1) -> 682 | BK35: =VLOOKUP(DropDownList!$B$47,CntyQryCensus!$A$4:$CW$46,BK$1) -> 154 | BL35: =VLOOKUP(DropDownList!$B$47,CntyQryCensus!$A$4:$CW$46,BL$1) -> 2.63 | BM35: =VLOOKUP(DropDownList!$B$47,CntyQryCensus!$A$4:$CW$46,BM$1) -> 2.55 | BN35: =VLOOKUP(DropDownList!$B$47,CntyQryCensus!$A$4:$CW$46,BN$1) -> 3.02 | BO35: =VLOOKUP(DropDownList!$B$47,CntyQryCensus!$A$4:$CW$46,BO$1) -> 263 | BP35: =VLOOKUP(DropDownList!$B$47,CntyQryCensus!$A$4:$CW$46,BP$1) -> 0 | BQ35: =VLOOKUP(DropDownList!$B$47,CntyQryCensus!$A$4:$CW$46,BQ$1) -> 2 | BR35: =VLOOKUP(DropDownList!$B$47,CntyQryCensus!$A$4:$CW$46,BR$1) -> 2 | BS35: =VLOOKUP(DropDownList!$B$47,CntyQryCensus!$A$4:$CW$46,BS$1) -> 0 | BT35: =VLOOKUP(DropDownList!$B$47,CntyQryCensus!$A$4:$CW$46,BT$1) -> 0 | BU35: =VLOOKUP(DropDownList!$B$47,CntyQryCensus!$A$4:$CW$46,BU$1) -> 0 | BV35: =VLOOKUP(DropDownList!$B$47,CntyQryCensus!$A$4:$CW$46,BV$1) -> 45 | BW35: =VLOOKUP(DropDownList!$B$47,CntyQryCensus!$A$4:$CW$46,BW$1) -> 1 | BX35: =VLOOKUP(DropDownList!$B$47,CntyQryCensus!$A$4:$CW$46,BX$1) -> 0 | BY35: =VLOOKUP(DropDownList!$B$47,CntyQryCensus!$A$4:$CW$46,BY$1) -> 0 | BZ35: =VLOOKUP(DropDownList!$B$47,CntyQryCensus!$A$4:$CW$46,BZ$1) -> 0 | CA35: =VLOOKUP(DropDownList!$B$47,CntyQryCensus!$A$4:$CW$46,CA$1) -> 0 | CB35: =VLOOKUP(DropDownList!$B$47,CntyQryCensus!$A$4:$CW$46,CB$1) -> 5 | CC35: =VLOOKUP(DropDownList!$B$47,CntyQryCensus!$A$4:$CW$46,CC$1) -> 2 | CD35: =VLOOKUP(DropDownList!$B$47,CntyQryCensus!$A$4:$CW$46,CD$1) -> 16 | CE35: =VLOOKUP(DropDownList!$B$47,CntyQryCensus!$A$4:$CW$46,CE$1) -> 53 | CF35: =VLOOKUP(DropDownList!$B$47,CntyQryCensus!$A$4:$CW$46,CF$1) -> 80 | CG35: =VLOOKUP(DropDownList!$B$47,CntyQryCensus!$A$4:$CW$46,CG$1) -> 45 | CH35: =VLOOKUP(DropDownList!$B$47,CntyQryCensus!$A$4:$CW$46,CH$1) -> 51 | CI35: =VLOOKUP(DropDownList!$B$47,CntyQryCensus!$A$4:$CW$46,CI$1) -> 14 | CJ35: =VLOOKUP(DropDownList!$B$47,CntyQryCensus!$A$4:$CW$46,CJ$1) -> 6 | CK35: =VLOOKUP(DropDownList!$B$47,CntyQryCensus!$A$4:$CW$46,CK$1) -> 1 | CL35: =VLOOKUP(DropDownList!$B$47,CntyQryCensus!$A$4:$CW$46,CL$1) -> 10 | CM35: =VLOOKUP(DropDownList!$B$47,CntyQryCensus!$A$4:$CW$46,CM$1) -> 15 | CN35: =VLOOKUP(DropDownList!$B$47,CntyQryCensus!$A$4:$CW$46,CN$1) -> 6 | CO35: =VLOOKUP(DropDownList!$B$47,CntyQryCensus!$A$4:$CW$46,CO$1) -> 8 | CP35: =VLOOKUP(DropDownList!$B$47,CntyQryCensus!$A$4:$CW$46,CP$1) -> 6 | CQ35: =VLOOKUP(DropDownList!$B$47,CntyQryCensus!$A$4:$CW$46,CQ$1) -> 2 | CR35: =VLOOKUP(DropDownList!$B$47,CntyQryCensus!$A$4:$CW$46,CR$1) -> 3 | CS35: =VLOOKUP(DropDownList!$B$47,CntyQryCensus!$A$4:$CW$46,CS$1) -> 836 | CT35: =VLOOKUP(DropDownList!$B$47,CntyQryCensus!$A$4:$CW$46,CT$1) -> 836 | CU35: =VLOOKUP(DropDownList!$B$47,CntyQryCensus!$A$4:$CW$46,CU$1) -> 0 | CV35: =VLOOKUP(DropDownList!$B$47,CntyQryCensus!$A$4:$CW$46,CV$1) -> Sullivan | CW35: =VLOOKUP(DropDownList!$B$47,CntyQryCensus!$A$4:$CW$46,CW$1) -> 36.6 | CX35: =VLOOKUP(DropDownList!$B$47,CntyQryCensus!$A$4:$CW$46,CX$1) -> 
A38: Census 2000 DemoProfile Sample Data Tables 2&3 - DPTab23TownQry
A39: NAME | B39: COUSUB | C39: AREANAME | D39: PopInSchool | E39: Preschool | F39: Kindergarten | G39: Elementary | H39: HighSchool | I39: College | J39: Pop25andOver | K39: HighSchoolGrad | L39: SomeCollege | M39: AssocDegree | N39: BachelDegree | O39: GradDegree | P39: HSGradorHigher | Q39: CollegeGradorHigher | R39: Pop5to20yrs | S39: Pop5to20wDis | T39: Pop21to64 | U39: Pop21to64wDis | V39: Pop65over | W39: Pop65overwDis | X39: Pop5yrsOver | Y39: SameHUin95 | Z39: DiffHUinUSin95 | AA39: HUinSameCountyin95 | AB39: HUinSameStatein95 | AC39: TotalPop | AD39: NativePop | AE39: NatPopBornUS | AF39: NatPopBornInStatRes | AG39: NatPopBornDiffState | AH39: NatPopBornOutUS | AI39: FornBornPop | AJ39: FornPopEnt90to00 | AK39: FornPopNatCit | AL39: FornPopNotCit | AM39: Households | AN39: HHIncLessThn10k | AO39: HHInc10to15K | AP39: HHInc15to25K | AQ39: HHInc25to35K | AR39: HHInc35to50K | AS39: HHInc50to75K | AT39: HHInc75to100K | AU39: HHInc100to150K | AV39: HHInc150to200K | AW39: HHIncOver200K | AX39: MedianHHInc | AY39: HHwithPubAssistInc | AZ39: MeanPubAssist | BA39: FamilyHH | BB39: FHHIncLessThn10k | BC39: FHHInc10to15K | BD39: FHHInc15to25K | BE39: FHHInc25to35K | BF39: FHHInc35to50K | BG39: FHHInc50to75K | BH39: FHHInc75to100K | BI39: FHHInc100to150K | BJ39: FHHInc150to200K | BK39: FHHIncOver200K | BL39: MedianFHHInc | BM39: PerCapitaInc | BN39: PovStatFamilies | BO39: PovStatFHHwChilUnd18 | BP39: PovStatFHHwChilUnd5 | BQ39: PovStFmalHH | BR39: DP3088 | BS39: DP3089 | BT39: PovStatIndiv | BU39: PovStatIndiv18yrOver | BV39: PovStatIndiv65yrOver | BW39: DP3093 | BX39: DP3094 | BY39: DP3095
A40: =VLOOKUP(DropDownList!$B$47,CntyQryCensus!$A$53:$BY$96,A$1) -> Acworth | B40: =VLOOKUP(DropDownList!$B$47,CntyQryCensus!$A$53:$BY$96,B$1) -> 00260 | C40: =VLOOKUP(DropDownList!$B$47,CntyQryCensus!$A$53:$BY$96,C$1) -> Acworth town, Sullivan County, New Hampshire | D40: =VLOOKUP(DropDownList!$B$47,CntyQryCensus!$A$53:$BY$96,D$1) -> 214 | E40: =VLOOKUP(DropDownList!$B$47,CntyQryCensus!$A$53:$BY$96,E$1) -> 13 | F40: =VLOOKUP(DropDownList!$B$47,CntyQryCensus!$A$53:$BY$96,F$1) -> 5 | G40: =VLOOKUP(DropDownList!$B$47,CntyQryCensus!$A$53:$BY$96,G$1) -> 115 | H40: =VLOOKUP(DropDownList!$B$47,CntyQryCensus!$A$53:$BY$96,H$1) -> 58 | I40: =VLOOKUP(DropDownList!$B$47,CntyQryCensus!$A$53:$BY$96,I$1) -> 23 | J40: =VLOOKUP(DropDownList!$B$47,CntyQryCensus!$A$53:$BY$96,J$1) -> 580 | K40: =VLOOKUP(DropDownList!$B$47,CntyQryCensus!$A$53:$BY$96,K$1) -> 205 | L40: =VLOOKUP(DropDownList!$B$47,CntyQryCensus!$A$53:$BY$96,L$1) -> 100 | M40: =VLOOKUP(DropDownList!$B$47,CntyQryCensus!$A$53:$BY$96,M$1) -> 27 | N40: =VLOOKUP(DropDownList!$B$47,CntyQryCensus!$A$53:$BY$96,N$1) -> 110 | O40: =VLOOKUP(DropDownList!$B$47,CntyQryCensus!$A$53:$BY$96,O$1) -> 56 | P40: =VLOOKUP(DropDownList!$B$47,CntyQryCensus!$A$53:$BY$96,P$1) -> 498 | Q40: =VLOOKUP(DropDownList!$B$47,CntyQryCensus!$A$53:$BY$96,Q$1) -> 166 | R40: =VLOOKUP(DropDownList!$B$47,CntyQryCensus!$A$53:$BY$96,R$1) -> 197 | S40: =VLOOKUP(DropDownList!$B$47,CntyQryCensus!$A$53:$BY$96,S$1) -> 2 | T40: =VLOOKUP(DropDownList!$B$47,CntyQryCensus!$A$53:$BY$96,T$1) -> 472 | U40: =VLOOKUP(DropDownList!$B$47,CntyQryCensus!$A$53:$BY$96,U$1) -> 84 | V40: =VLOOKUP(DropDownList!$B$47,CntyQryCensus!$A$53:$BY$96,V$1) -> 130 | W40: =VLOOKUP(DropDownList!$B$47,CntyQryCensus!$A$53:$BY$96,W$1) -> 29 | X40: =VLOOKUP(DropDownList!$B$47,CntyQryCensus!$A$53:$BY$96,X$1) -> 799 | Y40: =VLOOKUP(DropDownList!$B$47,CntyQryCensus!$A$53:$BY$96,Y$1) -> 588 | Z40: =VLOOKUP(DropDownList!$B$47,CntyQryCensus!$A$53:$BY$96,Z$1) -> 203 | AA40: =VLOOKUP(DropDownList!$B$47,CntyQryCensus!$A$53:$BY$96,AA$1) -> 84 | AB40: =VLOOKUP(DropDownList!$B$47,CntyQryCensus!$A$53:$BY$96,AB$1) -> 119 | AC40: =VLOOKUP(DropDownList!$B$47,CntyQryCensus!$A$53:$BY$96,AC$1) -> 840 | AD40: =VLOOKUP(DropDownList!$B$47,CntyQryCensus!$A$53:$BY$96,AD$1) -> 812 | AE40: =VLOOKUP(DropDownList!$B$47,CntyQryCensus!$A$53:$BY$96,AE$1) -> 807 | AF40: =VLOOKUP(DropDownList!$B$47,CntyQryCensus!$A$53:$BY$96,AF$1) -> 283 | AG40: =VLOOKUP(DropDownList!$B$47,CntyQryCensus!$A$53:$BY$96,AG$1) -> 524 | AH40: =VLOOKUP(DropDownList!$B$47,CntyQryCensus!$A$53:$BY$96,AH$1) -> 5 | AI40: =VLOOKUP(DropDownList!$B$47,CntyQryCensus!$A$53:$BY$96,AI$1) -> 28 | AJ40: =VLOOKUP(DropDownList!$B$47,CntyQryCensus!$A$53:$BY$96,AJ$1) -> 8 | AK40: =VLOOKUP(DropDownList!$B$47,CntyQryCensus!$A$53:$BY$96,AK$1) -> 12 | AL40: =VLOOKUP(DropDownList!$B$47,CntyQryCensus!$A$53:$BY$96,AL$1) -> 16 | AM40: =VLOOKUP(DropDownList!$B$47,CntyQryCensus!$A$53:$BY$96,AM$1) -> 325 | AN40: =VLOOKUP(DropDownList!$B$47,CntyQryCensus!$A$53:$BY$96,AN$1) -> 25 | AO40: =VLOOKUP(DropDownList!$B$47,CntyQryCensus!$A$53:$BY$96,AO$1) -> 12 | AP40: =VLOOKUP(DropDownList!$B$47,CntyQryCensus!$A$53:$BY$96,AP$1) -> 55 | AQ40: =VLOOKUP(DropDownList!$B$47,CntyQryCensus!$A$53:$BY$96,AQ$1) -> 60 | AR40: =VLOOKUP(DropDownList!$B$47,CntyQryCensus!$A$53:$BY$96,AR$1) -> 70 | AS40: =VLOOKUP(DropDownList!$B$47,CntyQryCensus!$A$53:$BY$96,AS$1) -> 60 | AT40: =VLOOKUP(DropDownList!$B$47,CntyQryCensus!$A$53:$BY$96,AT$1) -> 26 | AU40: =VLOOKUP(DropDownList!$B$47,CntyQryCensus!$A$53:$BY$96,AU$1) -> 11 | AV40: =VLOOKUP(DropDownList!$B$47,CntyQryCensus!$A$53:$BY$96,AV$1) -> 2 | AW40: =VLOOKUP(DropDownList!$B$47,CntyQryCensus!$A$53:$BY$96,AW$1) -> 4 | AX40: =VLOOKUP(DropDownList!$B$47,CntyQryCensus!$A$53:$BY$96,AX$1) -> 37386 | AY40: =VLOOKUP(DropDownList!$B$47,CntyQryCensus!$A$53:$BY$96,AY$1) -> 5 | AZ40: =VLOOKUP(DropDownList!$B$47,CntyQryCensus!$A$53:$BY$96,AZ$1) -> 2220 | BA40: =VLOOKUP(DropDownList!$B$47,CntyQryCensus!$A$53:$BY$96,BA$1) -> 237 | BB40: =VLOOKUP(DropDownList!$B$47,CntyQryCensus!$A$53:$BY$96,BB$1) -> 12 | BC40: =VLOOKUP(DropDownList!$B$47,CntyQryCensus!$A$53:$BY$96,BC$1) -> 6 | BD40: =VLOOKUP(DropDownList!$B$47,CntyQryCensus!$A$53:$BY$96,BD$1) -> 39 | BE40: =VLOOKUP(DropDownList!$B$47,CntyQryCensus!$A$53:$BY$96,BE$1) -> 35 | BF40: =VLOOKUP(DropDownList!$B$47,CntyQryCensus!$A$53:$BY$96,BF$1) -> 58 | BG40: =VLOOKUP(DropDownList!$B$47,CntyQryCensus!$A$53:$BY$96,BG$1) -> 46 | BH40: =VLOOKUP(DropDownList!$B$47,CntyQryCensus!$A$53:$BY$96,BH$1) -> 26 | BI40: =VLOOKUP(DropDownList!$B$47,CntyQryCensus!$A$53:$BY$96,BI$1) -> 11 | BJ40: =VLOOKUP(DropDownList!$B$47,CntyQryCensus!$A$53:$BY$96,BJ$1) -> 0 | BK40: =VLOOKUP(DropDownList!$B$47,CntyQryCensus!$A$53:$BY$96,BK$1) -> 4 | BL40: =VLOOKUP(DropDownList!$B$47,CntyQryCensus!$A$53:$BY$96,BL$1) -> 41397 | BM40: =VLOOKUP(DropDownList!$B$47,CntyQryCensus!$A$53:$BY$96,BM$1) -> 18132 | BN40: =VLOOKUP(DropDownList!$B$47,CntyQryCensus!$A$53:$BY$96,BN$1) -> 24 | BO40: =VLOOKUP(DropDownList!$B$47,CntyQryCensus!$A$53:$BY$96,BO$1) -> 18 | BP40: =VLOOKUP(DropDownList!$B$47,CntyQryCensus!$A$53:$BY$96,BP$1) -> 8 | BQ40: =VLOOKUP(DropDownList!$B$47,CntyQryCensus!$A$53:$BY$96,BQ$1) -> 7 | BR40: =VLOOKUP(DropDownList!$B$47,CntyQryCensus!$A$53:$BY$96,BR$1) -> 7 | BS40: =VLOOKUP(DropDownList!$B$47,CntyQryCensus!$A$53:$BY$96,BS$1) -> 2 | BT40: =VLOOKUP(DropDownList!$B$47,CntyQryCensus!$A$53:$BY$96,BT$1) -> 131 | BU40: =VLOOKUP(DropDownList!$B$47,CntyQryCensus!$A$53:$BY$96,BU$1) -> 75 | BV40: =VLOOKUP(DropDownList!$B$47,CntyQryCensus!$A$53:$BY$96,BV$1) -> 7 | BW40: =VLOOKUP(DropDownList!$B$47,CntyQryCensus!$A$53:$BY$96,BW$1) -> 55 | BX40: =VLOOKUP(DropDownList!$B$47,CntyQryCensus!$A$53:$BY$96,BX$1) -> 45 | BY40: =VLOOKUP(DropDownList!$B$47,CntyQryCensus!$A$53:$BY$96,BY$1) -> 28
A43: Census 2000 DemoProfile Sample Data Table 4 - DPTab4TownQry
A44: NAME | B44: COUSUB | C44: TotHousingUnits | D44: 1UnitDet | E44: 1UnitAtt | F44: 2Units | G44: 3to4Units | H44: 5to9Units | I44: 10to19Units | J44: 20orMoreUnits | K44: MobileHomes | L44: BoatRvVan | M44: SingleFamilyUnits | N44: MultiFamUnits | O44: MobileHomeUnits | P44: YearBuilt99to00 | Q44: YearBuilt95to98 | R44: YearBUilt90to94 | S44: YearBuilt80to89 | T44: YearBuilt70to79 | U44: YearBuilt60to69 | V44: YearBuilt40to59 | W44: YearBuilt39orEarlier | X44: Rooms1 | Y44: Rooms2 | Z44: Rooms3 | AA44: Rooms4 | AB44: Rooms5 | AC44: Rooms6 | AD44: Rooms7 | AE44: Rooms8 | AF44: Rooms9orMore | AG44: MedianRooms | AH44: OccHU1 | AI44: YrHHMvdIn99to00 | AJ44: YrHHMvdIn95to98 | AK44: YrHHMvdIn90to94 | AL44: YrHHMvdIn80to89 | AM44: YrHHMvdIn70to79 | AN44: YrHHMvdIn69orBefore | AO44: HeatFuelNatGas | AP44: HeatFuelBotGas | AQ44: HeatFuelElectric | AR44: HeatFuelOil | AS44: HeatFuelCoal | AT44: HeatFuelWood | AU44: HeatFuelSolar | AV44: HeatFuelOther | AW44: HeatFuelNone | AX44: LackCompPlumb | AY44: LackCompKit | AZ44: NoTelephone | BA44: OccHU | BB44: OccPerRm1orLess | BC44: OccPerRm1to1_5 | BD44: OccPerRm1_5orMore | BE44: SpecOwnOccUnits | BF44: Value<50K | BG44: Value50to100K | BH44: Value100to150K | BI44: Value150to200K | BJ44: Value200to300K | BK44: Value300to500K | BL44: Value500Kto1mil | BM44: Value1MilorMore | BN44: MedianValue | BO44: WithMortg | BP44: MnthOwnCst<300 | BQ44: MnthOwnCst300to500 | BR44: MnthOwnCst500to700 | BS44: MnthOwnCst700to1000 | BT44: MnthOwnCst1000to1500 | BU44: MnthOwnCst1500to2000 | BV44: MnthOwnCst2000orMore | BW44: MediMnthOwnCst | BX44: NotMrtg | BY44: NotMrtgMediMnthOwnCst | BZ44: OwnCst%HHInc<15 | CA44: OwnCst%HHInc15to20 | CB44: OwnCst%HHInc20to25 | CC44: OwnCst%HHInc25to30 | CD44: OwnCst%HHInc30to35 | CE44: OwnCst%HHInc35orMor | CF44: NotComputed | CG44: SpecRntOccUnits | CH44: Rnt<200 | CI44: Rnt200to300 | CJ44: Rnt300to500 | CK44: Rnt500to750 | CL44: Rnt750to1000 | CM44: Rnt1000to1500 | CN44: Rnt1500orMore | CO44: NoRent | CP44: MedianRent | CQ44: Rnt%HHInc<15 | CR44: Rnt%HHInc15to20 | CS44: Rnt%HHInc20to25 | CT44: Rnt%HHInc25to30 | CU44: Rnt%HHInc30to35 | CV44: Rnt%HHInc35orMore | CW44: Rnt%NotCompute
A45: =VLOOKUP(DropDownList!$B$47,CntyQryCensus!$A$103:$CX$146,A$1) -> Acworth | B45: =VLOOKUP(DropDownList!$B$47,CntyQryCensus!$A$103:$CX$146,B$1) -> 00260 | C45: =VLOOKUP(DropDownList!$B$47,CntyQryCensus!$A$103:$CX$146,C$1) -> 515 | D45: =VLOOKUP(DropDownList!$B$47,CntyQryCensus!$A$103:$CX$146,D$1) -> 458 | E45: =VLOOKUP(DropDownList!$B$47,CntyQryCensus!$A$103:$CX$146,E$1) -> 4 | F45: =VLOOKUP(DropDownList!$B$47,CntyQryCensus!$A$103:$CX$146,F$1) -> 9 | G45: =VLOOKUP(DropDownList!$B$47,CntyQryCensus!$A$103:$CX$146,G$1) -> 0 | H45: =VLOOKUP(DropDownList!$B$47,CntyQryCensus!$A$103:$CX$146,H$1) -> 0 | I45: =VLOOKUP(DropDownList!$B$47,CntyQryCensus!$A$103:$CX$146,I$1) -> 0 | J45: =VLOOKUP(DropDownList!$B$47,CntyQryCensus!$A$103:$CX$146,J$1) -> 0 | K45: =VLOOKUP(DropDownList!$B$47,CntyQryCensus!$A$103:$CX$146,K$1) -> 40 | L45: =VLOOKUP(DropDownList!$B$47,CntyQryCensus!$A$103:$CX$146,L$1) -> 4 | M45: =VLOOKUP(DropDownList!$B$47,CntyQryCensus!$A$103:$CX$146,M$1) -> 458 | N45: =VLOOKUP(DropDownList!$B$47,CntyQryCensus!$A$103:$CX$146,N$1) -> 13 | O45: =VLOOKUP(DropDownList!$B$47,CntyQryCensus!$A$103:$CX$146,O$1) -> 44 | P45: =VLOOKUP(DropDownList!$B$47,CntyQryCensus!$A$103:$CX$146,P$1) -> 5 | Q45: =VLOOKUP(DropDownList!$B$47,CntyQryCensus!$A$103:$CX$146,Q$1) -> 17 | R45: =VLOOKUP(DropDownList!$B$47,CntyQryCensus!$A$103:$CX$146,R$1) -> 32 | S45: =VLOOKUP(DropDownList!$B$47,CntyQryCensus!$A$103:$CX$146,S$1) -> 68 | T45: =VLOOKUP(DropDownList!$B$47,CntyQryCensus!$A$103:$CX$146,T$1) -> 59 | U45: =VLOOKUP(DropDownList!$B$47,CntyQryCensus!$A$103:$CX$146,U$1) -> 41 | V45: =VLOOKUP(DropDownList!$B$47,CntyQryCensus!$A$103:$CX$146,V$1) -> 74 | W45: =VLOOKUP(DropDownList!$B$47,CntyQryCensus!$A$103:$CX$146,W$1) -> 219 | X45: =VLOOKUP(DropDownList!$B$47,CntyQryCensus!$A$103:$CX$146,X$1) -> 16 | Y45: =VLOOKUP(DropDownList!$B$47,CntyQryCensus!$A$103:$CX$146,Y$1) -> 30 | Z45: =VLOOKUP(DropDownList!$B$47,CntyQryCensus!$A$103:$CX$146,Z$1) -> 63 | AA45: =VLOOKUP(DropDownList!$B$47,CntyQryCensus!$A$103:$CX$146,AA$1) -> 95 | AB45: =VLOOKUP(DropDownList!$B$47,CntyQryCensus!$A$103:$CX$146,AB$1) -> 85 | AC45: =VLOOKUP(DropDownList!$B$47,CntyQryCensus!$A$103:$CX$146,AC$1) -> 59 | AD45: =VLOOKUP(DropDownList!$B$47,CntyQryCensus!$A$103:$CX$146,AD$1) -> 71 | AE45: =VLOOKUP(DropDownList!$B$47,CntyQryCensus!$A$103:$CX$146,AE$1) -> 54 | AF45: =VLOOKUP(DropDownList!$B$47,CntyQryCensus!$A$103:$CX$146,AF$1) -> 42 | AG45: =VLOOKUP(DropDownList!$B$47,CntyQryCensus!$A$103:$CX$146,AG$1) -> 5.1 | AH45: =VLOOKUP(DropDownList!$B$47,CntyQryCensus!$A$103:$CX$146,AH$1) -> 319 | AI45: =VLOOKUP(DropDownList!$B$47,CntyQryCensus!$A$103:$CX$146,AI$1) -> 34 | AJ45: =VLOOKUP(DropDownList!$B$47,CntyQryCensus!$A$103:$CX$146,AJ$1) -> 53 | AK45: =VLOOKUP(DropDownList!$B$47,CntyQryCensus!$A$103:$CX$146,AK$1) -> 57 | AL45: =VLOOKUP(DropDownList!$B$47,CntyQryCensus!$A$103:$CX$146,AL$1) -> 94 | AM45: =VLOOKUP(DropDownList!$B$47,CntyQryCensus!$A$103:$CX$146,AM$1) -> 43 | AN45: =VLOOKUP(DropDownList!$B$47,CntyQryCensus!$A$103:$CX$146,AN$1) -> 38 | AO45: =VLOOKUP(DropDownList!$B$47,CntyQryCensus!$A$103:$CX$146,AO$1) -> 3 | AP45: =VLOOKUP(DropDownList!$B$47,CntyQryCensus!$A$103:$CX$146,AP$1) -> 35 | AQ45: =VLOOKUP(DropDownList!$B$47,CntyQryCensus!$A$103:$CX$146,AQ$1) -> 0 | AR45: =VLOOKUP(DropDownList!$B$47,CntyQryCensus!$A$103:$CX$146,AR$1) -> 149 | AS45: =VLOOKUP(DropDownList!$B$47,CntyQryCensus!$A$103:$CX$146,AS$1) -> 0 | AT45: =VLOOKUP(DropDownList!$B$47,CntyQryCensus!$A$103:$CX$146,AT$1) -> 132 | AU45: =VLOOKUP(DropDownList!$B$47,CntyQryCensus!$A$103:$CX$146,AU$1) -> 0 | AV45: =VLOOKUP(DropDownList!$B$47,CntyQryCensus!$A$103:$CX$146,AV$1) -> 0 | AW45: =VLOOKUP(DropDownList!$B$47,CntyQryCensus!$A$103:$CX$146,AW$1) -> 0 | AX45: =VLOOKUP(DropDownList!$B$47,CntyQryCensus!$A$103:$CX$146,AX$1) -> 11 | AY45: =VLOOKUP(DropDownList!$B$47,CntyQryCensus!$A$103:$CX$146,AY$1) -> 18 | AZ45: =VLOOKUP(DropDownList!$B$47,CntyQryCensus!$A$103:$CX$146,AZ$1) -> 5 | BA45: =VLOOKUP(DropDownList!$B$47,CntyQryCensus!$A$103:$CX$146,BA$1) -> 319 | BB45: =VLOOKUP(DropDownList!$B$47,CntyQryCensus!$A$103:$CX$146,BB$1) -> 307 | BC45: =VLOOKUP(DropDownList!$B$47,CntyQryCensus!$A$103:$CX$146,BC$1) -> 5 | BD45: =VLOOKUP(DropDownList!$B$47,CntyQryCensus!$A$103:$CX$146,BD$1) -> 7 | BE45: =VLOOKUP(DropDownList!$B$47,CntyQryCensus!$A$103:$CX$146,BE$1) -> 124 | BF45: =VLOOKUP(DropDownList!$B$47,CntyQryCensus!$A$103:$CX$146,BF$1) -> 12 | BG45: =VLOOKUP(DropDownList!$B$47,CntyQryCensus!$A$103:$CX$146,BG$1) -> 61 | BH45: =VLOOKUP(DropDownList!$B$47,CntyQryCensus!$A$103:$CX$146,BH$1) -> 34 | BI45: =VLOOKUP(DropDownList!$B$47,CntyQryCensus!$A$103:$CX$146,BI$1) -> 9 | BJ45: =VLOOKUP(DropDownList!$B$47,CntyQryCensus!$A$103:$CX$146,BJ$1) -> 6 | BK45: =VLOOKUP(DropDownList!$B$47,CntyQryCensus!$A$103:$CX$146,BK$1) -> 0 | BL45: =VLOOKUP(DropDownList!$B$47,CntyQryCensus!$A$103:$CX$146,BL$1) -> 2 | BM45: =VLOOKUP(DropDownList!$B$47,CntyQryCensus!$A$103:$CX$146,BM$1) -> 0 | BN45: =VLOOKUP(DropDownList!$B$47,CntyQryCensus!$A$103:$CX$146,BN$1) -> 92700 | BO45: =VLOOKUP(DropDownList!$B$47,CntyQryCensus!$A$103:$CX$146,BO$1) -> 68 | BP45: =VLOOKUP(DropDownList!$B$47,CntyQryCensus!$A$103:$CX$146,BP$1) -> 0 | BQ45: =VLOOKUP(DropDownList!$B$47,CntyQryCensus!$A$103:$CX$146,BQ$1) -> 2 | BR45: =VLOOKUP(DropDownList!$B$47,CntyQryCensus!$A$103:$CX$146,BR$1) -> 13 | BS45: =VLOOKUP(DropDownList!$B$47,CntyQryCensus!$A$103:$CX$146,BS$1) -> 27 | BT45: =VLOOKUP(DropDownList!$B$47,CntyQryCensus!$A$103:$CX$146,BT$1) -> 22 | BU45: =VLOOKUP(DropDownList!$B$47,CntyQryCensus!$A$103:$CX$146,BU$1) -> 2 | BV45: =VLOOKUP(DropDownList!$B$47,CntyQryCensus!$A$103:$CX$146,BV$1) -> 2 | BW45: =VLOOKUP(DropDownList!$B$47,CntyQryCensus!$A$103:$CX$146,BW$1) -> 870 | BX45: =VLOOKUP(DropDownList!$B$47,CntyQryCensus!$A$103:$CX$146,BX$1) -> 56 | BY45: =VLOOKUP(DropDownList!$B$47,CntyQryCensus!$A$103:$CX$146,BY$1) -> 407 | BZ45: =VLOOKUP(DropDownList!$B$47,CntyQryCensus!$A$103:$CX$146,BZ$1) -> 43 | CA45: =VLOOKUP(DropDownList!$B$47,CntyQryCensus!$A$103:$CX$146,CA$1) -> 22 | CB45: =VLOOKUP(DropDownList!$B$47,CntyQryCensus!$A$103:$CX$146,CB$1) -> 17 | CC45: =VLOOKUP(DropDownList!$B$47,CntyQryCensus!$A$103:$CX$146,CC$1) -> 23 | CD45: =VLOOKUP(DropDownList!$B$47,CntyQryCensus!$A$103:$CX$146,CD$1) -> 8 | CE45: =VLOOKUP(DropDownList!$B$47,CntyQryCensus!$A$103:$CX$146,CE$1) -> 10 | CF45: =VLOOKUP(DropDownList!$B$47,CntyQryCensus!$A$103:$CX$146,CF$1) -> 1 | CG45: =VLOOKUP(DropDownList!$B$47,CntyQryCensus!$A$103:$CX$146,CG$1) -> 33 | CH45: =VLOOKUP(DropDownList!$B$47,CntyQryCensus!$A$103:$CX$146,CH$1) -> 0 | CI45: =VLOOKUP(DropDownList!$B$47,CntyQryCensus!$A$103:$CX$146,CI$1) -> 2 | CJ45: =VLOOKUP(DropDownList!$B$47,CntyQryCensus!$A$103:$CX$146,CJ$1) -> 6 | CK45: =VLOOKUP(DropDownList!$B$47,CntyQryCensus!$A$103:$CX$146,CK$1) -> 15 | CL45: =VLOOKUP(DropDownList!$B$47,CntyQryCensus!$A$103:$CX$146,CL$1) -> 2 | CM45: =VLOOKUP(DropDownList!$B$47,CntyQryCensus!$A$103:$CX$146,CM$1) -> 0 | CN45: =VLOOKUP(DropDownList!$B$47,CntyQryCensus!$A$103:$CX$146,CN$1) -> 0 | CO45: =VLOOKUP(DropDownList!$B$47,CntyQryCensus!$A$103:$CX$146,CO$1) -> 8 | CP45: =VLOOKUP(DropDownList!$B$47,CntyQryCensus!$A$103:$CX$146,CP$1) -> 613 | CQ45: =VLOOKUP(DropDownList!$B$47,CntyQryCensus!$A$103:$CX$146,CQ$1) -> 7 | CR45: =VLOOKUP(DropDownList!$B$47,CntyQryCensus!$A$103:$CX$146,CR$1) -> 2 | CS45: =VLOOKUP(DropDownList!$B$47,CntyQryCensus!$A$103:$CX$146,CS$1) -> 3 | CT45: =VLOOKUP(DropDownList!$B$47,CntyQryCensus!$A$103:$CX$146,CT$1) -> 4 | CU45: =VLOOKUP(DropDownList!$B$47,CntyQryCensus!$A$103:$CX$146,CU$1) -> 2 | CV45: =VLOOKUP(DropDownList!$B$47,CntyQryCensus!$A$103:$CX$146,CV$1) -> 4 | CW45: =VLOOKUP(DropDownList!$B$47,CntyQryCensus!$A$103:$CX$146,CW$1) -> 11
A48: Census 2000 SummaryFile3 Sample Data - SF3TownQry1SocialChar
A49: TOWN_NAME | B49: LOGRECNO | C49: COUSUB | D49: P01TotalPopulation | E49: P02SampleCountOfPop | F49: P03Pop100pctCount | G49: P05UrbanPopulation | H49: P05RuralPopulation | I49: P06WhiteAlone | J49: P06BlackOrAfAm | K49: P06AmIndAlone | L49: P06AsianAlone | M49: P06HawaiianOrPI | N49: P06OtherRace | O49: P06TwoPlusRaces | P49: P07NotHispanicOrLatino | Q49: P07HispanicOrLatino | R49: P08MalePop | S49: P08FemalePop | T49: P09PopInHouseholds | U49: P09PopInFamHH | V49: P09PopInNonFamHH | W49: P09PopInGroupQtr | X49: P13TotalHH | Y49: P13FamilyHH | Z49: P13FamHHolder15to24yrs | AA49: P13FamHHolder25to34yrs | AB49: P13FamHHolder35to44yrs | AC49: P13FamHHolder45to54yrs | AD49: P13FamHHolder55to64yrs | AE49: P13FamHHolder65to74yrs | AF49: P13FamHHolder75to84yrs | AG49: P13FamHHolder85yrsOver | AH49: P13NonFamilyHH | AI49: P13NonFamHHolder15to24yrs | AJ49: P13NonFamHHolder25to34yrs | AK49: P13NonFamHHolder35to44yrs | AL49: P13NonFamHHolder45to54yrs | AM49: P13NonFamHHolder55to64yrs | AN49: P13NonFamHHolder65to74yrs | AO49: P13NonFamHHolder75to84yrs | AP49: P13NonFamHHolder85yrsOver | AQ49: P18Pop15yrsOver | AR49: P18MaritalStatNeverMarried | AS49: P18MaritalStatNowMarried | AT49: P18MaritalStatSeparated | AU49: P18MaritalStatWidowed | AV49: P18MaritalStatWidowFemale | AW49: P18MaritalStatDivorced | AX49: P18MaritalStatDivorcedFemale | AY49: P21NativeBornPop | AZ49: P21NatPopBornInState | BA49: P21NatPopBornOtherState | BB49: P021005 | BC49: P021006 | BD49: P021007 | BE49: P021008 | BF49: P21NatPopBornOutUS | BG49: P21ForeignBornPop | BH49: P021014 | BI49: P021015 | BJ49: P24Pop5YrsPlus | BK49: P24ResSameHouseIn95 | BL49: P24ResDiffHouseIn95 | BM49: P24ResDiffHouseInUSIn95 | BN49: P24ResDiffHouseSameCountyIn95 | BO49: P24ResDiffHouseDiffCountyIn95 | BP49: P24ResDiffHouseDiffCntySamStIn95 | BQ49: P24ResDiffHouseDiffCntyDifStIn95 | BR49: P24ResDiffHouseDiffCntyNEStIn95 | BS49: P24ResDiffHouseDiffCntyMWStIn95 | BT49: P24ResDiffHouseDiffCntySoStIn95 | BU49: P24ResDiffHouseDiffCntyWstStIn95 | BV49: P24ResDiffInPR | BW49: P24ResDiffElsewhereIn95 | BX49: P26Workers16yrsOver | BY49: P26WorkedInState | BZ49: P26WorkedInCnty | CA49: P26WorkedOutsideCnty | CB49: P26WorkedOutsideState | CC49: P30Workers16Over | CD49: P30TranspToWrkCar | CE49: P30TranspToWrkPublic | CF49: P30TranspToWrkOther | CG49: P30WrkdAtHome | CH49: P31WrkrsNotWrkAtHom | CI49: P31TravTim<5min | CJ49: P31TravTim5to9Min | CK49: P31TravTim10to14Min | CL49: P31TravTim15to19Min | CM49: P31TravTim20to24Min | CN49: P31TravTim25to29Min | CO49: P31TravTim30to34Min | CP49: P31TravTim35to39Min | CQ49: P31TravTim40to44Min | CR49: P31TravTim45to59Min | CS49: P31TravTim60to89Min | CT49: P31TravTim90MinMore | CU49: P31WorkAtHome | CV49: P36SchEnrlPop3yrOver | CW49: P36NurserSchEnrl | CX49: P36KinderSchEnrl | CY49: P36ElemSchEnrl | CZ49: P36HighSchEnrl | DA49: P36CollGradSchEnrl | DB49: P37Pop25yrsOver | DC49: P37EduAtain<9grd | DD49: P37EduAtainHSnoDip | DE49: P37EduAtainHSgrad | DF49: P37EduAtainCollNoDeg | DG49: P37EduAtainAssocDeg | DH49: P37EduAtainBachDeg | DI49: P37EduAtainGradProfDeg | DJ49: P42NIPop5to15 | DK49: P42NIPop5to15wDisabl | DL49: P42NIPop16to20 | DM49: P42NIPop16to20wDisab | DN49: P42NIPop16to20wDisEmp | DO49: P42NIPop16to21NoDis | DP49: P42NIPop16to21NoDisEmpl | DQ49: P42NIPop21to64 | DR49: P42NIPop21to64wDis | DS49: P42NIPop21to64wDisEmp | DT49: P42NIPop21to64NoDis | DU49: P42NIPop21to64NoDisEmp | DV49: P42NIPop65to74 | DW49: P42NIPop65to74wDis | DX49: P42NIPop75Over | DY49: P42NIPop75OverwDis | DZ49: P43Pop16YrsOver | EA49: P43Pop16OvrInLaborForce | EB49: P43Pop16OvrCivlLabFrc | EC49: P43Pop16OvrCivlLbrFrcEmp | ED49: P48Families | EE49: P48MarriedFam | EF49: P48MarrFamNoWorkers | EG49: P48MarrFam1Worker | EH49: P48MarrFam2Worker | EI49: P48MarrFamHusbWifeWorked | EJ49: P48MarrFamOther | EK49: P48MarrFam3PlusWorker | EL49: P48MarrFam3WorkHsbWif | EM49: P48MarrFam3PlsWrkOther | EN49: P48OtherFam | EO49: P48MaleHHNoWif | EP49: P48MaleHHNoWifNoWorker | EQ49: P48MaleHHNoWif1Worker | ER49: P48MaleHHNoWif2Worker | ES49: P48MaleHHNoWif3PlusWorker | ET49: P48FemaleHHNoHsb | EU49: P48FemaleHHNoHsbNoWorker | EV49: P48FemaleHHNoHsb1Worker | EW49: P48FemaleHHNoHsb2Worker | EX49: P48FemaleHHNoHsb3Worker | EY49: P49EmpCivPop16YrOver | EZ49: P49IndustAgricult | FA49: P49IndustConst | FB49: P49IndustMnftg | FC49: P49IndustWhlslTrd | FD49: P49IndustRtlTrd | FE49: P49IndustTrspWrhsUtlt | FF49: P49IndustInfrm | FG49: P49IndustFinInsRE | FH49: P49IndustPrfsScntfMngmt | FI49: P49IndustEduHlthSocSrv | FJ49: P49IndustArtsEntRec | FK49: P49IndustOthrSrvc | FL49: P49IndustPubAdm | FM49: P50OccupMngmtProfs | FN49: P50OccupService | FO49: P50OccupSalesOff | FP49: P50OccupFarmFishForest | FQ49: P50OccupConstExtrctMaint | FR49: P50OccupPrdctTrnspMatMv
A50: =VLOOKUP(DropDownList!$B$47,CntyQryCensus!$A$103:$CX$146,A$1) -> Acworth | B50: =VLOOKUP(DropDownList!$B$47,CntyQryCensus!$A$156:$FR$198,B$1) -> 0004141 | C50: =VLOOKUP(DropDownList!$B$47,CntyQryCensus!$A$156:$FR$198,C$1) -> 00260 | D50: =VLOOKUP(DropDownList!$B$47,CntyQryCensus!$A$156:$FR$198,D$1) -> 840 | E50: =VLOOKUP(DropDownList!$B$47,CntyQryCensus!$A$156:$FR$198,E$1) -> 376 | F50: =VLOOKUP(DropDownList!$B$47,CntyQryCensus!$A$156:$FR$198,F$1) -> 836 | G50: =VLOOKUP(DropDownList!$B$47,CntyQryCensus!$A$156:$FR$198,G$1) -> 0 | H50: =VLOOKUP(DropDownList!$B$47,CntyQryCensus!$A$156:$FR$198,H$1) -> 840 | I50: =VLOOKUP(DropDownList!$B$47,CntyQryCensus!$A$156:$FR$198,I$1) -> 825 | J50: =VLOOKUP(DropDownList!$B$47,CntyQryCensus!$A$156:$FR$198,J$1) -> 0 | K50: =VLOOKUP(DropDownList!$B$47,CntyQryCensus!$A$156:$FR$198,K$1) -> 0 | L50: =VLOOKUP(DropDownList!$B$47,CntyQryCensus!$A$156:$FR$198,L$1) -> 0 | M50: =VLOOKUP(DropDownList!$B$47,CntyQryCensus!$A$156:$FR$198,M$1) -> 0 | N50: =VLOOKUP(DropDownList!$B$47,CntyQryCensus!$A$156:$FR$198,N$1) -> 0 | O50: =VLOOKUP(DropDownList!$B$47,CntyQryCensus!$A$156:$FR$198,O$1) -> 15 | P50: =VLOOKUP(DropDownList!$B$47,CntyQryCensus!$A$156:$FR$198,P$1) -> 837 | Q50: =VLOOKUP(DropDownList!$B$47,CntyQryCensus!$A$156:$FR$198,Q$1) -> 3 | R50: =VLOOKUP(DropDownList!$B$47,CntyQryCensus!$A$156:$FR$198,R$1) -> 436 | S50: =VLOOKUP(DropDownList!$B$47,CntyQryCensus!$A$156:$FR$198,S$1) -> 404 | T50: =VLOOKUP(DropDownList!$B$47,CntyQryCensus!$A$156:$FR$198,T$1) -> 840 | U50: =VLOOKUP(DropDownList!$B$47,CntyQryCensus!$A$156:$FR$198,U$1) -> 736 | V50: =VLOOKUP(DropDownList!$B$47,CntyQryCensus!$A$156:$FR$198,V$1) -> 104 | W50: =VLOOKUP(DropDownList!$B$47,CntyQryCensus!$A$156:$FR$198,W$1) -> 0 | X50: =VLOOKUP(DropDownList!$B$47,CntyQryCensus!$A$156:$FR$198,X$1) -> 325 | Y50: =VLOOKUP(DropDownList!$B$47,CntyQryCensus!$A$156:$FR$198,Y$1) -> 237 | Z50: =VLOOKUP(DropDownList!$B$47,CntyQryCensus!$A$156:$FR$198,Z$1) -> 0 | AA50: =VLOOKUP(DropDownList!$B$47,CntyQryCensus!$A$156:$FR$198,AA$1) -> 16 | AB50: =VLOOKUP(DropDownList!$B$47,CntyQryCensus!$A$156:$FR$198,AB$1) -> 55 | AC50: =VLOOKUP(DropDownList!$B$47,CntyQryCensus!$A$156:$FR$198,AC$1) -> 72 | AD50: =VLOOKUP(DropDownList!$B$47,CntyQryCensus!$A$156:$FR$198,AD$1) -> 40 | AE50: =VLOOKUP(DropDownList!$B$47,CntyQryCensus!$A$156:$FR$198,AE$1) -> 32 | AF50: =VLOOKUP(DropDownList!$B$47,CntyQryCensus!$A$156:$FR$198,AF$1) -> 17 | AG50: =VLOOKUP(DropDownList!$B$47,CntyQryCensus!$A$156:$FR$198,AG$1) -> 5 | AH50: =VLOOKUP(DropDownList!$B$47,CntyQryCensus!$A$156:$FR$198,AH$1) -> 88 | AI50: =VLOOKUP(DropDownList!$B$47,CntyQryCensus!$A$156:$FR$198,AI$1) -> 2 | AJ50: =VLOOKUP(DropDownList!$B$47,CntyQryCensus!$A$156:$FR$198,AJ$1) -> 10 | AK50: =VLOOKUP(DropDownList!$B$47,CntyQryCensus!$A$156:$FR$198,AK$1) -> 7 | AL50: =VLOOKUP(DropDownList!$B$47,CntyQryCensus!$A$156:$FR$198,AL$1) -> 9 | AM50: =VLOOKUP(DropDownList!$B$47,CntyQryCensus!$A$156:$FR$198,AM$1) -> 32 | AN50: =VLOOKUP(DropDownList!$B$47,CntyQryCensus!$A$156:$FR$198,AN$1) -> 21 | AO50: =VLOOKUP(DropDownList!$B$47,CntyQryCensus!$A$156:$FR$198,AO$1) -> 3 | AP50: =VLOOKUP(DropDownList!$B$47,CntyQryCensus!$A$156:$FR$198,AP$1) -> 4 | AQ50: =VLOOKUP(DropDownList!$B$47,CntyQryCensus!$A$156:$FR$198,AQ$1) -> 667 | AR50: =VLOOKUP(DropDownList!$B$47,CntyQryCensus!$A$156:$FR$198,AR$1) -> 137 | AS50: =VLOOKUP(DropDownList!$B$47,CntyQryCensus!$A$156:$FR$198,AS$1) -> 410 | AT50: =VLOOKUP(DropDownList!$B$47,CntyQryCensus!$A$156:$FR$198,AT$1) -> 5 | AU50: =VLOOKUP(DropDownList!$B$47,CntyQryCensus!$A$156:$FR$198,AU$1) -> 30 | AV50: =VLOOKUP(DropDownList!$B$47,CntyQryCensus!$A$156:$FR$198,AV$1) -> 28 | AW50: =VLOOKUP(DropDownList!$B$47,CntyQryCensus!$A$156:$FR$198,AW$1) -> 85 | AX50: =VLOOKUP(DropDownList!$B$47,CntyQryCensus!$A$156:$FR$198,AX$1) -> 33 | AY50: =VLOOKUP(DropDownList!$B$47,CntyQryCensus!$A$156:$FR$198,AY$1) -> 812 | AZ50: =VLOOKUP(DropDownList!$B$47,CntyQryCensus!$A$156:$FR$198,AZ$1) -> 283 | BA50: =VLOOKUP(DropDownList!$B$47,CntyQryCensus!$A$156:$FR$198,BA$1) -> 524 | BB50: =VLOOKUP(DropDownList!$B$47,CntyQryCensus!$A$156:$FR$198,BB$1) -> 423 | BC50: =VLOOKUP(DropDownList!$B$47,CntyQryCensus!$A$156:$FR$198,BC$1) -> 36 | BD50: =VLOOKUP(DropDownList!$B$47,CntyQryCensus!$A$156:$FR$198,BD$1) -> 39 | BE50: =VLOOKUP(DropDownList!$B$47,CntyQryCensus!$A$156:$FR$198,BE$1) -> 26 | BF50: =VLOOKUP(DropDownList!$B$47,CntyQryCensus!$A$156:$FR$198,BF$1) -> 5 | BG50: =VLOOKUP(DropDownList!$B$47,CntyQryCensus!$A$156:$FR$198,BG$1) -> 28 | BH50: =VLOOKUP(DropDownList!$B$47,CntyQryCensus!$A$156:$FR$198,BH$1) -> 12 | BI50: =VLOOKUP(DropDownList!$B$47,CntyQryCensus!$A$156:$FR$198,BI$1) -> 16 | BJ50: =VLOOKUP(DropDownList!$B$47,CntyQryCensus!$A$156:$FR$198,BJ$1) -> 799 | BK50: =VLOOKUP(DropDownList!$B$47,CntyQryCensus!$A$156:$FR$198,BK$1) -> 588 | BL50: =VLOOKUP(DropDownList!$B$47,CntyQryCensus!$A$156:$FR$198,BL$1) -> 211 | BM50: =VLOOKUP(DropDownList!$B$47,CntyQryCensus!$A$156:$FR$198,BM$1) -> 203 | BN50: =VLOOKUP(DropDownList!$B$47,CntyQryCensus!$A$156:$FR$198,BN$1) -> 84 | BO50: =VLOOKUP(DropDownList!$B$47,CntyQryCensus!$A$156:$FR$198,BO$1) -> 119 | BP50: =VLOOKUP(DropDownList!$B$47,CntyQryCensus!$A$156:$FR$198,BP$1) -> 41 | BQ50: =VLOOKUP(DropDownList!$B$47,CntyQryCensus!$A$156:$FR$198,BQ$1) -> 78 | BR50: =VLOOKUP(DropDownList!$B$47,CntyQryCensus!$A$156:$FR$198,BR$1) -> 68 | BS50: =VLOOKUP(DropDownList!$B$47,CntyQryCensus!$A$156:$FR$198,BS$1) -> 2 | BT50: =VLOOKUP(DropDownList!$B$47,CntyQryCensus!$A$156:$FR$198,BT$1) -> 5 | BU50: =VLOOKUP(DropDownList!$B$47,CntyQryCensus!$A$156:$FR$198,BU$1) -> 3 | BV50: =VLOOKUP(DropDownList!$B$47,CntyQryCensus!$A$156:$FR$198,BV$1) -> 0 | BW50: =VLOOKUP(DropDownList!$B$47,CntyQryCensus!$A$156:$FR$198,BW$1) -> 8 | BX50: =VLOOKUP(DropDownList!$B$47,CntyQryCensus!$A$156:$FR$198,BX$1) -> 403 | BY50: =VLOOKUP(DropDownList!$B$47,CntyQryCensus!$A$156:$FR$198,BY$1) -> 349 | BZ50: =VLOOKUP(DropDownList!$B$47,CntyQryCensus!$A$156:$FR$198,BZ$1) -> 222 | CA50: =VLOOKUP(DropDownList!$B$47,CntyQryCensus!$A$156:$FR$198,CA$1) -> 127 | CB50: =VLOOKUP(DropDownList!$B$47,CntyQryCensus!$A$156:$FR$198,CB$1) -> 54 | CC50: =VLOOKUP(DropDownList!$B$47,CntyQryCensus!$A$156:$FR$198,CC$1) -> 403 | CD50: =VLOOKUP(DropDownList!$B$47,CntyQryCensus!$A$156:$FR$198,CD$1) -> 335 | CE50: =VLOOKUP(DropDownList!$B$47,CntyQryCensus!$A$156:$FR$198,CE$1) -> 4 | CF50: =VLOOKUP(DropDownList!$B$47,CntyQryCensus!$A$156:$FR$198,CF$1) -> 2 | CG50: =VLOOKUP(DropDownList!$B$47,CntyQryCensus!$A$156:$FR$198,CG$1) -> 54 | CH50: =VLOOKUP(DropDownList!$B$47,CntyQryCensus!$A$156:$FR$198,CH$1) -> 349 | CI50: =VLOOKUP(DropDownList!$B$47,CntyQryCensus!$A$156:$FR$198,CI$1) -> 10 | CJ50: =VLOOKUP(DropDownList!$B$47,CntyQryCensus!$A$156:$FR$198,CJ$1) -> 17 | CK50: =VLOOKUP(DropDownList!$B$47,CntyQryCensus!$A$156:$FR$198,CK$1) -> 13 | CL50: =VLOOKUP(DropDownList!$B$47,CntyQryCensus!$A$156:$FR$198,CL$1) -> 37 | CM50: =VLOOKUP(DropDownList!$B$47,CntyQryCensus!$A$156:$FR$198,CM$1) -> 52 | CN50: =VLOOKUP(DropDownList!$B$47,CntyQryCensus!$A$156:$FR$198,CN$1) -> 29 | CO50: =VLOOKUP(DropDownList!$B$47,CntyQryCensus!$A$156:$FR$198,CO$1) -> 67 | CP50: =VLOOKUP(DropDownList!$B$47,CntyQryCensus!$A$156:$FR$198,CP$1) -> 20 | CQ50: =VLOOKUP(DropDownList!$B$47,CntyQryCensus!$A$156:$FR$198,CQ$1) -> 17 | CR50: =VLOOKUP(DropDownList!$B$47,CntyQryCensus!$A$156:$FR$198,CR$1) -> 46 | CS50: =VLOOKUP(DropDownList!$B$47,CntyQryCensus!$A$156:$FR$198,CS$1) -> 30 | CT50: =VLOOKUP(DropDownList!$B$47,CntyQryCensus!$A$156:$FR$198,CT$1) -> 11 | CU50: =VLOOKUP(DropDownList!$B$47,CntyQryCensus!$A$156:$FR$198,CU$1) -> 54 | CV50: =VLOOKUP(DropDownList!$B$47,CntyQryCensus!$A$156:$FR$198,CV$1) -> 814 | CW50: =VLOOKUP(DropDownList!$B$47,CntyQryCensus!$A$156:$FR$198,CW$1) -> 13 | CX50: =VLOOKUP(DropDownList!$B$47,CntyQryCensus!$A$156:$FR$198,CX$1) -> 5 | CY50: =VLOOKUP(DropDownList!$B$47,CntyQryCensus!$A$156:$FR$198,CY$1) -> 115 | CZ50: =VLOOKUP(DropDownList!$B$47,CntyQryCensus!$A$156:$FR$198,CZ$1) -> 58 | DA50: =VLOOKUP(DropDownList!$B$47,CntyQryCensus!$A$156:$FR$198,DA$1) -> 23 | DB50: =VLOOKUP(DropDownList!$B$47,CntyQryCensus!$A$156:$FR$198,DB$1) -> 580 | DC50: =VLOOKUP(DropDownList!$B$47,CntyQryCensus!$A$156:$FR$198,DC$1) -> 19 | DD50: =VLOOKUP(DropDownList!$B$47,CntyQryCensus!$A$156:$FR$198,DD$1) -> 63 | DE50: =VLOOKUP(DropDownList!$B$47,CntyQryCensus!$A$156:$FR$198,DE$1) -> 205 | DF50: =VLOOKUP(DropDownList!$B$47,CntyQryCensus!$A$156:$FR$198,DF$1) -> 100 | DG50: =VLOOKUP(DropDownList!$B$47,CntyQryCensus!$A$156:$FR$198,DG$1) -> 27 | DH50: =VLOOKUP(DropDownList!$B$47,CntyQryCensus!$A$156:$FR$198,DH$1) -> 110 | DI50: =VLOOKUP(DropDownList!$B$47,CntyQryCensus!$A$156:$FR$198,DI$1) -> 56 | DJ50: =VLOOKUP(DropDownList!$B$47,CntyQryCensus!$A$156:$FR$198,DJ$1) -> 142 | DK50: =VLOOKUP(DropDownList!$B$47,CntyQryCensus!$A$156:$FR$198,DK$1) -> 0 | DL50: =VLOOKUP(DropDownList!$B$47,CntyQryCensus!$A$156:$FR$198,DL$1) -> 55 | DM50: =VLOOKUP(DropDownList!$B$47,CntyQryCensus!$A$156:$FR$198,DM$1) -> 2 | DN50: =VLOOKUP(DropDownList!$B$47,CntyQryCensus!$A$156:$FR$198,DN$1) -> 0 | DO50: =VLOOKUP(DropDownList!$B$47,CntyQryCensus!$A$156:$FR$198,DO$1) -> 53 | DP50: =VLOOKUP(DropDownList!$B$47,CntyQryCensus!$A$156:$FR$198,DP$1) -> 30 | DQ50: =VLOOKUP(DropDownList!$B$47,CntyQryCensus!$A$156:$FR$198,DQ$1) -> 472 | DR50: =VLOOKUP(DropDownList!$B$47,CntyQryCensus!$A$156:$FR$198,DR$1) -> 84 | DS50: =VLOOKUP(DropDownList!$B$47,CntyQryCensus!$A$156:$FR$198,DS$1) -> 48 | DT50: =VLOOKUP(DropDownList!$B$47,CntyQryCensus!$A$156:$FR$198,DT$1) -> 388 | DU50: =VLOOKUP(DropDownList!$B$47,CntyQryCensus!$A$156:$FR$198,DU$1) -> 311 | DV50: =VLOOKUP(DropDownList!$B$47,CntyQryCensus!$A$156:$FR$198,DV$1) -> 83 | DW50: =VLOOKUP(DropDownList!$B$47,CntyQryCensus!$A$156:$FR$198,DW$1) -> 12 | DX50: =VLOOKUP(DropDownList!$B$47,CntyQryCensus!$A$156:$FR$198,DX$1) -> 47 | DY50: =VLOOKUP(DropDownList!$B$47,CntyQryCensus!$A$156:$FR$198,DY$1) -> 17 | DZ50: =VLOOKUP(DropDownList!$B$47,CntyQryCensus!$A$156:$FR$198,DZ$1) -> 657 | EA50: =VLOOKUP(DropDownList!$B$47,CntyQryCensus!$A$156:$FR$198,EA$1) -> 421 | EB50: =VLOOKUP(DropDownList!$B$47,CntyQryCensus!$A$156:$FR$198,EB$1) -> 421 | EC50: =VLOOKUP(DropDownList!$B$47,CntyQryCensus!$A$156:$FR$198,EC$1) -> 416 | ED50: =VLOOKUP(DropDownList!$B$47,CntyQryCensus!$A$156:$FR$198,ED$1) -> 237 | EE50: =VLOOKUP(DropDownList!$B$47,CntyQryCensus!$A$156:$FR$198,EE$1) -> 197 | EF50: =VLOOKUP(DropDownList!$B$47,CntyQryCensus!$A$156:$FR$198,EF$1) -> 34 | EG50: =VLOOKUP(DropDownList!$B$47,CntyQryCensus!$A$156:$FR$198,EG$1) -> 23 | EH50: =VLOOKUP(DropDownList!$B$47,CntyQryCensus!$A$156:$FR$198,EH$1) -> 115 | EI50: =VLOOKUP(DropDownList!$B$47,CntyQryCensus!$A$156:$FR$198,EI$1) -> 98 | EJ50: =VLOOKUP(DropDownList!$B$47,CntyQryCensus!$A$156:$FR$198,EJ$1) -> 17 | EK50: =VLOOKUP(DropDownList!$B$47,CntyQryCensus!$A$156:$FR$198,EK$1) -> 25 | EL50: =VLOOKUP(DropDownList!$B$47,CntyQryCensus!$A$156:$FR$198,EL$1) -> 20 | EM50: =VLOOKUP(DropDownList!$B$47,CntyQryCensus!$A$156:$FR$198,EM$1) -> 5 | EN50: =VLOOKUP(DropDownList!$B$47,CntyQryCensus!$A$156:$FR$198,EN$1) -> 40 | EO50: =VLOOKUP(DropDownList!$B$47,CntyQryCensus!$A$156:$FR$198,EO$1) -> 16 | EP50: =VLOOKUP(DropDownList!$B$47,CntyQryCensus!$A$156:$FR$198,EP$1) -> 3 | EQ50: =VLOOKUP(DropDownList!$B$47,CntyQryCensus!$A$156:$FR$198,EQ$1) -> 8 | ER50: =VLOOKUP(DropDownList!$B$47,CntyQryCensus!$A$156:$FR$198,ER$1) -> 5 | ES50: =VLOOKUP(DropDownList!$B$47,CntyQryCensus!$A$156:$FR$198,ES$1) -> 0 | ET50: =VLOOKUP(DropDownList!$B$47,CntyQryCensus!$A$156:$FR$198,ET$1) -> 24 | EU50: =VLOOKUP(DropDownList!$B$47,CntyQryCensus!$A$156:$FR$198,EU$1) -> 11 | EV50: =VLOOKUP(DropDownList!$B$47,CntyQryCensus!$A$156:$FR$198,EV$1) -> 4 | EW50: =VLOOKUP(DropDownList!$B$47,CntyQryCensus!$A$156:$FR$198,EW$1) -> 7 | EX50: =VLOOKUP(DropDownList!$B$47,CntyQryCensus!$A$156:$FR$198,EX$1) -> 2 | EY50: =VLOOKUP(DropDownList!$B$47,CntyQryCensus!$A$156:$FR$198,EY$1) -> 416 | EZ50: =VLOOKUP(DropDownList!$B$47,CntyQryCensus!$A$156:$FR$198,EZ$1) -> 27 | FA50: =VLOOKUP(DropDownList!$B$47,CntyQryCensus!$A$156:$FR$198,FA$1) -> 63 | FB50: =VLOOKUP(DropDownList!$B$47,CntyQryCensus!$A$156:$FR$198,FB$1) -> 83 | FC50: =VLOOKUP(DropDownList!$B$47,CntyQryCensus!$A$156:$FR$198,FC$1) -> 9 | FD50: =VLOOKUP(DropDownList!$B$47,CntyQryCensus!$A$156:$FR$198,FD$1) -> 45 | FE50: =VLOOKUP(DropDownList!$B$47,CntyQryCensus!$A$156:$FR$198,FE$1) -> 35 | FF50: =VLOOKUP(DropDownList!$B$47,CntyQryCensus!$A$156:$FR$198,FF$1) -> 8 | FG50: =VLOOKUP(DropDownList!$B$47,CntyQryCensus!$A$156:$FR$198,FG$1) -> 15 | FH50: =VLOOKUP(DropDownList!$B$47,CntyQryCensus!$A$156:$FR$198,FH$1) -> 14 | FI50: =VLOOKUP(DropDownList!$B$47,CntyQryCensus!$A$156:$FR$198,FI$1) -> 69 | FJ50: =VLOOKUP(DropDownList!$B$47,CntyQryCensus!$A$156:$FR$198,FJ$1) -> 14 | FK50: =VLOOKUP(DropDownList!$B$47,CntyQryCensus!$A$156:$FR$198,FK$1) -> 22 | FL50: =VLOOKUP(DropDownList!$B$47,CntyQryCensus!$A$156:$FR$198,FL$1) -> 12 | FM50: =VLOOKUP(DropDownList!$B$47,CntyQryCensus!$A$156:$FR$198,FM$1) -> 118 | FN50: =VLOOKUP(DropDownList!$B$47,CntyQryCensus!$A$156:$FR$198,FN$1) -> 25 | FO50: =VLOOKUP(DropDownList!$B$47,CntyQryCensus!$A$156:$FR$198,FO$1) -> 103 | FP50: =VLOOKUP(DropDownList!$B$47,CntyQryCensus!$A$156:$FR$198,FP$1) -> 8 | FQ50: =VLOOKUP(DropDownList!$B$47,CntyQryCensus!$A$156:$FR$198,FQ$1) -> 74 | FR50: =VLOOKUP(DropDownList!$B$47,CntyQryCensus!$A$156:$FR$198,FR$1) -> 88
A53: Census 2000 SummaryFile3 Sample Data - SF3TownQry2aIncomeChar
A54: NAME | B54: LOGRECNO | C54: COUNTY | D54: TotalPop | E54: P52Households1 | F54: P52HHInc<10K | G54: P52HHInc10to15K | H54: P52HHInc15to20K | I54: P52HHInc20to25K | J54: P52HHInc25to30K | K54: P52HHInc30to35K | L54: P52HHInc35to40K | M54: P52HHInc40to45K | N54: P52HHInc45to50K | O54: P52HHInc50to60K | P54: P52HHInc60to75K | Q54: P52HHInc75to100K | R54: P52HHInc100to125K | S54: P52HHInc125to150K | T54: P52HHInc150to200K | U54: P52HHInc>200K | V54: P53MedianHHInc | W54: P54AggregHHInc | X54: P55Households2 | Y54: P55HHUnder25yrs | Z54: P55HH<25HHInc<10K | AA54: P55HH<25HHInc10to15K | AB54: P55HH<25HHInc15to20K | AC54: P55HH<25HHInc20to25K | AD54: P55HH<25HHInc25to30K | AE54: P55HH<25HHInc30to35K | AF54: P55HH<25HHInc35to40K | AG54: P55HH<25HHInc40to45K | AH54: P55HH<25HHInc45to50K | AI54: P55HH<25HHInc50to60K | AJ54: P55HH<25HHInc60to75K | AK54: P55HH<25HHInc75to100K | AL54: P55HH<25HHInc100to125K | AM54: P55HH<25HHInc125to150K | AN54: P55HH<25HHInc150to200K | AO54: P55HH<25HHInc>200K | AP54: P55HH25to34yrs | AQ54: P55HH25to34HHInc<10K | AR54: P55HH25to34HHInc10to15K | AS54: P55HH25to34HHInc15to20K | AT54: P55HH25to34HHInc20to25K | AU54: P55HH25to34HHInc25to30K | AV54: P55HH25to34HHInc30to35K | AW54: P55HH25to34HHInc35to40K | AX54: P55HH25to34HHInc40to45K | AY54: P55HH25to34HHInc45to50K | AZ54: P55HH25to34HHInc50to60K | BA54: P55HH25to34HHInc60to75K | BB54: P55HH25to34HHInc75to100K | BC54: P55HH25to34HHInc100to125K | BD54: P55HH25to34HHInc125to150K | BE54: P55HH25to34HHInc150to200K | BF54: P55HH25to34HHInc>200K | BG54: P55HH35to44yrs | BH54: P55HH35to44HHInc<10K | BI54: P55HH35to44HHInc10to15K | BJ54: P55HH35to44HHInc15to20K | BK54: P55HH35to44HHInc20to25K | BL54: P55HH35to44HHInc25to30K | BM54: P55HH35to44HHInc30to35K | BN54: P55HH35to44HHInc35to40K | BO54: P55HH35to44HHInc40to45K | BP54: P55HH35to44HHInc45to50K | BQ54: P55HH35to44HHInc50to60K | BR54: P55HH35to44HHInc60to75K | BS54: P55HH35to44HHInc75to100K | BT54: P55HH35to44HHInc100to125K | BU54: P55HH35to44HHInc125to150K | BV54: P55HH35to44HHInc150to200K | BW54: P55HH35to44HHInc>200K | BX54: P55HH45to54yrs | BY54: P55HH45to55HHInc<10K | BZ54: P55HH45to55HHInc10to15K | CA54: P55HH45to55HHInc15to20K | CB54: P55HH45to55HHInc20to25K | CC54: P55HH45to55HHInc25to30K | CD54: P55HH45to55HHInc30to35K | CE54: P55HH45to55HHInc35to40K | CF54: P55HH45to55HHInc40to45K | CG54: P55HH45to55HHInc45to50K | CH54: P55HH45to55HHInc50to60K | CI54: P55HH45to55HHInc60to75K | CJ54: P55HH45to55HHInc75to100K | CK54: P55HH45to55HHInc100to125K | CL54: P55HH45to55HHInc125to150K | CM54: P55HH45to55HHInc150to200K | CN54: P55HH45to55HHInc>200K | CO54: P55HH55to64yrs | CP54: P55HH55to64HHInc<10K | CQ54: P55HH55to64HHInc10to15K | CR54: P55HH55to64HHInc15to20K | CS54: P55HH55to64HHInc20to25K | CT54: P55HH55to64HHInc25to30K | CU54: P55HH55to64HHInc30to35K | CV54: P55HH55to64HHInc35to40K | CW54: P55HH55to64HHInc40to45K | CX54: P55HH55to64HHInc45to50K | CY54: P55HH55to64HHInc50to60K | CZ54: P55HH55to64HHInc60to75K | DA54: P55HH55to64HHInc75to100K | DB54: P55HH55to64HHInc100to125K | DC54: P55HH55to64HHInc125to150K | DD54: P55HH55to64HHInc150to200K | DE54: P55HH55to64HHInc>200K | DF54: P55HH65to74yrs | DG54: P55HH65to74HHInc<10K | DH54: P55HH65to74HHInc10to15K | DI54: P55HH65to74HHInc15to20K | DJ54: P55HH65to74HHInc20to25K | DK54: P55HH65to74HHInc25to30K | DL54: P55HH65to74HHInc30to35K | DM54: P55HH65to74HHInc35to40K | DN54: P55HH65to74HHInc40to45K | DO54: P55HH65to74HHInc45to50K | DP54: P55HH65to74HHInc50to60K | DQ54: P55HH65to74HHInc60to75K | DR54: P55HH65to74HHInc75to100K | DS54: P55HH65to74HHInc100to125K | DT54: P55HH65to74HHInc125to150K | DU54: P55HH65to74HHInc150to200K | DV54: P55HH65to74HHInc>200K | DW54: P55HH>75yrs | DX54: P55HH>75HHInc<10K | DY54: P55HH>75HHInc10to15K | DZ54: P55HH>75HHInc15to20K | EA54: P55HH>75HHInc20to25K | EB54: P55HH>75HHInc25to30K | EC54: P55HH>75HHInc30to35K | ED54: P55HH>75HHInc35to40K | EE54: P55HH>75HHInc40to45K | EF54: P55HH>75HHInc45to50K | EG54: P55HH>75HHInc50to60K | EH54: P55HH>75HHInc60to75K | EI54: P55HH>75HHInc75to100K | EJ54: P55HH>75HHInc100to125K | EK54: P55HH>75HHInc125to150K | EL54: P55HH>75HHInc150to200K | EM54: P55HH>75HHInc>200K | EN54: P56MedHHInc | EO54: P56MedHHIncHH<25y | EP54: P56MedHHIncHH25to34y | EQ54: P56MedHHIncHH35to44y | ER54: P56MedHHIncHH45to54y | ES54: P56MedHHIncHH55to64y | ET54: P56MedHHIncHH65to74y | EU54: P56MedHHIncHH>75y | EV54: P58Households3 | EW54: P58HHwithEarnings | EX54: P58HHNoEarnings | EY54: P59HHwWageSalInc | EZ54: P59HHNoWageSalInc | FA54: P60HHwSelfEmpInc | FB54: P60HHNoSelfEmpInc | FC54: P61HHwIndDivInc | FD54: P61HHNoIndDivInc | FE54: P62HHwSocSecInc | FF54: P62HHNoSocSecInc | FG54: P63HHwSSI | FH54: P63HHNoSSI | FI54: P64HHwPubAssInc | FJ54: P64HHNoPubAssInc | FK54: P65HHwRetInc | FL54: P65HHNoRetInc | FM54: P66HHwOtherTypInc | FN54: P66HHNoOtherTypInc | FO54: P67AggregEarnings | FP54: P68AggregWageSalInc | FQ54: P69AggregSelfEmpInc | FR54: P70AggregIntDivInc | FS54: P71AggregSocSecInc | FT54: P72AggregSSIInc | FU54: P73AggregPublicAssInc | FV54: P74AggregRetireInc | FW54: P76Families1 | FX54: P76FamInc<10K | FY54: P76FamInc10to15K | FZ54: P76FamInc15to20K | GA54: P76FamInc20to25K | GB54: P76FamInc25to30K | GC54: P76FamInc30to35K | GD54: P76FamInc35to40K | GE54: P76FamInc40to45K | GF54: P76FamInc45to50K | GG54: P76FamInc50to60K | GH54: P76FamInc60to75K | GI54: P76FamInc75to100K | GJ54: P76FamInc100to125K | GK54: P76FamInc125to150K | GL54: P76FamInc150to200K | GM54: P76FamInc>200K | GN54: P77MedFamInc | GO54: P78AggregFamInc | GP54: P79NonFamHH | GQ54: P79NonFamHHwInc<10K | GR54: P79NonFamHHwInc10to15K | GS54: P79NonFamHHwInc15to20K | GT54: P79NonFamHHwInc20to25K | GU54: P79NonFamHHwInc25to30K | GV54: P79NonFamHHwInc30to35K | GW54: P79NonFamHHwInc35to40K | GX54: P79NonFamHHwInc40to45K | GY54: P79NonFamHHwInc45to50K | GZ54: P79NonFamHHwInc50to60K | HA54: P79NonFamHHwInc60to75K | HB54: P79NonFamHHwInc75to100K | HC54: P79NonFamHHwInc100to125K | HD54: P79NonFamHHwInc125to150K | HE54: P79NonFamHHwInc150to200K | HF54: P79NonFamHHwInc200KorMore | HG54: P80MedNonFamInc | HH54: P82PerCapitaInc
A55: =VLOOKUP(DropDownList!$B$47,CntyQryCensus!$A$206:$HH$248,A$1) -> Acworth | B55: =VLOOKUP(DropDownList!$B$47,CntyQryCensus!$A$206:$HH$248,B$1) -> 0004141 | C55: =VLOOKUP(DropDownList!$B$47,CntyQryCensus!$A$206:$HH$248,C$1) -> 00260 | D55: =VLOOKUP(DropDownList!$B$47,CntyQryCensus!$A$206:$HH$248,D$1) -> 836 | E55: =VLOOKUP(DropDownList!$B$47,CntyQryCensus!$A$206:$HH$248,E$1) -> 325 | F55: =VLOOKUP(DropDownList!$B$47,CntyQryCensus!$A$206:$HH$248,F$1) -> 25 | G55: =VLOOKUP(DropDownList!$B$47,CntyQryCensus!$A$206:$HH$248,G$1) -> 12 | H55: =VLOOKUP(DropDownList!$B$47,CntyQryCensus!$A$206:$HH$248,H$1) -> 38 | I55: =VLOOKUP(DropDownList!$B$47,CntyQryCensus!$A$206:$HH$248,I$1) -> 17 | J55: =VLOOKUP(DropDownList!$B$47,CntyQryCensus!$A$206:$HH$248,J$1) -> 36 | K55: =VLOOKUP(DropDownList!$B$47,CntyQryCensus!$A$206:$HH$248,K$1) -> 24 | L55: =VLOOKUP(DropDownList!$B$47,CntyQryCensus!$A$206:$HH$248,L$1) -> 19 | M55: =VLOOKUP(DropDownList!$B$47,CntyQryCensus!$A$206:$HH$248,M$1) -> 29 | N55: =VLOOKUP(DropDownList!$B$47,CntyQryCensus!$A$206:$HH$248,N$1) -> 22 | O55: =VLOOKUP(DropDownList!$B$47,CntyQryCensus!$A$206:$HH$248,O$1) -> 30 | P55: =VLOOKUP(DropDownList!$B$47,CntyQryCensus!$A$206:$HH$248,P$1) -> 30 | Q55: =VLOOKUP(DropDownList!$B$47,CntyQryCensus!$A$206:$HH$248,Q$1) -> 26 | R55: =VLOOKUP(DropDownList!$B$47,CntyQryCensus!$A$206:$HH$248,R$1) -> 4 | S55: =VLOOKUP(DropDownList!$B$47,CntyQryCensus!$A$206:$HH$248,S$1) -> 7 | T55: =VLOOKUP(DropDownList!$B$47,CntyQryCensus!$A$206:$HH$248,T$1) -> 2 | U55: =VLOOKUP(DropDownList!$B$47,CntyQryCensus!$A$206:$HH$248,U$1) -> 4 | V55: =VLOOKUP(DropDownList!$B$47,CntyQryCensus!$A$206:$HH$248,V$1) -> 37386 | W55: =VLOOKUP(DropDownList!$B$47,CntyQryCensus!$A$206:$HH$248,W$1) -> 14932900 | X55: =VLOOKUP(DropDownList!$B$47,CntyQryCensus!$A$206:$HH$248,X$1) -> 325 | Y55: =VLOOKUP(DropDownList!$B$47,CntyQryCensus!$A$206:$HH$248,Y$1) -> 2 | Z55: =VLOOKUP(DropDownList!$B$47,CntyQryCensus!$A$206:$HH$248,Z$1) -> 0 | AA55: =VLOOKUP(DropDownList!$B$47,CntyQryCensus!$A$206:$HH$248,AA$1) -> 0 | AB55: =VLOOKUP(DropDownList!$B$47,CntyQryCensus!$A$206:$HH$248,AB$1) -> 0 | AC55: =VLOOKUP(DropDownList!$B$47,CntyQryCensus!$A$206:$HH$248,AC$1) -> 0 | AD55: =VLOOKUP(DropDownList!$B$47,CntyQryCensus!$A$206:$HH$248,AD$1) -> 2 | AE55: =VLOOKUP(DropDownList!$B$47,CntyQryCensus!$A$206:$HH$248,AE$1) -> 0 | AF55: =VLOOKUP(DropDownList!$B$47,CntyQryCensus!$A$206:$HH$248,AF$1) -> 0 | AG55: =VLOOKUP(DropDownList!$B$47,CntyQryCensus!$A$206:$HH$248,AG$1) -> 0 | AH55: =VLOOKUP(DropDownList!$B$47,CntyQryCensus!$A$206:$HH$248,AH$1) -> 0 | AI55: =VLOOKUP(DropDownList!$B$47,CntyQryCensus!$A$206:$HH$248,AI$1) -> 0 | AJ55: =VLOOKUP(DropDownList!$B$47,CntyQryCensus!$A$206:$HH$248,AJ$1) -> 0 | AK55: =VLOOKUP(DropDownList!$B$47,CntyQryCensus!$A$206:$HH$248,AK$1) -> 0 | AL55: =VLOOKUP(DropDownList!$B$47,CntyQryCensus!$A$206:$HH$248,AL$1) -> 0 | AM55: =VLOOKUP(DropDownList!$B$47,CntyQryCensus!$A$206:$HH$248,AM$1) -> 0 | AN55: =VLOOKUP(DropDownList!$B$47,CntyQryCensus!$A$206:$HH$248,AN$1) -> 0 | AO55: =VLOOKUP(DropDownList!$B$47,CntyQryCensus!$A$206:$HH$248,AO$1) -> 0 | AP55: =VLOOKUP(DropDownList!$B$47,CntyQryCensus!$A$206:$HH$248,AP$1) -> 26 | AQ55: =VLOOKUP(DropDownList!$B$47,CntyQryCensus!$A$206:$HH$248,AQ$1) -> 0 | AR55: =VLOOKUP(DropDownList!$B$47,CntyQryCensus!$A$206:$HH$248,AR$1) -> 0 | AS55: =VLOOKUP(DropDownList!$B$47,CntyQryCensus!$A$206:$HH$248,AS$1) -> 0 | AT55: =VLOOKUP(DropDownList!$B$47,CntyQryCensus!$A$206:$HH$248,AT$1) -> 0 | AU55: =VLOOKUP(DropDownList!$B$47,CntyQryCensus!$A$206:$HH$248,AU$1) -> 5 | AV55: =VLOOKUP(DropDownList!$B$47,CntyQryCensus!$A$206:$HH$248,AV$1) -> 3 | AW55: =VLOOKUP(DropDownList!$B$47,CntyQryCensus!$A$206:$HH$248,AW$1) -> 3 | AX55: =VLOOKUP(DropDownList!$B$47,CntyQryCensus!$A$206:$HH$248,AX$1) -> 4 | AY55: =VLOOKUP(DropDownList!$B$47,CntyQryCensus!$A$206:$HH$248,AY$1) -> 2 | AZ55: =VLOOKUP(DropDownList!$B$47,CntyQryCensus!$A$206:$HH$248,AZ$1) -> 4 | BA55: =VLOOKUP(DropDownList!$B$47,CntyQryCensus!$A$206:$HH$248,BA$1) -> 5 | BB55: =VLOOKUP(DropDownList!$B$47,CntyQryCensus!$A$206:$HH$248,BB$1) -> 0 | BC55: =VLOOKUP(DropDownList!$B$47,CntyQryCensus!$A$206:$HH$248,BC$1) -> 0 | BD55: =VLOOKUP(DropDownList!$B$47,CntyQryCensus!$A$206:$HH$248,BD$1) -> 0 | BE55: =VLOOKUP(DropDownList!$B$47,CntyQryCensus!$A$206:$HH$248,BE$1) -> 0 | BF55: =VLOOKUP(DropDownList!$B$47,CntyQryCensus!$A$206:$HH$248,BF$1) -> 0 | BG55: =VLOOKUP(DropDownList!$B$47,CntyQryCensus!$A$206:$HH$248,BG$1) -> 62 | BH55: =VLOOKUP(DropDownList!$B$47,CntyQryCensus!$A$206:$HH$248,BH$1) -> 9 | BI55: =VLOOKUP(DropDownList!$B$47,CntyQryCensus!$A$206:$HH$248,BI$1) -> 0 | BJ55: =VLOOKUP(DropDownList!$B$47,CntyQryCensus!$A$206:$HH$248,BJ$1) -> 5 | BK55: =VLOOKUP(DropDownList!$B$47,CntyQryCensus!$A$206:$HH$248,BK$1) -> 4 | BL55: =VLOOKUP(DropDownList!$B$47,CntyQryCensus!$A$206:$HH$248,BL$1) -> 3 | BM55: =VLOOKUP(DropDownList!$B$47,CntyQryCensus!$A$206:$HH$248,BM$1) -> 2 | BN55: =VLOOKUP(DropDownList!$B$47,CntyQryCensus!$A$206:$HH$248,BN$1) -> 4 | BO55: =VLOOKUP(DropDownList!$B$47,CntyQryCensus!$A$206:$HH$248,BO$1) -> 2 | BP55: =VLOOKUP(DropDownList!$B$47,CntyQryCensus!$A$206:$HH$248,BP$1) -> 3 | BQ55: =VLOOKUP(DropDownList!$B$47,CntyQryCensus!$A$206:$HH$248,BQ$1) -> 8 | BR55: =VLOOKUP(DropDownList!$B$47,CntyQryCensus!$A$206:$HH$248,BR$1) -> 9 | BS55: =VLOOKUP(DropDownList!$B$47,CntyQryCensus!$A$206:$HH$248,BS$1) -> 9 | BT55: =VLOOKUP(DropDownList!$B$47,CntyQryCensus!$A$206:$HH$248,BT$1) -> 0 | BU55: =VLOOKUP(DropDownList!$B$47,CntyQryCensus!$A$206:$HH$248,BU$1) -> 2 | BV55: =VLOOKUP(DropDownList!$B$47,CntyQryCensus!$A$206:$HH$248,BV$1) -> 0 | BW55: =VLOOKUP(DropDownList!$B$47,CntyQryCensus!$A$206:$HH$248,BW$1) -> 2 | BX55: =VLOOKUP(DropDownList!$B$47,CntyQryCensus!$A$206:$HH$248,BX$1) -> 81 | BY55: =VLOOKUP(DropDownList!$B$47,CntyQryCensus!$A$206:$HH$248,BY$1) -> 3 | BZ55: =VLOOKUP(DropDownList!$B$47,CntyQryCensus!$A$206:$HH$248,BZ$1) -> 3 | CA55: =VLOOKUP(DropDownList!$B$47,CntyQryCensus!$A$206:$HH$248,CA$1) -> 2 | CB55: =VLOOKUP(DropDownList!$B$47,CntyQryCensus!$A$206:$HH$248,CB$1) -> 4 | CC55: =VLOOKUP(DropDownList!$B$47,CntyQryCensus!$A$206:$HH$248,CC$1) -> 10 | CD55: =VLOOKUP(DropDownList!$B$47,CntyQryCensus!$A$206:$HH$248,CD$1) -> 9 | CE55: =VLOOKUP(DropDownList!$B$47,CntyQryCensus!$A$206:$HH$248,CE$1) -> 4 | CF55: =VLOOKUP(DropDownList!$B$47,CntyQryCensus!$A$206:$HH$248,CF$1) -> 11 | CG55: =VLOOKUP(DropDownList!$B$47,CntyQryCensus!$A$206:$HH$248,CG$1) -> 8 | CH55: =VLOOKUP(DropDownList!$B$47,CntyQryCensus!$A$206:$HH$248,CH$1) -> 9 | CI55: =VLOOKUP(DropDownList!$B$47,CntyQryCensus!$A$206:$HH$248,CI$1) -> 6 | CJ55: =VLOOKUP(DropDownList!$B$47,CntyQryCensus!$A$206:$HH$248,CJ$1) -> 8 | CK55: =VLOOKUP(DropDownList!$B$47,CntyQryCensus!$A$206:$HH$248,CK$1) -> 2 | CL55: =VLOOKUP(DropDownList!$B$47,CntyQryCensus!$A$206:$HH$248,CL$1) -> 0 | CM55: =VLOOKUP(DropDownList!$B$47,CntyQryCensus!$A$206:$HH$248,CM$1) -> 0 | CN55: =VLOOKUP(DropDownList!$B$47,CntyQryCensus!$A$206:$HH$248,CN$1) -> 2 | CO55: =VLOOKUP(DropDownList!$B$47,CntyQryCensus!$A$206:$HH$248,CO$1) -> 72 | CP55: =VLOOKUP(DropDownList!$B$47,CntyQryCensus!$A$206:$HH$248,CP$1) -> 6 | CQ55: =VLOOKUP(DropDownList!$B$47,CntyQryCensus!$A$206:$HH$248,CQ$1) -> 4 | CR55: =VLOOKUP(DropDownList!$B$47,CntyQryCensus!$A$206:$HH$248,CR$1) -> 12 | CS55: =VLOOKUP(DropDownList!$B$47,CntyQryCensus!$A$206:$HH$248,CS$1) -> 2 | CT55: =VLOOKUP(DropDownList!$B$47,CntyQryCensus!$A$206:$HH$248,CT$1) -> 4 | CU55: =VLOOKUP(DropDownList!$B$47,CntyQryCensus!$A$206:$HH$248,CU$1) -> 6 | CV55: =VLOOKUP(DropDownList!$B$47,CntyQryCensus!$A$206:$HH$248,CV$1) -> 2 | CW55: =VLOOKUP(DropDownList!$B$47,CntyQryCensus!$A$206:$HH$248,CW$1) -> 10 | CX55: =VLOOKUP(DropDownList!$B$47,CntyQryCensus!$A$206:$HH$248,CX$1) -> 4 | CY55: =VLOOKUP(DropDownList!$B$47,CntyQryCensus!$A$206:$HH$248,CY$1) -> 2 | CZ55: =VLOOKUP(DropDownList!$B$47,CntyQryCensus!$A$206:$HH$248,CZ$1) -> 9 | DA55: =VLOOKUP(DropDownList!$B$47,CntyQryCensus!$A$206:$HH$248,DA$1) -> 5 | DB55: =VLOOKUP(DropDownList!$B$47,CntyQryCensus!$A$206:$HH$248,DB$1) -> 2 | DC55: =VLOOKUP(DropDownList!$B$47,CntyQryCensus!$A$206:$HH$248,DC$1) -> 4 | DD55: =VLOOKUP(DropDownList!$B$47,CntyQryCensus!$A$206:$HH$248,DD$1) -> 0 | DE55: =VLOOKUP(DropDownList!$B$47,CntyQryCensus!$A$206:$HH$248,DE$1) -> 0 | DF55: =VLOOKUP(DropDownList!$B$47,CntyQryCensus!$A$206:$HH$248,DF$1) -> 53 | DG55: =VLOOKUP(DropDownList!$B$47,CntyQryCensus!$A$206:$HH$248,DG$1) -> 4 | DH55: =VLOOKUP(DropDownList!$B$47,CntyQryCensus!$A$206:$HH$248,DH$1) -> 5 | DI55: =VLOOKUP(DropDownList!$B$47,CntyQryCensus!$A$206:$HH$248,DI$1) -> 8 | DJ55: =VLOOKUP(DropDownList!$B$47,CntyQryCensus!$A$206:$HH$248,DJ$1) -> 6 | DK55: =VLOOKUP(DropDownList!$B$47,CntyQryCensus!$A$206:$HH$248,DK$1) -> 9 | DL55: =VLOOKUP(DropDownList!$B$47,CntyQryCensus!$A$206:$HH$248,DL$1) -> 0 | DM55: =VLOOKUP(DropDownList!$B$47,CntyQryCensus!$A$206:$HH$248,DM$1) -> 6 | DN55: =VLOOKUP(DropDownList!$B$47,CntyQryCensus!$A$206:$HH$248,DN$1) -> 2 | DO55: =VLOOKUP(DropDownList!$B$47,CntyQryCensus!$A$206:$HH$248,DO$1) -> 2 | DP55: =VLOOKUP(DropDownList!$B$47,CntyQryCensus!$A$206:$HH$248,DP$1) -> 6 | DQ55: =VLOOKUP(DropDownList!$B$47,CntyQryCensus!$A$206:$HH$248,DQ$1) -> 0 | DR55: =VLOOKUP(DropDownList!$B$47,CntyQryCensus!$A$206:$HH$248,DR$1) -> 2 | DS55: =VLOOKUP(DropDownList!$B$47,CntyQryCensus!$A$206:$HH$248,DS$1) -> 0 | DT55: =VLOOKUP(DropDownList!$B$47,CntyQryCensus!$A$206:$HH$248,DT$1) -> 1 | DU55: =VLOOKUP(DropDownList!$B$47,CntyQryCensus!$A$206:$HH$248,DU$1) -> 2 | DV55: =VLOOKUP(DropDownList!$B$47,CntyQryCensus!$A$206:$HH$248,DV$1) -> 0 | DW55: =VLOOKUP(DropDownList!$B$47,CntyQryCensus!$A$206:$HH$248,DW$1) -> 29 | DX55: =VLOOKUP(DropDownList!$B$47,CntyQryCensus!$A$206:$HH$248,DX$1) -> 3 | DY55: =VLOOKUP(DropDownList!$B$47,CntyQryCensus!$A$206:$HH$248,DY$1) -> 0 | DZ55: =VLOOKUP(DropDownList!$B$47,CntyQryCensus!$A$206:$HH$248,DZ$1) -> 11 | EA55: =VLOOKUP(DropDownList!$B$47,CntyQryCensus!$A$206:$HH$248,EA$1) -> 1 | EB55: =VLOOKUP(DropDownList!$B$47,CntyQryCensus!$A$206:$HH$248,EB$1) -> 3 | EC55: =VLOOKUP(DropDownList!$B$47,CntyQryCensus!$A$206:$HH$248,EC$1) -> 4 | ED55: =VLOOKUP(DropDownList!$B$47,CntyQryCensus!$A$206:$HH$248,ED$1) -> 0 | EE55: =VLOOKUP(DropDownList!$B$47,CntyQryCensus!$A$206:$HH$248,EE$1) -> 0 | EF55: =VLOOKUP(DropDownList!$B$47,CntyQryCensus!$A$206:$HH$248,EF$1) -> 3 | EG55: =VLOOKUP(DropDownList!$B$47,CntyQryCensus!$A$206:$HH$248,EG$1) -> 1 | EH55: =VLOOKUP(DropDownList!$B$47,CntyQryCensus!$A$206:$HH$248,EH$1) -> 1 | EI55: =VLOOKUP(DropDownList!$B$47,CntyQryCensus!$A$206:$HH$248,EI$1) -> 2 | EJ55: =VLOOKUP(DropDownList!$B$47,CntyQryCensus!$A$206:$HH$248,EJ$1) -> 0 | EK55: =VLOOKUP(DropDownList!$B$47,CntyQryCensus!$A$206:$HH$248,EK$1) -> 0 | EL55: =VLOOKUP(DropDownList!$B$47,CntyQryCensus!$A$206:$HH$248,EL$1) -> 0 | EM55: =VLOOKUP(DropDownList!$B$47,CntyQryCensus!$A$206:$HH$248,EM$1) -> 0 | EN55: =VLOOKUP(DropDownList!$B$47,CntyQryCensus!$A$206:$HH$248,EN$1) -> 37386 | EO55: =VLOOKUP(DropDownList!$B$47,CntyQryCensus!$A$206:$HH$248,EO$1) -> 26250 | EP55: =VLOOKUP(DropDownList!$B$47,CntyQryCensus!$A$206:$HH$248,EP$1) -> 42500 | EQ55: =VLOOKUP(DropDownList!$B$47,CntyQryCensus!$A$206:$HH$248,EQ$1) -> 46667 | ER55: =VLOOKUP(DropDownList!$B$47,CntyQryCensus!$A$206:$HH$248,ER$1) -> 41528 | ES55: =VLOOKUP(DropDownList!$B$47,CntyQryCensus!$A$206:$HH$248,ES$1) -> 38750 | ET55: =VLOOKUP(DropDownList!$B$47,CntyQryCensus!$A$206:$HH$248,ET$1) -> 27188 | EU55: =VLOOKUP(DropDownList!$B$47,CntyQryCensus!$A$206:$HH$248,EU$1) -> 23750 | EV55: =VLOOKUP(DropDownList!$B$47,CntyQryCensus!$A$206:$HH$248,EV$1) -> 325 | EW55: =VLOOKUP(DropDownList!$B$47,CntyQryCensus!$A$206:$HH$248,EW$1) -> 262 | EX55: =VLOOKUP(DropDownList!$B$47,CntyQryCensus!$A$206:$HH$248,EX$1) -> 63 | EY55: =VLOOKUP(DropDownList!$B$47,CntyQryCensus!$A$206:$HH$248,EY$1) -> 229 | EZ55: =VLOOKUP(DropDownList!$B$47,CntyQryCensus!$A$206:$HH$248,EZ$1) -> 96 | FA55: =VLOOKUP(DropDownList!$B$47,CntyQryCensus!$A$206:$HH$248,FA$1) -> 94 | FB55: =VLOOKUP(DropDownList!$B$47,CntyQryCensus!$A$206:$HH$248,FB$1) -> 231 | FC55: =VLOOKUP(DropDownList!$B$47,CntyQryCensus!$A$206:$HH$248,FC$1) -> 154 | FD55: =VLOOKUP(DropDownList!$B$47,CntyQryCensus!$A$206:$HH$248,FD$1) -> 171 | FE55: =VLOOKUP(DropDownList!$B$47,CntyQryCensus!$A$206:$HH$248,FE$1) -> 101 | FF55: =VLOOKUP(DropDownList!$B$47,CntyQryCensus!$A$206:$HH$248,FF$1) -> 224 | FG55: =VLOOKUP(DropDownList!$B$47,CntyQryCensus!$A$206:$HH$248,FG$1) -> 10 | FH55: =VLOOKUP(DropDownList!$B$47,CntyQryCensus!$A$206:$HH$248,FH$1) -> 315 | FI55: =VLOOKUP(DropDownList!$B$47,CntyQryCensus!$A$206:$HH$248,FI$1) -> 5 | FJ55: =VLOOKUP(DropDownList!$B$47,CntyQryCensus!$A$206:$HH$248,FJ$1) -> 320 | FK55: =VLOOKUP(DropDownList!$B$47,CntyQryCensus!$A$206:$HH$248,FK$1) -> 63 | FL55: =VLOOKUP(DropDownList!$B$47,CntyQryCensus!$A$206:$HH$248,FL$1) -> 262 | FM55: =VLOOKUP(DropDownList!$B$47,CntyQryCensus!$A$206:$HH$248,FM$1) -> 36 | FN55: =VLOOKUP(DropDownList!$B$47,CntyQryCensus!$A$206:$HH$248,FN$1) -> 289 | FO55: =VLOOKUP(DropDownList!$B$47,CntyQryCensus!$A$206:$HH$248,FO$1) -> 10630300 | FP55: =VLOOKUP(DropDownList!$B$47,CntyQryCensus!$A$206:$HH$248,FP$1) -> 8885300 | FQ55: =VLOOKUP(DropDownList!$B$47,CntyQryCensus!$A$206:$HH$248,FQ$1) -> 1745100 | FR55: =VLOOKUP(DropDownList!$B$47,CntyQryCensus!$A$206:$HH$248,FR$1) -> 1892700 | FS55: =VLOOKUP(DropDownList!$B$47,CntyQryCensus!$A$206:$HH$248,FS$1) -> 1170100 | FT55: =VLOOKUP(DropDownList!$B$47,CntyQryCensus!$A$206:$HH$248,FT$1) -> 47000 | FU55: =VLOOKUP(DropDownList!$B$47,CntyQryCensus!$A$206:$HH$248,FU$1) -> 11100 | FV55: =VLOOKUP(DropDownList!$B$47,CntyQryCensus!$A$206:$HH$248,FV$1) -> 965300 | FW55: =VLOOKUP(DropDownList!$B$47,CntyQryCensus!$A$206:$HH$248,FW$1) -> 237 | FX55: =VLOOKUP(DropDownList!$B$47,CntyQryCensus!$A$206:$HH$248,FX$1) -> 12 | FY55: =VLOOKUP(DropDownList!$B$47,CntyQryCensus!$A$206:$HH$248,FY$1) -> 6 | FZ55: =VLOOKUP(DropDownList!$B$47,CntyQryCensus!$A$206:$HH$248,FZ$1) -> 30 | GA55: =VLOOKUP(DropDownList!$B$47,CntyQryCensus!$A$206:$HH$248,GA$1) -> 9 | GB55: =VLOOKUP(DropDownList!$B$47,CntyQryCensus!$A$206:$HH$248,GB$1) -> 21 | GC55: =VLOOKUP(DropDownList!$B$47,CntyQryCensus!$A$206:$HH$248,GC$1) -> 14 | GD55: =VLOOKUP(DropDownList!$B$47,CntyQryCensus!$A$206:$HH$248,GD$1) -> 17 | GE55: =VLOOKUP(DropDownList!$B$47,CntyQryCensus!$A$206:$HH$248,GE$1) -> 30 | GF55: =VLOOKUP(DropDownList!$B$47,CntyQryCensus!$A$206:$HH$248,GF$1) -> 11 | GG55: =VLOOKUP(DropDownList!$B$47,CntyQryCensus!$A$206:$HH$248,GG$1) -> 24 | GH55: =VLOOKUP(DropDownList!$B$47,CntyQryCensus!$A$206:$HH$248,GH$1) -> 22 | GI55: =VLOOKUP(DropDownList!$B$47,CntyQryCensus!$A$206:$HH$248,GI$1) -> 26 | GJ55: =VLOOKUP(DropDownList!$B$47,CntyQryCensus!$A$206:$HH$248,GJ$1) -> 4 | GK55: =VLOOKUP(DropDownList!$B$47,CntyQryCensus!$A$206:$HH$248,GK$1) -> 7 | GL55: =VLOOKUP(DropDownList!$B$47,CntyQryCensus!$A$206:$HH$248,GL$1) -> 0 | GM55: =VLOOKUP(DropDownList!$B$47,CntyQryCensus!$A$206:$HH$248,GM$1) -> 4 | GN55: =VLOOKUP(DropDownList!$B$47,CntyQryCensus!$A$206:$HH$248,GN$1) -> 41397 | GO55: =VLOOKUP(DropDownList!$B$47,CntyQryCensus!$A$206:$HH$248,GO$1) -> 11973900 | GP55: =VLOOKUP(DropDownList!$B$47,CntyQryCensus!$A$206:$HH$248,GP$1) -> 88 | GQ55: =VLOOKUP(DropDownList!$B$47,CntyQryCensus!$A$206:$HH$248,GQ$1) -> 15 | GR55: =VLOOKUP(DropDownList!$B$47,CntyQryCensus!$A$206:$HH$248,GR$1) -> 6 | GS55: =VLOOKUP(DropDownList!$B$47,CntyQryCensus!$A$206:$HH$248,GS$1) -> 10 | GT55: =VLOOKUP(DropDownList!$B$47,CntyQryCensus!$A$206:$HH$248,GT$1) -> 8 | GU55: =VLOOKUP(DropDownList!$B$47,CntyQryCensus!$A$206:$HH$248,GU$1) -> 13 | GV55: =VLOOKUP(DropDownList!$B$47,CntyQryCensus!$A$206:$HH$248,GV$1) -> 10 | GW55: =VLOOKUP(DropDownList!$B$47,CntyQryCensus!$A$206:$HH$248,GW$1) -> 5 | GX55: =VLOOKUP(DropDownList!$B$47,CntyQryCensus!$A$206:$HH$248,GX$1) -> 2 | GY55: =VLOOKUP(DropDownList!$B$47,CntyQryCensus!$A$206:$HH$248,GY$1) -> 11 | GZ55: =VLOOKUP(DropDownList!$B$47,CntyQryCensus!$A$206:$HH$248,GZ$1) -> 6 | HA55: =VLOOKUP(DropDownList!$B$47,CntyQryCensus!$A$206:$HH$248,HA$1) -> 0 | HB55: =VLOOKUP(DropDownList!$B$47,CntyQryCensus!$A$206:$HH$248,HB$1) -> 0 | HC55: =VLOOKUP(DropDownList!$B$47,CntyQryCensus!$A$206:$HH$248,HC$1) -> 0 | HD55: =VLOOKUP(DropDownList!$B$47,CntyQryCensus!$A$206:$HH$248,HD$1) -> 0 | HE55: =VLOOKUP(DropDownList!$B$47,CntyQryCensus!$A$206:$HH$248,HE$1) -> 2 | HF55: =VLOOKUP(DropDownList!$B$47,CntyQryCensus!$A$206:$HH$248,HF$1) -> 0 | HG55: =VLOOKUP(DropDownList!$B$47,CntyQryCensus!$A$206:$HH$248,HG$1) -> 27083 | HH55: =VLOOKUP(DropDownList!$B$47,CntyQryCensus!$A$206:$HH$248,HH$1) -> 18132
A58: Census 2000 SummaryFile3 Sample Data - SF3TownQry2bPovertyChar
A59: NAME | B59: LOGRECNO | C59: COUNTY | D59: TotalPop | E59: P52Households1 | F59: P82PerCapitaInc | G59: P87PopForPovStatus | H59: P87PopWIncBelowPovStatus | I59: P87PopUnder5yrBelowPoverty | J59: P87Pop5yrBelowPoverty | K59: P87Pop5to11yrBelowPoverty | L59: P87Pop12to17yrBelowPoverty | M59: P87Pop18to64yrBelowPoverty | N59: P87Pop65to74yrBelowPoverty | O59: P87PopOver75yrBelowPoverty | P59: P87PopWIncAbovePovStatus | Q59: P87PopUnder5yrAbovePoverty | R59: P87Pop5yrAbovePoverty | S59: P87Pop5to11yrAbovePoverty | T59: P87Pop12to17yrAbovePoverty | U59: P87Pop18to64yrAbovePoverty | V59: P87Pop65to74yrAbovePoverty | W59: P87PopOver75yrAbovePoverty | X59: P90Families | Y59: P90FamWIncBelowPov | Z59: P90MarCupFamWIncBelowPov | AA59: P90MCFamWRltdChld<18WIncBelowPov | AB59: P90MCFamWRltdChld<5WIncBelowPov | AC59: P90MaleHhlrWIncBelowPov | AD59: P90MaleHhlrWRltdChld<18yrWIncBelowPov | AE59: P90MaleHhlrWRltdChld<5yrWIncBelowPov | AF59: P90FemaleHhlrWIncBelowPov | AG59: P90FemaleHhlrWRltdChld<18yWIncBelowPov | AH59: P90FemaleHhlrWRltdChld<5yWIncBelowPov | AI59: P90FamWIncAbovePov | AJ59: P90MarCupFamWIncAbovePov | AK59: P90MCFamWRltdChld<18WIncAbovePov | AL59: P90MCFamWRltdChld<5WIncAbovePov | AM59: P90MaleHhlrWIncAbovePov | AN59: P90MaleHhlrWRltdChld<18yrWIncAbovePov | AO59: P90MaleHhlrWRltdChld<5yrWIncAbovePov | AP59: P90FemaleHhlrWIncAbovePov | AQ59: P90FemaleHhlrWRltdChld<18yWIncAbovePov | AR59: P90FemaleHhlrWRltdChld<5yWIncAbovePov | AS59: P92Households | AT59: P92HHwIncBelowPov | AU59: P92FamHHwIncBelowPov | AV59: P92MCFamHHwIncBelowPov | AW59: P92MaleFamHHwIncBelowPov | AX59: P92FemaleFamHHwIncBelowPov | AY59: P92NonFamHHwIncBelowPov | AZ59: P92NonFamMaleHHwIncBelowPov | BA59: P92NonFamFemaleHHwIncBelowPov | BB59: P92HHwIncAbovePov | BC59: P92FamHHwIncAbovePov | BD59: P92MCFamHHwIncAbovePov | BE59: P92MaleFamHHwIncAbovePov | BF59: P92FemaleFamHHwIncAbovePov | BG59: P92NonFamHHwIncAbovePov | BH59: P92NonFamMaleHHwIncAbovePov | BI59: P92NonFamFemaleHHwIncAbovePov
A60: =VLOOKUP(DropDownList!$B$47,CntyQryCensus!$A$256:$BI$298,A$1) -> Acworth | B60: =VLOOKUP(DropDownList!$B$47,CntyQryCensus!$A$256:$BI$298,B$1) -> 0004141 | C60: =VLOOKUP(DropDownList!$B$47,CntyQryCensus!$A$256:$BI$298,C$1) -> 00260 | D60: =VLOOKUP(DropDownList!$B$47,CntyQryCensus!$A$256:$BI$298,D$1) -> 836 | E60: =VLOOKUP(DropDownList!$B$47,CntyQryCensus!$A$256:$BI$298,E$1) -> 325 | F60: =VLOOKUP(DropDownList!$B$47,CntyQryCensus!$A$256:$BI$298,F$1) -> 18132 | G60: =VLOOKUP(DropDownList!$B$47,CntyQryCensus!$A$256:$BI$298,G$1) -> 838 | H60: =VLOOKUP(DropDownList!$B$47,CntyQryCensus!$A$256:$BI$298,H$1) -> 131 | I60: =VLOOKUP(DropDownList!$B$47,CntyQryCensus!$A$256:$BI$298,I$1) -> 10 | J60: =VLOOKUP(DropDownList!$B$47,CntyQryCensus!$A$256:$BI$298,J$1) -> 0 | K60: =VLOOKUP(DropDownList!$B$47,CntyQryCensus!$A$256:$BI$298,K$1) -> 20 | L60: =VLOOKUP(DropDownList!$B$47,CntyQryCensus!$A$256:$BI$298,L$1) -> 26 | M60: =VLOOKUP(DropDownList!$B$47,CntyQryCensus!$A$256:$BI$298,M$1) -> 68 | N60: =VLOOKUP(DropDownList!$B$47,CntyQryCensus!$A$256:$BI$298,N$1) -> 7 | O60: =VLOOKUP(DropDownList!$B$47,CntyQryCensus!$A$256:$BI$298,O$1) -> 0 | P60: =VLOOKUP(DropDownList!$B$47,CntyQryCensus!$A$256:$BI$298,P$1) -> 707 | Q60: =VLOOKUP(DropDownList!$B$47,CntyQryCensus!$A$256:$BI$298,Q$1) -> 29 | R60: =VLOOKUP(DropDownList!$B$47,CntyQryCensus!$A$256:$BI$298,R$1) -> 9 | S60: =VLOOKUP(DropDownList!$B$47,CntyQryCensus!$A$256:$BI$298,S$1) -> 53 | T60: =VLOOKUP(DropDownList!$B$47,CntyQryCensus!$A$256:$BI$298,T$1) -> 61 | U60: =VLOOKUP(DropDownList!$B$47,CntyQryCensus!$A$256:$BI$298,U$1) -> 432 | V60: =VLOOKUP(DropDownList!$B$47,CntyQryCensus!$A$256:$BI$298,V$1) -> 76 | W60: =VLOOKUP(DropDownList!$B$47,CntyQryCensus!$A$256:$BI$298,W$1) -> 47 | X60: =VLOOKUP(DropDownList!$B$47,CntyQryCensus!$A$256:$BI$298,X$1) -> 237 | Y60: =VLOOKUP(DropDownList!$B$47,CntyQryCensus!$A$256:$BI$298,Y$1) -> 24 | Z60: =VLOOKUP(DropDownList!$B$47,CntyQryCensus!$A$256:$BI$298,Z$1) -> 15 | AA60: =VLOOKUP(DropDownList!$B$47,CntyQryCensus!$A$256:$BI$298,AA$1) -> 9 | AB60: =VLOOKUP(DropDownList!$B$47,CntyQryCensus!$A$256:$BI$298,AB$1) -> 0 | AC60: =VLOOKUP(DropDownList!$B$47,CntyQryCensus!$A$256:$BI$298,AC$1) -> 2 | AD60: =VLOOKUP(DropDownList!$B$47,CntyQryCensus!$A$256:$BI$298,AD$1) -> 2 | AE60: =VLOOKUP(DropDownList!$B$47,CntyQryCensus!$A$256:$BI$298,AE$1) -> 0 | AF60: =VLOOKUP(DropDownList!$B$47,CntyQryCensus!$A$256:$BI$298,AF$1) -> 7 | AG60: =VLOOKUP(DropDownList!$B$47,CntyQryCensus!$A$256:$BI$298,AG$1) -> 7 | AH60: =VLOOKUP(DropDownList!$B$47,CntyQryCensus!$A$256:$BI$298,AH$1) -> 2 | AI60: =VLOOKUP(DropDownList!$B$47,CntyQryCensus!$A$256:$BI$298,AI$1) -> 213 | AJ60: =VLOOKUP(DropDownList!$B$47,CntyQryCensus!$A$256:$BI$298,AJ$1) -> 182 | AK60: =VLOOKUP(DropDownList!$B$47,CntyQryCensus!$A$256:$BI$298,AK$1) -> 76 | AL60: =VLOOKUP(DropDownList!$B$47,CntyQryCensus!$A$256:$BI$298,AL$1) -> 10 | AM60: =VLOOKUP(DropDownList!$B$47,CntyQryCensus!$A$256:$BI$298,AM$1) -> 14 | AN60: =VLOOKUP(DropDownList!$B$47,CntyQryCensus!$A$256:$BI$298,AN$1) -> 6 | AO60: =VLOOKUP(DropDownList!$B$47,CntyQryCensus!$A$256:$BI$298,AO$1) -> 2 | AP60: =VLOOKUP(DropDownList!$B$47,CntyQryCensus!$A$256:$BI$298,AP$1) -> 17 | AQ60: =VLOOKUP(DropDownList!$B$47,CntyQryCensus!$A$256:$BI$298,AQ$1) -> 6 | AR60: =VLOOKUP(DropDownList!$B$47,CntyQryCensus!$A$256:$BI$298,AR$1) -> 0 | AS60: =VLOOKUP(DropDownList!$B$47,CntyQryCensus!$A$256:$BI$298,AS$1) -> 325 | AT60: =VLOOKUP(DropDownList!$B$47,CntyQryCensus!$A$256:$BI$298,AT$1) -> 34 | AU60: =VLOOKUP(DropDownList!$B$47,CntyQryCensus!$A$256:$BI$298,AU$1) -> 24 | AV60: =VLOOKUP(DropDownList!$B$47,CntyQryCensus!$A$256:$BI$298,AV$1) -> 15 | AW60: =VLOOKUP(DropDownList!$B$47,CntyQryCensus!$A$256:$BI$298,AW$1) -> 2 | AX60: =VLOOKUP(DropDownList!$B$47,CntyQryCensus!$A$256:$BI$298,AX$1) -> 7 | AY60: =VLOOKUP(DropDownList!$B$47,CntyQryCensus!$A$256:$BI$298,AY$1) -> 10 | AZ60: =VLOOKUP(DropDownList!$B$47,CntyQryCensus!$A$256:$BI$298,AZ$1) -> 4 | BA60: =VLOOKUP(DropDownList!$B$47,CntyQryCensus!$A$256:$BI$298,BA$1) -> 6 | BB60: =VLOOKUP(DropDownList!$B$47,CntyQryCensus!$A$256:$BI$298,BB$1) -> 291 | BC60: =VLOOKUP(DropDownList!$B$47,CntyQryCensus!$A$256:$BI$298,BC$1) -> 213 | BD60: =VLOOKUP(DropDownList!$B$47,CntyQryCensus!$A$256:$BI$298,BD$1) -> 182 | BE60: =VLOOKUP(DropDownList!$B$47,CntyQryCensus!$A$256:$BI$298,BE$1) -> 14 | BF60: =VLOOKUP(DropDownList!$B$47,CntyQryCensus!$A$256:$BI$298,BF$1) -> 17 | BG60: =VLOOKUP(DropDownList!$B$47,CntyQryCensus!$A$256:$BI$298,BG$1) -> 78 | BH60: =VLOOKUP(DropDownList!$B$47,CntyQryCensus!$A$256:$BI$298,BH$1) -> 47 | BI60: =VLOOKUP(DropDownList!$B$47,CntyQryCensus!$A$256:$BI$298,BI$1) -> 31
S61: =SUM(R60:T60) -> 123
A63: Census 2000 SummaryFile3 Sample Data - SF3TownQry7HousingA
A64: NAME | B64: LOGRECNO | C64: COUNTY | D64: TotalPop | E64: H1HousingUnitsTotal | F64: H2SampleHU | G64: H2SampleOccHU | H64: H2SampleVacHU | I64: H3HU100pctCount | J64: H5HUTotal | K64: H5HUUrban | L64: H5HUUrbanInUrbanAreas | M64: H5HUUrbanInUrbanClusters | N64: H5HURural | O64: H5HURuralFarm | P64: H5HURuralNonFarm | Q64: H7HUOcc | R64: H7HUOwnrOcc | S64: H7HURentrOcc | T64: H8HUVacant | U64: H8HUVacantForRent | V64: H8HUVacantForSale | W64: H8HUVacRentedorSold | X64: H8HUVacSeasonal | Y64: H8HUVacForMigrantWrkrs | Z64: H8HUOtherVacant | AA64: H14OccHUa | AB64: H14OwnerOccHU | AC64: H14OwnOccHuHh15to24 | AD64: H14OwnOccHuHh25to34 | AE64: H14OwnOccHuHh35to44 | AF64: H14OwnOccHuHh45to54 | AG64: H14OwnOccHuHh55to59 | AH64: H14OwnOccHuHh60to64 | AI64: H14OwnOccHuHh65to74 | AJ64: H14OwnOccHuHh75to84 | AK64: H14OwnOccHuHh85Over | AL64: H14RenterOccHU1 | AM64: H14RntrOccHuHh15to24 | AN64: H14RntrOccHuHh25to34 | AO64: H14RntrOccHuHh35to44 | AP64: H14RntrOccHuHh45to54 | AQ64: H14RntrOccHuHh55to59 | AR64: H14RntrOccHuHh60to64 | AS64: H14RntrOccHuHh65to74 | AT64: H14RntrOccHuHh75to84 | AU64: H14RntrOccHuHh85Over | AV64: H15PopInOccHU | AW64: H15PopInOwnOccHU1 | AX64: H15PopInRentOccHU1 | AY64: H17OccupHUb | AZ64: H17OwnOccHU2 | BA64: H17OwnOccHU1PersonHH | BB64: H17OwnOccHU2PersonHH | BC64: H17OwnOccHU3PersonHH | BD64: H17OwnOccHU4PersonHH | BE64: H17OwnOccHU5PersonHH | BF64: H17OwnOccHU6PersonHH | BG64: H17OwnOccHU7PlusPersonHH | BH64: H17RentOccHU2 | BI64: H17RntOccHU1PersonHH | BJ64: H17RntOccHU2PersonHH | BK64: H17RntOccHU3PersonHH | BL64: H17RntOccHU4PersonHH | BM64: H17RntOccHU5PersonHH | BN64: H17RntOccHU6PersonHH | BO64: H17RntOccHU7PlusPersonHH | BP64: H18AvgHHSize | BQ64: H18AvgHHSizeOwnOcc | BR64: H18AvgHHSizeRentOcc | BS64: H23TotHU | BT64: H23HU1Room | BU64: H23HU2Room | BV64: H23HU3Room | BW64: H23HU4Room | BX64: H23HU5Room | BY64: H23HU6Room | BZ64: H23HU7Room | CA64: H23HU8Room | CB64: H23HU9orMoreRoom | CC64: H24MedianNumRooms | CD64: H25AggregNumRooms | CE64: H30TotalHU | CF64: H30Det1HU | CG64: H30Att1HU | CH64: H30Units2 | CI64: H30Units3or4 | CJ64: H30Units5to9 | CK64: H30Units10to19 | CL64: H30Units20to49 | CM64: H30Units50orMore | CN64: H30UnitsMobileHome | CO64: H30UnitsBoatRv | CP64: H32OccHUcTotal | CQ64: H32OwnerOccHU3 | CR64: H32OwnOccHU1Det | CS64: H32OwnOccHU1Att | CT64: H32OwnOccHU2Unit | CU64: H32OwnOccHU3to4Unit | CV64: H32OwnOccHU5to9Unit | CW64: H32OwnOccHU10to19Unit | CX64: H32OwnOccHU20to49Unit | CY64: H32OwnOccHU50plusUnit | CZ64: H32OwnOccHUMobHom | DA64: H32OwnOccHUBoatRVOth | DB64: H32RentrOccHU3 | DC64: H32RntrOccHU1Det | DD64: H32RntrOccHU1Att | DE64: H32RntrOccHU2Unit | DF64: H32RntrOccHU3to4Unit | DG64: H32RntrOccHU5to9Unit | DH64: H32RntrOccHU10to19Unit | DI64: H32RntrOccHU20to49Unit | DJ64: H32RntrOccHU50PlusUnit | DK64: H32RntrOccHUMobHom | DL64: H32RntrOccHUBoatRVOth | DM64: H33TotPopInOccHU | DN64: H33PopInOwnOccHU2 | DO64: H33PopInOOHU1Det | DP64: H33PopInOOHU1Att | DQ64: H33PopInOOHU2unit | DR64: H33PopInOOHU3to4Unit | DS64: H33PopInOOHU5to9Unit | DT64: H33PopInOOHU10to19Unit | DU64: H33PopInOOHU20to49Unit | DV64: H33PopInOOHU50PlusUnit | DW64: H33PopInOOHUMobilHome | DX64: H33PopInOOHUOtherUnit | DY64: H33PopInRentOccHU2 | DZ64: H33PopInROHU1Det | EA64: H33PopInROHU1Att | EB64: H33PopInROHU2Unit | EC64: H33PopInROHU3to4Unit | ED64: H33PopInROHU5to9Unit | EE64: H33PopInROHU10to19Unit | EF64: H33PopInROHU20to49Unit | EG64: H33PopInROHU50PlusUnit | EH64: H33PopInROHUMobilHome | EI64: H33PopInROHUOtherUnit | EJ64: H36OccHousingUnitsdTotal | EK64: H36OwnerOccHU4 | EL64: H36OOHUBuilt99to0300 | EM64: H36OOHUBuilt95to98 | EN64: H36OOHUBuilt90to94 | EO64: H36OOHUBuilt80to89 | EP64: H36OOHUBuilt70to79 | EQ64: H36OOHUBuilt60to69 | ER64: H36OOHUBuilt50to59 | ES64: H36OOHUBuilt40to49 | ET64: H36OOHUBuilt39Earlier | EU64: H36RentOccHU4 | EV64: H36ROHUBuilt99to0300 | EW64: H36ROHUBuilt95to98 | EX64: H36ROHUBuilt90to94 | EY64: H36ROHUBuilt80to89 | EZ64: H36ROHUBuilt70to79 | FA64: H36ROHUBuilt60to69 | FB64: H36ROHUBuilt50to59 | FC64: H36ROHUBuilt40to49 | FD64: H36ROHUBuilt39Earlier | FE64: H40OccupHousUnitse | FF64: H40HeatFuelUtilGas | FG64: H40HeatFuelBotGas | FH64: H40HeatFuelElect | FI64: H40HeatFuelOilKero | FJ64: H40HeatFuelCoal | FK64: H40HeatFuelWood | FL64: H40HeatFuelSolar | FM64: H40HeatFuelOther | FN64: H40HeatFuelNone | FO64: H41TotalHU | FP64: H41HUNoBdrm | FQ64: H41HU1Bdrm | FR64: H41HU2Bdrm | FS64: H41HU3Bdrm | FT64: H41HU4Bdrm | FU64: H41HU5MoreBdrm | FV64: H42OccuHousUnitf | FW64: H42OwnerOccHU5 | FX64: H42OOHUNoBdrm | FY64: H42OOHU1Bdrm | FZ64: H42OOHU2Bdrm | GA64: H42OOHU3Bdrm | GB64: H42OOHU4Bdrm | GC64: H42OOHU5PlusBdrm | GD64: H42RentOccHU5 | GE64: H42ROHUNoBdrm | GF64: H42ROHU1Bdrm | GG64: H42ROHU2Bdrm | GH64: H42ROHU3Bdrm | GI64: H42ROHU4Bdrm | GJ64: H42ROHU5PlusBdrm | GK64: H48OccupHousUnitsg | GL64: H48OwnerOccHU6 | GM64: H48OOHUwCompltPlumFacil | GN64: H48OOHULackCompltPlumFacil | GO64: H48RentOccHU6 | GP64: H48ROHUwCompltPlumFacil | GQ64: H48ROHULackCompltPlumFacil | GR64: H51OccupHousUnitf | GS64: H51OwnerOccHU7 | GT64: H51OOHUwCompleteKitFacil | GU64: H51OOHULackCompleteKitFacil | GV64: H51RenterOccHU7 | GW64: H51ROHUwCompleteKitFacil | GX64: H51ROHULackCompleteKitFacil
A65: =VLOOKUP(DropDownList!$B47,CntyQryCensus!$A$306:$GX$348,A$1) -> Acworth | B65: =VLOOKUP(DropDownList!$B47,CntyQryCensus!$A$306:$GX$348,B$1) -> 0004141 | C65: =VLOOKUP(DropDownList!$B47,CntyQryCensus!$A$306:$GX$348,C$1) -> 00260 | D65: =VLOOKUP(DropDownList!$B47,CntyQryCensus!$A$306:$GX$348,D$1) -> 836 | E65: =VLOOKUP(DropDownList!$B47,CntyQryCensus!$A$306:$GX$348,E$1) -> 515 | F65: =VLOOKUP(DropDownList!$B47,CntyQryCensus!$A$306:$GX$348,F$1) -> 241 | G65: =VLOOKUP(DropDownList!$B47,CntyQryCensus!$A$306:$GX$348,G$1) -> 152 | H65: =VLOOKUP(DropDownList!$B47,CntyQryCensus!$A$306:$GX$348,H$1) -> 89 | I65: =VLOOKUP(DropDownList!$B47,CntyQryCensus!$A$306:$GX$348,I$1) -> 512 | J65: =VLOOKUP(DropDownList!$B47,CntyQryCensus!$A$306:$GX$348,J$1) -> 515 | K65: =VLOOKUP(DropDownList!$B47,CntyQryCensus!$A$306:$GX$348,K$1) -> 0 | L65: =VLOOKUP(DropDownList!$B47,CntyQryCensus!$A$306:$GX$348,L$1) -> 0 | M65: =VLOOKUP(DropDownList!$B47,CntyQryCensus!$A$306:$GX$348,M$1) -> 0 | N65: =VLOOKUP(DropDownList!$B47,CntyQryCensus!$A$306:$GX$348,N$1) -> 515 | O65: =VLOOKUP(DropDownList!$B47,CntyQryCensus!$A$306:$GX$348,O$1) -> 18 | P65: =VLOOKUP(DropDownList!$B47,CntyQryCensus!$A$306:$GX$348,P$1) -> 497 | Q65: =VLOOKUP(DropDownList!$B47,CntyQryCensus!$A$306:$GX$348,Q$1) -> 319 | R65: =VLOOKUP(DropDownList!$B47,CntyQryCensus!$A$306:$GX$348,R$1) -> 263 | S65: =VLOOKUP(DropDownList!$B47,CntyQryCensus!$A$306:$GX$348,S$1) -> 56 | T65: =VLOOKUP(DropDownList!$B47,CntyQryCensus!$A$306:$GX$348,T$1) -> 196 | U65: =VLOOKUP(DropDownList!$B47,CntyQryCensus!$A$306:$GX$348,U$1) -> 5 | V65: =VLOOKUP(DropDownList!$B47,CntyQryCensus!$A$306:$GX$348,V$1) -> 2 | W65: =VLOOKUP(DropDownList!$B47,CntyQryCensus!$A$306:$GX$348,W$1) -> 4 | X65: =VLOOKUP(DropDownList!$B47,CntyQryCensus!$A$306:$GX$348,X$1) -> 170 | Y65: =VLOOKUP(DropDownList!$B47,CntyQryCensus!$A$306:$GX$348,Y$1) -> 0 | Z65: =VLOOKUP(DropDownList!$B47,CntyQryCensus!$A$306:$GX$348,Z$1) -> 15 | AA65: =VLOOKUP(DropDownList!$B47,CntyQryCensus!$A$306:$GX$348,AA$1) -> 319 | AB65: =VLOOKUP(DropDownList!$B47,CntyQryCensus!$A$306:$GX$348,AB$1) -> 263 | AC65: =VLOOKUP(DropDownList!$B47,CntyQryCensus!$A$306:$GX$348,AC$1) -> 0 | AD65: =VLOOKUP(DropDownList!$B47,CntyQryCensus!$A$306:$GX$348,AD$1) -> 16 | AE65: =VLOOKUP(DropDownList!$B47,CntyQryCensus!$A$306:$GX$348,AE$1) -> 48 | AF65: =VLOOKUP(DropDownList!$B47,CntyQryCensus!$A$306:$GX$348,AF$1) -> 61 | AG65: =VLOOKUP(DropDownList!$B47,CntyQryCensus!$A$306:$GX$348,AG$1) -> 38 | AH65: =VLOOKUP(DropDownList!$B47,CntyQryCensus!$A$306:$GX$348,AH$1) -> 22 | AI65: =VLOOKUP(DropDownList!$B47,CntyQryCensus!$A$306:$GX$348,AI$1) -> 46 | AJ65: =VLOOKUP(DropDownList!$B47,CntyQryCensus!$A$306:$GX$348,AJ$1) -> 22 | AK65: =VLOOKUP(DropDownList!$B47,CntyQryCensus!$A$306:$GX$348,AK$1) -> 10 | AL65: =VLOOKUP(DropDownList!$B47,CntyQryCensus!$A$306:$GX$348,AL$1) -> 56 | AM65: =VLOOKUP(DropDownList!$B47,CntyQryCensus!$A$306:$GX$348,AM$1) -> 2 | AN65: =VLOOKUP(DropDownList!$B47,CntyQryCensus!$A$306:$GX$348,AN$1) -> 8 | AO65: =VLOOKUP(DropDownList!$B47,CntyQryCensus!$A$306:$GX$348,AO$1) -> 13 | AP65: =VLOOKUP(DropDownList!$B47,CntyQryCensus!$A$306:$GX$348,AP$1) -> 8 | AQ65: =VLOOKUP(DropDownList!$B47,CntyQryCensus!$A$306:$GX$348,AQ$1) -> 4 | AR65: =VLOOKUP(DropDownList!$B47,CntyQryCensus!$A$306:$GX$348,AR$1) -> 6 | AS65: =VLOOKUP(DropDownList!$B47,CntyQryCensus!$A$306:$GX$348,AS$1) -> 9 | AT65: =VLOOKUP(DropDownList!$B47,CntyQryCensus!$A$306:$GX$348,AT$1) -> 4 | AU65: =VLOOKUP(DropDownList!$B47,CntyQryCensus!$A$306:$GX$348,AU$1) -> 2 | AV65: =VLOOKUP(DropDownList!$B47,CntyQryCensus!$A$306:$GX$348,AV$1) -> 840 | AW65: =VLOOKUP(DropDownList!$B47,CntyQryCensus!$A$306:$GX$348,AW$1) -> 700 | AX65: =VLOOKUP(DropDownList!$B47,CntyQryCensus!$A$306:$GX$348,AX$1) -> 140 | AY65: =VLOOKUP(DropDownList!$B47,CntyQryCensus!$A$306:$GX$348,AY$1) -> 319 | AZ65: =VLOOKUP(DropDownList!$B47,CntyQryCensus!$A$306:$GX$348,AZ$1) -> 263 | BA65: =VLOOKUP(DropDownList!$B47,CntyQryCensus!$A$306:$GX$348,BA$1) -> 52 | BB65: =VLOOKUP(DropDownList!$B47,CntyQryCensus!$A$306:$GX$348,BB$1) -> 107 | BC65: =VLOOKUP(DropDownList!$B47,CntyQryCensus!$A$306:$GX$348,BC$1) -> 44 | BD65: =VLOOKUP(DropDownList!$B47,CntyQryCensus!$A$306:$GX$348,BD$1) -> 34 | BE65: =VLOOKUP(DropDownList!$B47,CntyQryCensus!$A$306:$GX$348,BE$1) -> 20 | BF65: =VLOOKUP(DropDownList!$B47,CntyQryCensus!$A$306:$GX$348,BF$1) -> 3 | BG65: =VLOOKUP(DropDownList!$B47,CntyQryCensus!$A$306:$GX$348,BG$1) -> 3 | BH65: =VLOOKUP(DropDownList!$B47,CntyQryCensus!$A$306:$GX$348,BH$1) -> 56 | BI65: =VLOOKUP(DropDownList!$B47,CntyQryCensus!$A$306:$GX$348,BI$1) -> 18 | BJ65: =VLOOKUP(DropDownList!$B47,CntyQryCensus!$A$306:$GX$348,BJ$1) -> 20 | BK65: =VLOOKUP(DropDownList!$B47,CntyQryCensus!$A$306:$GX$348,BK$1) -> 3 | BL65: =VLOOKUP(DropDownList!$B47,CntyQryCensus!$A$306:$GX$348,BL$1) -> 10 | BM65: =VLOOKUP(DropDownList!$B47,CntyQryCensus!$A$306:$GX$348,BM$1) -> 3 | BN65: =VLOOKUP(DropDownList!$B47,CntyQryCensus!$A$306:$GX$348,BN$1) -> 0 | BO65: =VLOOKUP(DropDownList!$B47,CntyQryCensus!$A$306:$GX$348,BO$1) -> 2 | BP65: =VLOOKUP(DropDownList!$B47,CntyQryCensus!$A$306:$GX$348,BP$1) -> 3 | BQ65: =VLOOKUP(DropDownList!$B47,CntyQryCensus!$A$306:$GX$348,BQ$1) -> 3 | BR65: =VLOOKUP(DropDownList!$B47,CntyQryCensus!$A$306:$GX$348,BR$1) -> 2 | BS65: =VLOOKUP(DropDownList!$B47,CntyQryCensus!$A$306:$GX$348,BS$1) -> 515 | BT65: =VLOOKUP(DropDownList!$B47,CntyQryCensus!$A$306:$GX$348,BT$1) -> 16 | BU65: =VLOOKUP(DropDownList!$B47,CntyQryCensus!$A$306:$GX$348,BU$1) -> 30 | BV65: =VLOOKUP(DropDownList!$B47,CntyQryCensus!$A$306:$GX$348,BV$1) -> 63 | BW65: =VLOOKUP(DropDownList!$B47,CntyQryCensus!$A$306:$GX$348,BW$1) -> 95 | BX65: =VLOOKUP(DropDownList!$B47,CntyQryCensus!$A$306:$GX$348,BX$1) -> 85 | BY65: =VLOOKUP(DropDownList!$B47,CntyQryCensus!$A$306:$GX$348,BY$1) -> 59 | BZ65: =VLOOKUP(DropDownList!$B47,CntyQryCensus!$A$306:$GX$348,BZ$1) -> 71 | CA65: =VLOOKUP(DropDownList!$B47,CntyQryCensus!$A$306:$GX$348,CA$1) -> 54 | CB65: =VLOOKUP(DropDownList!$B47,CntyQryCensus!$A$306:$GX$348,CB$1) -> 42 | CC65: =VLOOKUP(DropDownList!$B47,CntyQryCensus!$A$306:$GX$348,CC$1) -> 5 | CD65: =VLOOKUP(DropDownList!$B47,CntyQryCensus!$A$306:$GX$348,CD$1) -> 2773 | CE65: =VLOOKUP(DropDownList!$B47,CntyQryCensus!$A$306:$GX$348,CE$1) -> 515 | CF65: =VLOOKUP(DropDownList!$B47,CntyQryCensus!$A$306:$GX$348,CF$1) -> 458 | CG65: =VLOOKUP(DropDownList!$B47,CntyQryCensus!$A$306:$GX$348,CG$1) -> 4 | CH65: =VLOOKUP(DropDownList!$B47,CntyQryCensus!$A$306:$GX$348,CH$1) -> 9 | CI65: =VLOOKUP(DropDownList!$B47,CntyQryCensus!$A$306:$GX$348,CI$1) -> 0 | CJ65: =VLOOKUP(DropDownList!$B47,CntyQryCensus!$A$306:$GX$348,CJ$1) -> 0 | CK65: =VLOOKUP(DropDownList!$B47,CntyQryCensus!$A$306:$GX$348,CK$1) -> 0 | CL65: =VLOOKUP(DropDownList!$B47,CntyQryCensus!$A$306:$GX$348,CL$1) -> 0 | CM65: =VLOOKUP(DropDownList!$B47,CntyQryCensus!$A$306:$GX$348,CM$1) -> 0 | CN65: =VLOOKUP(DropDownList!$B47,CntyQryCensus!$A$306:$GX$348,CN$1) -> 40 | CO65: =VLOOKUP(DropDownList!$B47,CntyQryCensus!$A$306:$GX$348,CO$1) -> 4 | CP65: =VLOOKUP(DropDownList!$B47,CntyQryCensus!$A$306:$GX$348,CP$1) -> 319 | CQ65: =VLOOKUP(DropDownList!$B47,CntyQryCensus!$A$306:$GX$348,CQ$1) -> 263 | CR65: =VLOOKUP(DropDownList!$B47,CntyQryCensus!$A$306:$GX$348,CR$1) -> 240 | CS65: =VLOOKUP(DropDownList!$B47,CntyQryCensus!$A$306:$GX$348,CS$1) -> 0 | CT65: =VLOOKUP(DropDownList!$B47,CntyQryCensus!$A$306:$GX$348,CT$1) -> 2 | CU65: =VLOOKUP(DropDownList!$B47,CntyQryCensus!$A$306:$GX$348,CU$1) -> 0 | CV65: =VLOOKUP(DropDownList!$B47,CntyQryCensus!$A$306:$GX$348,CV$1) -> 0 | CW65: =VLOOKUP(DropDownList!$B47,CntyQryCensus!$A$306:$GX$348,CW$1) -> 0 | CX65: =VLOOKUP(DropDownList!$B47,CntyQryCensus!$A$306:$GX$348,CX$1) -> 0 | CY65: =VLOOKUP(DropDownList!$B47,CntyQryCensus!$A$306:$GX$348,CY$1) -> 0 | CZ65: =VLOOKUP(DropDownList!$B47,CntyQryCensus!$A$306:$GX$348,CZ$1) -> 21 | DA65: =VLOOKUP(DropDownList!$B47,CntyQryCensus!$A$306:$GX$348,DA$1) -> 0 | DB65: =VLOOKUP(DropDownList!$B47,CntyQryCensus!$A$306:$GX$348,DB$1) -> 56 | DC65: =VLOOKUP(DropDownList!$B47,CntyQryCensus!$A$306:$GX$348,DC$1) -> 44 | DD65: =VLOOKUP(DropDownList!$B47,CntyQryCensus!$A$306:$GX$348,DD$1) -> 2 | DE65: =VLOOKUP(DropDownList!$B47,CntyQryCensus!$A$306:$GX$348,DE$1) -> 4 | DF65: =VLOOKUP(DropDownList!$B47,CntyQryCensus!$A$306:$GX$348,DF$1) -> 0 | DG65: =VLOOKUP(DropDownList!$B47,CntyQryCensus!$A$306:$GX$348,DG$1) -> 0 | DH65: =VLOOKUP(DropDownList!$B47,CntyQryCensus!$A$306:$GX$348,DH$1) -> 0 | DI65: =VLOOKUP(DropDownList!$B47,CntyQryCensus!$A$306:$GX$348,DI$1) -> 0 | DJ65: =VLOOKUP(DropDownList!$B47,CntyQryCensus!$A$306:$GX$348,DJ$1) -> 0 | DK65: =VLOOKUP(DropDownList!$B47,CntyQryCensus!$A$306:$GX$348,DK$1) -> 6 | DL65: =VLOOKUP(DropDownList!$B47,CntyQryCensus!$A$306:$GX$348,DL$1) -> 0 | DM65: =VLOOKUP(DropDownList!$B47,CntyQryCensus!$A$306:$GX$348,DM$1) -> 840 | DN65: =VLOOKUP(DropDownList!$B47,CntyQryCensus!$A$306:$GX$348,DN$1) -> 700 | DO65: =VLOOKUP(DropDownList!$B47,CntyQryCensus!$A$306:$GX$348,DO$1) -> 638 | DP65: =VLOOKUP(DropDownList!$B47,CntyQryCensus!$A$306:$GX$348,DP$1) -> 0 | DQ65: =VLOOKUP(DropDownList!$B47,CntyQryCensus!$A$306:$GX$348,DQ$1) -> 5 | DR65: =VLOOKUP(DropDownList!$B47,CntyQryCensus!$A$306:$GX$348,DR$1) -> 0 | DS65: =VLOOKUP(DropDownList!$B47,CntyQryCensus!$A$306:$GX$348,DS$1) -> 0 | DT65: =VLOOKUP(DropDownList!$B47,CntyQryCensus!$A$306:$GX$348,DT$1) -> 0 | DU65: =VLOOKUP(DropDownList!$B47,CntyQryCensus!$A$306:$GX$348,DU$1) -> 0 | DV65: =VLOOKUP(DropDownList!$B47,CntyQryCensus!$A$306:$GX$348,DV$1) -> 0 | DW65: =VLOOKUP(DropDownList!$B47,CntyQryCensus!$A$306:$GX$348,DW$1) -> 57 | DX65: =VLOOKUP(DropDownList!$B47,CntyQryCensus!$A$306:$GX$348,DX$1) -> 0 | DY65: =VLOOKUP(DropDownList!$B47,CntyQryCensus!$A$306:$GX$348,DY$1) -> 140 | DZ65: =VLOOKUP(DropDownList!$B47,CntyQryCensus!$A$306:$GX$348,DZ$1) -> 121 | EA65: =VLOOKUP(DropDownList!$B47,CntyQryCensus!$A$306:$GX$348,EA$1) -> 2 | EB65: =VLOOKUP(DropDownList!$B47,CntyQryCensus!$A$306:$GX$348,EB$1) -> 8 | EC65: =VLOOKUP(DropDownList!$B47,CntyQryCensus!$A$306:$GX$348,EC$1) -> 0 | ED65: =VLOOKUP(DropDownList!$B47,CntyQryCensus!$A$306:$GX$348,ED$1) -> 0 | EE65: =VLOOKUP(DropDownList!$B47,CntyQryCensus!$A$306:$GX$348,EE$1) -> 0 | EF65: =VLOOKUP(DropDownList!$B47,CntyQryCensus!$A$306:$GX$348,EF$1) -> 0 | EG65: =VLOOKUP(DropDownList!$B47,CntyQryCensus!$A$306:$GX$348,EG$1) -> 0 | EH65: =VLOOKUP(DropDownList!$B47,CntyQryCensus!$A$306:$GX$348,EH$1) -> 9 | EI65: =VLOOKUP(DropDownList!$B47,CntyQryCensus!$A$306:$GX$348,EI$1) -> 0 | EJ65: =VLOOKUP(DropDownList!$B47,CntyQryCensus!$A$306:$GX$348,EJ$1) -> 319 | EK65: =VLOOKUP(DropDownList!$B47,CntyQryCensus!$A$306:$GX$348,EK$1) -> 263 | EL65: =VLOOKUP(DropDownList!$B47,CntyQryCensus!$A$306:$GX$348,EL$1) -> 0 | EM65: =VLOOKUP(DropDownList!$B47,CntyQryCensus!$A$306:$GX$348,EM$1) -> 8 | EN65: =VLOOKUP(DropDownList!$B47,CntyQryCensus!$A$306:$GX$348,EN$1) -> 11 | EO65: =VLOOKUP(DropDownList!$B47,CntyQryCensus!$A$306:$GX$348,EO$1) -> 54 | EP65: =VLOOKUP(DropDownList!$B47,CntyQryCensus!$A$306:$GX$348,EP$1) -> 44 | EQ65: =VLOOKUP(DropDownList!$B47,CntyQryCensus!$A$306:$GX$348,EQ$1) -> 18 | ER65: =VLOOKUP(DropDownList!$B47,CntyQryCensus!$A$306:$GX$348,ER$1) -> 9 | ES65: =VLOOKUP(DropDownList!$B47,CntyQryCensus!$A$306:$GX$348,ES$1) -> 14 | ET65: =VLOOKUP(DropDownList!$B47,CntyQryCensus!$A$306:$GX$348,ET$1) -> 105 | EU65: =VLOOKUP(DropDownList!$B47,CntyQryCensus!$A$306:$GX$348,EU$1) -> 56 | EV65: =VLOOKUP(DropDownList!$B47,CntyQryCensus!$A$306:$GX$348,EV$1) -> 0 | EW65: =VLOOKUP(DropDownList!$B47,CntyQryCensus!$A$306:$GX$348,EW$1) -> 0 | EX65: =VLOOKUP(DropDownList!$B47,CntyQryCensus!$A$306:$GX$348,EX$1) -> 2 | EY65: =VLOOKUP(DropDownList!$B47,CntyQryCensus!$A$306:$GX$348,EY$1) -> 2 | EZ65: =VLOOKUP(DropDownList!$B47,CntyQryCensus!$A$306:$GX$348,EZ$1) -> 4 | FA65: =VLOOKUP(DropDownList!$B47,CntyQryCensus!$A$306:$GX$348,FA$1) -> 4 | FB65: =VLOOKUP(DropDownList!$B47,CntyQryCensus!$A$306:$GX$348,FB$1) -> 7 | FC65: =VLOOKUP(DropDownList!$B47,CntyQryCensus!$A$306:$GX$348,FC$1) -> 2 | FD65: =VLOOKUP(DropDownList!$B47,CntyQryCensus!$A$306:$GX$348,FD$1) -> 35 | FE65: =VLOOKUP(DropDownList!$B47,CntyQryCensus!$A$306:$GX$348,FE$1) -> 319 | FF65: =VLOOKUP(DropDownList!$B47,CntyQryCensus!$A$306:$GX$348,FF$1) -> 3 | FG65: =VLOOKUP(DropDownList!$B47,CntyQryCensus!$A$306:$GX$348,FG$1) -> 35 | FH65: =VLOOKUP(DropDownList!$B47,CntyQryCensus!$A$306:$GX$348,FH$1) -> 0 | FI65: =VLOOKUP(DropDownList!$B47,CntyQryCensus!$A$306:$GX$348,FI$1) -> 149 | FJ65: =VLOOKUP(DropDownList!$B47,CntyQryCensus!$A$306:$GX$348,FJ$1) -> 0 | FK65: =VLOOKUP(DropDownList!$B47,CntyQryCensus!$A$306:$GX$348,FK$1) -> 132 | FL65: =VLOOKUP(DropDownList!$B47,CntyQryCensus!$A$306:$GX$348,FL$1) -> 0 | FM65: =VLOOKUP(DropDownList!$B47,CntyQryCensus!$A$306:$GX$348,FM$1) -> 0 | FN65: =VLOOKUP(DropDownList!$B47,CntyQryCensus!$A$306:$GX$348,FN$1) -> 0 | FO65: =VLOOKUP(DropDownList!$B47,CntyQryCensus!$A$306:$GX$348,FO$1) -> 515 | FP65: =VLOOKUP(DropDownList!$B47,CntyQryCensus!$A$306:$GX$348,FP$1) -> 16 | FQ65: =VLOOKUP(DropDownList!$B47,CntyQryCensus!$A$306:$GX$348,FQ$1) -> 95 | FR65: =VLOOKUP(DropDownList!$B47,CntyQryCensus!$A$306:$GX$348,FR$1) -> 170 | FS65: =VLOOKUP(DropDownList!$B47,CntyQryCensus!$A$306:$GX$348,FS$1) -> 148 | FT65: =VLOOKUP(DropDownList!$B47,CntyQryCensus!$A$306:$GX$348,FT$1) -> 62 | FU65: =VLOOKUP(DropDownList!$B47,CntyQryCensus!$A$306:$GX$348,FU$1) -> 24 | FV65: =VLOOKUP(DropDownList!$B47,CntyQryCensus!$A$306:$GX$348,FV$1) -> 319 | FW65: =VLOOKUP(DropDownList!$B47,CntyQryCensus!$A$306:$GX$348,FW$1) -> 263 | FX65: =VLOOKUP(DropDownList!$B47,CntyQryCensus!$A$306:$GX$348,FX$1) -> 1 | FY65: =VLOOKUP(DropDownList!$B47,CntyQryCensus!$A$306:$GX$348,FY$1) -> 19 | FZ65: =VLOOKUP(DropDownList!$B47,CntyQryCensus!$A$306:$GX$348,FZ$1) -> 82 | GA65: =VLOOKUP(DropDownList!$B47,CntyQryCensus!$A$306:$GX$348,GA$1) -> 108 | GB65: =VLOOKUP(DropDownList!$B47,CntyQryCensus!$A$306:$GX$348,GB$1) -> 34 | GC65: =VLOOKUP(DropDownList!$B47,CntyQryCensus!$A$306:$GX$348,GC$1) -> 19 | GD65: =VLOOKUP(DropDownList!$B47,CntyQryCensus!$A$306:$GX$348,GD$1) -> 56 | GE65: =VLOOKUP(DropDownList!$B47,CntyQryCensus!$A$306:$GX$348,GE$1) -> 0 | GF65: =VLOOKUP(DropDownList!$B47,CntyQryCensus!$A$306:$GX$348,GF$1) -> 10 | GG65: =VLOOKUP(DropDownList!$B47,CntyQryCensus!$A$306:$GX$348,GG$1) -> 22 | GH65: =VLOOKUP(DropDownList!$B47,CntyQryCensus!$A$306:$GX$348,GH$1) -> 16 | GI65: =VLOOKUP(DropDownList!$B47,CntyQryCensus!$A$306:$GX$348,GI$1) -> 5 | GJ65: =VLOOKUP(DropDownList!$B47,CntyQryCensus!$A$306:$GX$348,GJ$1) -> 3 | GK65: =VLOOKUP(DropDownList!$B47,CntyQryCensus!$A$306:$GX$348,GK$1) -> 319 | GL65: =VLOOKUP(DropDownList!$B47,CntyQryCensus!$A$306:$GX$348,GL$1) -> 263 | GM65: =VLOOKUP(DropDownList!$B47,CntyQryCensus!$A$306:$GX$348,GM$1) -> 256 | GN65: =VLOOKUP(DropDownList!$B47,CntyQryCensus!$A$306:$GX$348,GN$1) -> 7 | GO65: =VLOOKUP(DropDownList!$B47,CntyQryCensus!$A$306:$GX$348,GO$1) -> 56 | GP65: =VLOOKUP(DropDownList!$B47,CntyQryCensus!$A$306:$GX$348,GP$1) -> 52 | GQ65: =VLOOKUP(DropDownList!$B47,CntyQryCensus!$A$306:$GX$348,GQ$1) -> 4 | GR65: =VLOOKUP(DropDownList!$B47,CntyQryCensus!$A$306:$GX$348,GR$1) -> 319 | GS65: =VLOOKUP(DropDownList!$B47,CntyQryCensus!$A$306:$GX$348,GS$1) -> 263 | GT65: =VLOOKUP(DropDownList!$B47,CntyQryCensus!$A$306:$GX$348,GT$1) -> 254 | GU65: =VLOOKUP(DropDownList!$B47,CntyQryCensus!$A$306:$GX$348,GU$1) -> 9 | GV65: =VLOOKUP(DropDownList!$B47,CntyQryCensus!$A$306:$GX$348,GV$1) -> 56 | GW65: =VLOOKUP(DropDownList!$B47,CntyQryCensus!$A$306:$GX$348,GW$1) -> 47 | GX65: =VLOOKUP(DropDownList!$B47,CntyQryCensus!$A$306:$GX$348,GX$1) -> 9
A68: Census 2000 SummaryFile3 Sample Data - SF3TownQry8HousingCostA
A69: NAME | B69: LOGRECNO | C69: COUNTY | D69: TotalPop | E69: H62RntrOccHU | F69: H62RntrOccHUwRent | G69: H62ROHUGRent<100 | H69: H62ROHUGRent100to149 | I69: H62ROHUGRent150to199 | J69: H62ROHUGRent200to249 | K69: H62ROHUGRent250to299 | L69: H62ROHUGRent300to349 | M69: H62ROHUGRent350to399 | N69: H62ROHUGRent400to449 | O69: H62ROHUGRent450to499 | P69: H62ROHUGRent500to549 | Q69: H62ROHUGRent550to599 | R69: H62ROHUGRent600to649 | S69: H62ROHUGRent650to699 | T69: H62ROHUGRent700to749 | U69: H62ROHUGRent750to799 | V69: H62ROHUGRent800to899 | W69: H62ROHUGRent900to999 | X69: H62ROHUGRent1000to1249 | Y69: H62ROHUGRent1250to1499 | Z69: H62ROHUGRent1500to1999 | AA69: H62ROHUGRent2000> | AB69: H62ROHUNoGRent | AC69: H63MedianGrossRnt | AD69: H69RenterOccHsU | AE69: H69GRnt<10PctHHInc | AF69: H69GRnt10to15PctHHInc | AG69: H69GRnt15to20PctHHInc | AH69: H69GRnt20to25PctHHInc | AI69: H69GRnt25to30PctHHInc | AJ69: H69GRnt30to35PctHHInc | AK69: H69GRnt35to40PctHHInc | AL69: H69GRnt40to50PctHHInc | AM69: H69GRnt>50PctHHInc | AN69: H69GRntPctNotcomputed | AO69: H73RenterOccHU | AP69: H73ROHUHhInc<10k | AQ69: H73ROHUHhInc<10kRnt<20pct | AR69: H73ROHUHhInc<10kRnt20to25pct | AS69: H73ROHUHhInc<10kRnt25to30pct | AT69: H73ROHUHhInc<10kRnt30to35pct | AU69: H73ROHUHhInc<10kRnt>35pct | AV69: H73ROHUHhInc<10kPctNotComput | AW69: H73ROHUHhInc10to20k | AX69: H73ROHUHhInc10to20kRnt<20pct | AY69: H73ROHUHhInc10to20kRnt20to25pct | AZ69: H73ROHUHhInc10to20kRnt25to30pct | BA69: H73ROHUHhInc10to20kRnt30to35pct | BB69: H73ROHUHhInc10to20kRnt>35pct | BC69: H73ROHUHhInc10to20kRntPctNC | BD69: H73ROHUHhInc20to35k | BE69: H73ROHUHhInc20to35kRnt<20pct | BF69: H73ROHUHhInc20to35kRnt20to25pct | BG69: H73ROHUHhInc20to35kRnt25to30pct | BH69: H73ROHUHhInc20to35kRnt30to35pct | BI69: H73ROHUHhInc20to35kRnt>35pct | BJ69: H73ROHUHhInc20to35kRntPctNC | BK69: H73ROHUHhInc35to40k | BL69: H73ROHUHhInc35to40kRnt<20pct | BM69: H73ROHUHhInc35to40kRnt20to25pct | BN69: H73ROHUHhInc35to40kRnt25to30pct | BO69: H73ROHUHhInc35to40kRnt30to35pct | BP69: H73ROHUHhInc35to40kRnt>35pct | BQ69: H73ROHUHhInc35to40kRntPctNC | BR69: H73ROHUHhInc50to75k | BS69: H73ROHUHhInc50to75kRnt<20pct | BT69: H73ROHUHhInc50to75kRnt20to25pct | BU69: H73ROHUHhInc50to75kRnt25to30pct | BV69: H73ROHUHhInc50to75kRnt30to35pct | BW69: H73ROHUHhInc50to75kRnt>35pct | BX69: H73ROHUHhInc50to75kRntPctNC | BY69: H73ROHUHhInc75to100k | BZ69: H73ROHUHhInc75to100kRnt<20pct | CA69: H73ROHUHhInc75to100kRnt20to25pct | CB69: H73ROHUHhInc75to100kRnt25to30pct | CC69: H73ROHUHhInc75to100kRnt30to35pct | CD69: H73ROHUHhInc75to100kRnt>35pct | CE69: H73ROHUHhInc75to100kRntPctNC | CF69: H73ROHUHhInc>100k | CG69: H73ROHUHhInc>100kRnt<20pct | CH69: H73ROHUHhInc>100kRnt20to25pct | CI69: H73ROHUHhInc>100kRnt25to30pct | CJ69: H73ROHUHhInc>100kRnt30to35pct | CK69: H73ROHUHhInc>100kRnt>35pct | CL69: H73ROHUHhInc>100kRntPctNC | CM69: H73ROHUHhInc>100kRntPctNC
A70: =VLOOKUP(DropDownList!$B$47,CntyQryCensus!$A$357:$CM$399,A$1) -> Acworth | B70: =VLOOKUP(DropDownList!$B$47,CntyQryCensus!$A$357:$CM$399,B$1) -> 0004141 | C70: =VLOOKUP(DropDownList!$B$47,CntyQryCensus!$A$357:$CM$399,C$1) -> 00260 | D70: =VLOOKUP(DropDownList!$B$47,CntyQryCensus!$A$357:$CM$399,D$1) -> 836 | E70: =VLOOKUP(DropDownList!$B$47,CntyQryCensus!$A$357:$CM$399,E$1) -> 33 | F70: =VLOOKUP(DropDownList!$B$47,CntyQryCensus!$A$357:$CM$399,F$1) -> 25 | G70: =VLOOKUP(DropDownList!$B$47,CntyQryCensus!$A$357:$CM$399,G$1) -> 0 | H70: =VLOOKUP(DropDownList!$B$47,CntyQryCensus!$A$357:$CM$399,H$1) -> 0 | I70: =VLOOKUP(DropDownList!$B$47,CntyQryCensus!$A$357:$CM$399,I$1) -> 0 | J70: =VLOOKUP(DropDownList!$B$47,CntyQryCensus!$A$357:$CM$399,J$1) -> 0 | K70: =VLOOKUP(DropDownList!$B$47,CntyQryCensus!$A$357:$CM$399,K$1) -> 2 | L70: =VLOOKUP(DropDownList!$B$47,CntyQryCensus!$A$357:$CM$399,L$1) -> 0 | M70: =VLOOKUP(DropDownList!$B$47,CntyQryCensus!$A$357:$CM$399,M$1) -> 0 | N70: =VLOOKUP(DropDownList!$B$47,CntyQryCensus!$A$357:$CM$399,N$1) -> 6 | O70: =VLOOKUP(DropDownList!$B$47,CntyQryCensus!$A$357:$CM$399,O$1) -> 0 | P70: =VLOOKUP(DropDownList!$B$47,CntyQryCensus!$A$357:$CM$399,P$1) -> 0 | Q70: =VLOOKUP(DropDownList!$B$47,CntyQryCensus!$A$357:$CM$399,Q$1) -> 4 | R70: =VLOOKUP(DropDownList!$B$47,CntyQryCensus!$A$357:$CM$399,R$1) -> 2 | S70: =VLOOKUP(DropDownList!$B$47,CntyQryCensus!$A$357:$CM$399,S$1) -> 0 | T70: =VLOOKUP(DropDownList!$B$47,CntyQryCensus!$A$357:$CM$399,T$1) -> 9 | U70: =VLOOKUP(DropDownList!$B$47,CntyQryCensus!$A$357:$CM$399,U$1) -> 2 | V70: =VLOOKUP(DropDownList!$B$47,CntyQryCensus!$A$357:$CM$399,V$1) -> 0 | W70: =VLOOKUP(DropDownList!$B$47,CntyQryCensus!$A$357:$CM$399,W$1) -> 0 | X70: =VLOOKUP(DropDownList!$B$47,CntyQryCensus!$A$357:$CM$399,X$1) -> 0 | Y70: =VLOOKUP(DropDownList!$B$47,CntyQryCensus!$A$357:$CM$399,Y$1) -> 0 | Z70: =VLOOKUP(DropDownList!$B$47,CntyQryCensus!$A$357:$CM$399,Z$1) -> 0 | AA70: =VLOOKUP(DropDownList!$B$47,CntyQryCensus!$A$357:$CM$399,AA$1) -> 0 | AB70: =VLOOKUP(DropDownList!$B$47,CntyQryCensus!$A$357:$CM$399,AB$1) -> 8 | AC70: =VLOOKUP(DropDownList!$B$47,CntyQryCensus!$A$357:$CM$399,AC$1) -> 613 | AD70: =VLOOKUP(DropDownList!$B$47,CntyQryCensus!$A$357:$CM$399,AD$1) -> 33 | AE70: =VLOOKUP(DropDownList!$B$47,CntyQryCensus!$A$357:$CM$399,AE$1) -> 7 | AF70: =VLOOKUP(DropDownList!$B$47,CntyQryCensus!$A$357:$CM$399,AF$1) -> 0 | AG70: =VLOOKUP(DropDownList!$B$47,CntyQryCensus!$A$357:$CM$399,AG$1) -> 2 | AH70: =VLOOKUP(DropDownList!$B$47,CntyQryCensus!$A$357:$CM$399,AH$1) -> 3 | AI70: =VLOOKUP(DropDownList!$B$47,CntyQryCensus!$A$357:$CM$399,AI$1) -> 4 | AJ70: =VLOOKUP(DropDownList!$B$47,CntyQryCensus!$A$357:$CM$399,AJ$1) -> 2 | AK70: =VLOOKUP(DropDownList!$B$47,CntyQryCensus!$A$357:$CM$399,AK$1) -> 0 | AL70: =VLOOKUP(DropDownList!$B$47,CntyQryCensus!$A$357:$CM$399,AL$1) -> 0 | AM70: =VLOOKUP(DropDownList!$B$47,CntyQryCensus!$A$357:$CM$399,AM$1) -> 4 | AN70: =VLOOKUP(DropDownList!$B$47,CntyQryCensus!$A$357:$CM$399,AN$1) -> 11 | AO70: =VLOOKUP(DropDownList!$B$47,CntyQryCensus!$A$357:$CM$399,AO$1) -> 33 | AP70: =VLOOKUP(DropDownList!$B$47,CntyQryCensus!$A$357:$CM$399,AP$1) -> 9 | AQ70: =VLOOKUP(DropDownList!$B$47,CntyQryCensus!$A$357:$CM$399,AQ$1) -> 0 | AR70: =VLOOKUP(DropDownList!$B$47,CntyQryCensus!$A$357:$CM$399,AR$1) -> 0 | AS70: =VLOOKUP(DropDownList!$B$47,CntyQryCensus!$A$357:$CM$399,AS$1) -> 0 | AT70: =VLOOKUP(DropDownList!$B$47,CntyQryCensus!$A$357:$CM$399,AT$1) -> 0 | AU70: =VLOOKUP(DropDownList!$B$47,CntyQryCensus!$A$357:$CM$399,AU$1) -> 4 | AV70: =VLOOKUP(DropDownList!$B$47,CntyQryCensus!$A$357:$CM$399,AV$1) -> 5 | AW70: =VLOOKUP(DropDownList!$B$47,CntyQryCensus!$A$357:$CM$399,AW$1) -> 2 | AX70: =VLOOKUP(DropDownList!$B$47,CntyQryCensus!$A$357:$CM$399,AX$1) -> 0 | AY70: =VLOOKUP(DropDownList!$B$47,CntyQryCensus!$A$357:$CM$399,AY$1) -> 0 | AZ70: =VLOOKUP(DropDownList!$B$47,CntyQryCensus!$A$357:$CM$399,AZ$1) -> 0 | BA70: =VLOOKUP(DropDownList!$B$47,CntyQryCensus!$A$357:$CM$399,BA$1) -> 2 | BB70: =VLOOKUP(DropDownList!$B$47,CntyQryCensus!$A$357:$CM$399,BB$1) -> 0 | BC70: =VLOOKUP(DropDownList!$B$47,CntyQryCensus!$A$357:$CM$399,BC$1) -> 0 | BD70: =VLOOKUP(DropDownList!$B$47,CntyQryCensus!$A$357:$CM$399,BD$1) -> 10 | BE70: =VLOOKUP(DropDownList!$B$47,CntyQryCensus!$A$357:$CM$399,BE$1) -> 0 | BF70: =VLOOKUP(DropDownList!$B$47,CntyQryCensus!$A$357:$CM$399,BF$1) -> 0 | BG70: =VLOOKUP(DropDownList!$B$47,CntyQryCensus!$A$357:$CM$399,BG$1) -> 4 | BH70: =VLOOKUP(DropDownList!$B$47,CntyQryCensus!$A$357:$CM$399,BH$1) -> 0 | BI70: =VLOOKUP(DropDownList!$B$47,CntyQryCensus!$A$357:$CM$399,BI$1) -> 0 | BJ70: =VLOOKUP(DropDownList!$B$47,CntyQryCensus!$A$357:$CM$399,BJ$1) -> 6 | BK70: =VLOOKUP(DropDownList!$B$47,CntyQryCensus!$A$357:$CM$399,BK$1) -> 3 | BL70: =VLOOKUP(DropDownList!$B$47,CntyQryCensus!$A$357:$CM$399,BL$1) -> 0 | BM70: =VLOOKUP(DropDownList!$B$47,CntyQryCensus!$A$357:$CM$399,BM$1) -> 3 | BN70: =VLOOKUP(DropDownList!$B$47,CntyQryCensus!$A$357:$CM$399,BN$1) -> 0 | BO70: =VLOOKUP(DropDownList!$B$47,CntyQryCensus!$A$357:$CM$399,BO$1) -> 0 | BP70: =VLOOKUP(DropDownList!$B$47,CntyQryCensus!$A$357:$CM$399,BP$1) -> 0 | BQ70: =VLOOKUP(DropDownList!$B$47,CntyQryCensus!$A$357:$CM$399,BQ$1) -> 0 | BR70: =VLOOKUP(DropDownList!$B$47,CntyQryCensus!$A$357:$CM$399,BR$1) -> 6 | BS70: =VLOOKUP(DropDownList!$B$47,CntyQryCensus!$A$357:$CM$399,BS$1) -> 6 | BT70: =VLOOKUP(DropDownList!$B$47,CntyQryCensus!$A$357:$CM$399,BT$1) -> 0 | BU70: =VLOOKUP(DropDownList!$B$47,CntyQryCensus!$A$357:$CM$399,BU$1) -> 0 | BV70: =VLOOKUP(DropDownList!$B$47,CntyQryCensus!$A$357:$CM$399,BV$1) -> 0 | BW70: =VLOOKUP(DropDownList!$B$47,CntyQryCensus!$A$357:$CM$399,BW$1) -> 0 | BX70: =VLOOKUP(DropDownList!$B$47,CntyQryCensus!$A$357:$CM$399,BX$1) -> 0 | BY70: =VLOOKUP(DropDownList!$B$47,CntyQryCensus!$A$357:$CM$399,BY$1) -> 3 | BZ70: =VLOOKUP(DropDownList!$B$47,CntyQryCensus!$A$357:$CM$399,BZ$1) -> 3 | CA70: =VLOOKUP(DropDownList!$B$47,CntyQryCensus!$A$357:$CM$399,CA$1) -> 0 | CB70: =VLOOKUP(DropDownList!$B$47,CntyQryCensus!$A$357:$CM$399,CB$1) -> 0 | CC70: =VLOOKUP(DropDownList!$B$47,CntyQryCensus!$A$357:$CM$399,CC$1) -> 0 | CD70: =VLOOKUP(DropDownList!$B$47,CntyQryCensus!$A$357:$CM$399,CD$1) -> 0 | CE70: =VLOOKUP(DropDownList!$B$47,CntyQryCensus!$A$357:$CM$399,CE$1) -> 0 | CF70: =VLOOKUP(DropDownList!$B$47,CntyQryCensus!$A$357:$CM$399,CF$1) -> 0 | CG70: =VLOOKUP(DropDownList!$B$47,CntyQryCensus!$A$357:$CM$399,CG$1) -> 0 | CH70: =VLOOKUP(DropDownList!$B$47,CntyQryCensus!$A$357:$CM$399,CH$1) -> 0 | CI70: =VLOOKUP(DropDownList!$B$47,CntyQryCensus!$A$357:$CM$399,CI$1) -> 0 | CJ70: =VLOOKUP(DropDownList!$B$47,CntyQryCensus!$A$357:$CM$399,CJ$1) -> 0 | CK70: =VLOOKUP(DropDownList!$B$47,CntyQryCensus!$A$357:$CM$399,CK$1) -> 0 | CL70: =VLOOKUP(DropDownList!$B$47,CntyQryCensus!$A$357:$CM$399,CL$1) -> 0 | CM70: =VLOOKUP(DropDownList!$B$47,CntyQryCensus!$A$357:$CM$399,CM$1) -> 0
A73: Census 2000 SummaryFile3 Sample Data - SF3TownQry8HousingCostB
A74: NAME | B74: LOGRECNO | C74: COUNTY | D74: TotalPop | E74: H74SpecOwnerOccHU | F74: H74OOHU<10k | G74: H74OOHU10to15k | H74: H74OOHU15to20k | I74: H74OOHU20to25k | J74: H74OOHU25to30k | K74: H74OOHU30to35k | L74: H74OOHU35to40k | M74: H74OOHU40to50k | N74: H74OOHU50to60k | O74: H74OOHU60to70k | P74: H74OOHU70to80k | Q74: H74OOHU80to90k | R74: H74OOHU90to100k | S74: H74OOHU100to125k | T74: H74OOHU125to150k | U74: H74OOHU150to175k | V74: H74OOHU175to200k | W74: H74OOHU200to250k | X74: H74OOHU250to300k | Y74: H74OOHU300to400k | Z74: H74OOHU400to500k | AA74: H74OOHU500to750k | AB74: H74OOHU750to1000k | AC74: H74OOHU1000kmore | AD74: H76OOHUMedianVal | AE74: H84OwnerOccHU | AF74: H84AllOOHU<10k | AG74: H84AllOOHU10to15k | AH74: H84AllOOHU15to20k | AI74: H84AllOOHU20to25k | AJ74: H84AllOOHU25to30k | AK74: H84AllOOHU30to35k | AL74: H84AllOOHU35to40k | AM74: H84AllOOHU40to50k | AN74: H84AllOOHU50to60k | AO74: H84AllOOHU60to70k | AP74: H84AllOOHU70to80k | AQ74: H84AllOOHU80to90k | AR74: H84AllOOHU90to100k | AS74: H84AllOOHU100to125k | AT74: H84AllOOHU125to150k | AU74: H84AllOOHU150to175k | AV74: H84AllOOHU175to200k | AW74: H84AllOOHU200to250k | AX74: H84AllOOHU250to300k | AY74: H84AllOOHU300to400k | AZ74: H84AllOOHU400to500k | BA74: H84AllOOHU500to750k | BB74: H84AllOOHU750to1000k | BC74: H84AllOOHU1000kmore | BD74: H85OOHUMedVal | BE74: H90SOOHU | BF74: H90HUwMorgt | BG74: H90HUwMtgHC<200 | BH74: H90HUwMtgHC200to300 | BI74: H90HUwMtgHC300to400 | BJ74: H90HUwMtgHC400to500 | BK74: H90HUwMtgHC500to600 | BL74: H90HUwMtgHC600to700 | BM74: H90HUwMtgHC700to800 | BN74: H90HUwMtgHC800to900 | BO74: H90HUwMtgHC900to1000 | BP74: H90HUwMtgHC1000to1250 | BQ74: H90HUwMtgHC1250to1500 | BR74: H90HUwMtgHC1500to2000 | BS74: H90HUwMtgHC2000to2500 | BT74: H90HUwMtgHC2500to3000 | BU74: H90HUwMtgHC3000orMore | BV74: H90HUwOutMorgt | BW74: H90HUwOutMtgHC<100 | BX74: H90HUwOutMtgHC100to150 | BY74: H90HUwOutMtgHC150to200 | BZ74: H90HUwOutMtgHC200to250 | CA74: H90HUwOutMtgHC250to300 | CB74: H90HUwOutMtgHC300to350 | CC74: H90HUwOutMtgHC350to400 | CD74: H90HUwOutMtgHC400to500 | CE74: H90HUwOutMtgHC500to600 | CF74: H90HUwOutMtgHC600to700 | CG74: H90HUwOutMtgHC700to800 | CH74: H90HUwOutMtgHC800to900 | CI74: H90HUwOutMtgHC900to1000 | CJ74: H90HUwOutMtgHC1000orMore | CK74: H91MedianOCHUwMtg | CL74: H91MedianOCHUwOutMtg | CM74: H94SpecOOHU | CN74: H94HUwMortg | CO74: H94HUwMtgHC<10pct | CP74: H94HUwMtgHC10to15pct | CQ74: H94HUwMtgHC15to20pct | CR74: H94HUwMtgHC20to25pct | CS74: H94HUwMtgHC25to30pct | CT74: H94HUwMtgHC30to35pct | CU74: H94HUwMtgHC35to40pct | CV74: H94HUwMtgHC40to50pct | CW74: H94HUwMtgHC50pctOrMore | CX74: H94HUwMtgHCpctNotComp | CY74: H94HUWOutMortg | CZ74: H94HUWOutMortgHC<10pct | DA74: H94HUWOutMortgHC10to15pct | DB74: H94HUWOutMortgHC15to20pct | DC74: H94HUWOutMortgHC20to25pct | DD74: H94HUWOutMortgHC25to30pct | DE74: H94HUWOutMortgHC30to35pct | DF74: H94HUWOutMortgHC35to40pct | DG74: H94HUWOutMortgHC40to50pct | DH74: H94HUWOutMortgHC50pctOrMore | DI74: H94HUWOutMortgHCpctNotComp | DJ74: H97SpecifOwnOccHU | DK74: H97SOOHUInc<10k | DL74: H97SOOHUInc<10kHC<20pct | DM74: H97SOOHUInc<10kHC20to25pct | DN74: H97SOOHUInc<10kHC25to30pct | DO74: H97SOOHUInc<10kHC30to35pct | DP74: H97SOOHUInc<10kHC>35pct | DQ74: H97SOOHUInc<10kHCpctNotComput | DR74: H97SOOHUInc10to20k | DS74: H97SOOHUInc10to20kHC<20pct | DT74: H97SOOHUInc10to20kHC20to25pct | DU74: H97SOOHUInc10to20kHC25to30pct | DV74: H97SOOHUInc10to20kHC30to35pct | DW74: H97SOOHUInc10to20kHC>35pct | DX74: H97SOOHUInc10to20kHCpctNotComput | DY74: H97SOOHUInc20to35k | DZ74: H97SOOHUInc20to35kRC<20pct | EA74: H97SOOHUInc20to35kRC20to25pct | EB74: H97SOOHUInc20to35kRC25to30pct | EC74: H97SOOHUInc20to35kRC30to35pct | ED74: H97SOOHUInc20to35kRC>35pct | EE74: H97SOOHUInc20to35kRCpctNotComput | EF74: H97SOOHUInc35to50k | EG74: H97SOOHUInc35to50kRC<20pct | EH74: H97SOOHUInc35to50kRC20to25pct | EI74: H97SOOHUInc35to50kRC25to30pct | EJ74: H97SOOHUInc35to50kRC30to35pct | EK74: H97SOOHUInc35to50kRC>35pct | EL74: H97SOOHUInc35to50kRCpctNotCompute | EM74: H97SOOHUInc50to75k | EN74: H97SOOHUInc50to75kRC<20pct | EO74: H97SOOHUInc50to75kRC20to25pct | EP74: H97SOOHUInc50to75kRC25to30pct | EQ74: H97SOOHUInc50to75kRC30to35pct | ER74: H97SOOHUInc50to75kRC>35pct | ES74: H97SOOHUInc50to75kRCpctNotComput | ET74: H97SOOHUInc75to100k | EU74: H97SOOHUInc75to100kRC<20pct | EV74: H97SOOHUInc75to100kRC20to25pct | EW74: H97SOOHUInc75to100kRC25to30pct | EX74: H97SOOHUInc75to100kRC30to35pct | EY74: H97SOOHUInc75to100kRC>35pct | EZ74: H97SOOHUInc75to100kRCpctNotCompute | FA74: H97SOOHUInc100to150k | FB74: H97SOOHUInc100to150kRC<20pct | FC74: H97SOOHUInc100to150kRC20to25pct | FD74: H97SOOHUInc100to150kRC25to30pct | FE74: H97SOOHUInc100to150kRC30to35pct | FF74: H97SOOHUInc100to150kRC>35pct | FG74: H97SOOHUInc100to150kRCpctNotCompute | FH74: H97SOOHUInc>150k | FI74: H97SOOHUInc>150kRC<20pct | FJ74: H97SOOHUInc>150kRC20to25pct | FK74: H97SOOHUInc>150kRC25to30pct | FL74: H97SOOHUInc>150kRC30to35pct | FM74: H97SOOHUInc>150kRC>35pct | FN74: H97SOOHUInc>150kRCpctNotCompute
A75: =VLOOKUP(DropDownList!$B$47,CntyQryCensus!$A$408:$FN$450,A$1) -> Acworth | B75: =VLOOKUP(DropDownList!$B$47,CntyQryCensus!$A$408:$FN$450,B$1) -> 0004141 | C75: =VLOOKUP(DropDownList!$B$47,CntyQryCensus!$A$408:$FN$450,C$1) -> 00260 | D75: =VLOOKUP(DropDownList!$B$47,CntyQryCensus!$A$408:$FN$450,D$1) -> 836 | E75: =VLOOKUP(DropDownList!$B$47,CntyQryCensus!$A$408:$FN$450,E$1) -> 124 | F75: =VLOOKUP(DropDownList!$B$47,CntyQryCensus!$A$408:$FN$450,F$1) -> 0 | G75: =VLOOKUP(DropDownList!$B$47,CntyQryCensus!$A$408:$FN$450,G$1) -> 0 | H75: =VLOOKUP(DropDownList!$B$47,CntyQryCensus!$A$408:$FN$450,H$1) -> 0 | I75: =VLOOKUP(DropDownList!$B$47,CntyQryCensus!$A$408:$FN$450,I$1) -> 5 | J75: =VLOOKUP(DropDownList!$B$47,CntyQryCensus!$A$408:$FN$450,J$1) -> 0 | K75: =VLOOKUP(DropDownList!$B$47,CntyQryCensus!$A$408:$FN$450,K$1) -> 1 | L75: =VLOOKUP(DropDownList!$B$47,CntyQryCensus!$A$408:$FN$450,L$1) -> 2 | M75: =VLOOKUP(DropDownList!$B$47,CntyQryCensus!$A$408:$FN$450,M$1) -> 4 | N75: =VLOOKUP(DropDownList!$B$47,CntyQryCensus!$A$408:$FN$450,N$1) -> 4 | O75: =VLOOKUP(DropDownList!$B$47,CntyQryCensus!$A$408:$FN$450,O$1) -> 7 | P75: =VLOOKUP(DropDownList!$B$47,CntyQryCensus!$A$408:$FN$450,P$1) -> 18 | Q75: =VLOOKUP(DropDownList!$B$47,CntyQryCensus!$A$408:$FN$450,Q$1) -> 17 | R75: =VLOOKUP(DropDownList!$B$47,CntyQryCensus!$A$408:$FN$450,R$1) -> 15 | S75: =VLOOKUP(DropDownList!$B$47,CntyQryCensus!$A$408:$FN$450,S$1) -> 25 | T75: =VLOOKUP(DropDownList!$B$47,CntyQryCensus!$A$408:$FN$450,T$1) -> 9 | U75: =VLOOKUP(DropDownList!$B$47,CntyQryCensus!$A$408:$FN$450,U$1) -> 2 | V75: =VLOOKUP(DropDownList!$B$47,CntyQryCensus!$A$408:$FN$450,V$1) -> 7 | W75: =VLOOKUP(DropDownList!$B$47,CntyQryCensus!$A$408:$FN$450,W$1) -> 2 | X75: =VLOOKUP(DropDownList!$B$47,CntyQryCensus!$A$408:$FN$450,X$1) -> 4 | Y75: =VLOOKUP(DropDownList!$B$47,CntyQryCensus!$A$408:$FN$450,Y$1) -> 0 | Z75: =VLOOKUP(DropDownList!$B$47,CntyQryCensus!$A$408:$FN$450,Z$1) -> 0 | AA75: =VLOOKUP(DropDownList!$B$47,CntyQryCensus!$A$408:$FN$450,AA$1) -> 2 | AB75: =VLOOKUP(DropDownList!$B$47,CntyQryCensus!$A$408:$FN$450,AB$1) -> 0 | AC75: =VLOOKUP(DropDownList!$B$47,CntyQryCensus!$A$408:$FN$450,AC$1) -> 0 | AD75: =VLOOKUP(DropDownList!$B$47,CntyQryCensus!$A$408:$FN$450,AD$1) -> 92700 | AE75: =VLOOKUP(DropDownList!$B$47,CntyQryCensus!$A$408:$FN$450,AE$1) -> 263 | AF75: =VLOOKUP(DropDownList!$B$47,CntyQryCensus!$A$408:$FN$450,AF$1) -> 0 | AG75: =VLOOKUP(DropDownList!$B$47,CntyQryCensus!$A$408:$FN$450,AG$1) -> 0 | AH75: =VLOOKUP(DropDownList!$B$47,CntyQryCensus!$A$408:$FN$450,AH$1) -> 3 | AI75: =VLOOKUP(DropDownList!$B$47,CntyQryCensus!$A$408:$FN$450,AI$1) -> 7 | AJ75: =VLOOKUP(DropDownList!$B$47,CntyQryCensus!$A$408:$FN$450,AJ$1) -> 6 | AK75: =VLOOKUP(DropDownList!$B$47,CntyQryCensus!$A$408:$FN$450,AK$1) -> 1 | AL75: =VLOOKUP(DropDownList!$B$47,CntyQryCensus!$A$408:$FN$450,AL$1) -> 8 | AM75: =VLOOKUP(DropDownList!$B$47,CntyQryCensus!$A$408:$FN$450,AM$1) -> 9 | AN75: =VLOOKUP(DropDownList!$B$47,CntyQryCensus!$A$408:$FN$450,AN$1) -> 8 | AO75: =VLOOKUP(DropDownList!$B$47,CntyQryCensus!$A$408:$FN$450,AO$1) -> 18 | AP75: =VLOOKUP(DropDownList!$B$47,CntyQryCensus!$A$408:$FN$450,AP$1) -> 27 | AQ75: =VLOOKUP(DropDownList!$B$47,CntyQryCensus!$A$408:$FN$450,AQ$1) -> 33 | AR75: =VLOOKUP(DropDownList!$B$47,CntyQryCensus!$A$408:$FN$450,AR$1) -> 27 | AS75: =VLOOKUP(DropDownList!$B$47,CntyQryCensus!$A$408:$FN$450,AS$1) -> 48 | AT75: =VLOOKUP(DropDownList!$B$47,CntyQryCensus!$A$408:$FN$450,AT$1) -> 19 | AU75: =VLOOKUP(DropDownList!$B$47,CntyQryCensus!$A$408:$FN$450,AU$1) -> 9 | AV75: =VLOOKUP(DropDownList!$B$47,CntyQryCensus!$A$408:$FN$450,AV$1) -> 13 | AW75: =VLOOKUP(DropDownList!$B$47,CntyQryCensus!$A$408:$FN$450,AW$1) -> 17 | AX75: =VLOOKUP(DropDownList!$B$47,CntyQryCensus!$A$408:$FN$450,AX$1) -> 8 | AY75: =VLOOKUP(DropDownList!$B$47,CntyQryCensus!$A$408:$FN$450,AY$1) -> 0 | AZ75: =VLOOKUP(DropDownList!$B$47,CntyQryCensus!$A$408:$FN$450,AZ$1) -> 0 | BA75: =VLOOKUP(DropDownList!$B$47,CntyQryCensus!$A$408:$FN$450,BA$1) -> 2 | BB75: =VLOOKUP(DropDownList!$B$47,CntyQryCensus!$A$408:$FN$450,BB$1) -> 0 | BC75: =VLOOKUP(DropDownList!$B$47,CntyQryCensus!$A$408:$FN$450,BC$1) -> 0 | BD75: =VLOOKUP(DropDownList!$B$47,CntyQryCensus!$A$408:$FN$450,BD$1) -> 94300 | BE75: =VLOOKUP(DropDownList!$B$47,CntyQryCensus!$A$408:$FN$450,BE$1) -> 124 | BF75: =VLOOKUP(DropDownList!$B$47,CntyQryCensus!$A$408:$FN$450,BF$1) -> 68 | BG75: =VLOOKUP(DropDownList!$B$47,CntyQryCensus!$A$408:$FN$450,BG$1) -> 0 | BH75: =VLOOKUP(DropDownList!$B$47,CntyQryCensus!$A$408:$FN$450,BH$1) -> 0 | BI75: =VLOOKUP(DropDownList!$B$47,CntyQryCensus!$A$408:$FN$450,BI$1) -> 0 | BJ75: =VLOOKUP(DropDownList!$B$47,CntyQryCensus!$A$408:$FN$450,BJ$1) -> 2 | BK75: =VLOOKUP(DropDownList!$B$47,CntyQryCensus!$A$408:$FN$450,BK$1) -> 9 | BL75: =VLOOKUP(DropDownList!$B$47,CntyQryCensus!$A$408:$FN$450,BL$1) -> 4 | BM75: =VLOOKUP(DropDownList!$B$47,CntyQryCensus!$A$408:$FN$450,BM$1) -> 5 | BN75: =VLOOKUP(DropDownList!$B$47,CntyQryCensus!$A$408:$FN$450,BN$1) -> 20 | BO75: =VLOOKUP(DropDownList!$B$47,CntyQryCensus!$A$408:$FN$450,BO$1) -> 2 | BP75: =VLOOKUP(DropDownList!$B$47,CntyQryCensus!$A$408:$FN$450,BP$1) -> 18 | BQ75: =VLOOKUP(DropDownList!$B$47,CntyQryCensus!$A$408:$FN$450,BQ$1) -> 4 | BR75: =VLOOKUP(DropDownList!$B$47,CntyQryCensus!$A$408:$FN$450,BR$1) -> 2 | BS75: =VLOOKUP(DropDownList!$B$47,CntyQryCensus!$A$408:$FN$450,BS$1) -> 2 | BT75: =VLOOKUP(DropDownList!$B$47,CntyQryCensus!$A$408:$FN$450,BT$1) -> 0 | BU75: =VLOOKUP(DropDownList!$B$47,CntyQryCensus!$A$408:$FN$450,BU$1) -> 0 | BV75: =VLOOKUP(DropDownList!$B$47,CntyQryCensus!$A$408:$FN$450,BV$1) -> 56 | BW75: =VLOOKUP(DropDownList!$B$47,CntyQryCensus!$A$408:$FN$450,BW$1) -> 0 | BX75: =VLOOKUP(DropDownList!$B$47,CntyQryCensus!$A$408:$FN$450,BX$1) -> 0 | BY75: =VLOOKUP(DropDownList!$B$47,CntyQryCensus!$A$408:$FN$450,BY$1) -> 4 | BZ75: =VLOOKUP(DropDownList!$B$47,CntyQryCensus!$A$408:$FN$450,BZ$1) -> 7 | CA75: =VLOOKUP(DropDownList!$B$47,CntyQryCensus!$A$408:$FN$450,CA$1) -> 11 | CB75: =VLOOKUP(DropDownList!$B$47,CntyQryCensus!$A$408:$FN$450,CB$1) -> 3 | CC75: =VLOOKUP(DropDownList!$B$47,CntyQryCensus!$A$408:$FN$450,CC$1) -> 2 | CD75: =VLOOKUP(DropDownList!$B$47,CntyQryCensus!$A$408:$FN$450,CD$1) -> 14 | CE75: =VLOOKUP(DropDownList!$B$47,CntyQryCensus!$A$408:$FN$450,CE$1) -> 9 | CF75: =VLOOKUP(DropDownList!$B$47,CntyQryCensus!$A$408:$FN$450,CF$1) -> 6 | CG75: =VLOOKUP(DropDownList!$B$47,CntyQryCensus!$A$408:$FN$450,CG$1) -> 0 | CH75: =VLOOKUP(DropDownList!$B$47,CntyQryCensus!$A$408:$FN$450,CH$1) -> 0 | CI75: =VLOOKUP(DropDownList!$B$47,CntyQryCensus!$A$408:$FN$450,CI$1) -> 0 | CJ75: =VLOOKUP(DropDownList!$B$47,CntyQryCensus!$A$408:$FN$450,CJ$1) -> 0 | CK75: =VLOOKUP(DropDownList!$B$47,CntyQryCensus!$A$408:$FN$450,CK$1) -> 870 | CL75: =VLOOKUP(DropDownList!$B$47,CntyQryCensus!$A$408:$FN$450,CL$1) -> 407 | CM75: =VLOOKUP(DropDownList!$B$47,CntyQryCensus!$A$408:$FN$450,CM$1) -> 124 | CN75: =VLOOKUP(DropDownList!$B$47,CntyQryCensus!$A$408:$FN$450,CN$1) -> 68 | CO75: =VLOOKUP(DropDownList!$B$47,CntyQryCensus!$A$408:$FN$450,CO$1) -> 2 | CP75: =VLOOKUP(DropDownList!$B$47,CntyQryCensus!$A$408:$FN$450,CP$1) -> 15 | CQ75: =VLOOKUP(DropDownList!$B$47,CntyQryCensus!$A$408:$FN$450,CQ$1) -> 12 | CR75: =VLOOKUP(DropDownList!$B$47,CntyQryCensus!$A$408:$FN$450,CR$1) -> 12 | CS75: =VLOOKUP(DropDownList!$B$47,CntyQryCensus!$A$408:$FN$450,CS$1) -> 19 | CT75: =VLOOKUP(DropDownList!$B$47,CntyQryCensus!$A$408:$FN$450,CT$1) -> 6 | CU75: =VLOOKUP(DropDownList!$B$47,CntyQryCensus!$A$408:$FN$450,CU$1) -> 0 | CV75: =VLOOKUP(DropDownList!$B$47,CntyQryCensus!$A$408:$FN$450,CV$1) -> 0 | CW75: =VLOOKUP(DropDownList!$B$47,CntyQryCensus!$A$408:$FN$450,CW$1) -> 2 | CX75: =VLOOKUP(DropDownList!$B$47,CntyQryCensus!$A$408:$FN$450,CX$1) -> 0 | CY75: =VLOOKUP(DropDownList!$B$47,CntyQryCensus!$A$408:$FN$450,CY$1) -> 56 | CZ75: =VLOOKUP(DropDownList!$B$47,CntyQryCensus!$A$408:$FN$450,CZ$1) -> 18 | DA75: =VLOOKUP(DropDownList!$B$47,CntyQryCensus!$A$408:$FN$450,DA$1) -> 8 | DB75: =VLOOKUP(DropDownList!$B$47,CntyQryCensus!$A$408:$FN$450,DB$1) -> 10 | DC75: =VLOOKUP(DropDownList!$B$47,CntyQryCensus!$A$408:$FN$450,DC$1) -> 5 | DD75: =VLOOKUP(DropDownList!$B$47,CntyQryCensus!$A$408:$FN$450,DD$1) -> 4 | DE75: =VLOOKUP(DropDownList!$B$47,CntyQryCensus!$A$408:$FN$450,DE$1) -> 2 | DF75: =VLOOKUP(DropDownList!$B$47,CntyQryCensus!$A$408:$FN$450,DF$1) -> 0 | DG75: =VLOOKUP(DropDownList!$B$47,CntyQryCensus!$A$408:$FN$450,DG$1) -> 2 | DH75: =VLOOKUP(DropDownList!$B$47,CntyQryCensus!$A$408:$FN$450,DH$1) -> 6 | DI75: =VLOOKUP(DropDownList!$B$47,CntyQryCensus!$A$408:$FN$450,DI$1) -> 1 | DJ75: =VLOOKUP(DropDownList!$B$47,CntyQryCensus!$A$408:$FN$450,DJ$1) -> 124 | DK75: =VLOOKUP(DropDownList!$B$47,CntyQryCensus!$A$408:$FN$450,DK$1) -> 9 | DL75: =VLOOKUP(DropDownList!$B$47,CntyQryCensus!$A$408:$FN$450,DL$1) -> 0 | DM75: =VLOOKUP(DropDownList!$B$47,CntyQryCensus!$A$408:$FN$450,DM$1) -> 0 | DN75: =VLOOKUP(DropDownList!$B$47,CntyQryCensus!$A$408:$FN$450,DN$1) -> 0 | DO75: =VLOOKUP(DropDownList!$B$47,CntyQryCensus!$A$408:$FN$450,DO$1) -> 0 | DP75: =VLOOKUP(DropDownList!$B$47,CntyQryCensus!$A$408:$FN$450,DP$1) -> 8 | DQ75: =VLOOKUP(DropDownList!$B$47,CntyQryCensus!$A$408:$FN$450,DQ$1) -> 1 | DR75: =VLOOKUP(DropDownList!$B$47,CntyQryCensus!$A$408:$FN$450,DR$1) -> 9 | DS75: =VLOOKUP(DropDownList!$B$47,CntyQryCensus!$A$408:$FN$450,DS$1) -> 4 | DT75: =VLOOKUP(DropDownList!$B$47,CntyQryCensus!$A$408:$FN$450,DT$1) -> 1 | DU75: =VLOOKUP(DropDownList!$B$47,CntyQryCensus!$A$408:$FN$450,DU$1) -> 2 | DV75: =VLOOKUP(DropDownList!$B$47,CntyQryCensus!$A$408:$FN$450,DV$1) -> 2 | DW75: =VLOOKUP(DropDownList!$B$47,CntyQryCensus!$A$408:$FN$450,DW$1) -> 0 | DX75: =VLOOKUP(DropDownList!$B$47,CntyQryCensus!$A$408:$FN$450,DX$1) -> 0 | DY75: =VLOOKUP(DropDownList!$B$47,CntyQryCensus!$A$408:$FN$450,DY$1) -> 23 | DZ75: =VLOOKUP(DropDownList!$B$47,CntyQryCensus!$A$408:$FN$450,DZ$1) -> 10 | EA75: =VLOOKUP(DropDownList!$B$47,CntyQryCensus!$A$408:$FN$450,EA$1) -> 4 | EB75: =VLOOKUP(DropDownList!$B$47,CntyQryCensus!$A$408:$FN$450,EB$1) -> 7 | EC75: =VLOOKUP(DropDownList!$B$47,CntyQryCensus!$A$408:$FN$450,EC$1) -> 2 | ED75: =VLOOKUP(DropDownList!$B$47,CntyQryCensus!$A$408:$FN$450,ED$1) -> 0 | EE75: =VLOOKUP(DropDownList!$B$47,CntyQryCensus!$A$408:$FN$450,EE$1) -> 0 | EF75: =VLOOKUP(DropDownList!$B$47,CntyQryCensus!$A$408:$FN$450,EF$1) -> 29 | EG75: =VLOOKUP(DropDownList!$B$47,CntyQryCensus!$A$408:$FN$450,EG$1) -> 14 | EH75: =VLOOKUP(DropDownList!$B$47,CntyQryCensus!$A$408:$FN$450,EH$1) -> 4 | EI75: =VLOOKUP(DropDownList!$B$47,CntyQryCensus!$A$408:$FN$450,EI$1) -> 7 | EJ75: =VLOOKUP(DropDownList!$B$47,CntyQryCensus!$A$408:$FN$450,EJ$1) -> 2 | EK75: =VLOOKUP(DropDownList!$B$47,CntyQryCensus!$A$408:$FN$450,EK$1) -> 2 | EL75: =VLOOKUP(DropDownList!$B$47,CntyQryCensus!$A$408:$FN$450,EL$1) -> 0 | EM75: =VLOOKUP(DropDownList!$B$47,CntyQryCensus!$A$408:$FN$450,EM$1) -> 35 | EN75: =VLOOKUP(DropDownList!$B$47,CntyQryCensus!$A$408:$FN$450,EN$1) -> 20 | EO75: =VLOOKUP(DropDownList!$B$47,CntyQryCensus!$A$408:$FN$450,EO$1) -> 8 | EP75: =VLOOKUP(DropDownList!$B$47,CntyQryCensus!$A$408:$FN$450,EP$1) -> 5 | EQ75: =VLOOKUP(DropDownList!$B$47,CntyQryCensus!$A$408:$FN$450,EQ$1) -> 2 | ER75: =VLOOKUP(DropDownList!$B$47,CntyQryCensus!$A$408:$FN$450,ER$1) -> 0 | ES75: =VLOOKUP(DropDownList!$B$47,CntyQryCensus!$A$408:$FN$450,ES$1) -> 0 | ET75: =VLOOKUP(DropDownList!$B$47,CntyQryCensus!$A$408:$FN$450,ET$1) -> 15 | EU75: =VLOOKUP(DropDownList!$B$47,CntyQryCensus!$A$408:$FN$450,EU$1) -> 13 | EV75: =VLOOKUP(DropDownList!$B$47,CntyQryCensus!$A$408:$FN$450,EV$1) -> 0 | EW75: =VLOOKUP(DropDownList!$B$47,CntyQryCensus!$A$408:$FN$450,EW$1) -> 2 | EX75: =VLOOKUP(DropDownList!$B$47,CntyQryCensus!$A$408:$FN$450,EX$1) -> 0 | EY75: =VLOOKUP(DropDownList!$B$47,CntyQryCensus!$A$408:$FN$450,EY$1) -> 0 | EZ75: =VLOOKUP(DropDownList!$B$47,CntyQryCensus!$A$408:$FN$450,EZ$1) -> 0 | FA75: =VLOOKUP(DropDownList!$B$47,CntyQryCensus!$A$408:$FN$450,FA$1) -> 4 | FB75: =VLOOKUP(DropDownList!$B$47,CntyQryCensus!$A$408:$FN$450,FB$1) -> 4 | FC75: =VLOOKUP(DropDownList!$B$47,CntyQryCensus!$A$408:$FN$450,FC$1) -> 0 | FD75: =VLOOKUP(DropDownList!$B$47,CntyQryCensus!$A$408:$FN$450,FD$1) -> 0 | FE75: =VLOOKUP(DropDownList!$B$47,CntyQryCensus!$A$408:$FN$450,FE$1) -> 0 | FF75: =VLOOKUP(DropDownList!$B$47,CntyQryCensus!$A$408:$FN$450,FF$1) -> 0 | FG75: =VLOOKUP(DropDownList!$B$47,CntyQryCensus!$A$408:$FN$450,FG$1) -> 0 | FH75: =VLOOKUP(DropDownList!$B$47,CntyQryCensus!$A$408:$FN$450,FH$1) -> 0 | FI75: =VLOOKUP(DropDownList!$B$47,CntyQryCensus!$A$408:$FN$450,FI$1) -> 0 | FJ75: =VLOOKUP(DropDownList!$B$47,CntyQryCensus!$A$408:$FN$450,FJ$1) -> 0 | FK75: =VLOOKUP(DropDownList!$B$47,CntyQryCensus!$A$408:$FN$450,FK$1) -> 0 | FL75: =VLOOKUP(DropDownList!$B$47,CntyQryCensus!$A$408:$FN$450,FL$1) -> 0 | FM75: =VLOOKUP(DropDownList!$B$47,CntyQryCensus!$A$408:$FN$450,FM$1) -> 0 | FN75: =VLOOKUP(DropDownList!$B$47,CntyQryCensus!$A$408:$FN$450,FN$1) -> 0
A78: Census 2000 SummaryFile3 Sample Data - SF3TownQry9HHIncomeByTenure
A79: NAME | B79: LOGRECNO | C79: COUNTY | D79: TotalPop | E79: HCT11OccHU | F79: HCT11OwnOccHU | G79: HCT11OOHUInc<5K | H79: HCT11OOHUInc5to10K | I79: HCT11OOHUInc10to15K | J79: HCT11OOHUInc15to20K | K79: HCT11OOHUInc20to25K | L79: HCT11OOHUInc25to35K | M79: HCT11OOHUInc35to50K | N79: HCT11OOHUInc50to75K | O79: HCT11OOHUInc75to100K | P79: HCT11OOHUInc100to150K | Q79: HCT11OOHUInc>150K | R79: HCT11RentOccHU | S79: HCT11ROHUInc<5K | T79: HCT11ROHUInc5to10K | U79: HCT11ROHUInc10to15K | V79: HCT11ROHUInc15to20K | W79: HCT11ROHUInc20to25K | X79: HCT11ROHUInc25to35K | Y79: HCT11ROHUInc35to50K | Z79: HCT11ROHUInc50to75K | AA79: HCT11ROHUInc75to100K | AB79: HCT11ROHUInc100to150K | AC79: HCT11ROHUInc>150K | AD79: HCT12MedHHInc | AE79: HCT12MedOwnOccHHInc | AF79: HCT12MedRentOccHHInc | AG79: Summary Level
A80: =VLOOKUP(DropDownList!$B$47,CntyQryCensus!$A$459:$AG$501,A$1) -> Acworth | B80: =VLOOKUP(DropDownList!$B$47,CntyQryCensus!$A$459:$AG$501,B$1) -> 0004141 | C80: =VLOOKUP(DropDownList!$B$47,CntyQryCensus!$A$459:$AG$501,C$1) -> 00260 | D80: =VLOOKUP(DropDownList!$B$47,CntyQryCensus!$A$459:$AG$501,D$1) -> Acworth town | E80: =VLOOKUP(DropDownList!$B$47,CntyQryCensus!$A$459:$AG$501,E$1) -> 019 | F80: =VLOOKUP(DropDownList!$B$47,CntyQryCensus!$A$459:$AG$501,F$1) -> 836 | G80: =VLOOKUP(DropDownList!$B$47,CntyQryCensus!$A$459:$AG$501,G$1) -> 319 | H80: =VLOOKUP(DropDownList!$B$47,CntyQryCensus!$A$459:$AG$501,H$1) -> 263 | I80: =VLOOKUP(DropDownList!$B$47,CntyQryCensus!$A$459:$AG$501,I$1) -> 5 | J80: =VLOOKUP(DropDownList!$B$47,CntyQryCensus!$A$459:$AG$501,J$1) -> 8 | K80: =VLOOKUP(DropDownList!$B$47,CntyQryCensus!$A$459:$AG$501,K$1) -> 7 | L80: =VLOOKUP(DropDownList!$B$47,CntyQryCensus!$A$459:$AG$501,L$1) -> 36 | M80: =VLOOKUP(DropDownList!$B$47,CntyQryCensus!$A$459:$AG$501,M$1) -> 15 | N80: =VLOOKUP(DropDownList!$B$47,CntyQryCensus!$A$459:$AG$501,N$1) -> 43 | O80: =VLOOKUP(DropDownList!$B$47,CntyQryCensus!$A$459:$AG$501,O$1) -> 59 | P80: =VLOOKUP(DropDownList!$B$47,CntyQryCensus!$A$459:$AG$501,P$1) -> 53 | Q80: =VLOOKUP(DropDownList!$B$47,CntyQryCensus!$A$459:$AG$501,Q$1) -> 21 | R80: =VLOOKUP(DropDownList!$B$47,CntyQryCensus!$A$459:$AG$501,R$1) -> 12 | S80: =VLOOKUP(DropDownList!$B$47,CntyQryCensus!$A$459:$AG$501,S$1) -> 4 | T80: =VLOOKUP(DropDownList!$B$47,CntyQryCensus!$A$459:$AG$501,T$1) -> 56 | U80: =VLOOKUP(DropDownList!$B$47,CntyQryCensus!$A$459:$AG$501,U$1) -> 7 | V80: =VLOOKUP(DropDownList!$B$47,CntyQryCensus!$A$459:$AG$501,V$1) -> 4 | W80: =VLOOKUP(DropDownList!$B$47,CntyQryCensus!$A$459:$AG$501,W$1) -> 6 | X80: =VLOOKUP(DropDownList!$B$47,CntyQryCensus!$A$459:$AG$501,X$1) -> 5 | Y80: =VLOOKUP(DropDownList!$B$47,CntyQryCensus!$A$459:$AG$501,Y$1) -> 2 | Z80: =VLOOKUP(DropDownList!$B$47,CntyQryCensus!$A$459:$AG$501,Z$1) -> 12 | AA80: =VLOOKUP(DropDownList!$B$47,CntyQryCensus!$A$459:$AG$501,AA$1) -> 9 | AB80: =VLOOKUP(DropDownList!$B$47,CntyQryCensus!$A$459:$AG$501,AB$1) -> 6 | AC80: =VLOOKUP(DropDownList!$B$47,CntyQryCensus!$A$459:$AG$501,AC$1) -> 3 | AD80: =VLOOKUP(DropDownList!$B$47,CntyQryCensus!$A$459:$AG$501,AD$1) -> 0 | AE80: =VLOOKUP(DropDownList!$B$47,CntyQryCensus!$A$459:$AG$501,AE$1) -> 2 | AF80: =VLOOKUP(DropDownList!$B$47,CntyQryCensus!$A$459:$AG$501,AF$1) -> 37375 | AG80: =VLOOKUP(DropDownList!$B$47,CntyQryCensus!$A$459:$AG$501,AG$1) -> 40078
A86: =VLOOKUP(DropDownList!$B$47,CntyQryCensus!$A$510:$DA$552,A$1) -> Acworth
A94: Census 2000 SummaryFile3 Sample Data - SF3TownQry10Disabil
A95: NAME | B95: LOGRECNO | C95: COUNTY | D95: TotalPop | E95: PCT026001-NonInstPop5yrs+ | F95: PCT026002-MaleNonInstPop5yrs+ | G95: PCT026003 | H95: PCT026004 | I95: PCT026005 | J95: PCT026006 | K95: PCT026007 | L95: PCT026008 | M95: PCT026009 | N95: PCT026010 | O95: PCT026011 | P95: PCT026012 | Q95: PCT026013 | R95: PCT026014 | S95: PCT026015 | T95: PCT026016 | U95: PCT026017 | V95: PCT026018 | W95: PCT026019 | X95: PCT026020 | Y95: PCT026021 | Z95: PCT026022 | AA95: PCT026023 | AB95: PCT026024 | AC95: PCT026025 | AD95: PCT026026 | AE95: PCT026027 | AF95: PCT026028 | AG95: PCT026029 | AH95: PCT026030 | AI95: PCT026031 | AJ95: PCT026032 | AK95: PCT026033 | AL95: PCT026034 | AM95: PCT026035 | AN95: PCT026036 | AO95: PCT026037 | AP95: PCT026038 | AQ95: PCT026039 | AR95: PCT026040 | AS95: PCT026041 | AT95: PCT026042 | AU95: PCT026043 | AV95: PCT026044 | AW95: PCT026045 | AX95: PCT026046 | AY95: PCT026047 | AZ95: PCT026048 | BA95: PCT026049 | BB95: PCT026050 | BC95: PCT026051 | BD95: PCT026052 | BE95: PCT026053 | BF95: PCT026054 | BG95: PCT026055 | BH95: PCT026056 | BI95: PCT026057 | BJ95: PCT026058 | BK95: PCT026059 | BL95: PCT026060 | BM95: PCT026061 | BN95: PCT026062 | BO95: PCT026063 | BP95: PCT026064 | BQ95: PCT026065 | BR95: PCT026066 | BS95: PCT026067 | BT95: PCT026068 | BU95: PCT026069 | BV95: PCT026070 | BW95: PCT026071 | BX95: PCT026072 | BY95: PCT026073 | BZ95: PCT026074 | CA95: PCT026075 | CB95: PCT026076 | CC95: PCT026077 | CD95: PCT026078 | CE95: PCT026079 | CF95: PCT026080 | CG95: PCT026081 | CH95: PCT026082 | CI95: PCT026083 | CJ95: PCT026084 | CK95: PCT026085 | CL95: PCT026086 | CM95: PCT026087 | CN95: PCT026088 | CO95: PCT026089 | CP95: PCT026090 | CQ95: PCT026091 | CR95: PCT026092 | CS95: PCT026093 | CT95: PCT026094 | CU95: PCT026095 | CV95: PCT026096 | CW95: PCT026097 | CX95: PCT026098 | CY95: PCT026099 | CZ95: PCT026100 | DA95: PCT026101
A96: =VLOOKUP(DropDownList!$B$47,CntyQryCensus!$A$510:$DA$552,A$1) -> Acworth | B96: =VLOOKUP(DropDownList!$B$47,CntyQryCensus!$A$510:$DA$552,B$1) -> 0004141 | C96: =VLOOKUP(DropDownList!$B$47,CntyQryCensus!$A$510:$DA$552,C$1) -> 00260 | D96: =VLOOKUP(DropDownList!$B$47,CntyQryCensus!$A$510:$DA$552,D$1) -> 836 | E96: =VLOOKUP(DropDownList!$B$47,CntyQryCensus!$A$510:$DA$552,E$1) -> 799 | F96: =VLOOKUP(DropDownList!$B$47,CntyQryCensus!$A$510:$DA$552,F$1) -> 416 | G96: =VLOOKUP(DropDownList!$B$47,CntyQryCensus!$A$510:$DA$552,G$1) -> 75 | H96: =VLOOKUP(DropDownList!$B$47,CntyQryCensus!$A$510:$DA$552,H$1) -> 0 | I96: =VLOOKUP(DropDownList!$B$47,CntyQryCensus!$A$510:$DA$552,I$1) -> 0 | J96: =VLOOKUP(DropDownList!$B$47,CntyQryCensus!$A$510:$DA$552,J$1) -> 0 | K96: =VLOOKUP(DropDownList!$B$47,CntyQryCensus!$A$510:$DA$552,K$1) -> 0 | L96: =VLOOKUP(DropDownList!$B$47,CntyQryCensus!$A$510:$DA$552,L$1) -> 0 | M96: =VLOOKUP(DropDownList!$B$47,CntyQryCensus!$A$510:$DA$552,M$1) -> 0 | N96: =VLOOKUP(DropDownList!$B$47,CntyQryCensus!$A$510:$DA$552,N$1) -> 0 | O96: =VLOOKUP(DropDownList!$B$47,CntyQryCensus!$A$510:$DA$552,O$1) -> 0 | P96: =VLOOKUP(DropDownList!$B$47,CntyQryCensus!$A$510:$DA$552,P$1) -> 75 | Q96: =VLOOKUP(DropDownList!$B$47,CntyQryCensus!$A$510:$DA$552,Q$1) -> 31 | R96: =VLOOKUP(DropDownList!$B$47,CntyQryCensus!$A$510:$DA$552,R$1) -> 2 | S96: =VLOOKUP(DropDownList!$B$47,CntyQryCensus!$A$510:$DA$552,S$1) -> 0 | T96: =VLOOKUP(DropDownList!$B$47,CntyQryCensus!$A$510:$DA$552,T$1) -> 0 | U96: =VLOOKUP(DropDownList!$B$47,CntyQryCensus!$A$510:$DA$552,U$1) -> 2 | V96: =VLOOKUP(DropDownList!$B$47,CntyQryCensus!$A$510:$DA$552,V$1) -> 0 | W96: =VLOOKUP(DropDownList!$B$47,CntyQryCensus!$A$510:$DA$552,W$1) -> 0 | X96: =VLOOKUP(DropDownList!$B$47,CntyQryCensus!$A$510:$DA$552,X$1) -> 0 | Y96: =VLOOKUP(DropDownList!$B$47,CntyQryCensus!$A$510:$DA$552,Y$1) -> 0 | Z96: =VLOOKUP(DropDownList!$B$47,CntyQryCensus!$A$510:$DA$552,Z$1) -> 0 | AA96: =VLOOKUP(DropDownList!$B$47,CntyQryCensus!$A$510:$DA$552,AA$1) -> 0 | AB96: =VLOOKUP(DropDownList!$B$47,CntyQryCensus!$A$510:$DA$552,AB$1) -> 0 | AC96: =VLOOKUP(DropDownList!$B$47,CntyQryCensus!$A$510:$DA$552,AC$1) -> 0 | AD96: =VLOOKUP(DropDownList!$B$47,CntyQryCensus!$A$510:$DA$552,AD$1) -> 29 | AE96: =VLOOKUP(DropDownList!$B$47,CntyQryCensus!$A$510:$DA$552,AE$1) -> 248 | AF96: =VLOOKUP(DropDownList!$B$47,CntyQryCensus!$A$510:$DA$552,AF$1) -> 32 | AG96: =VLOOKUP(DropDownList!$B$47,CntyQryCensus!$A$510:$DA$552,AG$1) -> 3 | AH96: =VLOOKUP(DropDownList!$B$47,CntyQryCensus!$A$510:$DA$552,AH$1) -> 12 | AI96: =VLOOKUP(DropDownList!$B$47,CntyQryCensus!$A$510:$DA$552,AI$1) -> 5 | AJ96: =VLOOKUP(DropDownList!$B$47,CntyQryCensus!$A$510:$DA$552,AJ$1) -> 0 | AK96: =VLOOKUP(DropDownList!$B$47,CntyQryCensus!$A$510:$DA$552,AK$1) -> 0 | AL96: =VLOOKUP(DropDownList!$B$47,CntyQryCensus!$A$510:$DA$552,AL$1) -> 12 | AM96: =VLOOKUP(DropDownList!$B$47,CntyQryCensus!$A$510:$DA$552,AM$1) -> 25 | AN96: =VLOOKUP(DropDownList!$B$47,CntyQryCensus!$A$510:$DA$552,AN$1) -> 7 | AO96: =VLOOKUP(DropDownList!$B$47,CntyQryCensus!$A$510:$DA$552,AO$1) -> 18 | AP96: =VLOOKUP(DropDownList!$B$47,CntyQryCensus!$A$510:$DA$552,AP$1) -> 8 | AQ96: =VLOOKUP(DropDownList!$B$47,CntyQryCensus!$A$510:$DA$552,AQ$1) -> 10 | AR96: =VLOOKUP(DropDownList!$B$47,CntyQryCensus!$A$510:$DA$552,AR$1) -> 191 | AS96: =VLOOKUP(DropDownList!$B$47,CntyQryCensus!$A$510:$DA$552,AS$1) -> 62 | AT96: =VLOOKUP(DropDownList!$B$47,CntyQryCensus!$A$510:$DA$552,AT$1) -> 13 | AU96: =VLOOKUP(DropDownList!$B$47,CntyQryCensus!$A$510:$DA$552,AU$1) -> 1 | AV96: =VLOOKUP(DropDownList!$B$47,CntyQryCensus!$A$510:$DA$552,AV$1) -> 10 | AW96: =VLOOKUP(DropDownList!$B$47,CntyQryCensus!$A$510:$DA$552,AW$1) -> 0 | AX96: =VLOOKUP(DropDownList!$B$47,CntyQryCensus!$A$510:$DA$552,AX$1) -> 0 | AY96: =VLOOKUP(DropDownList!$B$47,CntyQryCensus!$A$510:$DA$552,AY$1) -> 2 | AZ96: =VLOOKUP(DropDownList!$B$47,CntyQryCensus!$A$510:$DA$552,AZ$1) -> 2 | BA96: =VLOOKUP(DropDownList!$B$47,CntyQryCensus!$A$510:$DA$552,BA$1) -> 2 | BB96: =VLOOKUP(DropDownList!$B$47,CntyQryCensus!$A$510:$DA$552,BB$1) -> 0 | BC96: =VLOOKUP(DropDownList!$B$47,CntyQryCensus!$A$510:$DA$552,BC$1) -> 47 | BD96: =VLOOKUP(DropDownList!$B$47,CntyQryCensus!$A$510:$DA$552,BD$1) -> 383 | BE96: =VLOOKUP(DropDownList!$B$47,CntyQryCensus!$A$510:$DA$552,BE$1) -> 67 | BF96: =VLOOKUP(DropDownList!$B$47,CntyQryCensus!$A$510:$DA$552,BF$1) -> 0 | BG96: =VLOOKUP(DropDownList!$B$47,CntyQryCensus!$A$510:$DA$552,BG$1) -> 0 | BH96: =VLOOKUP(DropDownList!$B$47,CntyQryCensus!$A$510:$DA$552,BH$1) -> 0 | BI96: =VLOOKUP(DropDownList!$B$47,CntyQryCensus!$A$510:$DA$552,BI$1) -> 0 | BJ96: =VLOOKUP(DropDownList!$B$47,CntyQryCensus!$A$510:$DA$552,BJ$1) -> 0 | BK96: =VLOOKUP(DropDownList!$B$47,CntyQryCensus!$A$510:$DA$552,BK$1) -> 0 | BL96: =VLOOKUP(DropDownList!$B$47,CntyQryCensus!$A$510:$DA$552,BL$1) -> 0 | BM96: =VLOOKUP(DropDownList!$B$47,CntyQryCensus!$A$510:$DA$552,BM$1) -> 0 | BN96: =VLOOKUP(DropDownList!$B$47,CntyQryCensus!$A$510:$DA$552,BN$1) -> 67 | BO96: =VLOOKUP(DropDownList!$B$47,CntyQryCensus!$A$510:$DA$552,BO$1) -> 24 | BP96: =VLOOKUP(DropDownList!$B$47,CntyQryCensus!$A$510:$DA$552,BP$1) -> 0 | BQ96: =VLOOKUP(DropDownList!$B$47,CntyQryCensus!$A$510:$DA$552,BQ$1) -> 0 | BR96: =VLOOKUP(DropDownList!$B$47,CntyQryCensus!$A$510:$DA$552,BR$1) -> 0 | BS96: =VLOOKUP(DropDownList!$B$47,CntyQryCensus!$A$510:$DA$552,BS$1) -> 0 | BT96: =VLOOKUP(DropDownList!$B$47,CntyQryCensus!$A$510:$DA$552,BT$1) -> 0 | BU96: =VLOOKUP(DropDownList!$B$47,CntyQryCensus!$A$510:$DA$552,BU$1) -> 0 | BV96: =VLOOKUP(DropDownList!$B$47,CntyQryCensus!$A$510:$DA$552,BV$1) -> 0 | BW96: =VLOOKUP(DropDownList!$B$47,CntyQryCensus!$A$510:$DA$552,BW$1) -> 0 | BX96: =VLOOKUP(DropDownList!$B$47,CntyQryCensus!$A$510:$DA$552,BX$1) -> 0 | BY96: =VLOOKUP(DropDownList!$B$47,CntyQryCensus!$A$510:$DA$552,BY$1) -> 0 | BZ96: =VLOOKUP(DropDownList!$B$47,CntyQryCensus!$A$510:$DA$552,BZ$1) -> 0 | CA96: =VLOOKUP(DropDownList!$B$47,CntyQryCensus!$A$510:$DA$552,CA$1) -> 0 | CB96: =VLOOKUP(DropDownList!$B$47,CntyQryCensus!$A$510:$DA$552,CB$1) -> 24 | CC96: =VLOOKUP(DropDownList!$B$47,CntyQryCensus!$A$510:$DA$552,CC$1) -> 224 | CD96: =VLOOKUP(DropDownList!$B$47,CntyQryCensus!$A$510:$DA$552,CD$1) -> 15 | CE96: =VLOOKUP(DropDownList!$B$47,CntyQryCensus!$A$510:$DA$552,CE$1) -> 0 | CF96: =VLOOKUP(DropDownList!$B$47,CntyQryCensus!$A$510:$DA$552,CF$1) -> 3 | CG96: =VLOOKUP(DropDownList!$B$47,CntyQryCensus!$A$510:$DA$552,CG$1) -> 0 | CH96: =VLOOKUP(DropDownList!$B$47,CntyQryCensus!$A$510:$DA$552,CH$1) -> 0 | CI96: =VLOOKUP(DropDownList!$B$47,CntyQryCensus!$A$510:$DA$552,CI$1) -> 0 | CJ96: =VLOOKUP(DropDownList!$B$47,CntyQryCensus!$A$510:$DA$552,CJ$1) -> 12 | CK96: =VLOOKUP(DropDownList!$B$47,CntyQryCensus!$A$510:$DA$552,CK$1) -> 12 | CL96: =VLOOKUP(DropDownList!$B$47,CntyQryCensus!$A$510:$DA$552,CL$1) -> 6 | CM96: =VLOOKUP(DropDownList!$B$47,CntyQryCensus!$A$510:$DA$552,CM$1) -> 6 | CN96: =VLOOKUP(DropDownList!$B$47,CntyQryCensus!$A$510:$DA$552,CN$1) -> 0 | CO96: =VLOOKUP(DropDownList!$B$47,CntyQryCensus!$A$510:$DA$552,CO$1) -> 6 | CP96: =VLOOKUP(DropDownList!$B$47,CntyQryCensus!$A$510:$DA$552,CP$1) -> 197 | CQ96: =VLOOKUP(DropDownList!$B$47,CntyQryCensus!$A$510:$DA$552,CQ$1) -> 68 | CR96: =VLOOKUP(DropDownList!$B$47,CntyQryCensus!$A$510:$DA$552,CR$1) -> 4 | CS96: =VLOOKUP(DropDownList!$B$47,CntyQryCensus!$A$510:$DA$552,CS$1) -> 0 | CT96: =VLOOKUP(DropDownList!$B$47,CntyQryCensus!$A$510:$DA$552,CT$1) -> 4 | CU96: =VLOOKUP(DropDownList!$B$47,CntyQryCensus!$A$510:$DA$552,CU$1) -> 0 | CV96: =VLOOKUP(DropDownList!$B$47,CntyQryCensus!$A$510:$DA$552,CV$1) -> 0 | CW96: =VLOOKUP(DropDownList!$B$47,CntyQryCensus!$A$510:$DA$552,CW$1) -> 0 | CX96: =VLOOKUP(DropDownList!$B$47,CntyQryCensus!$A$510:$DA$552,CX$1) -> 10 | CY96: =VLOOKUP(DropDownList!$B$47,CntyQryCensus!$A$510:$DA$552,CY$1) -> 1 | CZ96: =VLOOKUP(DropDownList!$B$47,CntyQryCensus!$A$510:$DA$552,CZ$1) -> 9 | DA96: =VLOOKUP(DropDownList!$B$47,CntyQryCensus!$A$510:$DA$552,DA$1) -> 54
A101: =VLOOKUP(DropDownList!$B$47,CntyQryCensus!$A$510:$DA$552,A$1) -> Acworth
A105: ACS | B105: 2 | C105: =B105+1 -> 3 | D105: =C105+1 -> 4 | E105: 5 | F105: 6 | G105: 7 | H105: 8 | I105: 9 | J105: 10 | K105: 11 | L105: =K105+1 -> 12 | M105: 13 | N105: 14 | O105: 15 | P105: =O105+1 -> 16 | Q105: 17 | R105: 18 | S105: 19 | T105: 20 | U105: 21 | V105: 22 | W105: 23 | X105: 24 | Y105: 25 | Z105: 26 | AA105: 27 | AB105: 28 | AC105: 29 | AD105: 30 | AE105: 31 | AF105: 32 | AG105: 33 | AH105: 34 | AI105: 35 | AJ105: 36 | AK105: 37 | AL105: 38 | AM105: 39 | AN105: 40 | AO105: 41 | AP105: 42 | AQ105: 43 | AR105: 44 | AS105: 45 | AT105: 46 | AU105: 47 | AV105: 48 | AW105: 49 | AX105: 50 | AY105: 51 | AZ105: 52 | BA105: 53 | BB105: 54 | BC105: 55 | BD105: 56 | BE105: 57 | BF105: 58 | BG105: 59 | BH105: 60 | BI105: 61 | BJ105: 62 | BK105: 63 | BL105: 64 | BM105: 65 | BN105: 66 | BO105: 67 | BP105: =BO105+1 -> 68 | BQ105: 69 | BR105: 70 | BS105: 71 | BT105: 72 | BU105: 73 | BV105: 74 | BW105: 75 | BX105: 76 | BY105: 77 | BZ105: 78 | CA105: 79 | CB105: 80 | CC105: 81 | CD105: 82 | CE105: 83 | CF105: 84 | CG105: 85 | CH105: 86 | CI105: 87 | CJ105: 88 | CK105: 89 | CL105: 90 | CM105: 91 | CN105: 92 | CO105: 93 | CP105: 94 | CQ105: 95 | CR105: 96 | CS105: 97 | CT105: 98 | CU105: 99 | CV105: 100 | CW105: 101 | CX105: 102 | CY105: 103 | CZ105: 104 | DA105: 105 | DB105: 106 | DC105: 107 | DD105: 108 | DE105: 109 | DF105: 110 | DG105: 111 | DH105: 112 | DI105: 113 | DJ105: 114 | DK105: 115 | DL105: 116 | DM105: 117 | DN105: 118 | DO105: 119 | DP105: 120 | DQ105: 121 | DR105: 122 | DS105: 123 | DT105: 124 | DU105: 125
A106: Househould Data (Housing Unit Type)
A107: NAME | B107: TotalHU | C107: ="MOE "&B107 -> MOE TotalHU | D107: TotalOccHU | E107: ="MOE "&D107 -> MOE TotalOccHU | F107: TotalOwnerOccUn | G107: ="MOE "&F107 -> MOE TotalOwnerOccUn | H107: TotalRenterOccn | I107: ="MOE "&H107 -> MOE TotalRenterOccn | J107: TotalVacantUntis | K107: ="MOE "&J107 -> MOE TotalVacantUntis | L107: VacantUnitsForRent | M107: ="MOE "&L107 -> MOE VacantUnitsForRent | N107: VacantUnitRentedNotOcc | O107: ="MOE "&N107 -> MOE VacantUnitRentedNotOcc | P107: VacantUnitForSale | Q107: ="MOE "&P107 -> MOE VacantUnitForSale | R107: VacantUnitSoldNotOcc | S107: ="MOE "&R107 -> MOE VacantUnitSoldNotOcc | T107: VacantUnitSeasonalRec | U107: ="MOE "&T107 -> MOE VacantUnitSeasonalRec | V107: TotalPopInHousingUnits | W107: ="MOE "&V107 -> MOE TotalPopInHousingUnits | X107: OwnerOccPopHousingUnits | Y107: ="MOE "&X107 -> MOE OwnerOccPopHousingUnits | Z107: RenterOccPopHousingUnits | AA107: ="MOE "&Z107 -> MOE RenterOccPopHousingUnits | AB107: TotalUntis | AC107: ="MOE "&AB107 -> MOE TotalUntis | AD107: TotalOwnerOccUnits | AE107: ="MOE "&AD107 -> MOE TotalOwnerOccUnits | AF107: SigFamOwnerOcc | AG107: ="MOE "&AF107 -> MOE SigFamOwnerOcc | AH107: MultiFamOwnerOcc | AI107: ="MOE "&AH107 -> MOE MultiFamOwnerOcc | AJ107: MobileOwnerOcc | AK107: ="MOE "&AJ107 -> MOE MobileOwnerOcc | AL107: TotalRenterOccUnits | AM107: ="MOE "&AL107 -> MOE TotalRenterOccUnits | AN107: SigFamRenterOcc | AO107: ="MOE "&AN107 -> MOE SigFamRenterOcc | AP107: MultiFamRenterOcc | AQ107: ="MOE "&AP107 -> MOE MultiFamRenterOcc | AR107: MobileRenterOcc | AS107: ="MOE "&AR107 -> MOE MobileRenterOcc | AT107: TotalSigFamilyUnits | AU107: ="MOE "&AT107 -> MOE TotalSigFamilyUnits | AV107: TotalMultiFamilyUnits | AW107: ="MOE "&AV107 -> MOE TotalMultiFamilyUnits | AX107: TotalMobileUnits | AY107: ="MOE "&AX107 -> MOE TotalMobileUnits | AZ107: YrHouseBuilt2014Later | BA107: ="MOE "&AZ107 -> MOE YrHouseBuilt2014Later | BB107: YrHouseBuilt2010-2013 | BC107: ="MOE "&BB107 -> MOE YrHouseBuilt2010-2013 | BD107: YrHouseBuilt2000-2009 | BE107: ="MOE "&BD107 -> MOE YrHouseBuilt2000-2009 | BF107: YrHouseBuilt1990-1999 | BG107: ="MOE "&BF107 -> MOE YrHouseBuilt1990-1999 | BH107: YrHouseBuilt1980-1989 | BI107: ="MOE "&BH107 -> MOE YrHouseBuilt1980-1989 | BJ107: YrHouseBuilt1970-1979 | BK107: ="MOE "&BJ107 -> MOE YrHouseBuilt1970-1979 | BL107: YrHouseBuilt1960-1969 | BM107: ="MOE "&BL107 -> MOE YrHouseBuilt1960-1969 | BN107: YrHouseBuilt1950-1959 | BO107: ="MOE "&BN107 -> MOE YrHouseBuilt1950-1959 | BP107: YrHouseBuilt1940-1949 | BQ107: ="MOE "&BP107 -> MOE YrHouseBuilt1940-1949 | BR107: YrHouseBuilt1939orEarlier | BS107: ="MOE "&BR107 -> MOE YrHouseBuilt1939orEarlier | BT107: NoBedrooms | BU107: ="MOE "&BT107 -> MOE NoBedrooms | BV107: 1Bedroom | BW107: ="MOE "&BV107 -> MOE 1Bedroom | BX107: 2Bedroom | BY107: ="MOE "&BX107 -> MOE 2Bedroom | BZ107: 3Bedroom | CA107: ="MOE "&BZ107 -> MOE 3Bedroom | CB107: 4+Bedroom | CC107: ="MOE "&CB107 -> MOE 4+Bedroom
A108: =VLOOKUP(DropDownList!$B$47,CntyQryCensus!$A$530:$AY$544,A$1) -> Acworth | B108: 587 | C108: 53 | D108: 370 | E108: 51 | F108: 340 | G108: 50 | H108: 30 | I108: 16 | J108: 217 | K108: 39 | L108: 4 | M108: 6 | N108: 0 | O108: 11 | P108: 0 | Q108: 11 | R108: 6 | S108: 9 | T108: 192 | U108: 36 | V108: 906 | W108: 134 | X108: 830 | Y108: 141 | Z108: 76 | AA108: 51 | AB108: 370 | AC108: 51 | AD108: 340 | AE108: 50 | AF108: 324 | AG108: 48 | AH108: 2 | AI108: 27.23967694 | AJ108: 14 | AK108: 16.2788206 | AL108: 30 | AM108: 16 | AN108: 28 | AO108: 16 | AP108: 2 | AQ108: 27.11088342 | AR108: 0 | AS108: 15.55634919 | AT108: 560 | AU108: 51 | AV108: 4 | AW108: 25.0998008 | AX108: 23 | AY108: 19.41648784 | AZ108: 17 | BA108: 12 | BB108: 21 | BC108: 16 | BD108: 51 | BE108: 23 | BF108: 54 | BG108: 19 | BH108: 86 | BI108: 30 | BJ108: 75 | BK108: 29 | BL108: 35 | BM108: 18 | BN108: 64 | BO108: 25 | BP108: 14 | BQ108: 15 | BR108: 170 | BS108: 35 | BT108: 24 | BU108: 16 | BV108: 64 | BW108: 23 | BX108: 160 | BY108: 37 | BZ108: 235 | CA108: 46 | CB108: 104 | CC108: 30.41381265 | CD108: 81 | CE108: 79 | CF108: 36 | CG108: 74 | CH108: 28 | CI108: 76 | CJ108: 114 | CK108: 30 | CL108: 114 | CM108: 142 | CN108: 91 | CO108: 44 | CP108: 40 | CQ108: 134 | CR108: 119 | CS108: 76 | CT108: 105 | CU108: 14 | CV108: 132 | CW108: 142 | CX108: 84 | CY108: 108 | CZ108: 151 | DA108: 154 | DB108: 137 | DC108: 30 | DD108: 701 | DE108: 207.1038387 | DF108: 300 | DG108: 141.0141837 | DH108: 207.2751794 | DI108: 197.813043
A110: Disability Data
A111: NAME | B111: TotalPop | C111: PCT026001-NonInstPop5yrs+ | D111: PCT026002-MaleNonInstPop5yrs+ | E111: Male5To15NonInstitPop | F111: Male5To15-NoDisability | G111: Male5To15-1Disability | H111: Male5To15-2orMoreDisabilities | I111: Male16To20-NonInstitutionalPop | J111: Male16To20-NoDisability | K111: Male16To20-1Disability | L111: Male16To20-2orMoreDisabilities | M111: Male21To64-NonInstitutionalPop | N111: Male21To64-NoDisability | O111: Male21To64-1Disability | P111: Male21To64-2orMoreDisabilities | Q111: Male65To74-NonInstitutionalPop | R111: Male65To74-NoDisability | S111: Male65To74-1Disability | T111: Male65To74-2orMoreDisabilities | U111: Male75Over-NonInstitutionalPop | V111: Male75Over-NoDisability | W111: Male75Over-1Disability | X111: Male75Over-2orMoreDisabilities | Y111: PCT026002-FemaleNonInstPop5yrs+ | Z111: FemaleNonInstPop5To15NonInstPop | AA111: Female5To15-NoDisability | AB111: Female5To15-1Disability | AC111: Female5To15-2orMoreDisabilities | AD111: FemaleNonInstPop16To20NonInstPop | AE111: Female16To20-NoDisability | AF111: Female16To20-1Disability | AG111: Female16To20-2orMoreDisabilities | AH111: FemaleNonInstPop21To64NonInstPop | AI111: Female21To64-NoDisability | AJ111: Female21To64-1Disability | AK111: Female21To64-2orMoreDisabilities | AL111: FemaleNonInstPop65To74NonInstPop | AM111: Female65To74-NoDisability | AN111: Female65To74-1Disability | AO111: Female65To74-2orMoreDisabilities | AP111: FemaleNonInstPop75OverNonInstPop | AQ111: Female75Over-NoDisability | AR111: Female75Over-1Disability | AS111: Female75Over-2orMoreDisabilities | AT111: Male5To15-SensoryDisability | AU111: Male16To20-SensoryDisability | AV111: Male21To64-SensoryDisability | AW111: Male65To74-SensoryDisability | AX111: Male75Over-SensoryDisability | AY111: Female5To15-SensoryDisability | AZ111: Female16To20-SensoryDisability | BA111: Female21To64-SensoryDisability | BB111: Female65To74-SensoryDisability | BC111: Female75Over-SensoryDisability | BD111: Male5To15-PhysicalDisabil | BE111: Male16To20-PhysicalDisabil | BF111: Male21To64-PhysicalDisabil | BG111: Male65To74-PhysicalDisabil | BH111: Male75Over-PhysicalDisabil | BI111: Female5To15-PhysicalDisabil | BJ111: Female16To20-PhysicalDisabil | BK111: Female21To64-PhysicalDisabil | BL111: Female65To74-PhysicalDisabil | BM111: Female75Over-PhysicalDisabil | BN111: Male5To15-MentalDisabil | BO111: Male16To20-MentalDisabil | BP111: Male21To64-MentalDisabil | BQ111: Male65To74-MentalDisabil | BR111: Male75Over-MentalDisabil | BS111: Female5To15-MentalDisabil | BT111: Female16To20-MentalDisabil | BU111: Female21To64-MentalDisabil | BV111: Female65To74-MentalDisabil | BW111: Female75Over-MentalDisabil | BX111: Male5To15-SelfCareDisabil | BY111: Male16To20-SelfCareDisabil | BZ111: Male21To64-SelfCareDisabil | CA111: Male65To74-SelfCareDisabil | CB111: Male75Over-SelfCareDisabil | CC111: Female5To15-SelfCareDisabil | CD111: Female16To20-SelfCareDisabil | CE111: Female21To64-SelfCareDisabil | CF111: Female65To74-SelfCareDisabil | CG111: Female75Over-SelfCareDisabil | CH111: Male16To20-GoOutsideHomeDisabil | CI111: Male21To64-GoOutsideHomeDisabil | CJ111: Male65To74-GoOutsideHomeDisabil | CK111: Male75Over-GoOutsideHomeDisabil | CL111: Female16To20-GoOutsideHomeDisabil | CM111: Female21To64-GoOutsideHomeDisabil | CN111: Female65To74-GoOutsideHomeDisabil | CO111: Female75Over-GoOutsideHomeDisabil | CP111: Male16To20-EmploymentDisabil | CQ111: Male21To64-EmploymentDisabil | CR111: Female16To20-EmploymentDisabil | CS111: Female21To64-EmploymentDisabil
A112: =VLOOKUP(DropDownList!$B$47,CntyQryCensus!$A$530:$AY$544,A$1) -> Acworth | B112: 906 | C112: 134 | D112: 37 | E112: 19.10497317 | F112: 0 | G112: 15.55634919 | H112: 37 | I112: 19.10497317 | J112: 58 | K112: 29.20616373 | L112: 0 | M112: 15.55634919 | N112: 58 | O112: 29.20616373 | P112: 126 | Q112: 45.48626166 | R112: 26 | S112: 24.59674775 | T112: 100 | U112: 34.6554469 | V112: 403 | W112: 66.48308055 | X112: 15 | Y112: 12.52996409 | Z112: 388 | AA112: 66.48308055 | AB112: 205 | AC112: 49.92995093 | AD112: 47 | AE112: 23.34523506 | AF112: 158 | AG112: 43.0464865 | AH112: 77 | AI112: 26.92582404 | AJ112: 23 | AK112: 15.5241747 | AL112: 54 | AM112: 22.8035085 | AN112: 0 | AO112: 15.55634919 | AP112: 0 | AQ112: 15.55634919 | AR112: 9 | AS112: 17.80449381 | AT112: 5 | AU112: 12.52996409 | AV112: 13 | AW112: 11.70469991 | AX112: 13 | AY112: 16.2788206 | AZ112: 0 | BA112: 15.55634919 | BB112: 0 | BC112: 15.55634919 | BD112: 9 | BE112: 17.80449381 | BF112: 0 | BG112: 15.55634919 | BH112: 7 | BI112: 14.86606875 | BJ112: 0 | BK112: 15.55634919 | BL112: 0 | BM112: 15.55634919 | BN112: 18 | BO112: 21.9544984 | BP112: 8 | BQ112: 14.86606875 | BR112: 19 | BS112: 15.5241747 | BT112: 6 | BU112: 14.86606875 | BV112: 0 | BW112: 15.55634919 | BX112: 0 | BY112: 15.55634919 | BZ112: 4 | CA112: 12.08304597 | CB112: 32 | CC112: 19.84943324 | CD112: 12 | CE112: 10.77032961 | CF112: 0 | CG112: 15.55634919 | CH112: 9 | CI112: 17.80449381 | CJ112: 0 | CK112: 15.55634919 | CL112: 4 | CM112: 5.656854249 | CN112: 6 | CO112: 14.86606875 | CP112: 13 | CQ112: 12.64911064 | CR112: 3 | CS112: 11.70469991 | CT112: 5 | CU112: 12.52996409 | CV112: 15 | CW112: 19.41648784 | CX112: 0 | CY112: 11 | CZ112: 0 | DA112: 11 | DB112: 30 | DC112: 21 | DD112: 11 | DE112: 14 | DF112: 35 | DG112: 20 | DH112: 35 | DI112: 20
A114: Househould Income By Age
A115: NAME | B115: TotalHouseholds | C115: ="MOE "&B115 -> MOE TotalHouseholds | D115: HHInc<10K | E115: ="MOE "&D115 -> MOE HHInc<10K | F115: HHInc10to15K | G115: ="MOE "&F115 -> MOE HHInc10to15K | H115: HHInc15to20K | I115: ="MOE "&H115 -> MOE HHInc15to20K | J115: HHInc20to25K | K115: ="MOE "&J115 -> MOE HHInc20to25K | L115: HHInc25to30K | M115: ="MOE "&L115 -> MOE HHInc25to30K | N115: HHInc30to35K | O115: ="MOE "&N115 -> MOE HHInc30to35K | P115: HHInc35to40K | Q115: ="MOE "&P115 -> MOE HHInc35to40K | R115: HHInc40to45K | S115: ="MOE "&R115 -> MOE HHInc40to45K | T115: HHInc45to50K | U115: ="MOE "&T115 -> MOE HHInc45to50K | V115: HHInc50to60K | W115: ="MOE "&V115 -> MOE HHInc50to60K | X115: HHInc60to75K | Y115: ="MOE "&X115 -> MOE HHInc60to75K | Z115: HHInc75to100K | AA115: ="MOE "&Z115 -> MOE HHInc75to100K | AB115: HHInc100to125K | AC115: ="MOE "&AB115 -> MOE HHInc100to125K | AD115: HHInc125to150K | AE115: ="MOE "&AD115 -> MOE HHInc125to150K | AF115: HHInc150to200K | AG115: ="MOE "&AF115 -> MOE HHInc150to200K | AH115: HHInc>200K | AI115: ="MOE "&AH115 -> MOE HHInc>200K | AJ115: TotalHH | AK115: ="MOE "&AJ115 -> MOE TotalHH | AL115: HHAgeHHUnder25yrs | AM115: ="MOE "&AL115 -> MOE HHAgeHHUnder25yrs | AN115: HHAgeHH<25HHInc<10K | AO115: ="MOE "&AN115 -> MOE HHAgeHH<25HHInc<10K | AP115: HHAgeHH<25HHInc10to15K | AQ115: ="MOE "&AP115 -> MOE HHAgeHH<25HHInc10to15K | AR115: HHAgeHH<25HHInc15to20K | AS115: ="MOE "&AR115 -> MOE HHAgeHH<25HHInc15to20K | AT115: HHAgeHH<25HHInc20to25K | AU115: ="MOE "&AT115 -> MOE HHAgeHH<25HHInc20to25K | AV115: HHAgeHH<25HHInc25to30K | AW115: ="MOE "&AV115 -> MOE HHAgeHH<25HHInc25to30K | AX115: HHAgeHH<25HHInc30to35K | AY115: ="MOE "&AX115 -> MOE HHAgeHH<25HHInc30to35K | AZ115: HHAgeHH<25HHInc35to40K | BA115: ="MOE "&AZ115 -> MOE HHAgeHH<25HHInc35to40K | BB115: HHAgeHH<25HHInc40to45K | BC115: ="MOE "&BB115 -> MOE HHAgeHH<25HHInc40to45K | BD115: HHAgeHH<25HHInc45to50K | BE115: ="MOE "&BD115 -> MOE HHAgeHH<25HHInc45to50K | BF115: HHAgeHH<25HHInc50to60K | BG115: ="MOE "&BF115 -> MOE HHAgeHH<25HHInc50to60K | BH115: HHAgeHH<25HHInc60to75K | BI115: ="MOE "&BH115 -> MOE HHAgeHH<25HHInc60to75K | BJ115: HHAgeHH<25HHInc75to100K | BK115: ="MOE "&BJ115 -> MOE HHAgeHH<25HHInc75to100K | BL115: HHAgeHH<25HHInc100to125K | BM115: ="MOE "&BL115 -> MOE HHAgeHH<25HHInc100to125K | BN115: HHAgeHH<25HHInc125to150K | BO115: ="MOE "&BN115 -> MOE HHAgeHH<25HHInc125to150K | BP115: HHAgeHH<25HHInc150to200K | BQ115: ="MOE "&BP115 -> MOE HHAgeHH<25HHInc150to200K | BR115: HHAge<25HHInc>200K | BS115: ="MOE "&BR115 -> MOE HHAge<25HHInc>200K | BT115: HHAgeHH25to44yrs | BU115: ="MOE "&BT115 -> MOE HHAgeHH25to44yrs | BV115: HHAgeHH25To44yrsHHInc<10K | BW115: ="MOE "&BV115 -> MOE HHAgeHH25To44yrsHHInc<10K | BX115: HHAgeHH25To44yrsHHInc10to15K | BY115: ="MOE "&BX115 -> MOE HHAgeHH25To44yrsHHInc10to15K | BZ115: HHAgeHH25To44yrsHHInc15to20K | CA115: ="MOE "&BZ115 -> MOE HHAgeHH25To44yrsHHInc15to20K | CB115: HHAgeHH25To44yrsHHInc20to25K | CC115: ="MOE "&CB115 -> MOE HHAgeHH25To44yrsHHInc20to25K | CD115: HHAgeHH25To44yrsHHInc25to30K | CE115: ="MOE "&CD115 -> MOE HHAgeHH25To44yrsHHInc25to30K | CF115: HHAgeHH25To44yrsHHInc30to35K | CG115: ="MOE "&CF115 -> MOE HHAgeHH25To44yrsHHInc30to35K | CH115: HHAgeHH25To44yrsHHInc35to40K | CI115: ="MOE "&CH115 -> MOE HHAgeHH25To44yrsHHInc35to40K | CJ115: HHAgeHH25To44yrsHHInc40to45K | CK115: ="MOE "&CJ115 -> MOE HHAgeHH25To44yrsHHInc40to45K | CL115: HHAgeHH25To44yrsHHInc45to50K | CM115: ="MOE "&CL115 -> MOE HHAgeHH25To44yrsHHInc45to50K | CN115: HHAgeHH25To44yrsHHInc50to60K | CO115: ="MOE "&CN115 -> MOE HHAgeHH25To44yrsHHInc50to60K | CP115: HHAgeHH25To44yrsHHInc60to75K | CQ115: ="MOE "&CP115 -> MOE HHAgeHH25To44yrsHHInc60to75K | CR115: HHAgeHH25To44yrsHHInc75to100K | CS115: ="MOE "&CR115 -> MOE HHAgeHH25To44yrsHHInc75to100K | CT115: HHAgeHH25To44yrsHHInc100to125K | CU115: ="MOE "&CT115 -> MOE HHAgeHH25To44yrsHHInc100to125K | CV115: HHAgeHH25To44yrsHHInc125to150K | CW115: ="MOE "&CV115 -> MOE HHAgeHH25To44yrsHHInc125to150K | CX115: HHAgeHH25To44yrsHHInc150to200K | CY115: ="MOE "&CX115 -> MOE HHAgeHH25To44yrsHHInc150to200K | CZ115: HHAge25To44yrsHHInc>200K | DA115: ="MOE "&CZ115 -> MOE HHAge25To44yrsHHInc>200K | DB115: HHAgeHH45To64yrs | DC115: ="MOE "&DB115 -> MOE HHAgeHH45To64yrs | DD115: HHAgeHH45To64yrsHHInc<10K | DE115: ="MOE "&DD115 -> MOE HHAgeHH45To64yrsHHInc<10K | DF115: HHAgeHH45To64yrsHHInc10to15K | DG115: ="MOE "&DF115 -> MOE HHAgeHH45To64yrsHHInc10to15K | DH115: HHAgeHH45To64yrsHHInc15to20K | DI115: ="MOE "&DH115 -> MOE HHAgeHH45To64yrsHHInc15to20K | DJ115: HHAgeHH45To64yrsHHInc20to25K | DK115: ="MOE "&DJ115 -> MOE HHAgeHH45To64yrsHHInc20to25K | DL115: HHAgeHH45To64yrsHHInc25to30K | DM115: ="MOE "&DL115 -> MOE HHAgeHH45To64yrsHHInc25to30K | DN115: HHAgeHH45To64yrsHHInc30to35K | DO115: ="MOE "&DN115 -> MOE HHAgeHH45To64yrsHHInc30to35K | DP115: HHAgeHH45To64yrsHHInc35to40K | DQ115: ="MOE "&DP115 -> MOE HHAgeHH45To64yrsHHInc35to40K | DR115: HHAgeHH45To64yrsHHInc40to45K | DS115: ="MOE "&DR115 -> MOE HHAgeHH45To64yrsHHInc40to45K | DT115: HHAgeHH45To64yrsHHInc45to50K | DU115: ="MOE "&DT115 -> MOE HHAgeHH45To64yrsHHInc45to50K | DV115: HHAgeHH45To64yrsHHInc50to60K | DW115: ="MOE "&DV115 -> MOE HHAgeHH45To64yrsHHInc50to60K | DX115: HHAgeHH45To64yrsHHInc60to75K | DY115: ="MOE "&DX115 -> MOE HHAgeHH45To64yrsHHInc60to75K | DZ115: HHAgeHH45To64yrsHHInc75to100K | EA115: ="MOE "&DZ115 -> MOE HHAgeHH45To64yrsHHInc75to100K | EB115: HHAgeHH45To64yrsHHInc100to125K | EC115: ="MOE "&EB115 -> MOE HHAgeHH45To64yrsHHInc100to125K | ED115: HHAgeHH45To64yrsHHInc125to150K | EE115: ="MOE "&ED115 -> MOE HHAgeHH45To64yrsHHInc125to150K | EF115: HHAgeHH45To64yrsHHInc150to200K | EG115: ="MOE "&EF115 -> MOE HHAgeHH45To64yrsHHInc150to200K | EH115: HHAge45To64yrsHHInc>200K | EI115: ="MOE "&EH115 -> MOE HHAge45To64yrsHHInc>200K | EJ115: HHAgeHH65yrsorOlder | EK115: ="MOE "&EJ115 -> MOE HHAgeHH65yrsorOlder | EL115: HHAgeHH65yrsorOlderHHInc<10K | EM115: ="MOE "&EL115 -> MOE HHAgeHH65yrsorOlderHHInc<10K | EN115: HHAgeHH65yrsorOlderHHInc10to15K | EO115: ="MOE "&EN115 -> MOE HHAgeHH65yrsorOlderHHInc10to15K | EP115: HHAgeHH65yrsorOlderHHInc15to20K | EQ115: ="MOE "&EP115 -> MOE HHAgeHH65yrsorOlderHHInc15to20K | ER115: HHAgeHH65yrsorOlderHHInc20to25K | ES115: ="MOE "&ER115 -> MOE HHAgeHH65yrsorOlderHHInc20to25K | ET115: HHAgeHH65yrsorOlderHHInc25to30K | EU115: ="MOE "&ET115 -> MOE HHAgeHH65yrsorOlderHHInc25to30K | EV115: HHAgeHH65yrsorOlderHHInc30to35K | EW115: ="MOE "&EV115 -> MOE HHAgeHH65yrsorOlderHHInc30to35K | EX115: HHAgeHH65yrsorOlderHHInc35to40K | EY115: ="MOE "&EX115 -> MOE HHAgeHH65yrsorOlderHHInc35to40K | EZ115: HHAgeHH65yrsorOlderHHInc40to45K | FA115: ="MOE "&EZ115 -> MOE HHAgeHH65yrsorOlderHHInc40to45K | FB115: HHAgeHH65yrsorOlderHHInc45to50K | FC115: ="MOE "&FB115 -> MOE HHAgeHH65yrsorOlderHHInc45to50K | FD115: HHAgeHH65yrsorOlderHHInc50to60K | FE115: ="MOE "&FD115 -> MOE HHAgeHH65yrsorOlderHHInc50to60K | FF115: HHAgeHH65yrsorOlderHHInc60to75K | FG115: ="MOE "&FF115 -> MOE HHAgeHH65yrsorOlderHHInc60to75K | FH115: HHAgeHH65yrsorOlderHHInc75to100K | FI115: ="MOE "&FH115 -> MOE HHAgeHH65yrsorOlderHHInc75to100K | FJ115: HHAgeHH65yrsorOlderHHInc100to125K | FK115: ="MOE "&FJ115 -> MOE HHAgeHH65yrsorOlderHHInc100to125K | FL115: HHAgeHH65yrsorOlderHHInc125to150K | FM115: ="MOE "&FL115 -> MOE HHAgeHH65yrsorOlderHHInc125to150K | FN115: HHAgeHH65yrsorOlderHHInc150to200K | FO115: ="MOE "&FN115 -> MOE HHAgeHH65yrsorOlderHHInc150to200K | FP115: HHAge65yrsorOlderHHInc>200K | FQ115: ="MOE "&FP115 -> MOE HHAge65yrsorOlderHHInc>200K | FR115: MedianHHInc | FS115: ="MOE "&FR115 -> MOE MedianHHInc | FT115: HH under 25 years | FU115: ="MOE "&FT115 -> MOE HH under 25 years | FV115: Householder 25 to 44 years | FW115: ="MOE "&FV115 -> MOE Householder 25 to 44 years | FX115: Householder 45 to 64 years | FY115: ="MOE "&FX115 -> MOE Householder 45 to 64 years | FZ115: Householder 65 years and over | GA115: ="MOE "&FZ115 -> MOE Householder 65 years and over
A116: =VLOOKUP(DropDownList!$B$47,CntyQryCensus!$A$530:$AY$544,A$1) -> Acworth | B116: 370 | C116: 51 | D116: 15 | E116: 16 | F116: 6 | G116: 6 | H116: 7 | I116: 6 | J116: 8 | K116: 10 | L116: 20 | M116: 12 | N116: 10 | O116: 8 | P116: 9 | Q116: 6 | R116: 19 | S116: 17 | T116: 18 | U116: 11 | V116: 46 | W116: 22 | X116: 51 | Y116: 24 | Z116: 64 | AA116: 32 | AB116: 34 | AC116: 19 | AD116: 28 | AE116: 16 | AF116: 19 | AG116: 13 | AH116: 16 | AI116: 12 | AJ116: 370 | AK116: 51 | AL116: 0 | AM116: 11 | AN116: 0 | AO116: 11 | AP116: 0 | AQ116: 11 | AR116: 0 | AS116: 11 | AT116: 0 | AU116: 11 | AV116: 0 | AW116: 11 | AX116: 0 | AY116: 11 | AZ116: 0 | BA116: 11 | BB116: 0 | BC116: 11 | BD116: 0 | BE116: 11 | BF116: 0 | BG116: 11 | BH116: 0 | BI116: 11 | BJ116: 0 | BK116: 11 | BL116: 0 | BM116: 11 | BN116: 0 | BO116: 11 | BP116: 0 | BQ116: 11 | BR116: 0 | BS116: 11 | BT116: 53 | BU116: 23 | BV116: 6 | BW116: 10 | BX116: 0 | BY116: 11 | BZ116: 0 | CA116: 11 | CB116: 0 | CC116: 11 | CD116: 0 | CE116: 11 | CF116: 2 | CG116: 3 | CH116: 2 | CI116: 3 | CJ116: 11 | CK116: 11 | CL116: 2 | CM116: 3 | CN116: 2 | CO116: 3 | CP116: 9 | CQ116: 8 | CR116: 5 | CS116: 6 | CT116: 2 | CU116: 3 | CV116: 7 | CW116: 6 | CX116: 3 | CY116: 5 | CZ116: 2 | DA116: 3 | DB116: 169 | DC116: 42 | DD116: 9 | DE116: 12 | DF116: 2 | DG116: 3 | DH116: 3 | DI116: 4 | DJ116: 0 | DK116: 11 | DL116: 8 | DM116: 10 | DN116: 0 | DO116: 11 | DP116: 0 | DQ116: 11 | DR116: 0 | DS116: 11 | DT116: 11 | DU116: 11 | DV116: 13 | DW116: 13 | DX116: 20 | DY116: 18 | DZ116: 36 | EA116: 27 | EB116: 23 | EC116: 16 | ED116: 35 | EE116: 35 | EF116: 23 | EG116: 29 | EH116: 21 | EI116: 26 | EJ116: 649 | EK116: 117 | EL116: 0 | EM116: 16 | EN116: 30 | EO116: 35 | EP116: 122 | EQ116: 86 | ER116: 15 | ES116: 24 | ET116: 67 | EU116: 68 | EV116: 13 | EW116: 21 | EX116: 90 | EY116: 80 | EZ116: 32 | FA116: 53 | FB116: 0 | FC116: 16 | FD116: 62 | FE116: 51 | FF116: 110 | FG116: 68 | FH116: 62 | FI116: 51 | FJ116: 0 | FK116: 16 | FL116: 0 | FM116: 16 | FN116: 0 | FO116: 16 | FP116: 46 | FQ116: 54 | FR116: 68438 | FS116: 8127 | FT116: - | FU116: ** | FV116: 63250 | FW116: 29245 | FX116: 94375 | FY116: 18057 | FZ116: 55000 | GA116: 6509
A118: Number of Households by Income
A119: NAME | B119: HHIncLessThn10k | C119: ="MOE "&B119 -> MOE HHIncLessThn10k | D119: HHInc10to15K | E119: ="MOE "&D119 -> MOE HHInc10to15K | F119: HHInc15to25K | G119: ="MOE "&F119 -> MOE HHInc15to25K | H119: HHInc25to35K | I119: ="MOE "&H119 -> MOE HHInc25to35K | J119: HHInc35to50K | K119: ="MOE "&J119 -> MOE HHInc35to50K | L119: HHInc50to75K | M119: ="MOE "&L119 -> MOE HHInc50to75K | N119: HHInc75to100K | O119: ="MOE "&N119 -> MOE HHInc75to100K | P119: HHInc100to150K | Q119: ="MOE "&P119 -> MOE HHInc100to150K | R119: HHInc150to200K | S119: ="MOE "&R119 -> MOE HHInc150to200K | T119: HHIncOver200K | U119: ="MOE "&T119 -> MOE HHIncOver200K
A120: =VLOOKUP(DropDownList!$B$47,CntyQryCensus!$A$530:$AY$544,A$1) -> Acworth | B120: 15 | C120: 16 | D120: 6 | E120: 6 | F120: 15 | G120: 11.66190379 | H120: 30 | I120: 14.4222051 | J120: 46 | K120: 21.11871208 | L120: 97 | M120: 32.55764119 | N120: 64 | O120: 32 | P120: 62 | Q120: 24.8394847 | R120: 19 | S120: 13 | T120: 16 | U120: 12 | BW120: 71 | BX120: 144 | BY120: 93 | BZ120: 171 | CA120: 118 | CB120: 131 | CC120: 100 | CD120: 66 | CE120: 49 | CF120: 292 | CG120: 122 | CH120: 333 | CI120: 132 | CJ120: 307 | CK120: 97 | CL120: 186 | CM120: 97 | CN120: 22 | CO120: 28 | CP120: 12 | CQ120: 20 | CR120: 0 | CS120: 16 | DH120: Charlestown | DJ120: Estimate | DK120: Margin Of Error | DL120: 2310 | DM120: 107 | DP120: 133 | DQ120: 93 | DR120: 71 | DS120: 53 | DT120: 340 | DU120: 130.8166656 | DV120: 246 | DW120: 117.0042734 | DX120: 368 | DY120: 162.2498074 | DZ120: 625 | EA120: 179.7442628 | EB120: 307 | EC120: 97 | ED120: 208 | EE120: 100.9603883 | EF120: 12 | EG120: 20 | EH120: 0 | EI120: 16
A122: POVERTY DATA
A123: NAME | B123: TotalPop | C123: ="MOE "&B123 -> MOE TotalPop | D123: Total Individuals living in Poverty | E123: ="MOE "&D123 -> MOE Total Individuals living in Poverty | F123: Under 5 yrs. | G123: ="MOE "&F123 -> MOE Under 5 yrs. | H123: 5 to 17 yrs. | I123: ="MOE "&H123 -> MOE 5 to 17 yrs. | J123: 18 to 64 yrs. | K123: ="MOE "&J123 -> MOE 18 to 64 yrs. | L123: 65 to 74 yrs. | M123: ="MOE "&L123 -> MOE 65 to 74 yrs. | N123: 75 yrs. & Over | O123: ="MOE "&N123 -> MOE 75 yrs. & Over | P123: Total Individuals Not living Poverty | Q123: ="MOE "&P123 -> MOE Total Individuals Not living Poverty | R123: Under 5 yrs. | S123: ="MOE "&R123 -> MOE Under 5 yrs. | T123: 5 to 17 yrs. | U123: ="MOE "&T123 -> MOE 5 to 17 yrs. | V123: 18 to 64 yrs. | W123: ="MOE "&V123 -> MOE 18 to 64 yrs. | X123: 65 to 74 yrs. | Y123: ="MOE "&X123 -> MOE 65 to 74 yrs. | Z123: 75 yrs. & Over | AA123: ="MOE "&Z123 -> MOE 75 yrs. & Over | AB123: Total HH | AC123: ="MOE "&AB123 -> MOE Total HH | AD123: Total Households Below Poverty | AE123: ="MOE "&AD123 -> MOE Total Households Below Poverty | AF123: Family Households in Poverty | AG123: ="MOE "&AF123 -> MOE Family Households in Poverty | AH123: Married Couple Fam HH | AI123: ="MOE "&AH123 -> MOE Married Couple Fam HH | AJ123: Other Family | AK123: ="MOE "&AJ123 -> MOE Other Family | AL123: Male Head of Family HH no wife | AM123: ="MOE "&AL123 -> MOE Male Head of Family HH no wife | AN123: Female Head of Family HH no husband | AO123: ="MOE "&AN123 -> MOE Female Head of Family HH no husband | AP123: Non-Family HH | AQ123: ="MOE "&AP123 -> MOE Non-Family HH | AR123: Non-Family Male HH | AS123: ="MOE "&AR123 -> MOE Non-Family Male HH | AT123: Non-Family Female HH | AU123: ="MOE "&AT123 -> MOE Non-Family Female HH | AV123: Total Households at or Above Poverty | AW123: ="MOE "&AV123 -> MOE Total Households at or Above Poverty | AX123: Family Households above Poverty | AY123: ="MOE "&AX123 -> MOE Family Households above Poverty | AZ123: Married Couple Fam HH | BA123: ="MOE "&AZ123 -> MOE Married Couple Fam HH | BB123: Other Family | BC123: ="MOE "&BB123 -> MOE Other Family | BD123: Male Head of Family HH no wife | BE123: ="MOE "&BD123 -> MOE Male Head of Family HH no wife | BF123: Female Head of Family HH no husband | BG123: ="MOE "&BF123 -> MOE Female Head of Family HH no husband | BH123: Non-Family HH | BI123: ="MOE "&BH123 -> MOE Non-Family HH | BJ123: Non-Family Male HH | BK123: ="MOE "&BJ123 -> MOE Non-Family Male HH | BL123: Non-Family Female HH | BM123: ="MOE "&BL123 -> MOE Non-Family Female HH | BN123: Married Couple with Children Below Poverty | BO123: ="MOE "&BN123 -> MOE Married Couple with Children Below Poverty | BP123: Male HH with children below poverty | BQ123: ="MOE "&BP123 -> MOE Male HH with children below poverty | BR123: Female HH with children below poverty | BS123: ="MOE "&BR123 -> MOE Female HH with children below poverty | BT123: Married Couple with Children At or Above Poverty | BU123: ="MOE "&BT123 -> MOE Married Couple with Children At or Above Poverty | BV123: Male HH with children at or above poverty | BW123: ="MOE "&BV123 -> MOE Male HH with children at or above poverty | BX123: Female HH with children at or above poverty | BY123: ="MOE "&BX123 -> MOE Female HH with children at or above poverty
A124: =VLOOKUP(DropDownList!$B$47,CntyQryCensus!$A$530:$AY$544,A$1) -> Acworth | B124: 5007 | C124: 25 | D124: 753 | E124: 318 | F124: 67 | G124: 86.60831369 | H124: 86 | I124: 73.52550578 | J124: 506 | K124: 204.5751696 | L124: 0 | M124: 22.627417 | N124: 94 | O124: 93.77632964 | P124: 4254 | Q124: 317 | R124: 233 | S124: 129.1394595 | T124: 466 | U124: 144.6201922 | V124: 1765 | W124: 249.4714413 | X124: 433 | Y124: 103.3682737 | Z124: 310 | AA124: 91.76055798 | AB124: 691 | AC124: 184 | AD124: 342 | AE124: 138 | AF124: 116 | AG124: 70 | AH124: 12 | AI124: 12 | AJ124: 226 | AK124: 124 | AL124: 24 | AM124: 32 | AN124: 202 | AO124: 122 | AP124: 349 | AQ124: 127 | AR124: 141 | AS124: 77 | AT124: 208 | AU124: 97 | AV124: 4540 | AW124: 294 | AX124: 2823 | AY124: 244 | AZ124: 2002 | BA124: 234 | BB124: 821 | BC124: 172 | BD124: 176 | BE124: 79 | BF124: 645 | BG124: 172 | BH124: 1717 | BI124: 247 | BJ124: 59 | BK124: 27 | BL124: 31 | BM124: 18 | BN124: 95 | BO124: 60 | BP124: 24 | BQ124: 32 | BR124: 154 | BS124: 98 | BT124: 647 | BU124: 155 | BV124: 133 | BW124: 79 | BX124: 420 | BY124: 137 | CE124: 11 | CF124: 0 | CG124: 11 | CH124: 0 | CI124: 11 | CJ124: 0 | CK124: 11 | CL124: 5 | CM124: 5 | CN124: 6 | CO124: 9 | CP124: 2 | CQ124: 3 | CR124: 0 | CS124: 11 | CT124: 2 | CU124: 3 | CV124: 876 | CW124: 135 | CX124: 460 | CY124: 79 | CZ124: 25 | DA124: 16 | DB124: 0 | DC124: 11 | DD124: 24 | DE124: 16 | DF124: 7 | DG124: 11 | DH124: 9 | DI124: 10 | DJ124: 0 | DK124: 11 | DL124: 19 | DM124: 16 | DN124: 56 | DO124: 25 | DP124: 24 | DQ124: 12 | DR124: 77 | DS124: 32 | DT124: 93 | DU124: 24 | DV124: 82 | DW124: 27 | DX124: 44 | DY124: 21 | DZ124: 416 | EA124: 77 | EB124: 9 | EC124: 9 | ED124: 13 | EE124: 15 | EF124: 14 | EG124: 13 | EH124: 5 | EI124: 6 | EJ124: 0 | EK124: 11 | EL124: 9 | EM124: 15 | EN124: 15 | EO124: 11 | EP124: 29 | EQ124: 17 | ER124: 57 | ES124: 27 | ET124: 54 | EU124: 24 | EV124: 71 | EW124: 26 | EX124: 112 | EY124: 29 | EZ124: 28 | FA124: 14 | FP124: Acworth | FR124: Estimate | FS124: Margin Of Error | FT124: 928 | FU124: 135 | FV124: 52 | FW124: 26 | FX124: 0 | FY124: 11.40175425 | FZ124: 2 | GA124: 31.43246729 | GB124: 43 | GC124: 31.51190251 | GD124: 3 | GE124: 11.70469991 | GF124: 4 | GG124: 4.242640687 | GH124: 876 | GI124: 135 | GJ124: 34 | GK124: 18.35755975 | GL124: 81 | GM124: 38.66522986 | GN124: 495 | GO124: 70.82372484 | GP124: 194 | GQ124: 39.62322551 | GR124: 72 | GS124: 25.23885893
A126: Household Income By Tenure
A127: NAME | B127: TotalOccHU | C127: ="MOE "&B127 -> MOE TotalOccHU | D127: OwnOccHU | E127: ="MOE "&D127 -> MOE OwnOccHU | F127: OOHUInc<5K | G127: ="MOE "&F127 -> MOE OOHUInc<5K | H127: OOHUInc5to10K | I127: ="MOE "&H127 -> MOE OOHUInc5to10K | J127: OOHUInc10to15K | K127: ="MOE "&J127 -> MOE OOHUInc10to15K | L127: OOHUInc15to20K | M127: ="MOE "&L127 -> MOE OOHUInc15to20K | N127: OOHUInc20to25K | O127: ="MOE "&N127 -> MOE OOHUInc20to25K | P127: OOHUInc25to35K | Q127: ="MOE "&P127 -> MOE OOHUInc25to35K | R127: OOHUInc35to50K | S127: ="MOE "&R127 -> MOE OOHUInc35to50K | T127: OOHUInc50to75K | U127: ="MOE "&T127 -> MOE OOHUInc50to75K | V127: OOHUInc75to100K | W127: ="MOE "&V127 -> MOE OOHUInc75to100K | X127: OOHUInc100to150K | Y127: ="MOE "&X127 -> MOE OOHUInc100to150K | Z127: OOHUInc>150K | AA127: ="MOE "&Z127 -> MOE OOHUInc>150K | AB127: RentOccHU | AC127: ="MOE "&AB127 -> MOE RentOccHU | AD127: ROHUInc<5K | AE127: ="MOE "&AD127 -> MOE ROHUInc<5K | AF127: ROHUInc5to10K | AG127: ="MOE "&AF127 -> MOE ROHUInc5to10K | AH127: ROHUInc10to15K | AI127: ="MOE "&AH127 -> MOE ROHUInc10to15K | AJ127: ROHUInc15to20K | AK127: ="MOE "&AJ127 -> MOE ROHUInc15to20K | AL127: ROHUInc20to25K | AM127: ="MOE "&AL127 -> MOE ROHUInc20to25K | AN127: ROHUInc25to35K | AO127: ="MOE "&AN127 -> MOE ROHUInc25to35K | AP127: ROHUInc35to50K | AQ127: ="MOE "&AP127 -> MOE ROHUInc35to50K | AR127: ROHUInc50to75K | AS127: ="MOE "&AR127 -> MOE ROHUInc50to75K | AT127: ROHUInc75to100K | AU127: ="MOE "&AT127 -> MOE ROHUInc75to100K | AV127: ROHUInc100to150K | AW127: ="MOE "&AV127 -> MOE ROHUInc100to150K | AX127: ROHUInc>150K | AY127: ="MOE "&AX127 -> MOE ROHUInc>150K | AZ127: Total OCC HUInc<5K | BA127: ="MOE "&AZ127 -> MOE Total OCC HUInc<5K | BB127: Total OCC HUInc5to10K | BC127: ="MOE "&BB127 -> MOE Total OCC HUInc5to10K | BD127: Total OCC HUInc10to15K | BE127: ="MOE "&BD127 -> MOE Total OCC HUInc10to15K | BF127: Total OCC HUInc15to20K | BG127: ="MOE "&BF127 -> MOE Total OCC HUInc15to20K | BH127: Total OCC HUInc20to25K | BI127: ="MOE "&BH127 -> MOE Total OCC HUInc20to25K | BJ127: Total OCC HUInc25to35K | BK127: ="MOE "&BJ127 -> MOE Total OCC HUInc25to35K | BL127: Total OCC HUInc35to50K | BM127: ="MOE "&BL127 -> MOE Total OCC HUInc35to50K | BN127: Total OCC HUInc50to75K | BO127: ="MOE "&BN127 -> MOE Total OCC HUInc50to75K | BP127: Total OCC HUInc75to100K | BQ127: ="MOE "&BP127 -> MOE Total OCC HUInc75to100K | BR127: Total OCC HUInc100to150K | BS127: ="MOE "&BR127 -> MOE Total OCC HUInc100to150K | BT127: Total OCC HUInc>150K | BU127: ="MOE "&BT127 -> MOE Total OCC HUInc>150K | BV127: MedHHInc | BW127: ="MOE "&BV127 -> MOE MedHHInc | BX127: MedOwnOccHHInc | BY127: ="MOE "&BX127 -> MOE MedOwnOccHHInc | BZ127: MedRentOccHHInc | CA127: ="MOE "&BZ127 -> MOE MedRentOccHHInc
A128: =VLOOKUP(DropDownList!$B$47,CntyQryCensus!$A$530:$AY$544,A$1) -> Acworth | B128: 370 | C128: 51 | D128: 340 | E128: 50 | F128: 9 | G128: 12 | H128: 0 | I128: 11 | J128: 6 | K128: 6 | L128: 7 | M128: 6 | N128: 8 | O128: 10 | P128: 28 | Q128: 14 | R128: 40 | S128: 19 | T128: 89 | U128: 29 | V128: 59 | W128: 34 | X128: 62 | Y128: 21 | Z128: 32 | AA128: 17 | AB128: 30 | AC128: 16 | AD128: 6 | AE128: 10 | AF128: 0 | AG128: 11 | AH128: 0 | AI128: 11 | AJ128: 0 | AK128: 11 | AL128: 0 | AM128: 11 | AN128: 2 | AO128: 3 | AP128: 6 | AQ128: 5 | AR128: 8 | AS128: 10 | AT128: 5 | AU128: 6 | AV128: 0 | AW128: 11 | AX128: 3 | AY128: 5 | AZ128: 15 | BA128: 15.62049935 | BB128: 0 | BC128: 15.55634919 | BD128: 6 | BE128: 12.52996409 | BF128: 7 | BG128: 12.52996409 | BH128: 8 | BI128: 14.86606875 | BJ128: 30 | BK128: 14.31782106 | BL128: 46 | BM128: 19.6468827 | BN128: 97 | BO128: 30.6757233 | BP128: 64 | BQ128: 34.525353 | BR128: 62 | BS128: 23.70653918 | BT128: 35 | BU128: 17.72004515 | BV128: 68438 | BW128: 8127 | BX128: 70500 | BY128: 7922 | BZ128: 51250 | CA128: 15306
A130: Population Data
A131: NAME | B131: Total Population | C131: MOE Total Population | D131: Under 15 Years | E131: MOE Under 15 yrs. | F131: 15 to 24 yrs. | G131: MOE 15 to 24 yrs. | H131: 25 to 34 yrs. | I131: MOE 25 to 34 yrs. | J131: 35 to 44 yrs. | K131: MOE 35 to 44 yrs. | L131: 45 to 54 yrs. | M131: MOE 45 to 54 yrs. | N131: 55 to 64 yrs. | O131: MOE 55 to 64 yrs. | P131: 65 to 74 yrs. | Q131: MOE 65 to 74 yrs. | R131: Over 74 yrs. | S131: MOE Over 74 yrs. | T131: TotalHH | U131: MOE TotalHH | V131: FamilyHH | W131: MOE FamilyHH | X131: MarriedFamilyHH | Y131: MOE MarriedFamilyHH | Z131: SingleFamilyHH | AA131: MOE SingleFamilyHH | AB131: Sfamily-MaleHH | AC131: MOE Sfamily-MaleHH | AD131: Sfamily-FemaleHH | AE131: MOE Sfamily-FemaleHH | AF131: NonFamilyHH | AG131: MOE NonFamilyHH | AH131: NonFamilyHH-LivingAlone | AI131: MOE NonFamilyHH-LivingAlone | AJ131: NonFamilyHH-NotLivingAlone | AK131: MOE NonFamilyHH-NotLivingAlone | AL131: PopRaceWhite | AM131: MOE PopRaceWhite | AN131: PopRaceBlack | AO131: MOE PopRaceBlack | AP131: PopRaceAmerican Indian | AQ131: MOE PopRaceAmerican Indian | AR131: PopRaceAsian &Pacific Is. | AS131: MOE PopRaceAsian &Pacific Is. | AT131: PopRaceOther* | AU131: MOE PopRaceOther* | AV131: PopRaceHispanic or Latino: | AW131: MOE PopRaceHispanic or Latino: | AX131: MedianAgeTotalPop | AY131: MOE MedianAgeTotalPop | AZ131: MedianAgeMale | BA131: MOE MedianAgeMale | BB131: MedianAgeFemale | BC131: MOE MedianAgeFemale | BD131: AvgHHSizeTotal | BE131: MOE AvgHHSizeTotal | BF131: AvgHHSizeFamilyHH | BG131: MOE AvgHHSizeFamilyHH | BH131: AvgHHSizeNonFamilyHH | BI131: MOE AvgHHSizeNonFamilyHH
A132: =VLOOKUP(DropDownList!$B$47,CntyQryCensus!$A$530:$AY$544,A$1) -> Acworth | B132: 906 | C132: 134 | D132: 84 | E132: 27.89265136 | F132: 42 | G132: 30.65941943 | H132: 95 | I132: 34.89985673 | J132: 76 | K132: 30.3644529 | L132: 118 | M132: 41.71330723 | N132: 209 | O132: 48.55924217 | P132: 205 | Q132: 47.47630988 | R132: 77 | S132: 26.19160171 | T132: 370 | U132: 51 | V132: 255 | W132: 43 | X132: 218 | Y132: 40 | Z132: 37 | AA132: 19 | AB132: 23 | AC132: 14 | AD132: 14 | AE132: 12 | AF132: 115 | AG132: 28 | AH132: 89 | AI132: 25 | AJ132: 26 | AK132: 16 | AL132: 861 | AM132: 131 | AN132: 0 | AO132: 11 | AP132: 0 | AQ132: 11 | AR132: 8 | AS132: 16.2788206 | AT132: 23 | AU132: 27.31300057 | AV132: 14 | AW132: 14 | AX132: 57.1 | AY132: 2.8 | AZ132: 56.2 | BA132: 3.2 | BB132: 57.6 | BC132: 3.2 | BD132: 2.448648649 | BE132: 0.21 | BF132: 2.91372549 | BG132: 0.6968223943 | BH132: 1.417391304 | BI132: 0.5897713195 | CC132: 33 | CD132: 160 | CE132: 112 | CF132: 164 | CG132: 81 | CH132: 200 | CI132: 109 | CJ132: 64 | CK132: 70 | CL132: 127 | CM132: 82 | CN132: 116 | CO132: 79 | CP132: 190 | CQ132: 121 | CR132: 116 | CS132: 81 | CT132: 181 | CU132: 91 | CV132: 117 | CW132: 75 | CX132: 55 | CY132: 49 | CZ132: 139 | DA132: 96 | DB132: 91 | DC132: 59 | DD132: 73 | DE132: 63 | DF132: 84 | DG132: 72 | EP132: Charlestown | ER132: Estimate | ES132: Margin Of Error | ET132: 5019 | EU132: 17 | EV132: 1004 | EW132: 224.5306215 | EX132: 304 | EY132: 132.6687605 | EZ132: 631 | FA132: 193.3830396 | FB132: 568 | FC132: 187.2378167 | FD132: 540 | FE132: 178.9580957 | FF132: 974 | FG132: 226.1393376 | FH132: 547 | FI132: 174.4362348 | FJ132: 451 | FK132: 158.4329511
A134: Nativity and Prior Place of Residence
A135: NAME | B135: TotalPop | C135: ="MOE "&B135 -> MOE TotalPop | D135: Native: | E135: ="MOE "&D135 -> MOE Native: | F135: NatBornInStateOfResidence | G135: ="MOE "&F135 -> MOE NatBornInStateOfResidence | H135: Born in other state in the United States: | I135: ="MOE "&H135 -> MOE Born in other state in the United States: | J135: Northeast | K135: ="MOE "&J135 -> MOE Northeast | L135: Midwest | M135: ="MOE "&L135 -> MOE Midwest | N135: South | O135: ="MOE "&N135 -> MOE South | P135: West | Q135: ="MOE "&P135 -> MOE West | R135: Born outside the United States: | S135: ="MOE "&R135 -> MOE Born outside the United States: | T135: Puerto Rico | U135: ="MOE "&T135 -> MOE Puerto Rico | V135: U.S. Island Areas | W135: ="MOE "&V135 -> MOE U.S. Island Areas | X135: Born abroad of American parent(s) | Y135: ="MOE "&X135 -> MOE Born abroad of American parent(s) | Z135: Foreign born: | AA135: ="MOE "&Z135 -> MOE Foreign born: | AB135: Naturalized U.S. citizen | AC135: ="MOE "&AB135 -> MOE Naturalized U.S. citizen | AD135: Not a U.S. citizen | AE135: ="MOE "&AD135 -> MOE Not a U.S. citizen | AF135: CurrentResidenceTotal: | AG135: ="MOE "&AF135 -> MOE CurrentResidenceTotal: | AH135: SameHouse: | AI135: ="MOE "&AH135 -> MOE SameHouse: | AJ135: DifferentHouse: | AK135: ="MOE "&AJ135 -> MOE DifferentHouse: | AL135: DiffHouseInNH | AM135: ="MOE "&AL135 -> MOE DiffHouseInNH | AN135: DiffHouseInNHSameCnty | AO135: ="MOE "&AN135 -> MOE DiffHouseInNHSameCnty | AP135: DiffHouseInNHDiffCnty | AQ135: ="MOE "&AP135 -> MOE DiffHouseInNHDiffCnty | AR135: DiffHouseInDiffState | AS135: ="MOE "&AR135 -> MOE DiffHouseInDiffState | AT135: DiffHouseInElsewhere | AU135: ="MOE "&AT135 -> MOE DiffHouseInElsewhere
A136: =VLOOKUP(DropDownList!$B$47,CntyQryCensus!$A$530:$AY$544,A$1) -> Acworth | B136: 12977 | C136: 23 | D136: 12478 | E136: 177 | F136: 7149 | G136: 509 | H136: 5181 | I136: 523 | J136: 4059 | K136: 525 | L136: 322 | M136: 128 | N136: 414 | O136: 144 | P136: 386 | Q136: 161 | R136: 148 | S136: 103 | T136: 1 | U136: 4 | V136: 0 | W136: 18 | X136: 147 | Y136: 103 | Z136: 499 | AA136: 172 | AB136: 365 | AC136: 141 | AD136: 134 | AE136: 99 | AF136: 12884 | AG136: 63 | AH136: 11029 | AI136: 576 | AJ136: 1855 | AK136: 573.8092017 | AL136: 1543 | AM136: 547.7526814 | AN136: 1452 | AO136: 537 | AP136: 91 | AQ136: 108 | AR136: 312 | AS136: 170
A138: School Enrollment - Education
A139: NAME | B139: Total Pop 3 Years and Older | C139: MOE Total Pop 3 Years and Older | D139: SchEnrlPop3yrOver | E139: ="MOE "&D139 -> MOE SchEnrlPop3yrOver | F139: TotalEnrollNursy&Kinder | G139: ="MOE "&F139 -> MOE TotalEnrollNursy&Kinder | H139: NurserSchEnrl | I139: ="MOE "&H139 -> MOE NurserSchEnrl | J139: KinderSchEnrl | K139: ="MOE "&J139 -> MOE KinderSchEnrl | L139: ElemSchEnrl (1-8) | M139: ="MOE "&L139 -> MOE ElemSchEnrl (1-8) | N139: HighSchEnrl(9-12) | O139: ="MOE "&N139 -> MOE HighSchEnrl(9-12) | P139: TotalElementry&HSEnroll | Q139: ="MOE "&P139 -> MOE TotalElementry&HSEnroll | R139: CollGradSchEnrl | S139: ="MOE "&R139 -> MOE CollGradSchEnrl | T139: PopNotEnrolled | U139: MOE PopNotEnrolled | V139: Pop25yrsOver | W139: ="MOE "&V139 -> MOE Pop25yrsOver | X139: EduAtain<9grd | Y139: ="MOE "&X139 -> MOE EduAtain<9grd | Z139: EduAtainHSnoDip | AA139: ="MOE "&Z139 -> MOE EduAtainHSnoDip | AB139: EduAtainHSgrad | AC139: ="MOE "&AB139 -> MOE EduAtainHSgrad | AD139: EduAtainCollNoDeg | AE139: ="MOE "&AD139 -> MOE EduAtainCollNoDeg | AF139: EduAtainAssocDeg | AG139: ="MOE "&AF139 -> MOE EduAtainAssocDeg | AH139: EduAtainBachDeg | AI139: ="MOE "&AH139 -> MOE EduAtainBachDeg | AJ139: EduAtainGradProfDeg | AK139: ="MOE "&AJ139 -> MOE EduAtainGradProfDeg
A140: =VLOOKUP(DropDownList!$B$47,CntyQryCensus!$A$530:$AY$544,A$1) -> Acworth | B140: 4916 | C140: 91 | D140: 742 | E140: 212 | F140: 113 | G140: 99.12618221 | H140: 33 | I140: 51 | J140: 80 | K140: 85 | L140: 443 | M140: 143.1782106 | N140: 161 | O140: 103 | P140: 604 | Q140: 176.3774362 | R140: 25 | S140: 28.8444102 | T140: 4174 | U140: 221 | V140: 3856 | W140: 202 | X140: 0 | Y140: 39.19183588 | Z140: 332 | AA140: 168.3894296 | AB140: 1885 | AC140: 308.058436 | AD140: 610 | AE140: 183.7634349 | AF140: 392 | AG140: 132.1362933 | AH140: 447 | AI140: 143.1223253 | AJ140: 190 | AK140: 118.046601
A142: Occupied Owner Housing Value
A143: NAME | B143: OwnerOccHU | C143: MOE OwnerOccHU | D143: AllOOHU<10k | E143: MOE AllOOHU<10k | F143: AllOOHU10to15k | G143: MOE AllOOHU10to15k | H143: AllOOHU15to20k | I143: MOE AllOOHU15to20k | J143: AllOOHU20to25k | K143: MOE AllOOHU20to25k | L143: AllOOHU25to30k | M143: MOE AllOOHU25to30k | N143: AllOOHU30to35k | O143: MOE AllOOHU30to35k | P143: AllOOHU35to40k | Q143: MOE AllOOHU35to40k | R143: AllOOHU40to50k | S143: MOE AllOOHU40to50k | T143: AllOOHU50to60k | U143: MOE AllOOHU50to60k | V143: AllOOHU60to70k | W143: MOE AllOOHU60to70k | X143: AllOOHU70to80k | Y143: MOE AllOOHU70to80k | Z143: AllOOHU80to90k | AA143: MOE AllOOHU80to90k | AB143: AllOOHU90to100k | AC143: MOE AllOOHU90to100k | AD143: AllOOHU100to125k | AE143: MOE AllOOHU100to125k | AF143: AllOOHU125to150k | AG143: MOE AllOOHU125to150k | AH143: AllOOHU150to175k | AI143: MOE AllOOHU150to175k | AJ143: AllOOHU175to200k | AK143: MOE AllOOHU175to200k | AL143: AllOOHU200to250k | AM143: MOE AllOOHU200to250k | AN143: AllOOHU250to300k | AO143: MOE AllOOHU250to300k | AP143: AllOOHU300to400k | AQ143: MOE AllOOHU300to400k | AR143: AllOOHU400to500k | AS143: MOE AllOOHU400to500k | AT143: AllOOHU500to750k | AU143: MOE AllOOHU500to750k | AV143: AllOOHU750to1000k | AW143: MOE AllOOHU750to1000k | AX143: AllOOHU1000kmore | AY143: MOE AllOOHU1000kmore | AZ143: MedianOwnOCCHomeValue | BA143: MOE MedianOwnOCCHomeValue | BB143: OnwerOccHsU | BC143: MOE OnwerOccHsU | BD143: OwnerCosts>20PctHHInc | BE143: MOE OwnerCosts>20PctHHInc | BF143: OwnerCosts20to29.9PctHHInc | BG143: MOE OwnerCosts20to29.9PctHHInc | BH143: OwnerCosts<30PctHHInc | BI143: MOE OwnerCosts<30PctHHInc | BJ143: OwnerCosts>30PctHHInc | BK143: MOE OwnerCosts>30PctHHInc | BL143: OwnerCosts30to34.9PctHHInc | BM143: MOE OwnerCosts30to34.9PctHHInc | BN143: OwnerCosts<35PctHHInc | BO143: MOE OwnerCosts<35PctHHInc | BP143: OwnerCosts>35PctHHInc | BQ143: MOE OwnerCosts>35PctHHInc | BR143: OwnerCosts>50PctHHInc | BS143: MOE OwnerCosts>50PctHHInc | BT143: OwnerCostsPctNotcomputed | BU143: MOE OwnerCostsPctNotcomputed | BV143: OwnerOHUHhInc<20k | BW143: MOE OwnerOHUHhInc<20k | BX143: OwnerOHUHhInc<20kHCosts<20pct | BY143: MOE OwnerOHUHhInc<20kHCosts<20pct | BZ143: OwnerOHUHhInc<20kHCosts20to29pct | CA143: MOE OwnerOHUHhInc<20kHCosts20to29pct | CB143: OwnerOHUHhInc>20kHCosts30pct | CC143: MOE OwnerOHUHhInc>20kHCosts30pct | CD143: OwnerOHUHhInc20kTo34999 | CE143: MOE OwnerOHUHhInc20kTo34999 | CF143: OwnerOHUHhInc20kTo34999HCosts<20pct | CG143: MOE OwnerOHUHhInc20kTo34999HCosts<20pct | CH143: OwnerOHUHhInc20kTo34999HCosts20to29pct | CI143: MOE OwnerOHUHhInc20kTo34999HCosts20to29pct | CJ143: OwnerOHUHhInc20kTo34999HCosts30pct | CK143: MOE OwnerOHUHhInc20kTo34999HCosts30pct | CL143: OwnerOHUHhInc35kTo49999 | CM143: MOE OwnerOHUHhInc35kTo49999 | CN143: OwnerOHUHhInc35kTo49999HCosts<20pct | CO143: MOE OwnerOHUHhInc35kTo49999HCosts<20pct | CP143: OwnerOHUHhInc35kTo49999HCosts20to29pct | CQ143: MOE OwnerOHUHhInc35kTo49999HCosts20to29pct | CR143: OwnerOHUHhInc35kTo49999HCosts30pct | CS143: MOE OwnerOHUHhInc35kTo49999HCosts30pct | CT143: OwnerOHUHhInc50kTo74999 | CU143: MOE OwnerOHUHhInc50kTo74999 | CV143: OwnerOHUHhInc50kTo74999HCosts<20pct | CW143: MOE OwnerOHUHhInc50kTo74999HCosts<20pct | CX143: OwnerOHUHhInc50kTo74999HCosts20to29pct | CY143: MOE OwnerOHUHhInc50kTo74999HCosts20to29pct | CZ143: OwnerOHUHhInc50kTo74999HCosts30pct | DA143: MOE OwnerOHUHhInc50kTo74999HCosts30pct | DB143: OwnerOHUHhInc>75000 | DC143: MOE OwnerOHUHhInc>75000 | DD143: OwnerOHUHhInc>75000HCosts<20pct | DE143: MOE OwnerOHUHhInc>75000HCosts<20pct | DF143: OwnerOHUHhInc>75000HCosts20to29pct | DG143: MOE OwnerOHUHhInc>75000HCosts20to29pct | DH143: OwnerOHUHhInc>75000HCosts30pct | DI143: MOE OwnerOHUHhInc>75000HCosts30pct | DJ143: ZeroOrNegativeIncome | DK143: MOE ZeroOrNegativeIncome
A144: =VLOOKUP(DropDownList!$B$47,CntyQryCensus!$A$530:$AY$544,A$1) -> Acworth | B144: 340 | C144: 50 | D144: 0 | E144: 11 | F144: 3 | G144: 4 | H144: 2 | I144: 3 | J144: 0 | K144: 11 | L144: 0 | M144: 11 | N144: 0 | O144: 11 | P144: 0 | Q144: 11 | R144: 7 | S144: 11 | T144: 0 | U144: 11 | V144: 6 | W144: 5 | X144: 8 | Y144: 10 | Z144: 5 | AA144: 5 | AB144: 5 | AC144: 5 | AD144: 47 | AE144: 24 | AF144: 25 | AG144: 14 | AH144: 58 | AI144: 23 | AJ144: 25 | AK144: 17 | AL144: 44 | AM144: 23 | AN144: 47 | AO144: 21 | AP144: 21 | AQ144: 16 | AR144: 26 | AS144: 19 | AT144: 7 | AU144: 6 | AV144: 2 | AW144: 3 | AX144: 2 | AY144: 3 | AZ144: 0 | BA144: 11 | BB144: 0 | BC144: 11 | BD144: 179000 | BE144: 24139 | BF144: 340 | BG144: 50 | BH144: 187 | BI144: 45.91296113 | BJ144: 70 | BK144: 25.70992026 | BL144: 257 | BM144: 52.62128847 | BN144: 76 | BO144: 26.17250466 | BP144: 19 | BQ144: 13 | BR144: 276 | BS144: 54.20332093 | BT144: 57 | BU144: 22.71563338 | BV144: 13 | BW144: 9.486832981 | BX144: 7 | BY144: 15.55634919 | BZ144: 15 | CA144: 8 | CB144: 3 | CC144: 4 | CD144: 2 | CE144: 3 | CF144: 10 | CG144: 7 | CH144: 36 | CI144: 17 | CJ144: 2 | CK144: 3 | CL144: 8 | CM144: 7 | CN144: 26 | CO144: 16 | CP144: 40 | CQ144: 19 | CR144: 12 | CS144: 11 | CT144: 12 | CU144: 12 | CV144: 16 | CW144: 14 | CX144: 89 | CY144: 29 | CZ144: 52 | DA144: 22 | DB144: 24 | DC144: 18 | DD144: 13 | DE144: 9 | DF144: 153 | DG144: 38 | DH144: 118 | DI144: 32 | DJ144: 24 | DK144: 13 | DL144: 11 | DM144: 12 | DN144: 7 | DO144: 11
A146: Occupied Rental Housing Value
